Workbook

Sheet Hoja1
A3: 1 | B3: La primera hoja es el resumen. Las celdas sepia hay que rellenarlas, y te da los datos para el día y hora que quieran (en sepia).
A4: 2 | B4: La segunda hoja son altura y acimut todos los días del año en intervalos de 30 min (en UTC, sin cambio de hora), y en la última columna en la hora que tu quieras (la que pongas en la primera hoja)
A5: 3 | B5: La tercera es para añadir más ciudades.
B7: Esta tabla de cálculo ha sido elaborada por Ignacio Rueda Sastre y ha sido cedida a esta web en fecha 20-mayo-2020

Sheet Resumen
A1: ALTURAS Y AZIMUTES DEL SOL
A3: DATOS GENERALES
A5: Ubicación: | C5: Madrid
A6: Huso horario: | C6: UTC+2
A7: Latitud: | C7: =VLOOKUP($C$5,'Input ciudades'!$A$3:$M$100,6,0)&VLOOKUP($C$5,'Input ciudades'!$A$3:$M$100,7,0) -> 40°25'00''N
A8: Longitud: | C8: =VLOOKUP($C$5,'Input ciudades'!$A$3:$M$100,12,0)&VLOOKUP($C$5,'Input ciudades'!$A$3:$M$100,13,0) -> 3°42'13''O
A10: DATOS DIARIOS
A12: Fecha: | C12: 2021-02-02
A13: Horas de sol: | C13: =HOUR(VLOOKUP(VLOOKUP($C$12,'Datos diarios'!$A$2:$B$366,2),'Datos diarios'!$B$2:$K$366,4,0)/24)&"h "&MINUTE(VLOOKUP(VLOOKUP($C$12,'Datos diarios'!$A$2:$B$366,2),'Datos diarios'!$B$2:$K$366,4,0)/24)&"min" -> 9h 58min
A14: Amanece: | C14: =(VLOOKUP(VLOOKUP($C$12,'Datos diarios'!$A$2:$B$366,2),'Datos diarios'!$B$2:$K$366,8,0)*24+RIGHT($C$6,2))/24 -> 09:28:42.571
A15: Anochece: | C15: =(VLOOKUP(VLOOKUP($C$12,'Datos diarios'!$A$2:$B$366,2),'Datos diarios'!$B$2:$K$366,10,0)*24+RIGHT($C$6,2))/24 -> 19:27:34.821
A16: Mediodía: | C16: =(VLOOKUP(VLOOKUP($C$12,'Datos diarios'!$A$2:$B$366,2),'Datos diarios'!$B$2:$K$366,9,0)*24+RIGHT($C$6,2))/24 -> 14:28:08.696
A17: Máxima altura: | C17: =ROUND(VLOOKUP(VLOOKUP($C$12,'Datos diarios'!$A$2:$B$366,2),'Datos diarios'!$B$2:$K$366,3,0),2)&"°" -> 32,53°
A19: DATOS HORARIOS
A21: Hora: | C21: 14 | D21: h
A22: Minutos: | C22: 0 | D22: min
A23: Altura: | C23: =$G$28 -> 32.12960967 | D23: °
A24: Azimut: | C24: =G29 -> 171.9740173 | D24: °
A26: DÍA | B26: DATOS DIARIOS | F26: ÁNGULOS | G26: HORAS
B27: Orto | C27: Ocaso | D27: Cenit | E27: Altura | G27: =($C$21*60+$C$22)/60/24 -> 14:00:00 | H27: 00:00:00 | I27: 01:00:00 | J27: 02:00:00 | K27: 03:00:00 | L27: 04:00:00 | M27: 05:00:00 | N27: 06:00:00 | O27: 07:00:00 | P27: 08:00:00 | Q27: 09:00:00 | R27: 10:00:00 | S27: 11:00:00 | T27: 12:00:00 | U27: 13:00:00 | V27: 14:00:00 | W27: 15:00:00 | X27: 16:00:00 | Y27: 17:00:00 | Z27: 18:00:00 | AA27: 19:00:00 | AB27: 20:00:00 | AC27: 21:00:00 | AD27: 22:00:00 | AE27: 23:00:00
A28: =$C$12 -> 2021-02-02 | B28: =(VLOOKUP(VLOOKUP($A28,'Datos diarios'!$A$2:$B$366,2),'Datos diarios'!$B$2:$K$366,8,0)*24+RIGHT($C$6,2))/24 -> 09:28:42.571 | C28: =(VLOOKUP(VLOOKUP($A28,'Datos diarios'!$A$2:$B$366,2),'Datos diarios'!$B$2:$K$366,10,0)*24+RIGHT($C$6,2))/24 -> 19:27:34.821 | D28: =(VLOOKUP(VLOOKUP($A28,'Datos diarios'!$A$2:$B$366,2),'Datos diarios'!$B$2:$K$366,9,0)*24+RIGHT($C$6,2))/24 -> 14:28:08.696 | E28: =ROUND(VLOOKUP(VLOOKUP($A28,'Datos diarios'!$A$2:$B$366,2),'Datos diarios'!$B$2:$K$366,3,0),2)&"°" -> 32,53° | F28: Altura (°) | G28: =INDEX('Altura long.'!$AY$3:$AY$367,VLOOKUP($A28,'Datos diarios'!$A$2:$B$366,2)) -> 32.12960967 | H28: =IF((H$27*24-RIGHT($C$6,2))/24>0,HLOOKUP((H$27*24-RIGHT($C$6,2))/24,'Altura long.'!$C$2:$AX$367,(VLOOKUP($A28,'Datos diarios'!$A$2:$B$366,2)+1),1),HLOOKUP((H$27*24-RIGHT($C$6,2))/24+1,'Altura long.'!$C$2:$AX$367,(VLOOKUP($A28,'Datos diarios'!$A$2:$B$366,2)+0),1)) -> -45.27653303 | I28: =IF((I$27*24-RIGHT($C$6,2))/24>0,HLOOKUP((I$27*24-RIGHT($C$6,2))/24,'Altura long.'!$C$2:$AX$367,(VLOOKUP($A28,'Datos diarios'!$A$2:$B$366,2)+1),1),HLOOKUP((I$27*24-RIGHT($C$6,2))/24+1,'Altura long.'!$C$2:$AX$367,(VLOOKUP($A28,'Datos diarios'!$A$2:$B$366,2)+0),1)) -> -59.97786724 | J28: =IF((J$27*24-RIGHT($C$6,2))/24>0,HLOOKUP((J$27*24-RIGHT($C$6,2))/24,'Altura long.'!$C$2:$AX$367,(VLOOKUP($A28,'Datos diarios'!$A$2:$B$366,2)+1),1),HLOOKUP((J$27*24-RIGHT($C$6,2))/24+1,'Altura long.'!$C$2:$AX$367,(VLOOKUP($A28,'Datos diarios'!$A$2:$B$366,2)+0),1)) -> -67.61381858 | K28: =IF((K$27*24-RIGHT($C$6,2))/24>0,HLOOKUP((K$27*24-RIGHT($C$6,2))/24,'Altura long.'!$C$2:$AX$367,(VLOOKUP($A28,'Datos diarios'!$A$2:$B$366,2)+1),1),HLOOKUP((K$27*24-RIGHT($C$6,2))/24+1,'Altura long.'!$C$2:$AX$367,(VLOOKUP($A28,'Datos diarios'!$A$2:$B$366,2)+0),1)) -> -65.72362887 | L28: =IF((L$27*24-RIGHT($C$6,2))/24>0,HLOOKUP((L$27*24-RIGHT($C$6,2))/24,'Altura long.'!$C$2:$AX$367,(VLOOKUP($A28,'Datos diarios'!$A$2:$B$366,2)+1),1),HLOOKUP((L$27*24-RIGHT($C$6,2))/24+1,'Altura long.'!$C$2:$AX$367,(VLOOKUP($A28,'Datos diarios'!$A$2:$B$366,2)+0),1)) -> -59.42289211 | M28: =IF((M$27*24-RIGHT($C$6,2))/24>0,HLOOKUP((M$27*24-RIGHT($C$6,2))/24,'Altura long.'!$C$2:$AX$367,(VLOOKUP($A28,'Datos diarios'!$A$2:$B$366,2)+1),1),HLOOKUP((M$27*24-RIGHT($C$6,2))/24+1,'Altura long.'!$C$2:$AX$367,(VLOOKUP($A28,'Datos diarios'!$A$2:$B$366,2)+0),1)) -> -54.90109385 | N28: =IF((N$27*24-RIGHT($C$6,2))/24>0,HLOOKUP((N$27*24-RIGHT($C$6,2))/24,'Altura long.'!$C$2:$AX$367,(VLOOKUP($A28,'Datos diarios'!$A$2:$B$366,2)+1),1),HLOOKUP((N$27*24-RIGHT($C$6,2))/24+1,'Altura long.'!$C$2:$AX$367,(VLOOKUP($A28,'Datos diarios'!$A$2:$B$366,2)+0),1)) -> -44.53071336 | O28: =IF((O$27*24-RIGHT($C$6,2))/24>0,HLOOKUP((O$27*24-RIGHT($C$6,2))/24,'Altura long.'!$C$2:$AX$367,(VLOOKUP($A28,'Datos diarios'!$A$2:$B$366,2)+1),1),HLOOKUP((O$27*24-RIGHT($C$6,2))/24+1,'Altura long.'!$C$2:$AX$367,(VLOOKUP($A28,'Datos diarios'!$A$2:$B$366,2)+0),1)) -> -27.63936842 | P28: =IF((P$27*24-RIGHT($C$6,2))/24>0,HLOOKUP((P$27*24-RIGHT($C$6,2))/24,'Altura long.'!$C$2:$AX$367,(VLOOKUP($A28,'Datos diarios'!$A$2:$B$366,2)+1),1),HLOOKUP((P$27*24-RIGHT($C$6,2))/24+1,'Altura long.'!$C$2:$AX$367,(VLOOKUP($A28,'Datos diarios'!$A$2:$B$366,2)+0),1)) -> -16.2593379 | Q28: =IF((Q$27*24-RIGHT($C$6,2))/24>0,HLOOKUP((Q$27*24-RIGHT($C$6,2))/24,'Altura long.'!$C$2:$AX$367,(VLOOKUP($A28,'Datos diarios'!$A$2:$B$366,2)+1),1),HLOOKUP((Q$27*24-RIGHT($C$6,2))/24+1,'Altura long.'!$C$2:$AX$367,(VLOOKUP($A28,'Datos diarios'!$A$2:$B$366,2)+0),1)) -> -10.65732759 | R28: =IF((R$27*24-RIGHT($C$6,2))/24>0,HLOOKUP((R$27*24-RIGHT($C$6,2))/24,'Altura long.'!$C$2:$AX$367,(VLOOKUP($A28,'Datos diarios'!$A$2:$B$366,2)+1),1),HLOOKUP((R$27*24-RIGHT($C$6,2))/24+1,'Altura long.'!$C$2:$AX$367,(VLOOKUP($A28,'Datos diarios'!$A$2:$B$366,2)+0),1)) -> 5.345437991 | S28: =IF((S$27*24-RIGHT($C$6,2))/24>0,HLOOKUP((S$27*24-RIGHT($C$6,2))/24,'Altura long.'!$C$2:$AX$367,(VLOOKUP($A28,'Datos diarios'!$A$2:$B$366,2)+1),1),HLOOKUP((S$27*24-RIGHT($C$6,2))/24+1,'Altura long.'!$C$2:$AX$367,(VLOOKUP($A28,'Datos diarios'!$A$2:$B$366,2)+0),1)) -> 14.89005361 | T28: =IF((T$27*24-RIGHT($C$6,2))/24>0,HLOOKUP((T$27*24-RIGHT($C$6,2))/24,'Altura long.'!$C$2:$AX$367,(VLOOKUP($A28,'Datos diarios'!$A$2:$B$366,2)+1),1),HLOOKUP((T$27*24-RIGHT($C$6,2))/24+1,'Altura long.'!$C$2:$AX$367,(VLOOKUP($A28,'Datos diarios'!$A$2:$B$366,2)+0),1)) -> 19.15081805 | U28: =IF((U$27*24-RIGHT($C$6,2))/24>0,HLOOKUP((U$27*24-RIGHT($C$6,2))/24,'Altura long.'!$C$2:$AX$367,(VLOOKUP($A28,'Datos diarios'!$A$2:$B$366,2)+1),1),HLOOKUP((U$27*24-RIGHT($C$6,2))/24+1,'Altura long.'!$C$2:$AX$367,(VLOOKUP($A28,'Datos diarios'!$A$2:$B$366,2)+0),1)) -> 28.94830046 | V28: =IF((V$27*24-RIGHT($C$6,2))/24>0,HLOOKUP((V$27*24-RIGHT($C$6,2))/24,'Altura long.'!$C$2:$AX$367,(VLOOKUP($A28,'Datos diarios'!$A$2:$B$366,2)+1),1),HLOOKUP((V$27*24-RIGHT($C$6,2))/24+1,'Altura long.'!$C$2:$AX$367,(VLOOKUP($A28,'Datos diarios'!$A$2:$B$366,2)+0),1)) -> 32.12960967 | W28: =IF((W$27*24-RIGHT($C$6,2))/24>0,HLOOKUP((W$27*24-RIGHT($C$6,2))/24,'Altura long.'!$C$2:$AX$367,(VLOOKUP($A28,'Datos diarios'!$A$2:$B$366,2)+1),1),HLOOKUP((W$27*24-RIGHT($C$6,2))/24+1,'Altura long.'!$C$2:$AX$367,(VLOOKUP($A28,'Datos diarios'!$A$2:$B$366,2)+0),1)) -> 32.50546454 | X28: =IF((X$27*24-RIGHT($C$6,2))/24>0,HLOOKUP((X$27*24-RIGHT($C$6,2))/24,'Altura long.'!$C$2:$AX$367,(VLOOKUP($A28,'Datos diarios'!$A$2:$B$366,2)+1),1),HLOOKUP((X$27*24-RIGHT($C$6,2))/24+1,'Altura long.'!$C$2:$AX$367,(VLOOKUP($A28,'Datos diarios'!$A$2:$B$366,2)+0),1)) -> 28.68900108 | Y28: =IF((Y$27*24-RIGHT($C$6,2))/24>0,HLOOKUP((Y$27*24-RIGHT($C$6,2))/24,'Altura long.'!$C$2:$AX$367,(VLOOKUP($A28,'Datos diarios'!$A$2:$B$366,2)+1),1),HLOOKUP((Y$27*24-RIGHT($C$6,2))/24+1,'Altura long.'!$C$2:$AX$367,(VLOOKUP($A28,'Datos diarios'!$A$2:$B$366,2)+0),1)) -> 22.57939449 | Z28: =IF((Z$27*24-RIGHT($C$6,2))/24>0,HLOOKUP((Z$27*24-RIGHT($C$6,2))/24,'Altura long.'!$C$2:$AX$367,(VLOOKUP($A28,'Datos diarios'!$A$2:$B$366,2)+1),1),HLOOKUP((Z$27*24-RIGHT($C$6,2))/24+1,'Altura long.'!$C$2:$AX$367,(VLOOKUP($A28,'Datos diarios'!$A$2:$B$366,2)+0),1)) -> 14.40327233 | AA28: =IF((AA$27*24-RIGHT($C$6,2))/24>0,HLOOKUP((AA$27*24-RIGHT($C$6,2))/24,'Altura long.'!$C$2:$AX$367,(VLOOKUP($A28,'Datos diarios'!$A$2:$B$366,2)+1),1),HLOOKUP((AA$27*24-RIGHT($C$6,2))/24+1,'Altura long.'!$C$2:$AX$367,(VLOOKUP($A28,'Datos diarios'!$A$2:$B$366,2)+0),1)) -> 4.796420672 | AB28: =IF((AB$27*24-RIGHT($C$6,2))/24>0,HLOOKUP((AB$27*24-RIGHT($C$6,2))/24,'Altura long.'!$C$2:$AX$367,(VLOOKUP($A28,'Datos diarios'!$A$2:$B$366,2)+1),1),HLOOKUP((AB$27*24-RIGHT($C$6,2))/24+1,'Altura long.'!$C$2:$AX$367,(VLOOKUP($A28,'Datos diarios'!$A$2:$B$366,2)+0),1)) -> -5.748648283 | AC28: =IF((AC$27*24-RIGHT($C$6,2))/24>0,HLOOKUP((AC$27*24-RIGHT($C$6,2))/24,'Altura long.'!$C$2:$AX$367,(VLOOKUP($A28,'Datos diarios'!$A$2:$B$366,2)+1),1),HLOOKUP((AC$27*24-RIGHT($C$6,2))/24+1,'Altura long.'!$C$2:$AX$367,(VLOOKUP($A28,'Datos diarios'!$A$2:$B$366,2)+0),1)) -> -16.86152988 | AD28: =IF((AD$27*24-RIGHT($C$6,2))/24>0,HLOOKUP((AD$27*24-RIGHT($C$6,2))/24,'Altura long.'!$C$2:$AX$367,(VLOOKUP($A28,'Datos diarios'!$A$2:$B$366,2)+1),1),HLOOKUP((AD$27*24-RIGHT($C$6,2))/24+1,'Altura long.'!$C$2:$AX$367,(VLOOKUP($A28,'Datos diarios'!$A$2:$B$366,2)+0),1)) -> -28.23666189 | AE28: =IF((AE$27*24-RIGHT($C$6,2))/24>0,HLOOKUP((AE$27*24-RIGHT($C$6,2))/24,'Altura long.'!$C$2:$AX$367,(VLOOKUP($A28,'Datos diarios'!$A$2:$B$366,2)+1),1),HLOOKUP((AE$27*24-RIGHT($C$6,2))/24+1,'Altura long.'!$C$2:$AX$367,(VLOOKUP($A28,'Datos diarios'!$A$2:$B$366,2)+0),1)) -> -39.55627074
F29: Azimut (°) | G29: =INDEX('Azimut long.'!$AY$4:$AY$368,VLOOKUP($A28,'Datos diarios'!$A$2:$B$366,2)) -> 171.9740173 | H29: =IF((H$27*24-RIGHT($C$6,2))/24>0,HLOOKUP((H$27*24-RIGHT($C$6,2))/24,'Azimut long.'!$C$2:$AX$367,(VLOOKUP($A28,'Datos diarios'!$A$2:$B$366,2)+1),1),HLOOKUP((H$27*24-RIGHT($C$6,2))/24+1,'Azimut long.'!$C$2:$AX$367,(VLOOKUP($A28,'Datos diarios'!$A$2:$B$366,2)+0),1)) -> 287.9183063 | I29: =IF((I$27*24-RIGHT($C$6,2))/24>0,HLOOKUP((I$27*24-RIGHT($C$6,2))/24,'Azimut long.'!$C$2:$AX$367,(VLOOKUP($A28,'Datos diarios'!$A$2:$B$366,2)+1),1),HLOOKUP((I$27*24-RIGHT($C$6,2))/24+1,'Azimut long.'!$C$2:$AX$367,(VLOOKUP($A28,'Datos diarios'!$A$2:$B$366,2)+0),1)) -> 314.3387546 | J29: =IF((J$27*24-RIGHT($C$6,2))/24>0,HLOOKUP((J$27*24-RIGHT($C$6,2))/24,'Azimut long.'!$C$2:$AX$367,(VLOOKUP($A28,'Datos diarios'!$A$2:$B$366,2)+1),1),HLOOKUP((J$27*24-RIGHT($C$6,2))/24+1,'Azimut long.'!$C$2:$AX$367,(VLOOKUP($A28,'Datos diarios'!$A$2:$B$366,2)+0),1)) -> 343.3778584 | K29: =IF((K$27*24-RIGHT($C$6,2))/24>0,HLOOKUP((K$27*24-RIGHT($C$6,2))/24,'Azimut long.'!$C$2:$AX$367,(VLOOKUP($A28,'Datos diarios'!$A$2:$B$366,2)+1),1),HLOOKUP((K$27*24-RIGHT($C$6,2))/24+1,'Azimut long.'!$C$2:$AX$367,(VLOOKUP($A28,'Datos diarios'!$A$2:$B$366,2)+0),1)) -> 18.78257241 | L29: =IF((L$27*24-RIGHT($C$6,2))/24>0,HLOOKUP((L$27*24-RIGHT($C$6,2))/24,'Azimut long.'!$C$2:$AX$367,(VLOOKUP($A28,'Datos diarios'!$A$2:$B$366,2)+1),1),HLOOKUP((L$27*24-RIGHT($C$6,2))/24+1,'Azimut long.'!$C$2:$AX$367,(VLOOKUP($A28,'Datos diarios'!$A$2:$B$366,2)+0),1)) -> 47.12858098 | M29: =IF((M$27*24-RIGHT($C$6,2))/24>0,HLOOKUP((M$27*24-RIGHT($C$6,2))/24,'Azimut long.'!$C$2:$AX$367,(VLOOKUP($A28,'Datos diarios'!$A$2:$B$366,2)+1),1),HLOOKUP((M$27*24-RIGHT($C$6,2))/24+1,'Azimut long.'!$C$2:$AX$367,(VLOOKUP($A28,'Datos diarios'!$A$2:$B$366,2)+0),1)) -> 57.42032138 | N29: =IF((N$27*24-RIGHT($C$6,2))/24>0,HLOOKUP((N$27*24-RIGHT($C$6,2))/24,'Azimut long.'!$C$2:$AX$367,(VLOOKUP($A28,'Datos diarios'!$A$2:$B$366,2)+1),1),HLOOKUP((N$27*24-RIGHT($C$6,2))/24+1,'Azimut long.'!$C$2:$AX$367,(VLOOKUP($A28,'Datos diarios'!$A$2:$B$366,2)+0),1)) -> 72.8614814 | O29: =IF((O$27*24-RIGHT($C$6,2))/24>0,HLOOKUP((O$27*24-RIGHT($C$6,2))/24,'Azimut long.'!$C$2:$AX$367,(VLOOKUP($A28,'Datos diarios'!$A$2:$B$366,2)+1),1),HLOOKUP((O$27*24-RIGHT($C$6,2))/24+1,'Azimut long.'!$C$2:$AX$367,(VLOOKUP($A28,'Datos diarios'!$A$2:$B$366,2)+0),1)) -> 89.47973656 | P29: =IF((P$27*24-RIGHT($C$6,2))/24>0,HLOOKUP((P$27*24-RIGHT($C$6,2))/24,'Azimut long.'!$C$2:$AX$367,(VLOOKUP($A28,'Datos diarios'!$A$2:$B$366,2)+1),1),HLOOKUP((P$27*24-RIGHT($C$6,2))/24+1,'Azimut long.'!$C$2:$AX$367,(VLOOKUP($A28,'Datos diarios'!$A$2:$B$366,2)+0),1)) -> 98.89520844 | Q29: =IF((Q$27*24-RIGHT($C$6,2))/24>0,HLOOKUP((Q$27*24-RIGHT($C$6,2))/24,'Azimut long.'!$C$2:$AX$367,(VLOOKUP($A28,'Datos diarios'!$A$2:$B$366,2)+1),1),HLOOKUP((Q$27*24-RIGHT($C$6,2))/24+1,'Azimut long.'!$C$2:$AX$367,(VLOOKUP($A28,'Datos diarios'!$A$2:$B$366,2)+0),1)) -> 103.4936936 | R29: =IF((R$27*24-RIGHT($C$6,2))/24>0,HLOOKUP((R$27*24-RIGHT($C$6,2))/24,'Azimut long.'!$C$2:$AX$367,(VLOOKUP($A28,'Datos diarios'!$A$2:$B$366,2)+1),1),HLOOKUP((R$27*24-RIGHT($C$6,2))/24+1,'Azimut long.'!$C$2:$AX$367,(VLOOKUP($A28,'Datos diarios'!$A$2:$B$366,2)+0),1)) -> 117.9008932 | S29: =IF((S$27*24-RIGHT($C$6,2))/24>0,HLOOKUP((S$27*24-RIGHT($C$6,2))/24,'Azimut long.'!$C$2:$AX$367,(VLOOKUP($A28,'Datos diarios'!$A$2:$B$366,2)+1),1),HLOOKUP((S$27*24-RIGHT($C$6,2))/24+1,'Azimut long.'!$C$2:$AX$367,(VLOOKUP($A28,'Datos diarios'!$A$2:$B$366,2)+0),1)) -> 128.7760983 | T29: =IF((T$27*24-RIGHT($C$6,2))/24>0,HLOOKUP((T$27*24-RIGHT($C$6,2))/24,'Azimut long.'!$C$2:$AX$367,(VLOOKUP($A28,'Datos diarios'!$A$2:$B$366,2)+1),1),HLOOKUP((T$27*24-RIGHT($C$6,2))/24+1,'Azimut long.'!$C$2:$AX$367,(VLOOKUP($A28,'Datos diarios'!$A$2:$B$366,2)+0),1)) -> 134.8058964 | U29: =IF((U$27*24-RIGHT($C$6,2))/24>0,HLOOKUP((U$27*24-RIGHT($C$6,2))/24,'Azimut long.'!$C$2:$AX$367,(VLOOKUP($A28,'Datos diarios'!$A$2:$B$366,2)+1),1),HLOOKUP((U$27*24-RIGHT($C$6,2))/24+1,'Azimut long.'!$C$2:$AX$367,(VLOOKUP($A28,'Datos diarios'!$A$2:$B$366,2)+0),1)) -> 155.8127331 | V29: =IF((V$27*24-RIGHT($C$6,2))/24>0,HLOOKUP((V$27*24-RIGHT($C$6,2))/24,'Azimut long.'!$C$2:$AX$367,(VLOOKUP($A28,'Datos diarios'!$A$2:$B$366,2)+1),1),HLOOKUP((V$27*24-RIGHT($C$6,2))/24+1,'Azimut long.'!$C$2:$AX$367,(VLOOKUP($A28,'Datos diarios'!$A$2:$B$366,2)+0),1)) -> 172.0536747 | W29: =IF((W$27*24-RIGHT($C$6,2))/24>0,HLOOKUP((W$27*24-RIGHT($C$6,2))/24,'Azimut long.'!$C$2:$AX$367,(VLOOKUP($A28,'Datos diarios'!$A$2:$B$366,2)+1),1),HLOOKUP((W$27*24-RIGHT($C$6,2))/24+1,'Azimut long.'!$C$2:$AX$367,(VLOOKUP($A28,'Datos diarios'!$A$2:$B$366,2)+0),1)) -> 180.5238552 | X29: =IF((X$27*24-RIGHT($C$6,2))/24>0,HLOOKUP((X$27*24-RIGHT($C$6,2))/24,'Azimut long.'!$C$2:$AX$367,(VLOOKUP($A28,'Datos diarios'!$A$2:$B$366,2)+1),1),HLOOKUP((X$27*24-RIGHT($C$6,2))/24+1,'Azimut long.'!$C$2:$AX$367,(VLOOKUP($A28,'Datos diarios'!$A$2:$B$366,2)+0),1)) -> 205.1540407 | Y29: =IF((Y$27*24-RIGHT($C$6,2))/24>0,HLOOKUP((Y$27*24-RIGHT($C$6,2))/24,'Azimut long.'!$C$2:$AX$367,(VLOOKUP($A28,'Datos diarios'!$A$2:$B$366,2)+1),1),HLOOKUP((Y$27*24-RIGHT($C$6,2))/24+1,'Azimut long.'!$C$2:$AX$367,(VLOOKUP($A28,'Datos diarios'!$A$2:$B$366,2)+0),1)) -> 219.5581187 | Z29: =IF((Z$27*24-RIGHT($C$6,2))/24>0,HLOOKUP((Z$27*24-RIGHT($C$6,2))/24,'Azimut long.'!$C$2:$AX$367,(VLOOKUP($A28,'Datos diarios'!$A$2:$B$366,2)+1),1),HLOOKUP((Z$27*24-RIGHT($C$6,2))/24+1,'Azimut long.'!$C$2:$AX$367,(VLOOKUP($A28,'Datos diarios'!$A$2:$B$366,2)+0),1)) -> 231.9952609 | AA29: =IF((AA$27*24-RIGHT($C$6,2))/24>0,HLOOKUP((AA$27*24-RIGHT($C$6,2))/24,'Azimut long.'!$C$2:$AX$367,(VLOOKUP($A28,'Datos diarios'!$A$2:$B$366,2)+1),1),HLOOKUP((AA$27*24-RIGHT($C$6,2))/24+1,'Azimut long.'!$C$2:$AX$367,(VLOOKUP($A28,'Datos diarios'!$A$2:$B$366,2)+0),1)) -> 242.8072122 | AB29: =IF((AB$27*24-RIGHT($C$6,2))/24>0,HLOOKUP((AB$27*24-RIGHT($C$6,2))/24,'Azimut long.'!$C$2:$AX$367,(VLOOKUP($A28,'Datos diarios'!$A$2:$B$366,2)+1),1),HLOOKUP((AB$27*24-RIGHT($C$6,2))/24+1,'Azimut long.'!$C$2:$AX$367,(VLOOKUP($A28,'Datos diarios'!$A$2:$B$366,2)+0),1)) -> 252.5410374 | AC29: =IF((AC$27*24-RIGHT($C$6,2))/24>0,HLOOKUP((AC$27*24-RIGHT($C$6,2))/24,'Azimut long.'!$C$2:$AX$367,(VLOOKUP($A28,'Datos diarios'!$A$2:$B$366,2)+1),1),HLOOKUP((AC$27*24-RIGHT($C$6,2))/24+1,'Azimut long.'!$C$2:$AX$367,(VLOOKUP($A28,'Datos diarios'!$A$2:$B$366,2)+0),1)) -> 261.8041388 | AD29: =IF((AD$27*24-RIGHT($C$6,2))/24>0,HLOOKUP((AD$27*24-RIGHT($C$6,2))/24,'Azimut long.'!$C$2:$AX$367,(VLOOKUP($A28,'Datos diarios'!$A$2:$B$366,2)+1),1),HLOOKUP((AD$27*24-RIGHT($C$6,2))/24+1,'Azimut long.'!$C$2:$AX$367,(VLOOKUP($A28,'Datos diarios'!$A$2:$B$366,2)+0),1)) -> 271.2911896 | AE29: =IF((AE$27*24-RIGHT($C$6,2))/24>0,HLOOKUP((AE$27*24-RIGHT($C$6,2))/24,'Azimut long.'!$C$2:$AX$367,(VLOOKUP($A28,'Datos diarios'!$A$2:$B$366,2)+1),1),HLOOKUP((AE$27*24-RIGHT($C$6,2))/24+1,'Azimut long.'!$C$2:$AX$367,(VLOOKUP($A28,'Datos diarios'!$A$2:$B$366,2)+0),1)) -> 281.955722
A30: 2021-01-21 | B30: =(VLOOKUP(VLOOKUP($A30,'Datos diarios'!$A$2:$B$366,2),'Datos diarios'!$B$2:$K$366,8,0)*24+RIGHT($C$6,2))/24 -> 09:37:58.999 | C30: =(VLOOKUP(VLOOKUP($A30,'Datos diarios'!$A$2:$B$366,2),'Datos diarios'!$B$2:$K$366,10,0)*24+RIGHT($C$6,2))/24 -> 19:12:50.262 | D30: =(VLOOKUP(VLOOKUP($A30,'Datos diarios'!$A$2:$B$366,2),'Datos diarios'!$B$2:$K$366,9,0)*24+RIGHT($C$6,2))/24 -> 14:25:24.631 | E30: =ROUND(VLOOKUP(VLOOKUP($A30,'Datos diarios'!$A$2:$B$366,2),'Datos diarios'!$B$2:$K$366,3,0),2)&"°" -> 29,5° | F30: Altura (°) | G30: =INDEX('Altura long.'!$AY$3:$AY$367,VLOOKUP($A30,'Datos diarios'!$A$2:$B$366,2)) -> 29.15321704 | H30: =IF((H$27*24-RIGHT($C$6,2))/24>0,HLOOKUP((H$27*24-RIGHT($C$6,2))/24,'Altura long.'!$C$2:$AX$367,(VLOOKUP($A30,'Datos diarios'!$A$2:$B$366,2)+1),1),HLOOKUP((H$27*24-RIGHT($C$6,2))/24+1,'Altura long.'!$C$2:$AX$367,(VLOOKUP($A30,'Datos diarios'!$A$2:$B$366,2)+0),1)) -> -47.69097491 | I30: =IF((I$27*24-RIGHT($C$6,2))/24>0,HLOOKUP((I$27*24-RIGHT($C$6,2))/24,'Altura long.'!$C$2:$AX$367,(VLOOKUP($A30,'Datos diarios'!$A$2:$B$366,2)+1),1),HLOOKUP((I$27*24-RIGHT($C$6,2))/24+1,'Altura long.'!$C$2:$AX$367,(VLOOKUP($A30,'Datos diarios'!$A$2:$B$366,2)+0),1)) -> -62.75915954 | J30: =IF((J$27*24-RIGHT($C$6,2))/24>0,HLOOKUP((J$27*24-RIGHT($C$6,2))/24,'Altura long.'!$C$2:$AX$367,(VLOOKUP($A30,'Datos diarios'!$A$2:$B$366,2)+1),1),HLOOKUP((J$27*24-RIGHT($C$6,2))/24+1,'Altura long.'!$C$2:$AX$367,(VLOOKUP($A30,'Datos diarios'!$A$2:$B$366,2)+0),1)) -> -70.61418352 | K30: =IF((K$27*24-RIGHT($C$6,2))/24>0,HLOOKUP((K$27*24-RIGHT($C$6,2))/24,'Altura long.'!$C$2:$AX$367,(VLOOKUP($A30,'Datos diarios'!$A$2:$B$366,2)+1),1),HLOOKUP((K$27*24-RIGHT($C$6,2))/24+1,'Altura long.'!$C$2:$AX$367,(VLOOKUP($A30,'Datos diarios'!$A$2:$B$366,2)+0),1)) -> -68.35281626 | L30: =IF((L$27*24-RIGHT($C$6,2))/24>0,HLOOKUP((L$27*24-RIGHT($C$6,2))/24,'Altura long.'!$C$2:$AX$367,(VLOOKUP($A30,'Datos diarios'!$A$2:$B$366,2)+1),1),HLOOKUP((L$27*24-RIGHT($C$6,2))/24+1,'Altura long.'!$C$2:$AX$367,(VLOOKUP($A30,'Datos diarios'!$A$2:$B$366,2)+0),1)) -> -61.3730182 | M30: =IF((M$27*24-RIGHT($C$6,2))/24>0,HLOOKUP((M$27*24-RIGHT($C$6,2))/24,'Altura long.'!$C$2:$AX$367,(VLOOKUP($A30,'Datos diarios'!$A$2:$B$366,2)+1),1),HLOOKUP((M$27*24-RIGHT($C$6,2))/24+1,'Altura long.'!$C$2:$AX$367,(VLOOKUP($A30,'Datos diarios'!$A$2:$B$366,2)+0),1)) -> -56.5933574 | N30: =IF((N$27*24-RIGHT($C$6,2))/24>0,HLOOKUP((N$27*24-RIGHT($C$6,2))/24,'Altura long.'!$C$2:$AX$367,(VLOOKUP($A30,'Datos diarios'!$A$2:$B$366,2)+1),1),HLOOKUP((N$27*24-RIGHT($C$6,2))/24+1,'Altura long.'!$C$2:$AX$367,(VLOOKUP($A30,'Datos diarios'!$A$2:$B$366,2)+0),1)) -> -45.91392996 | O30: =IF((O$27*24-RIGHT($C$6,2))/24>0,HLOOKUP((O$27*24-RIGHT($C$6,2))/24,'Altura long.'!$C$2:$AX$367,(VLOOKUP($A30,'Datos diarios'!$A$2:$B$366,2)+1),1),HLOOKUP((O$27*24-RIGHT($C$6,2))/24+1,'Altura long.'!$C$2:$AX$367,(VLOOKUP($A30,'Datos diarios'!$A$2:$B$366,2)+0),1)) -> -28.90592894 | P30: =IF((P$27*24-RIGHT($C$6,2))/24>0,HLOOKUP((P$27*24-RIGHT($C$6,2))/24,'Altura long.'!$C$2:$AX$367,(VLOOKUP($A30,'Datos diarios'!$A$2:$B$366,2)+1),1),HLOOKUP((P$27*24-RIGHT($C$6,2))/24+1,'Altura long.'!$C$2:$AX$367,(VLOOKUP($A30,'Datos diarios'!$A$2:$B$366,2)+0),1)) -> -17.5912305 | Q30: =IF((Q$27*24-RIGHT($C$6,2))/24>0,HLOOKUP((Q$27*24-RIGHT($C$6,2))/24,'Altura long.'!$C$2:$AX$367,(VLOOKUP($A30,'Datos diarios'!$A$2:$B$366,2)+1),1),HLOOKUP((Q$27*24-RIGHT($C$6,2))/24+1,'Altura long.'!$C$2:$AX$367,(VLOOKUP($A30,'Datos diarios'!$A$2:$B$366,2)+0),1)) -> -12.05409663 | R30: =IF((R$27*24-RIGHT($C$6,2))/24>0,HLOOKUP((R$27*24-RIGHT($C$6,2))/24,'Altura long.'!$C$2:$AX$367,(VLOOKUP($A30,'Datos diarios'!$A$2:$B$366,2)+1),1),HLOOKUP((R$27*24-RIGHT($C$6,2))/24+1,'Altura long.'!$C$2:$AX$367,(VLOOKUP($A30,'Datos diarios'!$A$2:$B$366,2)+0),1)) -> 3.640954906 | S30: =IF((S$27*24-RIGHT($C$6,2))/24>0,HLOOKUP((S$27*24-RIGHT($C$6,2))/24,'Altura long.'!$C$2:$AX$367,(VLOOKUP($A30,'Datos diarios'!$A$2:$B$366,2)+1),1),HLOOKUP((S$27*24-RIGHT($C$6,2))/24+1,'Altura long.'!$C$2:$AX$367,(VLOOKUP($A30,'Datos diarios'!$A$2:$B$366,2)+0),1)) -> 12.89439287 | T30: =IF((T$27*24-RIGHT($C$6,2))/24>0,HLOOKUP((T$27*24-RIGHT($C$6,2))/24,'Altura long.'!$C$2:$AX$367,(VLOOKUP($A30,'Datos diarios'!$A$2:$B$366,2)+1),1),HLOOKUP((T$27*24-RIGHT($C$6,2))/24+1,'Altura long.'!$C$2:$AX$367,(VLOOKUP($A30,'Datos diarios'!$A$2:$B$366,2)+0),1)) -> 16.98842115 | U30: =IF((U$27*24-RIGHT($C$6,2))/24>0,HLOOKUP((U$27*24-RIGHT($C$6,2))/24,'Altura long.'!$C$2:$AX$367,(VLOOKUP($A30,'Datos diarios'!$A$2:$B$366,2)+1),1),HLOOKUP((U$27*24-RIGHT($C$6,2))/24+1,'Altura long.'!$C$2:$AX$367,(VLOOKUP($A30,'Datos diarios'!$A$2:$B$366,2)+0),1)) -> 26.25795854 | V30: =IF((V$27*24-RIGHT($C$6,2))/24>0,HLOOKUP((V$27*24-RIGHT($C$6,2))/24,'Altura long.'!$C$2:$AX$367,(VLOOKUP($A30,'Datos diarios'!$A$2:$B$366,2)+1),1),HLOOKUP((V$27*24-RIGHT($C$6,2))/24+1,'Altura long.'!$C$2:$AX$367,(VLOOKUP($A30,'Datos diarios'!$A$2:$B$366,2)+0),1)) -> 29.15321704 | W30: =IF((W$27*24-RIGHT($C$6,2))/24>0,HLOOKUP((W$27*24-RIGHT($C$6,2))/24,'Altura long.'!$C$2:$AX$367,(VLOOKUP($A30,'Datos diarios'!$A$2:$B$366,2)+1),1),HLOOKUP((W$27*24-RIGHT($C$6,2))/24+1,'Altura long.'!$C$2:$AX$367,(VLOOKUP($A30,'Datos diarios'!$A$2:$B$366,2)+0),1)) -> 29.43658675 | X30: =IF((X$27*24-RIGHT($C$6,2))/24>0,HLOOKUP((X$27*24-RIGHT($C$6,2))/24,'Altura long.'!$C$2:$AX$367,(VLOOKUP($A30,'Datos diarios'!$A$2:$B$366,2)+1),1),HLOOKUP((X$27*24-RIGHT($C$6,2))/24+1,'Altura long.'!$C$2:$AX$367,(VLOOKUP($A30,'Datos diarios'!$A$2:$B$366,2)+0),1)) -> 25.58947707 | Y30: =IF((Y$27*24-RIGHT($C$6,2))/24>0,HLOOKUP((Y$27*24-RIGHT($C$6,2))/24,'Altura long.'!$C$2:$AX$367,(VLOOKUP($A30,'Datos diarios'!$A$2:$B$366,2)+1),1),HLOOKUP((Y$27*24-RIGHT($C$6,2))/24+1,'Altura long.'!$C$2:$AX$367,(VLOOKUP($A30,'Datos diarios'!$A$2:$B$366,2)+0),1)) -> 19.61339361 | Z30: =IF((Z$27*24-RIGHT($C$6,2))/24>0,HLOOKUP((Z$27*24-RIGHT($C$6,2))/24,'Altura long.'!$C$2:$AX$367,(VLOOKUP($A30,'Datos diarios'!$A$2:$B$366,2)+1),1),HLOOKUP((Z$27*24-RIGHT($C$6,2))/24+1,'Altura long.'!$C$2:$AX$367,(VLOOKUP($A30,'Datos diarios'!$A$2:$B$366,2)+0),1)) -> 11.61614781 | AA30: =IF((AA$27*24-RIGHT($C$6,2))/24>0,HLOOKUP((AA$27*24-RIGHT($C$6,2))/24,'Altura long.'!$C$2:$AX$367,(VLOOKUP($A30,'Datos diarios'!$A$2:$B$366,2)+1),1),HLOOKUP((AA$27*24-RIGHT($C$6,2))/24+1,'Altura long.'!$C$2:$AX$367,(VLOOKUP($A30,'Datos diarios'!$A$2:$B$366,2)+0),1)) -> 2.18418218 | AB30: =IF((AB$27*24-RIGHT($C$6,2))/24>0,HLOOKUP((AB$27*24-RIGHT($C$6,2))/24,'Altura long.'!$C$2:$AX$367,(VLOOKUP($A30,'Datos diarios'!$A$2:$B$366,2)+1),1),HLOOKUP((AB$27*24-RIGHT($C$6,2))/24+1,'Altura long.'!$C$2:$AX$367,(VLOOKUP($A30,'Datos diarios'!$A$2:$B$366,2)+0),1)) -> -8.217022353 | AC30: =IF((AC$27*24-RIGHT($C$6,2))/24>0,HLOOKUP((AC$27*24-RIGHT($C$6,2))/24,'Altura long.'!$C$2:$AX$367,(VLOOKUP($A30,'Datos diarios'!$A$2:$B$366,2)+1),1),HLOOKUP((AC$27*24-RIGHT($C$6,2))/24+1,'Altura long.'!$C$2:$AX$367,(VLOOKUP($A30,'Datos diarios'!$A$2:$B$366,2)+0),1)) -> -19.23237681 | AD30: =IF((AD$27*24-RIGHT($C$6,2))/24>0,HLOOKUP((AD$27*24-RIGHT($C$6,2))/24,'Altura long.'!$C$2:$AX$367,(VLOOKUP($A30,'Datos diarios'!$A$2:$B$366,2)+1),1),HLOOKUP((AD$27*24-RIGHT($C$6,2))/24+1,'Altura long.'!$C$2:$AX$367,(VLOOKUP($A30,'Datos diarios'!$A$2:$B$366,2)+0),1)) -> -30.57023632 | AE30: =IF((AE$27*24-RIGHT($C$6,2))/24>0,HLOOKUP((AE$27*24-RIGHT($C$6,2))/24,'Altura long.'!$C$2:$AX$367,(VLOOKUP($A30,'Datos diarios'!$A$2:$B$366,2)+1),1),HLOOKUP((AE$27*24-RIGHT($C$6,2))/24+1,'Altura long.'!$C$2:$AX$367,(VLOOKUP($A30,'Datos diarios'!$A$2:$B$366,2)+0),1)) -> -41.93351769
F31: Azimut (°) | G31: =INDEX('Azimut long.'!$AY$4:$AY$368,VLOOKUP($A30,'Datos diarios'!$A$2:$B$366,2)) -> 173.0679179 | H31: =IF((H$27*24-RIGHT($C$6,2))/24>0,HLOOKUP((H$27*24-RIGHT($C$6,2))/24,'Azimut long.'!$C$2:$AX$367,(VLOOKUP($A30,'Datos diarios'!$A$2:$B$366,2)+1),1),HLOOKUP((H$27*24-RIGHT($C$6,2))/24+1,'Azimut long.'!$C$2:$AX$367,(VLOOKUP($A30,'Datos diarios'!$A$2:$B$366,2)+0),1)) -> 285.2285087 | I31: =IF((I$27*24-RIGHT($C$6,2))/24>0,HLOOKUP((I$27*24-RIGHT($C$6,2))/24,'Azimut long.'!$C$2:$AX$367,(VLOOKUP($A30,'Datos diarios'!$A$2:$B$366,2)+1),1),HLOOKUP((I$27*24-RIGHT($C$6,2))/24+1,'Azimut long.'!$C$2:$AX$367,(VLOOKUP($A30,'Datos diarios'!$A$2:$B$366,2)+0),1)) -> 311.920475 | J31: =IF((J$27*24-RIGHT($C$6,2))/24>0,HLOOKUP((J$27*24-RIGHT($C$6,2))/24,'Azimut long.'!$C$2:$AX$367,(VLOOKUP($A30,'Datos diarios'!$A$2:$B$366,2)+1),1),HLOOKUP((J$27*24-RIGHT($C$6,2))/24+1,'Azimut long.'!$C$2:$AX$367,(VLOOKUP($A30,'Datos diarios'!$A$2:$B$366,2)+0),1)) -> 343.3435519 | K31: =IF((K$27*24-RIGHT($C$6,2))/24>0,HLOOKUP((K$27*24-RIGHT($C$6,2))/24,'Azimut long.'!$C$2:$AX$367,(VLOOKUP($A30,'Datos diarios'!$A$2:$B$366,2)+1),1),HLOOKUP((K$27*24-RIGHT($C$6,2))/24+1,'Azimut long.'!$C$2:$AX$367,(VLOOKUP($A30,'Datos diarios'!$A$2:$B$366,2)+0),1)) -> 22.46467848 | L31: =IF((L$27*24-RIGHT($C$6,2))/24>0,HLOOKUP((L$27*24-RIGHT($C$6,2))/24,'Azimut long.'!$C$2:$AX$367,(VLOOKUP($A30,'Datos diarios'!$A$2:$B$366,2)+1),1),HLOOKUP((L$27*24-RIGHT($C$6,2))/24+1,'Azimut long.'!$C$2:$AX$367,(VLOOKUP($A30,'Datos diarios'!$A$2:$B$366,2)+0),1)) -> 51.81219743 | M31: =IF((M$27*24-RIGHT($C$6,2))/24>0,HLOOKUP((M$27*24-RIGHT($C$6,2))/24,'Azimut long.'!$C$2:$AX$367,(VLOOKUP($A30,'Datos diarios'!$A$2:$B$366,2)+1),1),HLOOKUP((M$27*24-RIGHT($C$6,2))/24+1,'Azimut long.'!$C$2:$AX$367,(VLOOKUP($A30,'Datos diarios'!$A$2:$B$366,2)+0),1)) -> 61.90795419 | N31: =IF((N$27*24-RIGHT($C$6,2))/24>0,HLOOKUP((N$27*24-RIGHT($C$6,2))/24,'Azimut long.'!$C$2:$AX$367,(VLOOKUP($A30,'Datos diarios'!$A$2:$B$366,2)+1),1),HLOOKUP((N$27*24-RIGHT($C$6,2))/24+1,'Azimut long.'!$C$2:$AX$367,(VLOOKUP($A30,'Datos diarios'!$A$2:$B$366,2)+0),1)) -> 76.73779089 | O31: =IF((O$27*24-RIGHT($C$6,2))/24>0,HLOOKUP((O$27*24-RIGHT($C$6,2))/24,'Azimut long.'!$C$2:$AX$367,(VLOOKUP($A30,'Datos diarios'!$A$2:$B$366,2)+1),1),HLOOKUP((O$27*24-RIGHT($C$6,2))/24+1,'Azimut long.'!$C$2:$AX$367,(VLOOKUP($A30,'Datos diarios'!$A$2:$B$366,2)+0),1)) -> 92.66623702 | P31: =IF((P$27*24-RIGHT($C$6,2))/24>0,HLOOKUP((P$27*24-RIGHT($C$6,2))/24,'Azimut long.'!$C$2:$AX$367,(VLOOKUP($A30,'Datos diarios'!$A$2:$B$366,2)+1),1),HLOOKUP((P$27*24-RIGHT($C$6,2))/24+1,'Azimut long.'!$C$2:$AX$367,(VLOOKUP($A30,'Datos diarios'!$A$2:$B$366,2)+0),1)) -> 101.8073945 | Q31: =IF((Q$27*24-RIGHT($C$6,2))/24>0,HLOOKUP((Q$27*24-RIGHT($C$6,2))/24,'Azimut long.'!$C$2:$AX$367,(VLOOKUP($A30,'Datos diarios'!$A$2:$B$366,2)+1),1),HLOOKUP((Q$27*24-RIGHT($C$6,2))/24+1,'Azimut long.'!$C$2:$AX$367,(VLOOKUP($A30,'Datos diarios'!$A$2:$B$366,2)+0),1)) -> 106.3076455 | R31: =IF((R$27*24-RIGHT($C$6,2))/24>0,HLOOKUP((R$27*24-RIGHT($C$6,2))/24,'Azimut long.'!$C$2:$AX$367,(VLOOKUP($A30,'Datos diarios'!$A$2:$B$366,2)+1),1),HLOOKUP((R$27*24-RIGHT($C$6,2))/24+1,'Azimut long.'!$C$2:$AX$367,(VLOOKUP($A30,'Datos diarios'!$A$2:$B$366,2)+0),1)) -> 120.503973 | S31: =IF((S$27*24-RIGHT($C$6,2))/24>0,HLOOKUP((S$27*24-RIGHT($C$6,2))/24,'Azimut long.'!$C$2:$AX$367,(VLOOKUP($A30,'Datos diarios'!$A$2:$B$366,2)+1),1),HLOOKUP((S$27*24-RIGHT($C$6,2))/24+1,'Azimut long.'!$C$2:$AX$367,(VLOOKUP($A30,'Datos diarios'!$A$2:$B$366,2)+0),1)) -> 131.2370094 | T31: =IF((T$27*24-RIGHT($C$6,2))/24>0,HLOOKUP((T$27*24-RIGHT($C$6,2))/24,'Azimut long.'!$C$2:$AX$367,(VLOOKUP($A30,'Datos diarios'!$A$2:$B$366,2)+1),1),HLOOKUP((T$27*24-RIGHT($C$6,2))/24+1,'Azimut long.'!$C$2:$AX$367,(VLOOKUP($A30,'Datos diarios'!$A$2:$B$366,2)+0),1)) -> 137.1665923 | U31: =IF((U$27*24-RIGHT($C$6,2))/24>0,HLOOKUP((U$27*24-RIGHT($C$6,2))/24,'Azimut long.'!$C$2:$AX$367,(VLOOKUP($A30,'Datos diarios'!$A$2:$B$366,2)+1),1),HLOOKUP((U$27*24-RIGHT($C$6,2))/24+1,'Azimut long.'!$C$2:$AX$367,(VLOOKUP($A30,'Datos diarios'!$A$2:$B$366,2)+0),1)) -> 157.6065988 | V31: =IF((V$27*24-RIGHT($C$6,2))/24>0,HLOOKUP((V$27*24-RIGHT($C$6,2))/24,'Azimut long.'!$C$2:$AX$367,(VLOOKUP($A30,'Datos diarios'!$A$2:$B$366,2)+1),1),HLOOKUP((V$27*24-RIGHT($C$6,2))/24+1,'Azimut long.'!$C$2:$AX$367,(VLOOKUP($A30,'Datos diarios'!$A$2:$B$366,2)+0),1)) -> 173.1710052 | W31: =IF((W$27*24-RIGHT($C$6,2))/24>0,HLOOKUP((W$27*24-RIGHT($C$6,2))/24,'Azimut long.'!$C$2:$AX$367,(VLOOKUP($A30,'Datos diarios'!$A$2:$B$366,2)+1),1),HLOOKUP((W$27*24-RIGHT($C$6,2))/24+1,'Azimut long.'!$C$2:$AX$367,(VLOOKUP($A30,'Datos diarios'!$A$2:$B$366,2)+0),1)) -> 181.2335919 | X31: =IF((X$27*24-RIGHT($C$6,2))/24>0,HLOOKUP((X$27*24-RIGHT($C$6,2))/24,'Azimut long.'!$C$2:$AX$367,(VLOOKUP($A30,'Datos diarios'!$A$2:$B$366,2)+1),1),HLOOKUP((X$27*24-RIGHT($C$6,2))/24+1,'Azimut long.'!$C$2:$AX$367,(VLOOKUP($A30,'Datos diarios'!$A$2:$B$366,2)+0),1)) -> 204.6673134 | Y31: =IF((Y$27*24-RIGHT($C$6,2))/24>0,HLOOKUP((Y$27*24-RIGHT($C$6,2))/24,'Azimut long.'!$C$2:$AX$367,(VLOOKUP($A30,'Datos diarios'!$A$2:$B$366,2)+1),1),HLOOKUP((Y$27*24-RIGHT($C$6,2))/24+1,'Azimut long.'!$C$2:$AX$367,(VLOOKUP($A30,'Datos diarios'!$A$2:$B$366,2)+0),1)) -> 218.4900461 | Z31: =IF((Z$27*24-RIGHT($C$6,2))/24>0,HLOOKUP((Z$27*24-RIGHT($C$6,2))/24,'Azimut long.'!$C$2:$AX$367,(VLOOKUP($A30,'Datos diarios'!$A$2:$B$366,2)+1),1),HLOOKUP((Z$27*24-RIGHT($C$6,2))/24+1,'Azimut long.'!$C$2:$AX$367,(VLOOKUP($A30,'Datos diarios'!$A$2:$B$366,2)+0),1)) -> 230.5397189 | AA31: =IF((AA$27*24-RIGHT($C$6,2))/24>0,HLOOKUP((AA$27*24-RIGHT($C$6,2))/24,'Azimut long.'!$C$2:$AX$367,(VLOOKUP($A30,'Datos diarios'!$A$2:$B$366,2)+1),1),HLOOKUP((AA$27*24-RIGHT($C$6,2))/24+1,'Azimut long.'!$C$2:$AX$367,(VLOOKUP($A30,'Datos diarios'!$A$2:$B$366,2)+0),1)) -> 241.0890175 | AB31: =IF((AB$27*24-RIGHT($C$6,2))/24>0,HLOOKUP((AB$27*24-RIGHT($C$6,2))/24,'Azimut long.'!$C$2:$AX$367,(VLOOKUP($A30,'Datos diarios'!$A$2:$B$366,2)+1),1),HLOOKUP((AB$27*24-RIGHT($C$6,2))/24+1,'Azimut long.'!$C$2:$AX$367,(VLOOKUP($A30,'Datos diarios'!$A$2:$B$366,2)+0),1)) -> 250.6145852 | AC31: =IF((AC$27*24-RIGHT($C$6,2))/24>0,HLOOKUP((AC$27*24-RIGHT($C$6,2))/24,'Azimut long.'!$C$2:$AX$367,(VLOOKUP($A30,'Datos diarios'!$A$2:$B$366,2)+1),1),HLOOKUP((AC$27*24-RIGHT($C$6,2))/24+1,'Azimut long.'!$C$2:$AX$367,(VLOOKUP($A30,'Datos diarios'!$A$2:$B$366,2)+0),1)) -> 259.6718835 | AD31: =IF((AD$27*24-RIGHT($C$6,2))/24>0,HLOOKUP((AD$27*24-RIGHT($C$6,2))/24,'Azimut long.'!$C$2:$AX$367,(VLOOKUP($A30,'Datos diarios'!$A$2:$B$366,2)+1),1),HLOOKUP((AD$27*24-RIGHT($C$6,2))/24+1,'Azimut long.'!$C$2:$AX$367,(VLOOKUP($A30,'Datos diarios'!$A$2:$B$366,2)+0),1)) -> 268.9218333 | AE31: =IF((AE$27*24-RIGHT($C$6,2))/24>0,HLOOKUP((AE$27*24-RIGHT($C$6,2))/24,'Azimut long.'!$C$2:$AX$367,(VLOOKUP($A30,'Datos diarios'!$A$2:$B$366,2)+1),1),HLOOKUP((AE$27*24-RIGHT($C$6,2))/24+1,'Azimut long.'!$C$2:$AX$367,(VLOOKUP($A30,'Datos diarios'!$A$2:$B$366,2)+0),1)) -> 279.3114517
A32: 2021-02-21 | B32: =(VLOOKUP(VLOOKUP($A32,'Datos diarios'!$A$2:$B$366,2),'Datos diarios'!$B$2:$K$366,8,0)*24+RIGHT($C$6,2))/24 -> 09:06:19.039 | C32: =(VLOOKUP(VLOOKUP($A32,'Datos diarios'!$A$2:$B$366,2),'Datos diarios'!$B$2:$K$366,10,0)*24+RIGHT($C$6,2))/24 -> 19:51:12.834 | D32: =(VLOOKUP(VLOOKUP($A32,'Datos diarios'!$A$2:$B$366,2),'Datos diarios'!$B$2:$K$366,9,0)*24+RIGHT($C$6,2))/24 -> 14:28:45.937 | E32: =ROUND(VLOOKUP(VLOOKUP($A32,'Datos diarios'!$A$2:$B$366,2),'Datos diarios'!$B$2:$K$366,3,0),2)&"°" -> 38,74° | F32: Altura (°) | G32: =INDEX('Altura long.'!$AY$3:$AY$367,VLOOKUP($A32,'Datos diarios'!$A$2:$B$366,2)) -> 38.28336157 | H32: =IF((H$27*24-RIGHT($C$6,2))/24>0,HLOOKUP((H$27*24-RIGHT($C$6,2))/24,'Altura long.'!$C$2:$AX$367,(VLOOKUP($A32,'Datos diarios'!$A$2:$B$366,2)+1),1),HLOOKUP((H$27*24-RIGHT($C$6,2))/24+1,'Altura long.'!$C$2:$AX$367,(VLOOKUP($A32,'Datos diarios'!$A$2:$B$366,2)+0),1)) -> -40.95372793 | I32: =IF((I$27*24-RIGHT($C$6,2))/24>0,HLOOKUP((I$27*24-RIGHT($C$6,2))/24,'Altura long.'!$C$2:$AX$367,(VLOOKUP($A32,'Datos diarios'!$A$2:$B$366,2)+1),1),HLOOKUP((I$27*24-RIGHT($C$6,2))/24+1,'Altura long.'!$C$2:$AX$367,(VLOOKUP($A32,'Datos diarios'!$A$2:$B$366,2)+0),1)) -> -54.6740344 | J32: =IF((J$27*24-RIGHT($C$6,2))/24>0,HLOOKUP((J$27*24-RIGHT($C$6,2))/24,'Altura long.'!$C$2:$AX$367,(VLOOKUP($A32,'Datos diarios'!$A$2:$B$366,2)+1),1),HLOOKUP((J$27*24-RIGHT($C$6,2))/24+1,'Altura long.'!$C$2:$AX$367,(VLOOKUP($A32,'Datos diarios'!$A$2:$B$366,2)+0),1)) -> -61.3225592 | K32: =IF((K$27*24-RIGHT($C$6,2))/24>0,HLOOKUP((K$27*24-RIGHT($C$6,2))/24,'Altura long.'!$C$2:$AX$367,(VLOOKUP($A32,'Datos diarios'!$A$2:$B$366,2)+1),1),HLOOKUP((K$27*24-RIGHT($C$6,2))/24+1,'Altura long.'!$C$2:$AX$367,(VLOOKUP($A32,'Datos diarios'!$A$2:$B$366,2)+0),1)) -> -59.77732864 | L32: =IF((L$27*24-RIGHT($C$6,2))/24>0,HLOOKUP((L$27*24-RIGHT($C$6,2))/24,'Altura long.'!$C$2:$AX$367,(VLOOKUP($A32,'Datos diarios'!$A$2:$B$366,2)+1),1),HLOOKUP((L$27*24-RIGHT($C$6,2))/24+1,'Altura long.'!$C$2:$AX$367,(VLOOKUP($A32,'Datos diarios'!$A$2:$B$366,2)+0),1)) -> -54.34478944 | M32: =IF((M$27*24-RIGHT($C$6,2))/24>0,HLOOKUP((M$27*24-RIGHT($C$6,2))/24,'Altura long.'!$C$2:$AX$367,(VLOOKUP($A32,'Datos diarios'!$A$2:$B$366,2)+1),1),HLOOKUP((M$27*24-RIGHT($C$6,2))/24+1,'Altura long.'!$C$2:$AX$367,(VLOOKUP($A32,'Datos diarios'!$A$2:$B$366,2)+0),1)) -> -50.24696211 | N32: =IF((N$27*24-RIGHT($C$6,2))/24>0,HLOOKUP((N$27*24-RIGHT($C$6,2))/24,'Altura long.'!$C$2:$AX$367,(VLOOKUP($A32,'Datos diarios'!$A$2:$B$366,2)+1),1),HLOOKUP((N$27*24-RIGHT($C$6,2))/24+1,'Altura long.'!$C$2:$AX$367,(VLOOKUP($A32,'Datos diarios'!$A$2:$B$366,2)+0),1)) -> -40.47602706 | O32: =IF((O$27*24-RIGHT($C$6,2))/24>0,HLOOKUP((O$27*24-RIGHT($C$6,2))/24,'Altura long.'!$C$2:$AX$367,(VLOOKUP($A32,'Datos diarios'!$A$2:$B$366,2)+1),1),HLOOKUP((O$27*24-RIGHT($C$6,2))/24+1,'Altura long.'!$C$2:$AX$367,(VLOOKUP($A32,'Datos diarios'!$A$2:$B$366,2)+0),1)) -> -23.92927299 | P32: =IF((P$27*24-RIGHT($C$6,2))/24>0,HLOOKUP((P$27*24-RIGHT($C$6,2))/24,'Altura long.'!$C$2:$AX$367,(VLOOKUP($A32,'Datos diarios'!$A$2:$B$366,2)+1),1),HLOOKUP((P$27*24-RIGHT($C$6,2))/24+1,'Altura long.'!$C$2:$AX$367,(VLOOKUP($A32,'Datos diarios'!$A$2:$B$366,2)+0),1)) -> -12.51632734 | Q32: =IF((Q$27*24-RIGHT($C$6,2))/24>0,HLOOKUP((Q$27*24-RIGHT($C$6,2))/24,'Altura long.'!$C$2:$AX$367,(VLOOKUP($A32,'Datos diarios'!$A$2:$B$366,2)+1),1),HLOOKUP((Q$27*24-RIGHT($C$6,2))/24+1,'Altura long.'!$C$2:$AX$367,(VLOOKUP($A32,'Datos diarios'!$A$2:$B$366,2)+0),1)) -> -6.836705105 | R32: =IF((R$27*24-RIGHT($C$6,2))/24>0,HLOOKUP((R$27*24-RIGHT($C$6,2))/24,'Altura long.'!$C$2:$AX$367,(VLOOKUP($A32,'Datos diarios'!$A$2:$B$366,2)+1),1),HLOOKUP((R$27*24-RIGHT($C$6,2))/24+1,'Altura long.'!$C$2:$AX$367,(VLOOKUP($A32,'Datos diarios'!$A$2:$B$366,2)+0),1)) -> 9.611229895 | S32: =IF((S$27*24-RIGHT($C$6,2))/24>0,HLOOKUP((S$27*24-RIGHT($C$6,2))/24,'Altura long.'!$C$2:$AX$367,(VLOOKUP($A32,'Datos diarios'!$A$2:$B$366,2)+1),1),HLOOKUP((S$27*24-RIGHT($C$6,2))/24+1,'Altura long.'!$C$2:$AX$367,(VLOOKUP($A32,'Datos diarios'!$A$2:$B$366,2)+0),1)) -> 19.60967612 | T32: =IF((T$27*24-RIGHT($C$6,2))/24>0,HLOOKUP((T$27*24-RIGHT($C$6,2))/24,'Altura long.'!$C$2:$AX$367,(VLOOKUP($A32,'Datos diarios'!$A$2:$B$366,2)+1),1),HLOOKUP((T$27*24-RIGHT($C$6,2))/24+1,'Altura long.'!$C$2:$AX$367,(VLOOKUP($A32,'Datos diarios'!$A$2:$B$366,2)+0),1)) -> 24.13371094 | U32: =IF((U$27*24-RIGHT($C$6,2))/24>0,HLOOKUP((U$27*24-RIGHT($C$6,2))/24,'Altura long.'!$C$2:$AX$367,(VLOOKUP($A32,'Datos diarios'!$A$2:$B$366,2)+1),1),HLOOKUP((U$27*24-RIGHT($C$6,2))/24+1,'Altura long.'!$C$2:$AX$367,(VLOOKUP($A32,'Datos diarios'!$A$2:$B$366,2)+0),1)) -> 34.74115587 | V32: =IF((V$27*24-RIGHT($C$6,2))/24>0,HLOOKUP((V$27*24-RIGHT($C$6,2))/24,'Altura long.'!$C$2:$AX$367,(VLOOKUP($A32,'Datos diarios'!$A$2:$B$366,2)+1),1),HLOOKUP((V$27*24-RIGHT($C$6,2))/24+1,'Altura long.'!$C$2:$AX$367,(VLOOKUP($A32,'Datos diarios'!$A$2:$B$366,2)+0),1)) -> 38.28336157 | W32: =IF((W$27*24-RIGHT($C$6,2))/24>0,HLOOKUP((W$27*24-RIGHT($C$6,2))/24,'Altura long.'!$C$2:$AX$367,(VLOOKUP($A32,'Datos diarios'!$A$2:$B$366,2)+1),1),HLOOKUP((W$27*24-RIGHT($C$6,2))/24+1,'Altura long.'!$C$2:$AX$367,(VLOOKUP($A32,'Datos diarios'!$A$2:$B$366,2)+0),1)) -> 38.72067465 | X32: =IF((X$27*24-RIGHT($C$6,2))/24>0,HLOOKUP((X$27*24-RIGHT($C$6,2))/24,'Altura long.'!$C$2:$AX$367,(VLOOKUP($A32,'Datos diarios'!$A$2:$B$366,2)+1),1),HLOOKUP((X$27*24-RIGHT($C$6,2))/24+1,'Altura long.'!$C$2:$AX$367,(VLOOKUP($A32,'Datos diarios'!$A$2:$B$366,2)+0),1)) -> 34.56987308 | Y32: =IF((Y$27*24-RIGHT($C$6,2))/24>0,HLOOKUP((Y$27*24-RIGHT($C$6,2))/24,'Altura long.'!$C$2:$AX$367,(VLOOKUP($A32,'Datos diarios'!$A$2:$B$366,2)+1),1),HLOOKUP((Y$27*24-RIGHT($C$6,2))/24+1,'Altura long.'!$C$2:$AX$367,(VLOOKUP($A32,'Datos diarios'!$A$2:$B$366,2)+0),1)) -> 27.97783127 | Z32: =IF((Z$27*24-RIGHT($C$6,2))/24>0,HLOOKUP((Z$27*24-RIGHT($C$6,2))/24,'Altura long.'!$C$2:$AX$367,(VLOOKUP($A32,'Datos diarios'!$A$2:$B$366,2)+1),1),HLOOKUP((Z$27*24-RIGHT($C$6,2))/24+1,'Altura long.'!$C$2:$AX$367,(VLOOKUP($A32,'Datos diarios'!$A$2:$B$366,2)+0),1)) -> 19.30295083 | AA32: =IF((AA$27*24-RIGHT($C$6,2))/24>0,HLOOKUP((AA$27*24-RIGHT($C$6,2))/24,'Altura long.'!$C$2:$AX$367,(VLOOKUP($A32,'Datos diarios'!$A$2:$B$366,2)+1),1),HLOOKUP((AA$27*24-RIGHT($C$6,2))/24+1,'Altura long.'!$C$2:$AX$367,(VLOOKUP($A32,'Datos diarios'!$A$2:$B$366,2)+0),1)) -> 9.274333866 | AB32: =IF((AB$27*24-RIGHT($C$6,2))/24>0,HLOOKUP((AB$27*24-RIGHT($C$6,2))/24,'Altura long.'!$C$2:$AX$367,(VLOOKUP($A32,'Datos diarios'!$A$2:$B$366,2)+1),1),HLOOKUP((AB$27*24-RIGHT($C$6,2))/24+1,'Altura long.'!$C$2:$AX$367,(VLOOKUP($A32,'Datos diarios'!$A$2:$B$366,2)+0),1)) -> -1.576672891 | AC32: =IF((AC$27*24-RIGHT($C$6,2))/24>0,HLOOKUP((AC$27*24-RIGHT($C$6,2))/24,'Altura long.'!$C$2:$AX$367,(VLOOKUP($A32,'Datos diarios'!$A$2:$B$366,2)+1),1),HLOOKUP((AC$27*24-RIGHT($C$6,2))/24+1,'Altura long.'!$C$2:$AX$367,(VLOOKUP($A32,'Datos diarios'!$A$2:$B$366,2)+0),1)) -> -12.86124375 | AD32: =IF((AD$27*24-RIGHT($C$6,2))/24>0,HLOOKUP((AD$27*24-RIGHT($C$6,2))/24,'Altura long.'!$C$2:$AX$367,(VLOOKUP($A32,'Datos diarios'!$A$2:$B$366,2)+1),1),HLOOKUP((AD$27*24-RIGHT($C$6,2))/24+1,'Altura long.'!$C$2:$AX$367,(VLOOKUP($A32,'Datos diarios'!$A$2:$B$366,2)+0),1)) -> -24.2521283 | AE32: =IF((AE$27*24-RIGHT($C$6,2))/24>0,HLOOKUP((AE$27*24-RIGHT($C$6,2))/24,'Altura long.'!$C$2:$AX$367,(VLOOKUP($A32,'Datos diarios'!$A$2:$B$366,2)+1),1),HLOOKUP((AE$27*24-RIGHT($C$6,2))/24+1,'Altura long.'!$C$2:$AX$367,(VLOOKUP($A32,'Datos diarios'!$A$2:$B$366,2)+0),1)) -> -35.39113068
F33: Azimut (°) | G33: =INDEX('Azimut long.'!$AY$4:$AY$368,VLOOKUP($A32,'Datos diarios'!$A$2:$B$366,2)) -> 170.9622041 | H33: =IF((H$27*24-RIGHT($C$6,2))/24>0,HLOOKUP((H$27*24-RIGHT($C$6,2))/24,'Azimut long.'!$C$2:$AX$367,(VLOOKUP($A32,'Datos diarios'!$A$2:$B$366,2)+1),1),HLOOKUP((H$27*24-RIGHT($C$6,2))/24+1,'Azimut long.'!$C$2:$AX$367,(VLOOKUP($A32,'Datos diarios'!$A$2:$B$366,2)+0),1)) -> 293.9292649 | I33: =IF((I$27*24-RIGHT($C$6,2))/24>0,HLOOKUP((I$27*24-RIGHT($C$6,2))/24,'Azimut long.'!$C$2:$AX$367,(VLOOKUP($A32,'Datos diarios'!$A$2:$B$366,2)+1),1),HLOOKUP((I$27*24-RIGHT($C$6,2))/24+1,'Azimut long.'!$C$2:$AX$367,(VLOOKUP($A32,'Datos diarios'!$A$2:$B$366,2)+0),1)) -> 320.1162369 | J33: =IF((J$27*24-RIGHT($C$6,2))/24>0,HLOOKUP((J$27*24-RIGHT($C$6,2))/24,'Azimut long.'!$C$2:$AX$367,(VLOOKUP($A32,'Datos diarios'!$A$2:$B$366,2)+1),1),HLOOKUP((J$27*24-RIGHT($C$6,2))/24+1,'Azimut long.'!$C$2:$AX$367,(VLOOKUP($A32,'Datos diarios'!$A$2:$B$366,2)+0),1)) -> 345.803038 | K33: =IF((K$27*24-RIGHT($C$6,2))/24>0,HLOOKUP((K$27*24-RIGHT($C$6,2))/24,'Azimut long.'!$C$2:$AX$367,(VLOOKUP($A32,'Datos diarios'!$A$2:$B$366,2)+1),1),HLOOKUP((K$27*24-RIGHT($C$6,2))/24+1,'Azimut long.'!$C$2:$AX$367,(VLOOKUP($A32,'Datos diarios'!$A$2:$B$366,2)+0),1)) -> 15.3272052 | L33: =IF((L$27*24-RIGHT($C$6,2))/24>0,HLOOKUP((L$27*24-RIGHT($C$6,2))/24,'Azimut long.'!$C$2:$AX$367,(VLOOKUP($A32,'Datos diarios'!$A$2:$B$366,2)+1),1),HLOOKUP((L$27*24-RIGHT($C$6,2))/24+1,'Azimut long.'!$C$2:$AX$367,(VLOOKUP($A32,'Datos diarios'!$A$2:$B$366,2)+0),1)) -> 40.71921106 | M33: =IF((M$27*24-RIGHT($C$6,2))/24>0,HLOOKUP((M$27*24-RIGHT($C$6,2))/24,'Azimut long.'!$C$2:$AX$367,(VLOOKUP($A32,'Datos diarios'!$A$2:$B$366,2)+1),1),HLOOKUP((M$27*24-RIGHT($C$6,2))/24+1,'Azimut long.'!$C$2:$AX$367,(VLOOKUP($A32,'Datos diarios'!$A$2:$B$366,2)+0),1)) -> 50.74558048 | N33: =IF((N$27*24-RIGHT($C$6,2))/24>0,HLOOKUP((N$27*24-RIGHT($C$6,2))/24,'Azimut long.'!$C$2:$AX$367,(VLOOKUP($A32,'Datos diarios'!$A$2:$B$366,2)+1),1),HLOOKUP((N$27*24-RIGHT($C$6,2))/24+1,'Azimut long.'!$C$2:$AX$367,(VLOOKUP($A32,'Datos diarios'!$A$2:$B$366,2)+0),1)) -> 66.53374056 | O33: =IF((O$27*24-RIGHT($C$6,2))/24>0,HLOOKUP((O$27*24-RIGHT($C$6,2))/24,'Azimut long.'!$C$2:$AX$367,(VLOOKUP($A32,'Datos diarios'!$A$2:$B$366,2)+1),1),HLOOKUP((O$27*24-RIGHT($C$6,2))/24+1,'Azimut long.'!$C$2:$AX$367,(VLOOKUP($A32,'Datos diarios'!$A$2:$B$366,2)+0),1)) -> 83.9796742 | P33: =IF((P$27*24-RIGHT($C$6,2))/24>0,HLOOKUP((P$27*24-RIGHT($C$6,2))/24,'Azimut long.'!$C$2:$AX$367,(VLOOKUP($A32,'Datos diarios'!$A$2:$B$366,2)+1),1),HLOOKUP((P$27*24-RIGHT($C$6,2))/24+1,'Azimut long.'!$C$2:$AX$367,(VLOOKUP($A32,'Datos diarios'!$A$2:$B$366,2)+0),1)) -> 93.80238362 | Q33: =IF((Q$27*24-RIGHT($C$6,2))/24>0,HLOOKUP((Q$27*24-RIGHT($C$6,2))/24,'Azimut long.'!$C$2:$AX$367,(VLOOKUP($A32,'Datos diarios'!$A$2:$B$366,2)+1),1),HLOOKUP((Q$27*24-RIGHT($C$6,2))/24+1,'Azimut long.'!$C$2:$AX$367,(VLOOKUP($A32,'Datos diarios'!$A$2:$B$366,2)+0),1)) -> 98.56030342 | R33: =IF((R$27*24-RIGHT($C$6,2))/24>0,HLOOKUP((R$27*24-RIGHT($C$6,2))/24,'Azimut long.'!$C$2:$AX$367,(VLOOKUP($A32,'Datos diarios'!$A$2:$B$366,2)+1),1),HLOOKUP((R$27*24-RIGHT($C$6,2))/24+1,'Azimut long.'!$C$2:$AX$367,(VLOOKUP($A32,'Datos diarios'!$A$2:$B$366,2)+0),1)) -> 113.3613327 | S33: =IF((S$27*24-RIGHT($C$6,2))/24>0,HLOOKUP((S$27*24-RIGHT($C$6,2))/24,'Azimut long.'!$C$2:$AX$367,(VLOOKUP($A32,'Datos diarios'!$A$2:$B$366,2)+1),1),HLOOKUP((S$27*24-RIGHT($C$6,2))/24+1,'Azimut long.'!$C$2:$AX$367,(VLOOKUP($A32,'Datos diarios'!$A$2:$B$366,2)+0),1)) -> 124.5571159 | T33: =IF((T$27*24-RIGHT($C$6,2))/24>0,HLOOKUP((T$27*24-RIGHT($C$6,2))/24,'Azimut long.'!$C$2:$AX$367,(VLOOKUP($A32,'Datos diarios'!$A$2:$B$366,2)+1),1),HLOOKUP((T$27*24-RIGHT($C$6,2))/24+1,'Azimut long.'!$C$2:$AX$367,(VLOOKUP($A32,'Datos diarios'!$A$2:$B$366,2)+0),1)) -> 130.8230862 | U33: =IF((U$27*24-RIGHT($C$6,2))/24>0,HLOOKUP((U$27*24-RIGHT($C$6,2))/24,'Azimut long.'!$C$2:$AX$367,(VLOOKUP($A32,'Datos diarios'!$A$2:$B$366,2)+1),1),HLOOKUP((U$27*24-RIGHT($C$6,2))/24+1,'Azimut long.'!$C$2:$AX$367,(VLOOKUP($A32,'Datos diarios'!$A$2:$B$366,2)+0),1)) -> 153.170759 | V33: =IF((V$27*24-RIGHT($C$6,2))/24>0,HLOOKUP((V$27*24-RIGHT($C$6,2))/24,'Azimut long.'!$C$2:$AX$367,(VLOOKUP($A32,'Datos diarios'!$A$2:$B$366,2)+1),1),HLOOKUP((V$27*24-RIGHT($C$6,2))/24+1,'Azimut long.'!$C$2:$AX$367,(VLOOKUP($A32,'Datos diarios'!$A$2:$B$366,2)+0),1)) -> 170.9894971 | W33: =IF((W$27*24-RIGHT($C$6,2))/24>0,HLOOKUP((W$27*24-RIGHT($C$6,2))/24,'Azimut long.'!$C$2:$AX$367,(VLOOKUP($A32,'Datos diarios'!$A$2:$B$366,2)+1),1),HLOOKUP((W$27*24-RIGHT($C$6,2))/24+1,'Azimut long.'!$C$2:$AX$367,(VLOOKUP($A32,'Datos diarios'!$A$2:$B$366,2)+0),1)) -> 180.3867589 | X33: =IF((X$27*24-RIGHT($C$6,2))/24>0,HLOOKUP((X$27*24-RIGHT($C$6,2))/24,'Azimut long.'!$C$2:$AX$367,(VLOOKUP($A32,'Datos diarios'!$A$2:$B$366,2)+1),1),HLOOKUP((X$27*24-RIGHT($C$6,2))/24+1,'Azimut long.'!$C$2:$AX$367,(VLOOKUP($A32,'Datos diarios'!$A$2:$B$366,2)+0),1)) -> 207.5367861 | Y33: =IF((Y$27*24-RIGHT($C$6,2))/24>0,HLOOKUP((Y$27*24-RIGHT($C$6,2))/24,'Azimut long.'!$C$2:$AX$367,(VLOOKUP($A32,'Datos diarios'!$A$2:$B$366,2)+1),1),HLOOKUP((Y$27*24-RIGHT($C$6,2))/24+1,'Azimut long.'!$C$2:$AX$367,(VLOOKUP($A32,'Datos diarios'!$A$2:$B$366,2)+0),1)) -> 222.9834261 | Z33: =IF((Z$27*24-RIGHT($C$6,2))/24>0,HLOOKUP((Z$27*24-RIGHT($C$6,2))/24,'Azimut long.'!$C$2:$AX$367,(VLOOKUP($A32,'Datos diarios'!$A$2:$B$366,2)+1),1),HLOOKUP((Z$27*24-RIGHT($C$6,2))/24+1,'Azimut long.'!$C$2:$AX$367,(VLOOKUP($A32,'Datos diarios'!$A$2:$B$366,2)+0),1)) -> 236.009105 | AA33: =IF((AA$27*24-RIGHT($C$6,2))/24>0,HLOOKUP((AA$27*24-RIGHT($C$6,2))/24,'Azimut long.'!$C$2:$AX$367,(VLOOKUP($A32,'Datos diarios'!$A$2:$B$366,2)+1),1),HLOOKUP((AA$27*24-RIGHT($C$6,2))/24+1,'Azimut long.'!$C$2:$AX$367,(VLOOKUP($A32,'Datos diarios'!$A$2:$B$366,2)+0),1)) -> 247.1684288 | AB33: =IF((AB$27*24-RIGHT($C$6,2))/24>0,HLOOKUP((AB$27*24-RIGHT($C$6,2))/24,'Azimut long.'!$C$2:$AX$367,(VLOOKUP($A32,'Datos diarios'!$A$2:$B$366,2)+1),1),HLOOKUP((AB$27*24-RIGHT($C$6,2))/24+1,'Azimut long.'!$C$2:$AX$367,(VLOOKUP($A32,'Datos diarios'!$A$2:$B$366,2)+0),1)) -> 257.1769684 | AC33: =IF((AC$27*24-RIGHT($C$6,2))/24>0,HLOOKUP((AC$27*24-RIGHT($C$6,2))/24,'Azimut long.'!$C$2:$AX$367,(VLOOKUP($A32,'Datos diarios'!$A$2:$B$366,2)+1),1),HLOOKUP((AC$27*24-RIGHT($C$6,2))/24+1,'Azimut long.'!$C$2:$AX$367,(VLOOKUP($A32,'Datos diarios'!$A$2:$B$366,2)+0),1)) -> 266.7477774 | AD33: =IF((AD$27*24-RIGHT($C$6,2))/24>0,HLOOKUP((AD$27*24-RIGHT($C$6,2))/24,'Azimut long.'!$C$2:$AX$367,(VLOOKUP($A32,'Datos diarios'!$A$2:$B$366,2)+1),1),HLOOKUP((AD$27*24-RIGHT($C$6,2))/24+1,'Azimut long.'!$C$2:$AX$367,(VLOOKUP($A32,'Datos diarios'!$A$2:$B$366,2)+0),1)) -> 276.6362362 | AE33: =IF((AE$27*24-RIGHT($C$6,2))/24>0,HLOOKUP((AE$27*24-RIGHT($C$6,2))/24,'Azimut long.'!$C$2:$AX$367,(VLOOKUP($A32,'Datos diarios'!$A$2:$B$366,2)+1),1),HLOOKUP((AE$27*24-RIGHT($C$6,2))/24+1,'Azimut long.'!$C$2:$AX$367,(VLOOKUP($A32,'Datos diarios'!$A$2:$B$366,2)+0),1)) -> 287.8025966
A34: 2021-03-21 | B34: =(VLOOKUP(VLOOKUP($A34,'Datos diarios'!$A$2:$B$366,2),'Datos diarios'!$B$2:$K$366,8,0)*24+RIGHT($C$6,2))/24 -> 08:22:53.819 | C34: =(VLOOKUP(VLOOKUP($A34,'Datos diarios'!$A$2:$B$366,2),'Datos diarios'!$B$2:$K$366,10,0)*24+RIGHT($C$6,2))/24 -> 20:22:26.872 | D34: =(VLOOKUP(VLOOKUP($A34,'Datos diarios'!$A$2:$B$366,2),'Datos diarios'!$B$2:$K$366,9,0)*24+RIGHT($C$6,2))/24 -> 14:22:40.345 | E34: =ROUND(VLOOKUP(VLOOKUP($A34,'Datos diarios'!$A$2:$B$366,2),'Datos diarios'!$B$2:$K$366,3,0),2)&"°" -> 49,52° | F34: Altura (°) | G34: =INDEX('Altura long.'!$AY$3:$AY$367,VLOOKUP($A34,'Datos diarios'!$A$2:$B$366,2)) -> 49.07921649 | H34: =IF((H$27*24-RIGHT($C$6,2))/24>0,HLOOKUP((H$27*24-RIGHT($C$6,2))/24,'Altura long.'!$C$2:$AX$367,(VLOOKUP($A34,'Datos diarios'!$A$2:$B$366,2)+1),1),HLOOKUP((H$27*24-RIGHT($C$6,2))/24+1,'Altura long.'!$C$2:$AX$367,(VLOOKUP($A34,'Datos diarios'!$A$2:$B$366,2)+0),1)) -> -33.90511195 | I34: =IF((I$27*24-RIGHT($C$6,2))/24>0,HLOOKUP((I$27*24-RIGHT($C$6,2))/24,'Altura long.'!$C$2:$AX$367,(VLOOKUP($A34,'Datos diarios'!$A$2:$B$366,2)+1),1),HLOOKUP((I$27*24-RIGHT($C$6,2))/24+1,'Altura long.'!$C$2:$AX$367,(VLOOKUP($A34,'Datos diarios'!$A$2:$B$366,2)+0),1)) -> -45.59409738 | J34: =IF((J$27*24-RIGHT($C$6,2))/24>0,HLOOKUP((J$27*24-RIGHT($C$6,2))/24,'Altura long.'!$C$2:$AX$367,(VLOOKUP($A34,'Datos diarios'!$A$2:$B$366,2)+1),1),HLOOKUP((J$27*24-RIGHT($C$6,2))/24+1,'Altura long.'!$C$2:$AX$367,(VLOOKUP($A34,'Datos diarios'!$A$2:$B$366,2)+0),1)) -> -50.2907735 | K34: =IF((K$27*24-RIGHT($C$6,2))/24>0,HLOOKUP((K$27*24-RIGHT($C$6,2))/24,'Altura long.'!$C$2:$AX$367,(VLOOKUP($A34,'Datos diarios'!$A$2:$B$366,2)+1),1),HLOOKUP((K$27*24-RIGHT($C$6,2))/24+1,'Altura long.'!$C$2:$AX$367,(VLOOKUP($A34,'Datos diarios'!$A$2:$B$366,2)+0),1)) -> -48.85979983 | L34: =IF((L$27*24-RIGHT($C$6,2))/24>0,HLOOKUP((L$27*24-RIGHT($C$6,2))/24,'Altura long.'!$C$2:$AX$367,(VLOOKUP($A34,'Datos diarios'!$A$2:$B$366,2)+1),1),HLOOKUP((L$27*24-RIGHT($C$6,2))/24+1,'Altura long.'!$C$2:$AX$367,(VLOOKUP($A34,'Datos diarios'!$A$2:$B$366,2)+0),1)) -> -44.08579034 | M34: =IF((M$27*24-RIGHT($C$6,2))/24>0,HLOOKUP((M$27*24-RIGHT($C$6,2))/24,'Altura long.'!$C$2:$AX$367,(VLOOKUP($A34,'Datos diarios'!$A$2:$B$366,2)+1),1),HLOOKUP((M$27*24-RIGHT($C$6,2))/24+1,'Altura long.'!$C$2:$AX$367,(VLOOKUP($A34,'Datos diarios'!$A$2:$B$366,2)+0),1)) -> -40.46231816 | N34: =IF((N$27*24-RIGHT($C$6,2))/24>0,HLOOKUP((N$27*24-RIGHT($C$6,2))/24,'Altura long.'!$C$2:$AX$367,(VLOOKUP($A34,'Datos diarios'!$A$2:$B$366,2)+1),1),HLOOKUP((N$27*24-RIGHT($C$6,2))/24+1,'Altura long.'!$C$2:$AX$367,(VLOOKUP($A34,'Datos diarios'!$A$2:$B$366,2)+0),1)) -> -31.54027205 | O34: =IF((O$27*24-RIGHT($C$6,2))/24>0,HLOOKUP((O$27*24-RIGHT($C$6,2))/24,'Altura long.'!$C$2:$AX$367,(VLOOKUP($A34,'Datos diarios'!$A$2:$B$366,2)+1),1),HLOOKUP((O$27*24-RIGHT($C$6,2))/24+1,'Altura long.'!$C$2:$AX$367,(VLOOKUP($A34,'Datos diarios'!$A$2:$B$366,2)+0),1)) -> -15.72132981 | P34: =IF((P$27*24-RIGHT($C$6,2))/24>0,HLOOKUP((P$27*24-RIGHT($C$6,2))/24,'Altura long.'!$C$2:$AX$367,(VLOOKUP($A34,'Datos diarios'!$A$2:$B$366,2)+1),1),HLOOKUP((P$27*24-RIGHT($C$6,2))/24+1,'Altura long.'!$C$2:$AX$367,(VLOOKUP($A34,'Datos diarios'!$A$2:$B$366,2)+0),1)) -> -4.436959967 | Q34: =IF((Q$27*24-RIGHT($C$6,2))/24>0,HLOOKUP((Q$27*24-RIGHT($C$6,2))/24,'Altura long.'!$C$2:$AX$367,(VLOOKUP($A34,'Datos diarios'!$A$2:$B$366,2)+1),1),HLOOKUP((Q$27*24-RIGHT($C$6,2))/24+1,'Altura long.'!$C$2:$AX$367,(VLOOKUP($A34,'Datos diarios'!$A$2:$B$366,2)+0),1)) -> 1.273119781 | R34: =IF((R$27*24-RIGHT($C$6,2))/24>0,HLOOKUP((R$27*24-RIGHT($C$6,2))/24,'Altura long.'!$C$2:$AX$367,(VLOOKUP($A34,'Datos diarios'!$A$2:$B$366,2)+1),1),HLOOKUP((R$27*24-RIGHT($C$6,2))/24+1,'Altura long.'!$C$2:$AX$367,(VLOOKUP($A34,'Datos diarios'!$A$2:$B$366,2)+0),1)) -> 18.16251864 | S34: =IF((S$27*24-RIGHT($C$6,2))/24>0,HLOOKUP((S$27*24-RIGHT($C$6,2))/24,'Altura long.'!$C$2:$AX$367,(VLOOKUP($A34,'Datos diarios'!$A$2:$B$366,2)+1),1),HLOOKUP((S$27*24-RIGHT($C$6,2))/24+1,'Altura long.'!$C$2:$AX$367,(VLOOKUP($A34,'Datos diarios'!$A$2:$B$366,2)+0),1)) -> 28.726193 | T34: =IF((T$27*24-RIGHT($C$6,2))/24>0,HLOOKUP((T$27*24-RIGHT($C$6,2))/24,'Altura long.'!$C$2:$AX$367,(VLOOKUP($A34,'Datos diarios'!$A$2:$B$366,2)+1),1),HLOOKUP((T$27*24-RIGHT($C$6,2))/24+1,'Altura long.'!$C$2:$AX$367,(VLOOKUP($A34,'Datos diarios'!$A$2:$B$366,2)+0),1)) -> 33.59803616 | U34: =IF((U$27*24-RIGHT($C$6,2))/24>0,HLOOKUP((U$27*24-RIGHT($C$6,2))/24,'Altura long.'!$C$2:$AX$367,(VLOOKUP($A34,'Datos diarios'!$A$2:$B$366,2)+1),1),HLOOKUP((U$27*24-RIGHT($C$6,2))/24+1,'Altura long.'!$C$2:$AX$367,(VLOOKUP($A34,'Datos diarios'!$A$2:$B$366,2)+0),1)) -> 45.2619599 | V34: =IF((V$27*24-RIGHT($C$6,2))/24>0,HLOOKUP((V$27*24-RIGHT($C$6,2))/24,'Altura long.'!$C$2:$AX$367,(VLOOKUP($A34,'Datos diarios'!$A$2:$B$366,2)+1),1),HLOOKUP((V$27*24-RIGHT($C$6,2))/24+1,'Altura long.'!$C$2:$AX$367,(VLOOKUP($A34,'Datos diarios'!$A$2:$B$366,2)+0),1)) -> 49.07921649 | W34: =IF((W$27*24-RIGHT($C$6,2))/24>0,HLOOKUP((W$27*24-RIGHT($C$6,2))/24,'Altura long.'!$C$2:$AX$367,(VLOOKUP($A34,'Datos diarios'!$A$2:$B$366,2)+1),1),HLOOKUP((W$27*24-RIGHT($C$6,2))/24+1,'Altura long.'!$C$2:$AX$367,(VLOOKUP($A34,'Datos diarios'!$A$2:$B$366,2)+0),1)) -> 49.37973708 | X34: =IF((X$27*24-RIGHT($C$6,2))/24>0,HLOOKUP((X$27*24-RIGHT($C$6,2))/24,'Altura long.'!$C$2:$AX$367,(VLOOKUP($A34,'Datos diarios'!$A$2:$B$366,2)+1),1),HLOOKUP((X$27*24-RIGHT($C$6,2))/24+1,'Altura long.'!$C$2:$AX$367,(VLOOKUP($A34,'Datos diarios'!$A$2:$B$366,2)+0),1)) -> 43.81962071 | Y34: =IF((Y$27*24-RIGHT($C$6,2))/24>0,HLOOKUP((Y$27*24-RIGHT($C$6,2))/24,'Altura long.'!$C$2:$AX$367,(VLOOKUP($A34,'Datos diarios'!$A$2:$B$366,2)+1),1),HLOOKUP((Y$27*24-RIGHT($C$6,2))/24+1,'Altura long.'!$C$2:$AX$367,(VLOOKUP($A34,'Datos diarios'!$A$2:$B$366,2)+0),1)) -> 36.01453111 | Z34: =IF((Z$27*24-RIGHT($C$6,2))/24>0,HLOOKUP((Z$27*24-RIGHT($C$6,2))/24,'Altura long.'!$C$2:$AX$367,(VLOOKUP($A34,'Datos diarios'!$A$2:$B$366,2)+1),1),HLOOKUP((Z$27*24-RIGHT($C$6,2))/24+1,'Altura long.'!$C$2:$AX$367,(VLOOKUP($A34,'Datos diarios'!$A$2:$B$366,2)+0),1)) -> 26.32017203 | AA34: =IF((AA$27*24-RIGHT($C$6,2))/24>0,HLOOKUP((AA$27*24-RIGHT($C$6,2))/24,'Altura long.'!$C$2:$AX$367,(VLOOKUP($A34,'Datos diarios'!$A$2:$B$366,2)+1),1),HLOOKUP((AA$27*24-RIGHT($C$6,2))/24+1,'Altura long.'!$C$2:$AX$367,(VLOOKUP($A34,'Datos diarios'!$A$2:$B$366,2)+0),1)) -> 15.57334584 | AB34: =IF((AB$27*24-RIGHT($C$6,2))/24>0,HLOOKUP((AB$27*24-RIGHT($C$6,2))/24,'Altura long.'!$C$2:$AX$367,(VLOOKUP($A34,'Datos diarios'!$A$2:$B$366,2)+1),1),HLOOKUP((AB$27*24-RIGHT($C$6,2))/24+1,'Altura long.'!$C$2:$AX$367,(VLOOKUP($A34,'Datos diarios'!$A$2:$B$366,2)+0),1)) -> 4.313811232 | AC34: =IF((AC$27*24-RIGHT($C$6,2))/24>0,HLOOKUP((AC$27*24-RIGHT($C$6,2))/24,'Altura long.'!$C$2:$AX$367,(VLOOKUP($A34,'Datos diarios'!$A$2:$B$366,2)+1),1),HLOOKUP((AC$27*24-RIGHT($C$6,2))/24+1,'Altura long.'!$C$2:$AX$367,(VLOOKUP($A34,'Datos diarios'!$A$2:$B$366,2)+0),1)) -> -7.073894921 | AD34: =IF((AD$27*24-RIGHT($C$6,2))/24>0,HLOOKUP((AD$27*24-RIGHT($C$6,2))/24,'Altura long.'!$C$2:$AX$367,(VLOOKUP($A34,'Datos diarios'!$A$2:$B$366,2)+1),1),HLOOKUP((AD$27*24-RIGHT($C$6,2))/24+1,'Altura long.'!$C$2:$AX$367,(VLOOKUP($A34,'Datos diarios'!$A$2:$B$366,2)+0),1)) -> -18.24397606 | AE34: =IF((AE$27*24-RIGHT($C$6,2))/24>0,HLOOKUP((AE$27*24-RIGHT($C$6,2))/24,'Altura long.'!$C$2:$AX$367,(VLOOKUP($A34,'Datos diarios'!$A$2:$B$366,2)+1),1),HLOOKUP((AE$27*24-RIGHT($C$6,2))/24+1,'Altura long.'!$C$2:$AX$367,(VLOOKUP($A34,'Datos diarios'!$A$2:$B$366,2)+0),1)) -> -28.78527571
F35: Azimut (°) | G35: =INDEX('Azimut long.'!$AY$4:$AY$368,VLOOKUP($A34,'Datos diarios'!$A$2:$B$366,2)) -> 171.3860084 | H35: =IF((H$27*24-RIGHT($C$6,2))/24>0,HLOOKUP((H$27*24-RIGHT($C$6,2))/24,'Azimut long.'!$C$2:$AX$367,(VLOOKUP($A34,'Datos diarios'!$A$2:$B$366,2)+1),1),HLOOKUP((H$27*24-RIGHT($C$6,2))/24+1,'Azimut long.'!$C$2:$AX$367,(VLOOKUP($A34,'Datos diarios'!$A$2:$B$366,2)+0),1)) -> 304.4449354 | I35: =IF((I$27*24-RIGHT($C$6,2))/24>0,HLOOKUP((I$27*24-RIGHT($C$6,2))/24,'Azimut long.'!$C$2:$AX$367,(VLOOKUP($A34,'Datos diarios'!$A$2:$B$366,2)+1),1),HLOOKUP((I$27*24-RIGHT($C$6,2))/24+1,'Azimut long.'!$C$2:$AX$367,(VLOOKUP($A34,'Datos diarios'!$A$2:$B$366,2)+0),1)) -> 329.6843098 | J35: =IF((J$27*24-RIGHT($C$6,2))/24>0,HLOOKUP((J$27*24-RIGHT($C$6,2))/24,'Azimut long.'!$C$2:$AX$367,(VLOOKUP($A34,'Datos diarios'!$A$2:$B$366,2)+1),1),HLOOKUP((J$27*24-RIGHT($C$6,2))/24+1,'Azimut long.'!$C$2:$AX$367,(VLOOKUP($A34,'Datos diarios'!$A$2:$B$366,2)+0),1)) -> 351.21956 | K35: =IF((K$27*24-RIGHT($C$6,2))/24>0,HLOOKUP((K$27*24-RIGHT($C$6,2))/24,'Azimut long.'!$C$2:$AX$367,(VLOOKUP($A34,'Datos diarios'!$A$2:$B$366,2)+1),1),HLOOKUP((K$27*24-RIGHT($C$6,2))/24+1,'Azimut long.'!$C$2:$AX$367,(VLOOKUP($A34,'Datos diarios'!$A$2:$B$366,2)+0),1)) -> 14.17669188 | L35: =IF((L$27*24-RIGHT($C$6,2))/24>0,HLOOKUP((L$27*24-RIGHT($C$6,2))/24,'Azimut long.'!$C$2:$AX$367,(VLOOKUP($A34,'Datos diarios'!$A$2:$B$366,2)+1),1),HLOOKUP((L$27*24-RIGHT($C$6,2))/24+1,'Azimut long.'!$C$2:$AX$367,(VLOOKUP($A34,'Datos diarios'!$A$2:$B$366,2)+0),1)) -> 34.90132733 | M35: =IF((M$27*24-RIGHT($C$6,2))/24>0,HLOOKUP((M$27*24-RIGHT($C$6,2))/24,'Azimut long.'!$C$2:$AX$367,(VLOOKUP($A34,'Datos diarios'!$A$2:$B$366,2)+1),1),HLOOKUP((M$27*24-RIGHT($C$6,2))/24+1,'Azimut long.'!$C$2:$AX$367,(VLOOKUP($A34,'Datos diarios'!$A$2:$B$366,2)+0),1)) -> 43.79146266 | N35: =IF((N$27*24-RIGHT($C$6,2))/24>0,HLOOKUP((N$27*24-RIGHT($C$6,2))/24,'Azimut long.'!$C$2:$AX$367,(VLOOKUP($A34,'Datos diarios'!$A$2:$B$366,2)+1),1),HLOOKUP((N$27*24-RIGHT($C$6,2))/24+1,'Azimut long.'!$C$2:$AX$367,(VLOOKUP($A34,'Datos diarios'!$A$2:$B$366,2)+0),1)) -> 58.76932323 | O35: =IF((O$27*24-RIGHT($C$6,2))/24>0,HLOOKUP((O$27*24-RIGHT($C$6,2))/24,'Azimut long.'!$C$2:$AX$367,(VLOOKUP($A34,'Datos diarios'!$A$2:$B$366,2)+1),1),HLOOKUP((O$27*24-RIGHT($C$6,2))/24+1,'Azimut long.'!$C$2:$AX$367,(VLOOKUP($A34,'Datos diarios'!$A$2:$B$366,2)+0),1)) -> 76.35995102 | P35: =IF((P$27*24-RIGHT($C$6,2))/24>0,HLOOKUP((P$27*24-RIGHT($C$6,2))/24,'Azimut long.'!$C$2:$AX$367,(VLOOKUP($A34,'Datos diarios'!$A$2:$B$366,2)+1),1),HLOOKUP((P$27*24-RIGHT($C$6,2))/24+1,'Azimut long.'!$C$2:$AX$367,(VLOOKUP($A34,'Datos diarios'!$A$2:$B$366,2)+0),1)) -> 86.4299407 | Q35: =IF((Q$27*24-RIGHT($C$6,2))/24>0,HLOOKUP((Q$27*24-RIGHT($C$6,2))/24,'Azimut long.'!$C$2:$AX$367,(VLOOKUP($A34,'Datos diarios'!$A$2:$B$366,2)+1),1),HLOOKUP((Q$27*24-RIGHT($C$6,2))/24+1,'Azimut long.'!$C$2:$AX$367,(VLOOKUP($A34,'Datos diarios'!$A$2:$B$366,2)+0),1)) -> 91.30329678 | R35: =IF((R$27*24-RIGHT($C$6,2))/24>0,HLOOKUP((R$27*24-RIGHT($C$6,2))/24,'Azimut long.'!$C$2:$AX$367,(VLOOKUP($A34,'Datos diarios'!$A$2:$B$366,2)+1),1),HLOOKUP((R$27*24-RIGHT($C$6,2))/24+1,'Azimut long.'!$C$2:$AX$367,(VLOOKUP($A34,'Datos diarios'!$A$2:$B$366,2)+0),1)) -> 106.4689194 | S35: =IF((S$27*24-RIGHT($C$6,2))/24>0,HLOOKUP((S$27*24-RIGHT($C$6,2))/24,'Azimut long.'!$C$2:$AX$367,(VLOOKUP($A34,'Datos diarios'!$A$2:$B$366,2)+1),1),HLOOKUP((S$27*24-RIGHT($C$6,2))/24+1,'Azimut long.'!$C$2:$AX$367,(VLOOKUP($A34,'Datos diarios'!$A$2:$B$366,2)+0),1)) -> 118.1229929 | T35: =IF((T$27*24-RIGHT($C$6,2))/24>0,HLOOKUP((T$27*24-RIGHT($C$6,2))/24,'Azimut long.'!$C$2:$AX$367,(VLOOKUP($A34,'Datos diarios'!$A$2:$B$366,2)+1),1),HLOOKUP((T$27*24-RIGHT($C$6,2))/24+1,'Azimut long.'!$C$2:$AX$367,(VLOOKUP($A34,'Datos diarios'!$A$2:$B$366,2)+0),1)) -> 124.8012531 | U35: =IF((U$27*24-RIGHT($C$6,2))/24>0,HLOOKUP((U$27*24-RIGHT($C$6,2))/24,'Azimut long.'!$C$2:$AX$367,(VLOOKUP($A34,'Datos diarios'!$A$2:$B$366,2)+1),1),HLOOKUP((U$27*24-RIGHT($C$6,2))/24+1,'Azimut long.'!$C$2:$AX$367,(VLOOKUP($A34,'Datos diarios'!$A$2:$B$366,2)+0),1)) -> 149.9400091 | V35: =IF((V$27*24-RIGHT($C$6,2))/24>0,HLOOKUP((V$27*24-RIGHT($C$6,2))/24,'Azimut long.'!$C$2:$AX$367,(VLOOKUP($A34,'Datos diarios'!$A$2:$B$366,2)+1),1),HLOOKUP((V$27*24-RIGHT($C$6,2))/24+1,'Azimut long.'!$C$2:$AX$367,(VLOOKUP($A34,'Datos diarios'!$A$2:$B$366,2)+0),1)) -> 171.3362814 | W35: =IF((W$27*24-RIGHT($C$6,2))/24>0,HLOOKUP((W$27*24-RIGHT($C$6,2))/24,'Azimut long.'!$C$2:$AX$367,(VLOOKUP($A34,'Datos diarios'!$A$2:$B$366,2)+1),1),HLOOKUP((W$27*24-RIGHT($C$6,2))/24+1,'Azimut long.'!$C$2:$AX$367,(VLOOKUP($A34,'Datos diarios'!$A$2:$B$366,2)+0),1)) -> 182.8009835 | X35: =IF((X$27*24-RIGHT($C$6,2))/24>0,HLOOKUP((X$27*24-RIGHT($C$6,2))/24,'Azimut long.'!$C$2:$AX$367,(VLOOKUP($A34,'Datos diarios'!$A$2:$B$366,2)+1),1),HLOOKUP((X$27*24-RIGHT($C$6,2))/24+1,'Azimut long.'!$C$2:$AX$367,(VLOOKUP($A34,'Datos diarios'!$A$2:$B$366,2)+0),1)) -> 214.7821656 | Y35: =IF((Y$27*24-RIGHT($C$6,2))/24>0,HLOOKUP((Y$27*24-RIGHT($C$6,2))/24,'Azimut long.'!$C$2:$AX$367,(VLOOKUP($A34,'Datos diarios'!$A$2:$B$366,2)+1),1),HLOOKUP((Y$27*24-RIGHT($C$6,2))/24+1,'Azimut long.'!$C$2:$AX$367,(VLOOKUP($A34,'Datos diarios'!$A$2:$B$366,2)+0),1)) -> 231.5637904 | Z35: =IF((Z$27*24-RIGHT($C$6,2))/24>0,HLOOKUP((Z$27*24-RIGHT($C$6,2))/24,'Azimut long.'!$C$2:$AX$367,(VLOOKUP($A34,'Datos diarios'!$A$2:$B$366,2)+1),1),HLOOKUP((Z$27*24-RIGHT($C$6,2))/24+1,'Azimut long.'!$C$2:$AX$367,(VLOOKUP($A34,'Datos diarios'!$A$2:$B$366,2)+0),1)) -> 245.0023672 | AA35: =IF((AA$27*24-RIGHT($C$6,2))/24>0,HLOOKUP((AA$27*24-RIGHT($C$6,2))/24,'Azimut long.'!$C$2:$AX$367,(VLOOKUP($A34,'Datos diarios'!$A$2:$B$366,2)+1),1),HLOOKUP((AA$27*24-RIGHT($C$6,2))/24+1,'Azimut long.'!$C$2:$AX$367,(VLOOKUP($A34,'Datos diarios'!$A$2:$B$366,2)+0),1)) -> 256.2503047 | AB35: =IF((AB$27*24-RIGHT($C$6,2))/24>0,HLOOKUP((AB$27*24-RIGHT($C$6,2))/24,'Azimut long.'!$C$2:$AX$367,(VLOOKUP($A34,'Datos diarios'!$A$2:$B$366,2)+1),1),HLOOKUP((AB$27*24-RIGHT($C$6,2))/24+1,'Azimut long.'!$C$2:$AX$367,(VLOOKUP($A34,'Datos diarios'!$A$2:$B$366,2)+0),1)) -> 266.3449513 | AC35: =IF((AC$27*24-RIGHT($C$6,2))/24>0,HLOOKUP((AC$27*24-RIGHT($C$6,2))/24,'Azimut long.'!$C$2:$AX$367,(VLOOKUP($A34,'Datos diarios'!$A$2:$B$366,2)+1),1),HLOOKUP((AC$27*24-RIGHT($C$6,2))/24+1,'Azimut long.'!$C$2:$AX$367,(VLOOKUP($A34,'Datos diarios'!$A$2:$B$366,2)+0),1)) -> 276.1412036 | AD35: =IF((AD$27*24-RIGHT($C$6,2))/24>0,HLOOKUP((AD$27*24-RIGHT($C$6,2))/24,'Azimut long.'!$C$2:$AX$367,(VLOOKUP($A34,'Datos diarios'!$A$2:$B$366,2)+1),1),HLOOKUP((AD$27*24-RIGHT($C$6,2))/24+1,'Azimut long.'!$C$2:$AX$367,(VLOOKUP($A34,'Datos diarios'!$A$2:$B$366,2)+0),1)) -> 286.4367864 | AE35: =IF((AE$27*24-RIGHT($C$6,2))/24>0,HLOOKUP((AE$27*24-RIGHT($C$6,2))/24,'Azimut long.'!$C$2:$AX$367,(VLOOKUP($A34,'Datos diarios'!$A$2:$B$366,2)+1),1),HLOOKUP((AE$27*24-RIGHT($C$6,2))/24+1,'Azimut long.'!$C$2:$AX$367,(VLOOKUP($A34,'Datos diarios'!$A$2:$B$366,2)+0),1)) -> 298.1214961
A36: 2021-04-21 | B36: =(VLOOKUP(VLOOKUP($A36,'Datos diarios'!$A$2:$B$366,2),'Datos diarios'!$B$2:$K$366,8,0)*24+RIGHT($C$6,2))/24 -> 07:33:23.061 | C36: =(VLOOKUP(VLOOKUP($A36,'Datos diarios'!$A$2:$B$366,2),'Datos diarios'!$B$2:$K$366,10,0)*24+RIGHT($C$6,2))/24 -> 20:53:48.575 | D36: =(VLOOKUP(VLOOKUP($A36,'Datos diarios'!$A$2:$B$366,2),'Datos diarios'!$B$2:$K$366,9,0)*24+RIGHT($C$6,2))/24 -> 14:13:35.818 | E36: =ROUND(VLOOKUP(VLOOKUP($A36,'Datos diarios'!$A$2:$B$366,2),'Datos diarios'!$B$2:$K$366,3,0),2)&"°" -> 61,17° | F36: Altura (°) | G36: =INDEX('Altura long.'!$AY$3:$AY$367,VLOOKUP($A36,'Datos diarios'!$A$2:$B$366,2)) -> 60.82498744 | H36: =IF((H$27*24-RIGHT($C$6,2))/24>0,HLOOKUP((H$27*24-RIGHT($C$6,2))/24,'Altura long.'!$C$2:$AX$367,(VLOOKUP($A36,'Datos diarios'!$A$2:$B$366,2)+1),1),HLOOKUP((H$27*24-RIGHT($C$6,2))/24+1,'Altura long.'!$C$2:$AX$367,(VLOOKUP($A36,'Datos diarios'!$A$2:$B$366,2)+0),1)) -> -25.79135537 | I36: =IF((I$27*24-RIGHT($C$6,2))/24>0,HLOOKUP((I$27*24-RIGHT($C$6,2))/24,'Altura long.'!$C$2:$AX$367,(VLOOKUP($A36,'Datos diarios'!$A$2:$B$366,2)+1),1),HLOOKUP((I$27*24-RIGHT($C$6,2))/24+1,'Altura long.'!$C$2:$AX$367,(VLOOKUP($A36,'Datos diarios'!$A$2:$B$366,2)+0),1)) -> -35.3494281 | J36: =IF((J$27*24-RIGHT($C$6,2))/24>0,HLOOKUP((J$27*24-RIGHT($C$6,2))/24,'Altura long.'!$C$2:$AX$367,(VLOOKUP($A36,'Datos diarios'!$A$2:$B$366,2)+1),1),HLOOKUP((J$27*24-RIGHT($C$6,2))/24+1,'Altura long.'!$C$2:$AX$367,(VLOOKUP($A36,'Datos diarios'!$A$2:$B$366,2)+0),1)) -> -38.38529547 | K36: =IF((K$27*24-RIGHT($C$6,2))/24>0,HLOOKUP((K$27*24-RIGHT($C$6,2))/24,'Altura long.'!$C$2:$AX$367,(VLOOKUP($A36,'Datos diarios'!$A$2:$B$366,2)+1),1),HLOOKUP((K$27*24-RIGHT($C$6,2))/24+1,'Altura long.'!$C$2:$AX$367,(VLOOKUP($A36,'Datos diarios'!$A$2:$B$366,2)+0),1)) -> -36.95292138 | L36: =IF((L$27*24-RIGHT($C$6,2))/24>0,HLOOKUP((L$27*24-RIGHT($C$6,2))/24,'Altura long.'!$C$2:$AX$367,(VLOOKUP($A36,'Datos diarios'!$A$2:$B$366,2)+1),1),HLOOKUP((L$27*24-RIGHT($C$6,2))/24+1,'Altura long.'!$C$2:$AX$367,(VLOOKUP($A36,'Datos diarios'!$A$2:$B$366,2)+0),1)) -> -32.51736464 | M36: =IF((M$27*24-RIGHT($C$6,2))/24>0,HLOOKUP((M$27*24-RIGHT($C$6,2))/24,'Altura long.'!$C$2:$AX$367,(VLOOKUP($A36,'Datos diarios'!$A$2:$B$366,2)+1),1),HLOOKUP((M$27*24-RIGHT($C$6,2))/24+1,'Altura long.'!$C$2:$AX$367,(VLOOKUP($A36,'Datos diarios'!$A$2:$B$366,2)+0),1)) -> -29.23077651 | N36: =IF((N$27*24-RIGHT($C$6,2))/24>0,HLOOKUP((N$27*24-RIGHT($C$6,2))/24,'Altura long.'!$C$2:$AX$367,(VLOOKUP($A36,'Datos diarios'!$A$2:$B$366,2)+1),1),HLOOKUP((N$27*24-RIGHT($C$6,2))/24+1,'Altura long.'!$C$2:$AX$367,(VLOOKUP($A36,'Datos diarios'!$A$2:$B$366,2)+0),1)) -> -21.04870529 | O36: =IF((O$27*24-RIGHT($C$6,2))/24>0,HLOOKUP((O$27*24-RIGHT($C$6,2))/24,'Altura long.'!$C$2:$AX$367,(VLOOKUP($A36,'Datos diarios'!$A$2:$B$366,2)+1),1),HLOOKUP((O$27*24-RIGHT($C$6,2))/24+1,'Altura long.'!$C$2:$AX$367,(VLOOKUP($A36,'Datos diarios'!$A$2:$B$366,2)+0),1)) -> -6.100134103 | P36: =IF((P$27*24-RIGHT($C$6,2))/24>0,HLOOKUP((P$27*24-RIGHT($C$6,2))/24,'Altura long.'!$C$2:$AX$367,(VLOOKUP($A36,'Datos diarios'!$A$2:$B$366,2)+1),1),HLOOKUP((P$27*24-RIGHT($C$6,2))/24+1,'Altura long.'!$C$2:$AX$367,(VLOOKUP($A36,'Datos diarios'!$A$2:$B$366,2)+0),1)) -> 4.875079477 | Q36: =IF((Q$27*24-RIGHT($C$6,2))/24>0,HLOOKUP((Q$27*24-RIGHT($C$6,2))/24,'Altura long.'!$C$2:$AX$367,(VLOOKUP($A36,'Datos diarios'!$A$2:$B$366,2)+1),1),HLOOKUP((Q$27*24-RIGHT($C$6,2))/24+1,'Altura long.'!$C$2:$AX$367,(VLOOKUP($A36,'Datos diarios'!$A$2:$B$366,2)+0),1)) -> 10.52008783 | R36: =IF((R$27*24-RIGHT($C$6,2))/24>0,HLOOKUP((R$27*24-RIGHT($C$6,2))/24,'Altura long.'!$C$2:$AX$367,(VLOOKUP($A36,'Datos diarios'!$A$2:$B$366,2)+1),1),HLOOKUP((R$27*24-RIGHT($C$6,2))/24+1,'Altura long.'!$C$2:$AX$367,(VLOOKUP($A36,'Datos diarios'!$A$2:$B$366,2)+0),1)) -> 27.60042526 | S36: =IF((S$27*24-RIGHT($C$6,2))/24>0,HLOOKUP((S$27*24-RIGHT($C$6,2))/24,'Altura long.'!$C$2:$AX$367,(VLOOKUP($A36,'Datos diarios'!$A$2:$B$366,2)+1),1),HLOOKUP((S$27*24-RIGHT($C$6,2))/24+1,'Altura long.'!$C$2:$AX$367,(VLOOKUP($A36,'Datos diarios'!$A$2:$B$366,2)+0),1)) -> 38.64659626 | T36: =IF((T$27*24-RIGHT($C$6,2))/24>0,HLOOKUP((T$27*24-RIGHT($C$6,2))/24,'Altura long.'!$C$2:$AX$367,(VLOOKUP($A36,'Datos diarios'!$A$2:$B$366,2)+1),1),HLOOKUP((T$27*24-RIGHT($C$6,2))/24+1,'Altura long.'!$C$2:$AX$367,(VLOOKUP($A36,'Datos diarios'!$A$2:$B$366,2)+0),1)) -> 43.87019669 | U36: =IF((U$27*24-RIGHT($C$6,2))/24>0,HLOOKUP((U$27*24-RIGHT($C$6,2))/24,'Altura long.'!$C$2:$AX$367,(VLOOKUP($A36,'Datos diarios'!$A$2:$B$366,2)+1),1),HLOOKUP((U$27*24-RIGHT($C$6,2))/24+1,'Altura long.'!$C$2:$AX$367,(VLOOKUP($A36,'Datos diarios'!$A$2:$B$366,2)+0),1)) -> 56.78122009 | V36: =IF((V$27*24-RIGHT($C$6,2))/24>0,HLOOKUP((V$27*24-RIGHT($C$6,2))/24,'Altura long.'!$C$2:$AX$367,(VLOOKUP($A36,'Datos diarios'!$A$2:$B$366,2)+1),1),HLOOKUP((V$27*24-RIGHT($C$6,2))/24+1,'Altura long.'!$C$2:$AX$367,(VLOOKUP($A36,'Datos diarios'!$A$2:$B$366,2)+0),1)) -> 60.82498744 | W36: =IF((W$27*24-RIGHT($C$6,2))/24>0,HLOOKUP((W$27*24-RIGHT($C$6,2))/24,'Altura long.'!$C$2:$AX$367,(VLOOKUP($A36,'Datos diarios'!$A$2:$B$366,2)+1),1),HLOOKUP((W$27*24-RIGHT($C$6,2))/24+1,'Altura long.'!$C$2:$AX$367,(VLOOKUP($A36,'Datos diarios'!$A$2:$B$366,2)+0),1)) -> 60.76187254 | X36: =IF((X$27*24-RIGHT($C$6,2))/24>0,HLOOKUP((X$27*24-RIGHT($C$6,2))/24,'Altura long.'!$C$2:$AX$367,(VLOOKUP($A36,'Datos diarios'!$A$2:$B$366,2)+1),1),HLOOKUP((X$27*24-RIGHT($C$6,2))/24+1,'Altura long.'!$C$2:$AX$367,(VLOOKUP($A36,'Datos diarios'!$A$2:$B$366,2)+0),1)) -> 52.78498793 | Y36: =IF((Y$27*24-RIGHT($C$6,2))/24>0,HLOOKUP((Y$27*24-RIGHT($C$6,2))/24,'Altura long.'!$C$2:$AX$367,(VLOOKUP($A36,'Datos diarios'!$A$2:$B$366,2)+1),1),HLOOKUP((Y$27*24-RIGHT($C$6,2))/24+1,'Altura long.'!$C$2:$AX$367,(VLOOKUP($A36,'Datos diarios'!$A$2:$B$366,2)+0),1)) -> 43.4497542 | Z36: =IF((Z$27*24-RIGHT($C$6,2))/24>0,HLOOKUP((Z$27*24-RIGHT($C$6,2))/24,'Altura long.'!$C$2:$AX$367,(VLOOKUP($A36,'Datos diarios'!$A$2:$B$366,2)+1),1),HLOOKUP((Z$27*24-RIGHT($C$6,2))/24+1,'Altura long.'!$C$2:$AX$367,(VLOOKUP($A36,'Datos diarios'!$A$2:$B$366,2)+0),1)) -> 32.74717633 | AA36: =IF((AA$27*24-RIGHT($C$6,2))/24>0,HLOOKUP((AA$27*24-RIGHT($C$6,2))/24,'Altura long.'!$C$2:$AX$367,(VLOOKUP($A36,'Datos diarios'!$A$2:$B$366,2)+1),1),HLOOKUP((AA$27*24-RIGHT($C$6,2))/24+1,'Altura long.'!$C$2:$AX$367,(VLOOKUP($A36,'Datos diarios'!$A$2:$B$366,2)+0),1)) -> 21.47630949 | AB36: =IF((AB$27*24-RIGHT($C$6,2))/24>0,HLOOKUP((AB$27*24-RIGHT($C$6,2))/24,'Altura long.'!$C$2:$AX$367,(VLOOKUP($A36,'Datos diarios'!$A$2:$B$366,2)+1),1),HLOOKUP((AB$27*24-RIGHT($C$6,2))/24+1,'Altura long.'!$C$2:$AX$367,(VLOOKUP($A36,'Datos diarios'!$A$2:$B$366,2)+0),1)) -> 10.09379294 | AC36: =IF((AC$27*24-RIGHT($C$6,2))/24>0,HLOOKUP((AC$27*24-RIGHT($C$6,2))/24,'Altura long.'!$C$2:$AX$367,(VLOOKUP($A36,'Datos diarios'!$A$2:$B$366,2)+1),1),HLOOKUP((AC$27*24-RIGHT($C$6,2))/24+1,'Altura long.'!$C$2:$AX$367,(VLOOKUP($A36,'Datos diarios'!$A$2:$B$366,2)+0),1)) -> -1.064047415 | AD36: =IF((AD$27*24-RIGHT($C$6,2))/24>0,HLOOKUP((AD$27*24-RIGHT($C$6,2))/24,'Altura long.'!$C$2:$AX$367,(VLOOKUP($A36,'Datos diarios'!$A$2:$B$366,2)+1),1),HLOOKUP((AD$27*24-RIGHT($C$6,2))/24+1,'Altura long.'!$C$2:$AX$367,(VLOOKUP($A36,'Datos diarios'!$A$2:$B$366,2)+0),1)) -> -11.66056509 | AE36: =IF((AE$27*24-RIGHT($C$6,2))/24>0,HLOOKUP((AE$27*24-RIGHT($C$6,2))/24,'Altura long.'!$C$2:$AX$367,(VLOOKUP($A36,'Datos diarios'!$A$2:$B$366,2)+1),1),HLOOKUP((AE$27*24-RIGHT($C$6,2))/24+1,'Altura long.'!$C$2:$AX$367,(VLOOKUP($A36,'Datos diarios'!$A$2:$B$366,2)+0),1)) -> -21.27322073
F37: Azimut (°) | G37: =INDEX('Azimut long.'!$AY$4:$AY$368,VLOOKUP($A36,'Datos diarios'!$A$2:$B$366,2)) -> 173.2426961 | H37: =IF((H$27*24-RIGHT($C$6,2))/24>0,HLOOKUP((H$27*24-RIGHT($C$6,2))/24,'Azimut long.'!$C$2:$AX$367,(VLOOKUP($A36,'Datos diarios'!$A$2:$B$366,2)+1),1),HLOOKUP((H$27*24-RIGHT($C$6,2))/24+1,'Azimut long.'!$C$2:$AX$367,(VLOOKUP($A36,'Datos diarios'!$A$2:$B$366,2)+0),1)) -> 314.5328545 | I37: =IF((I$27*24-RIGHT($C$6,2))/24>0,HLOOKUP((I$27*24-RIGHT($C$6,2))/24,'Azimut long.'!$C$2:$AX$367,(VLOOKUP($A36,'Datos diarios'!$A$2:$B$366,2)+1),1),HLOOKUP((I$27*24-RIGHT($C$6,2))/24+1,'Azimut long.'!$C$2:$AX$367,(VLOOKUP($A36,'Datos diarios'!$A$2:$B$366,2)+0),1)) -> 337.7061297 | J37: =IF((J$27*24-RIGHT($C$6,2))/24>0,HLOOKUP((J$27*24-RIGHT($C$6,2))/24,'Azimut long.'!$C$2:$AX$367,(VLOOKUP($A36,'Datos diarios'!$A$2:$B$366,2)+1),1),HLOOKUP((J$27*24-RIGHT($C$6,2))/24+1,'Azimut long.'!$C$2:$AX$367,(VLOOKUP($A36,'Datos diarios'!$A$2:$B$366,2)+0),1)) -> 355.7471475 | K37: =IF((K$27*24-RIGHT($C$6,2))/24>0,HLOOKUP((K$27*24-RIGHT($C$6,2))/24,'Azimut long.'!$C$2:$AX$367,(VLOOKUP($A36,'Datos diarios'!$A$2:$B$366,2)+1),1),HLOOKUP((K$27*24-RIGHT($C$6,2))/24+1,'Azimut long.'!$C$2:$AX$367,(VLOOKUP($A36,'Datos diarios'!$A$2:$B$366,2)+0),1)) -> 14.22128195 | L37: =IF((L$27*24-RIGHT($C$6,2))/24>0,HLOOKUP((L$27*24-RIGHT($C$6,2))/24,'Azimut long.'!$C$2:$AX$367,(VLOOKUP($A36,'Datos diarios'!$A$2:$B$366,2)+1),1),HLOOKUP((L$27*24-RIGHT($C$6,2))/24+1,'Azimut long.'!$C$2:$AX$367,(VLOOKUP($A36,'Datos diarios'!$A$2:$B$366,2)+0),1)) -> 31.29104916 | M37: =IF((M$27*24-RIGHT($C$6,2))/24>0,HLOOKUP((M$27*24-RIGHT($C$6,2))/24,'Azimut long.'!$C$2:$AX$367,(VLOOKUP($A36,'Datos diarios'!$A$2:$B$366,2)+1),1),HLOOKUP((M$27*24-RIGHT($C$6,2))/24+1,'Azimut long.'!$C$2:$AX$367,(VLOOKUP($A36,'Datos diarios'!$A$2:$B$366,2)+0),1)) -> 38.95441855 | N37: =IF((N$27*24-RIGHT($C$6,2))/24>0,HLOOKUP((N$27*24-RIGHT($C$6,2))/24,'Azimut long.'!$C$2:$AX$367,(VLOOKUP($A36,'Datos diarios'!$A$2:$B$366,2)+1),1),HLOOKUP((N$27*24-RIGHT($C$6,2))/24+1,'Azimut long.'!$C$2:$AX$367,(VLOOKUP($A36,'Datos diarios'!$A$2:$B$366,2)+0),1)) -> 52.47565554 | O37: =IF((O$27*24-RIGHT($C$6,2))/24>0,HLOOKUP((O$27*24-RIGHT($C$6,2))/24,'Azimut long.'!$C$2:$AX$367,(VLOOKUP($A36,'Datos diarios'!$A$2:$B$366,2)+1),1),HLOOKUP((O$27*24-RIGHT($C$6,2))/24+1,'Azimut long.'!$C$2:$AX$367,(VLOOKUP($A36,'Datos diarios'!$A$2:$B$366,2)+0),1)) -> 69.21981373 | P37: =IF((P$27*24-RIGHT($C$6,2))/24>0,HLOOKUP((P$27*24-RIGHT($C$6,2))/24,'Azimut long.'!$C$2:$AX$367,(VLOOKUP($A36,'Datos diarios'!$A$2:$B$366,2)+1),1),HLOOKUP((P$27*24-RIGHT($C$6,2))/24+1,'Azimut long.'!$C$2:$AX$367,(VLOOKUP($A36,'Datos diarios'!$A$2:$B$366,2)+0),1)) -> 79.02401799 | Q37: =IF((Q$27*24-RIGHT($C$6,2))/24>0,HLOOKUP((Q$27*24-RIGHT($C$6,2))/24,'Azimut long.'!$C$2:$AX$367,(VLOOKUP($A36,'Datos diarios'!$A$2:$B$366,2)+1),1),HLOOKUP((Q$27*24-RIGHT($C$6,2))/24+1,'Azimut long.'!$C$2:$AX$367,(VLOOKUP($A36,'Datos diarios'!$A$2:$B$366,2)+0),1)) -> 83.78185168 | R37: =IF((R$27*24-RIGHT($C$6,2))/24>0,HLOOKUP((R$27*24-RIGHT($C$6,2))/24,'Azimut long.'!$C$2:$AX$367,(VLOOKUP($A36,'Datos diarios'!$A$2:$B$366,2)+1),1),HLOOKUP((R$27*24-RIGHT($C$6,2))/24+1,'Azimut long.'!$C$2:$AX$367,(VLOOKUP($A36,'Datos diarios'!$A$2:$B$366,2)+0),1)) -> 98.63016515 | S37: =IF((S$27*24-RIGHT($C$6,2))/24>0,HLOOKUP((S$27*24-RIGHT($C$6,2))/24,'Azimut long.'!$C$2:$AX$367,(VLOOKUP($A36,'Datos diarios'!$A$2:$B$366,2)+1),1),HLOOKUP((S$27*24-RIGHT($C$6,2))/24+1,'Azimut long.'!$C$2:$AX$367,(VLOOKUP($A36,'Datos diarios'!$A$2:$B$366,2)+0),1)) -> 110.2827989 | T37: =IF((T$27*24-RIGHT($C$6,2))/24>0,HLOOKUP((T$27*24-RIGHT($C$6,2))/24,'Azimut long.'!$C$2:$AX$367,(VLOOKUP($A36,'Datos diarios'!$A$2:$B$366,2)+1),1),HLOOKUP((T$27*24-RIGHT($C$6,2))/24+1,'Azimut long.'!$C$2:$AX$367,(VLOOKUP($A36,'Datos diarios'!$A$2:$B$366,2)+0),1)) -> 117.1900058 | U37: =IF((U$27*24-RIGHT($C$6,2))/24>0,HLOOKUP((U$27*24-RIGHT($C$6,2))/24,'Azimut long.'!$C$2:$AX$367,(VLOOKUP($A36,'Datos diarios'!$A$2:$B$366,2)+1),1),HLOOKUP((U$27*24-RIGHT($C$6,2))/24+1,'Azimut long.'!$C$2:$AX$367,(VLOOKUP($A36,'Datos diarios'!$A$2:$B$366,2)+0),1)) -> 145.7415291 | V37: =IF((V$27*24-RIGHT($C$6,2))/24>0,HLOOKUP((V$27*24-RIGHT($C$6,2))/24,'Azimut long.'!$C$2:$AX$367,(VLOOKUP($A36,'Datos diarios'!$A$2:$B$366,2)+1),1),HLOOKUP((V$27*24-RIGHT($C$6,2))/24+1,'Azimut long.'!$C$2:$AX$367,(VLOOKUP($A36,'Datos diarios'!$A$2:$B$366,2)+0),1)) -> 173.1964119 | W37: =IF((W$27*24-RIGHT($C$6,2))/24>0,HLOOKUP((W$27*24-RIGHT($C$6,2))/24,'Azimut long.'!$C$2:$AX$367,(VLOOKUP($A36,'Datos diarios'!$A$2:$B$366,2)+1),1),HLOOKUP((W$27*24-RIGHT($C$6,2))/24+1,'Azimut long.'!$C$2:$AX$367,(VLOOKUP($A36,'Datos diarios'!$A$2:$B$366,2)+0),1)) -> 188.2108423 | X37: =IF((X$27*24-RIGHT($C$6,2))/24>0,HLOOKUP((X$27*24-RIGHT($C$6,2))/24,'Azimut long.'!$C$2:$AX$367,(VLOOKUP($A36,'Datos diarios'!$A$2:$B$366,2)+1),1),HLOOKUP((X$27*24-RIGHT($C$6,2))/24+1,'Azimut long.'!$C$2:$AX$367,(VLOOKUP($A36,'Datos diarios'!$A$2:$B$366,2)+0),1)) -> 226.398535 | Y37: =IF((Y$27*24-RIGHT($C$6,2))/24>0,HLOOKUP((Y$27*24-RIGHT($C$6,2))/24,'Azimut long.'!$C$2:$AX$367,(VLOOKUP($A36,'Datos diarios'!$A$2:$B$366,2)+1),1),HLOOKUP((Y$27*24-RIGHT($C$6,2))/24+1,'Azimut long.'!$C$2:$AX$367,(VLOOKUP($A36,'Datos diarios'!$A$2:$B$366,2)+0),1)) -> 243.5703563 | Z37: =IF((Z$27*24-RIGHT($C$6,2))/24>0,HLOOKUP((Z$27*24-RIGHT($C$6,2))/24,'Azimut long.'!$C$2:$AX$367,(VLOOKUP($A36,'Datos diarios'!$A$2:$B$366,2)+1),1),HLOOKUP((Z$27*24-RIGHT($C$6,2))/24+1,'Azimut long.'!$C$2:$AX$367,(VLOOKUP($A36,'Datos diarios'!$A$2:$B$366,2)+0),1)) -> 256.4615843 | AA37: =IF((AA$27*24-RIGHT($C$6,2))/24>0,HLOOKUP((AA$27*24-RIGHT($C$6,2))/24,'Azimut long.'!$C$2:$AX$367,(VLOOKUP($A36,'Datos diarios'!$A$2:$B$366,2)+1),1),HLOOKUP((AA$27*24-RIGHT($C$6,2))/24+1,'Azimut long.'!$C$2:$AX$367,(VLOOKUP($A36,'Datos diarios'!$A$2:$B$366,2)+0),1)) -> 267.1047297 | AB37: =IF((AB$27*24-RIGHT($C$6,2))/24>0,HLOOKUP((AB$27*24-RIGHT($C$6,2))/24,'Azimut long.'!$C$2:$AX$367,(VLOOKUP($A36,'Datos diarios'!$A$2:$B$366,2)+1),1),HLOOKUP((AB$27*24-RIGHT($C$6,2))/24+1,'Azimut long.'!$C$2:$AX$367,(VLOOKUP($A36,'Datos diarios'!$A$2:$B$366,2)+0),1)) -> 276.790854 | AC37: =IF((AC$27*24-RIGHT($C$6,2))/24>0,HLOOKUP((AC$27*24-RIGHT($C$6,2))/24,'Azimut long.'!$C$2:$AX$367,(VLOOKUP($A36,'Datos diarios'!$A$2:$B$366,2)+1),1),HLOOKUP((AC$27*24-RIGHT($C$6,2))/24+1,'Azimut long.'!$C$2:$AX$367,(VLOOKUP($A36,'Datos diarios'!$A$2:$B$366,2)+0),1)) -> 286.4015833 | AD37: =IF((AD$27*24-RIGHT($C$6,2))/24>0,HLOOKUP((AD$27*24-RIGHT($C$6,2))/24,'Azimut long.'!$C$2:$AX$367,(VLOOKUP($A36,'Datos diarios'!$A$2:$B$366,2)+1),1),HLOOKUP((AD$27*24-RIGHT($C$6,2))/24+1,'Azimut long.'!$C$2:$AX$367,(VLOOKUP($A36,'Datos diarios'!$A$2:$B$366,2)+0),1)) -> 296.6618939 | AE37: =IF((AE$27*24-RIGHT($C$6,2))/24>0,HLOOKUP((AE$27*24-RIGHT($C$6,2))/24,'Azimut long.'!$C$2:$AX$367,(VLOOKUP($A36,'Datos diarios'!$A$2:$B$366,2)+1),1),HLOOKUP((AE$27*24-RIGHT($C$6,2))/24+1,'Azimut long.'!$C$2:$AX$367,(VLOOKUP($A36,'Datos diarios'!$A$2:$B$366,2)+0),1)) -> 308.2699308
A38: 2021-05-21 | B38: =(VLOOKUP(VLOOKUP($A38,'Datos diarios'!$A$2:$B$366,2),'Datos diarios'!$B$2:$K$366,8,0)*24+RIGHT($C$6,2))/24 -> 06:58:46.249 | C38: =(VLOOKUP(VLOOKUP($A38,'Datos diarios'!$A$2:$B$366,2),'Datos diarios'!$B$2:$K$366,10,0)*24+RIGHT($C$6,2))/24 -> 21:23:23.223 | D38: =(VLOOKUP(VLOOKUP($A38,'Datos diarios'!$A$2:$B$366,2),'Datos diarios'!$B$2:$K$366,9,0)*24+RIGHT($C$6,2))/24 -> 14:11:04.736 | E38: =ROUND(VLOOKUP(VLOOKUP($A38,'Datos diarios'!$A$2:$B$366,2),'Datos diarios'!$B$2:$K$366,3,0),2)&"°" -> 69,6° | F38: Altura (°) | G38: =INDEX('Altura long.'!$AY$3:$AY$367,VLOOKUP($A38,'Datos diarios'!$A$2:$B$366,2)) -> 69.23932857 | H38: =IF((H$27*24-RIGHT($C$6,2))/24>0,HLOOKUP((H$27*24-RIGHT($C$6,2))/24,'Altura long.'!$C$2:$AX$367,(VLOOKUP($A38,'Datos diarios'!$A$2:$B$366,2)+1),1),HLOOKUP((H$27*24-RIGHT($C$6,2))/24+1,'Altura long.'!$C$2:$AX$367,(VLOOKUP($A38,'Datos diarios'!$A$2:$B$366,2)+0),1)) -> -18.95362934 | I38: =IF((I$27*24-RIGHT($C$6,2))/24>0,HLOOKUP((I$27*24-RIGHT($C$6,2))/24,'Altura long.'!$C$2:$AX$367,(VLOOKUP($A38,'Datos diarios'!$A$2:$B$366,2)+1),1),HLOOKUP((I$27*24-RIGHT($C$6,2))/24+1,'Altura long.'!$C$2:$AX$367,(VLOOKUP($A38,'Datos diarios'!$A$2:$B$366,2)+0),1)) -> -27.36796309 | J38: =IF((J$27*24-RIGHT($C$6,2))/24>0,HLOOKUP((J$27*24-RIGHT($C$6,2))/24,'Altura long.'!$C$2:$AX$367,(VLOOKUP($A38,'Datos diarios'!$A$2:$B$366,2)+1),1),HLOOKUP((J$27*24-RIGHT($C$6,2))/24+1,'Altura long.'!$C$2:$AX$367,(VLOOKUP($A38,'Datos diarios'!$A$2:$B$366,2)+0),1)) -> -29.8172512 | K38: =IF((K$27*24-RIGHT($C$6,2))/24>0,HLOOKUP((K$27*24-RIGHT($C$6,2))/24,'Altura long.'!$C$2:$AX$367,(VLOOKUP($A38,'Datos diarios'!$A$2:$B$366,2)+1),1),HLOOKUP((K$27*24-RIGHT($C$6,2))/24+1,'Altura long.'!$C$2:$AX$367,(VLOOKUP($A38,'Datos diarios'!$A$2:$B$366,2)+0),1)) -> -28.50378566 | L38: =IF((L$27*24-RIGHT($C$6,2))/24>0,HLOOKUP((L$27*24-RIGHT($C$6,2))/24,'Altura long.'!$C$2:$AX$367,(VLOOKUP($A38,'Datos diarios'!$A$2:$B$366,2)+1),1),HLOOKUP((L$27*24-RIGHT($C$6,2))/24+1,'Altura long.'!$C$2:$AX$367,(VLOOKUP($A38,'Datos diarios'!$A$2:$B$366,2)+0),1)) -> -24.46821888 | M38: =IF((M$27*24-RIGHT($C$6,2))/24>0,HLOOKUP((M$27*24-RIGHT($C$6,2))/24,'Altura long.'!$C$2:$AX$367,(VLOOKUP($A38,'Datos diarios'!$A$2:$B$366,2)+1),1),HLOOKUP((M$27*24-RIGHT($C$6,2))/24+1,'Altura long.'!$C$2:$AX$367,(VLOOKUP($A38,'Datos diarios'!$A$2:$B$366,2)+0),1)) -> -21.47255548 | N38: =IF((N$27*24-RIGHT($C$6,2))/24>0,HLOOKUP((N$27*24-RIGHT($C$6,2))/24,'Altura long.'!$C$2:$AX$367,(VLOOKUP($A38,'Datos diarios'!$A$2:$B$366,2)+1),1),HLOOKUP((N$27*24-RIGHT($C$6,2))/24+1,'Altura long.'!$C$2:$AX$367,(VLOOKUP($A38,'Datos diarios'!$A$2:$B$366,2)+0),1)) -> -13.92274836 | O38: =IF((O$27*24-RIGHT($C$6,2))/24>0,HLOOKUP((O$27*24-RIGHT($C$6,2))/24,'Altura long.'!$C$2:$AX$367,(VLOOKUP($A38,'Datos diarios'!$A$2:$B$366,2)+1),1),HLOOKUP((O$27*24-RIGHT($C$6,2))/24+1,'Altura long.'!$C$2:$AX$367,(VLOOKUP($A38,'Datos diarios'!$A$2:$B$366,2)+0),1)) -> 0.1946702303 | P38: =IF((P$27*24-RIGHT($C$6,2))/24>0,HLOOKUP((P$27*24-RIGHT($C$6,2))/24,'Altura long.'!$C$2:$AX$367,(VLOOKUP($A38,'Datos diarios'!$A$2:$B$366,2)+1),1),HLOOKUP((P$27*24-RIGHT($C$6,2))/24+1,'Altura long.'!$C$2:$AX$367,(VLOOKUP($A38,'Datos diarios'!$A$2:$B$366,2)+0),1)) -> 10.78568833 | Q38: =IF((Q$27*24-RIGHT($C$6,2))/24>0,HLOOKUP((Q$27*24-RIGHT($C$6,2))/24,'Altura long.'!$C$2:$AX$367,(VLOOKUP($A38,'Datos diarios'!$A$2:$B$366,2)+1),1),HLOOKUP((Q$27*24-RIGHT($C$6,2))/24+1,'Altura long.'!$C$2:$AX$367,(VLOOKUP($A38,'Datos diarios'!$A$2:$B$366,2)+0),1)) -> 16.30141207 | R38: =IF((R$27*24-RIGHT($C$6,2))/24>0,HLOOKUP((R$27*24-RIGHT($C$6,2))/24,'Altura long.'!$C$2:$AX$367,(VLOOKUP($A38,'Datos diarios'!$A$2:$B$366,2)+1),1),HLOOKUP((R$27*24-RIGHT($C$6,2))/24+1,'Altura long.'!$C$2:$AX$367,(VLOOKUP($A38,'Datos diarios'!$A$2:$B$366,2)+0),1)) -> 33.2976396 | S38: =IF((S$27*24-RIGHT($C$6,2))/24>0,HLOOKUP((S$27*24-RIGHT($C$6,2))/24,'Altura long.'!$C$2:$AX$367,(VLOOKUP($A38,'Datos diarios'!$A$2:$B$366,2)+1),1),HLOOKUP((S$27*24-RIGHT($C$6,2))/24+1,'Altura long.'!$C$2:$AX$367,(VLOOKUP($A38,'Datos diarios'!$A$2:$B$366,2)+0),1)) -> 44.61910567 | T38: =IF((T$27*24-RIGHT($C$6,2))/24>0,HLOOKUP((T$27*24-RIGHT($C$6,2))/24,'Altura long.'!$C$2:$AX$367,(VLOOKUP($A38,'Datos diarios'!$A$2:$B$366,2)+1),1),HLOOKUP((T$27*24-RIGHT($C$6,2))/24+1,'Altura long.'!$C$2:$AX$367,(VLOOKUP($A38,'Datos diarios'!$A$2:$B$366,2)+0),1)) -> 50.11608874 | U38: =IF((U$27*24-RIGHT($C$6,2))/24>0,HLOOKUP((U$27*24-RIGHT($C$6,2))/24,'Altura long.'!$C$2:$AX$367,(VLOOKUP($A38,'Datos diarios'!$A$2:$B$366,2)+1),1),HLOOKUP((U$27*24-RIGHT($C$6,2))/24+1,'Altura long.'!$C$2:$AX$367,(VLOOKUP($A38,'Datos diarios'!$A$2:$B$366,2)+0),1)) -> 64.45603786 | V38: =IF((V$27*24-RIGHT($C$6,2))/24>0,HLOOKUP((V$27*24-RIGHT($C$6,2))/24,'Altura long.'!$C$2:$AX$367,(VLOOKUP($A38,'Datos diarios'!$A$2:$B$366,2)+1),1),HLOOKUP((V$27*24-RIGHT($C$6,2))/24+1,'Altura long.'!$C$2:$AX$367,(VLOOKUP($A38,'Datos diarios'!$A$2:$B$366,2)+0),1)) -> 69.23932857 | W38: =IF((W$27*24-RIGHT($C$6,2))/24>0,HLOOKUP((W$27*24-RIGHT($C$6,2))/24,'Altura long.'!$C$2:$AX$367,(VLOOKUP($A38,'Datos diarios'!$A$2:$B$366,2)+1),1),HLOOKUP((W$27*24-RIGHT($C$6,2))/24+1,'Altura long.'!$C$2:$AX$367,(VLOOKUP($A38,'Datos diarios'!$A$2:$B$366,2)+0),1)) -> 68.98642222 | X38: =IF((X$27*24-RIGHT($C$6,2))/24>0,HLOOKUP((X$27*24-RIGHT($C$6,2))/24,'Altura long.'!$C$2:$AX$367,(VLOOKUP($A38,'Datos diarios'!$A$2:$B$366,2)+1),1),HLOOKUP((X$27*24-RIGHT($C$6,2))/24+1,'Altura long.'!$C$2:$AX$367,(VLOOKUP($A38,'Datos diarios'!$A$2:$B$366,2)+0),1)) -> 59.04094887 | Y38: =IF((Y$27*24-RIGHT($C$6,2))/24>0,HLOOKUP((Y$27*24-RIGHT($C$6,2))/24,'Altura long.'!$C$2:$AX$367,(VLOOKUP($A38,'Datos diarios'!$A$2:$B$366,2)+1),1),HLOOKUP((Y$27*24-RIGHT($C$6,2))/24+1,'Altura long.'!$C$2:$AX$367,(VLOOKUP($A38,'Datos diarios'!$A$2:$B$366,2)+0),1)) -> 48.72546874 | Z38: =IF((Z$27*24-RIGHT($C$6,2))/24>0,HLOOKUP((Z$27*24-RIGHT($C$6,2))/24,'Altura long.'!$C$2:$AX$367,(VLOOKUP($A38,'Datos diarios'!$A$2:$B$366,2)+1),1),HLOOKUP((Z$27*24-RIGHT($C$6,2))/24+1,'Altura long.'!$C$2:$AX$367,(VLOOKUP($A38,'Datos diarios'!$A$2:$B$366,2)+0),1)) -> 37.54383817 | AA38: =IF((AA$27*24-RIGHT($C$6,2))/24>0,HLOOKUP((AA$27*24-RIGHT($C$6,2))/24,'Altura long.'!$C$2:$AX$367,(VLOOKUP($A38,'Datos diarios'!$A$2:$B$366,2)+1),1),HLOOKUP((AA$27*24-RIGHT($C$6,2))/24+1,'Altura long.'!$C$2:$AX$367,(VLOOKUP($A38,'Datos diarios'!$A$2:$B$366,2)+0),1)) -> 26.15292485 | AB38: =IF((AB$27*24-RIGHT($C$6,2))/24>0,HLOOKUP((AB$27*24-RIGHT($C$6,2))/24,'Altura long.'!$C$2:$AX$367,(VLOOKUP($A38,'Datos diarios'!$A$2:$B$366,2)+1),1),HLOOKUP((AB$27*24-RIGHT($C$6,2))/24+1,'Altura long.'!$C$2:$AX$367,(VLOOKUP($A38,'Datos diarios'!$A$2:$B$366,2)+0),1)) -> 14.91039123 | AC38: =IF((AC$27*24-RIGHT($C$6,2))/24>0,HLOOKUP((AC$27*24-RIGHT($C$6,2))/24,'Altura long.'!$C$2:$AX$367,(VLOOKUP($A38,'Datos diarios'!$A$2:$B$366,2)+1),1),HLOOKUP((AC$27*24-RIGHT($C$6,2))/24+1,'Altura long.'!$C$2:$AX$367,(VLOOKUP($A38,'Datos diarios'!$A$2:$B$366,2)+0),1)) -> 4.101794792 | AD38: =IF((AD$27*24-RIGHT($C$6,2))/24>0,HLOOKUP((AD$27*24-RIGHT($C$6,2))/24,'Altura long.'!$C$2:$AX$367,(VLOOKUP($A38,'Datos diarios'!$A$2:$B$366,2)+1),1),HLOOKUP((AD$27*24-RIGHT($C$6,2))/24+1,'Altura long.'!$C$2:$AX$367,(VLOOKUP($A38,'Datos diarios'!$A$2:$B$366,2)+0),1)) -> -5.962529689 | AE38: =IF((AE$27*24-RIGHT($C$6,2))/24>0,HLOOKUP((AE$27*24-RIGHT($C$6,2))/24,'Altura long.'!$C$2:$AX$367,(VLOOKUP($A38,'Datos diarios'!$A$2:$B$366,2)+1),1),HLOOKUP((AE$27*24-RIGHT($C$6,2))/24+1,'Altura long.'!$C$2:$AX$367,(VLOOKUP($A38,'Datos diarios'!$A$2:$B$366,2)+0),1)) -> -14.8882862
F39: Azimut (°) | G39: =INDEX('Azimut long.'!$AY$4:$AY$368,VLOOKUP($A38,'Datos diarios'!$A$2:$B$366,2)) -> 172.6418681 | H39: =IF((H$27*24-RIGHT($C$6,2))/24>0,HLOOKUP((H$27*24-RIGHT($C$6,2))/24,'Azimut long.'!$C$2:$AX$367,(VLOOKUP($A38,'Datos diarios'!$A$2:$B$366,2)+1),1),HLOOKUP((H$27*24-RIGHT($C$6,2))/24+1,'Azimut long.'!$C$2:$AX$367,(VLOOKUP($A38,'Datos diarios'!$A$2:$B$366,2)+0),1)) -> 320.0543495 | I39: =IF((I$27*24-RIGHT($C$6,2))/24>0,HLOOKUP((I$27*24-RIGHT($C$6,2))/24,'Azimut long.'!$C$2:$AX$367,(VLOOKUP($A38,'Datos diarios'!$A$2:$B$366,2)+1),1),HLOOKUP((I$27*24-RIGHT($C$6,2))/24+1,'Azimut long.'!$C$2:$AX$367,(VLOOKUP($A38,'Datos diarios'!$A$2:$B$366,2)+0),1)) -> 341.1830744 | J39: =IF((J$27*24-RIGHT($C$6,2))/24>0,HLOOKUP((J$27*24-RIGHT($C$6,2))/24,'Azimut long.'!$C$2:$AX$367,(VLOOKUP($A38,'Datos diarios'!$A$2:$B$366,2)+1),1),HLOOKUP((J$27*24-RIGHT($C$6,2))/24+1,'Azimut long.'!$C$2:$AX$367,(VLOOKUP($A38,'Datos diarios'!$A$2:$B$366,2)+0),1)) -> 357.0216702 | K39: =IF((K$27*24-RIGHT($C$6,2))/24>0,HLOOKUP((K$27*24-RIGHT($C$6,2))/24,'Azimut long.'!$C$2:$AX$367,(VLOOKUP($A38,'Datos diarios'!$A$2:$B$366,2)+1),1),HLOOKUP((K$27*24-RIGHT($C$6,2))/24+1,'Azimut long.'!$C$2:$AX$367,(VLOOKUP($A38,'Datos diarios'!$A$2:$B$366,2)+0),1)) -> 13.0886264 | L39: =IF((L$27*24-RIGHT($C$6,2))/24>0,HLOOKUP((L$27*24-RIGHT($C$6,2))/24,'Azimut long.'!$C$2:$AX$367,(VLOOKUP($A38,'Datos diarios'!$A$2:$B$366,2)+1),1),HLOOKUP((L$27*24-RIGHT($C$6,2))/24+1,'Azimut long.'!$C$2:$AX$367,(VLOOKUP($A38,'Datos diarios'!$A$2:$B$366,2)+0),1)) -> 28.17704927 | M39: =IF((M$27*24-RIGHT($C$6,2))/24>0,HLOOKUP((M$27*24-RIGHT($C$6,2))/24,'Azimut long.'!$C$2:$AX$367,(VLOOKUP($A38,'Datos diarios'!$A$2:$B$366,2)+1),1),HLOOKUP((M$27*24-RIGHT($C$6,2))/24+1,'Azimut long.'!$C$2:$AX$367,(VLOOKUP($A38,'Datos diarios'!$A$2:$B$366,2)+0),1)) -> 35.10598478 | N39: =IF((N$27*24-RIGHT($C$6,2))/24>0,HLOOKUP((N$27*24-RIGHT($C$6,2))/24,'Azimut long.'!$C$2:$AX$367,(VLOOKUP($A38,'Datos diarios'!$A$2:$B$366,2)+1),1),HLOOKUP((N$27*24-RIGHT($C$6,2))/24+1,'Azimut long.'!$C$2:$AX$367,(VLOOKUP($A38,'Datos diarios'!$A$2:$B$366,2)+0),1)) -> 47.61196234 | O39: =IF((O$27*24-RIGHT($C$6,2))/24>0,HLOOKUP((O$27*24-RIGHT($C$6,2))/24,'Azimut long.'!$C$2:$AX$367,(VLOOKUP($A38,'Datos diarios'!$A$2:$B$366,2)+1),1),HLOOKUP((O$27*24-RIGHT($C$6,2))/24+1,'Azimut long.'!$C$2:$AX$367,(VLOOKUP($A38,'Datos diarios'!$A$2:$B$366,2)+0),1)) -> 63.4973061 | P39: =IF((P$27*24-RIGHT($C$6,2))/24>0,HLOOKUP((P$27*24-RIGHT($C$6,2))/24,'Azimut long.'!$C$2:$AX$367,(VLOOKUP($A38,'Datos diarios'!$A$2:$B$366,2)+1),1),HLOOKUP((P$27*24-RIGHT($C$6,2))/24+1,'Azimut long.'!$C$2:$AX$367,(VLOOKUP($A38,'Datos diarios'!$A$2:$B$366,2)+0),1)) -> 72.85717233 | Q39: =IF((Q$27*24-RIGHT($C$6,2))/24>0,HLOOKUP((Q$27*24-RIGHT($C$6,2))/24,'Azimut long.'!$C$2:$AX$367,(VLOOKUP($A38,'Datos diarios'!$A$2:$B$366,2)+1),1),HLOOKUP((Q$27*24-RIGHT($C$6,2))/24+1,'Azimut long.'!$C$2:$AX$367,(VLOOKUP($A38,'Datos diarios'!$A$2:$B$366,2)+0),1)) -> 77.37631324 | R39: =IF((R$27*24-RIGHT($C$6,2))/24>0,HLOOKUP((R$27*24-RIGHT($C$6,2))/24,'Azimut long.'!$C$2:$AX$367,(VLOOKUP($A38,'Datos diarios'!$A$2:$B$366,2)+1),1),HLOOKUP((R$27*24-RIGHT($C$6,2))/24+1,'Azimut long.'!$C$2:$AX$367,(VLOOKUP($A38,'Datos diarios'!$A$2:$B$366,2)+0),1)) -> 91.31466435 | S39: =IF((S$27*24-RIGHT($C$6,2))/24>0,HLOOKUP((S$27*24-RIGHT($C$6,2))/24,'Azimut long.'!$C$2:$AX$367,(VLOOKUP($A38,'Datos diarios'!$A$2:$B$366,2)+1),1),HLOOKUP((S$27*24-RIGHT($C$6,2))/24+1,'Azimut long.'!$C$2:$AX$367,(VLOOKUP($A38,'Datos diarios'!$A$2:$B$366,2)+0),1)) -> 102.1941146 | T39: =IF((T$27*24-RIGHT($C$6,2))/24>0,HLOOKUP((T$27*24-RIGHT($C$6,2))/24,'Azimut long.'!$C$2:$AX$367,(VLOOKUP($A38,'Datos diarios'!$A$2:$B$366,2)+1),1),HLOOKUP((T$27*24-RIGHT($C$6,2))/24+1,'Azimut long.'!$C$2:$AX$367,(VLOOKUP($A38,'Datos diarios'!$A$2:$B$366,2)+0),1)) -> 108.7456187 | U39: =IF((U$27*24-RIGHT($C$6,2))/24>0,HLOOKUP((U$27*24-RIGHT($C$6,2))/24,'Azimut long.'!$C$2:$AX$367,(VLOOKUP($A38,'Datos diarios'!$A$2:$B$366,2)+1),1),HLOOKUP((U$27*24-RIGHT($C$6,2))/24+1,'Azimut long.'!$C$2:$AX$367,(VLOOKUP($A38,'Datos diarios'!$A$2:$B$366,2)+0),1)) -> 138.496764 | V39: =IF((V$27*24-RIGHT($C$6,2))/24>0,HLOOKUP((V$27*24-RIGHT($C$6,2))/24,'Azimut long.'!$C$2:$AX$367,(VLOOKUP($A38,'Datos diarios'!$A$2:$B$366,2)+1),1),HLOOKUP((V$27*24-RIGHT($C$6,2))/24+1,'Azimut long.'!$C$2:$AX$367,(VLOOKUP($A38,'Datos diarios'!$A$2:$B$366,2)+0),1)) -> 172.7415697 | W39: =IF((W$27*24-RIGHT($C$6,2))/24>0,HLOOKUP((W$27*24-RIGHT($C$6,2))/24,'Azimut long.'!$C$2:$AX$367,(VLOOKUP($A38,'Datos diarios'!$A$2:$B$366,2)+1),1),HLOOKUP((W$27*24-RIGHT($C$6,2))/24+1,'Azimut long.'!$C$2:$AX$367,(VLOOKUP($A38,'Datos diarios'!$A$2:$B$366,2)+0),1)) -> 192.4003332 | X39: =IF((X$27*24-RIGHT($C$6,2))/24>0,HLOOKUP((X$27*24-RIGHT($C$6,2))/24,'Azimut long.'!$C$2:$AX$367,(VLOOKUP($A38,'Datos diarios'!$A$2:$B$366,2)+1),1),HLOOKUP((X$27*24-RIGHT($C$6,2))/24+1,'Azimut long.'!$C$2:$AX$367,(VLOOKUP($A38,'Datos diarios'!$A$2:$B$366,2)+0),1)) -> 236.5622836 | Y39: =IF((Y$27*24-RIGHT($C$6,2))/24>0,HLOOKUP((Y$27*24-RIGHT($C$6,2))/24,'Azimut long.'!$C$2:$AX$367,(VLOOKUP($A38,'Datos diarios'!$A$2:$B$366,2)+1),1),HLOOKUP((Y$27*24-RIGHT($C$6,2))/24+1,'Azimut long.'!$C$2:$AX$367,(VLOOKUP($A38,'Datos diarios'!$A$2:$B$366,2)+0),1)) -> 253.1162497 | Z39: =IF((Z$27*24-RIGHT($C$6,2))/24>0,HLOOKUP((Z$27*24-RIGHT($C$6,2))/24,'Azimut long.'!$C$2:$AX$367,(VLOOKUP($A38,'Datos diarios'!$A$2:$B$366,2)+1),1),HLOOKUP((Z$27*24-RIGHT($C$6,2))/24+1,'Azimut long.'!$C$2:$AX$367,(VLOOKUP($A38,'Datos diarios'!$A$2:$B$366,2)+0),1)) -> 264.9779518 | AA39: =IF((AA$27*24-RIGHT($C$6,2))/24>0,HLOOKUP((AA$27*24-RIGHT($C$6,2))/24,'Azimut long.'!$C$2:$AX$367,(VLOOKUP($A38,'Datos diarios'!$A$2:$B$366,2)+1),1),HLOOKUP((AA$27*24-RIGHT($C$6,2))/24+1,'Azimut long.'!$C$2:$AX$367,(VLOOKUP($A38,'Datos diarios'!$A$2:$B$366,2)+0),1)) -> 274.7900591 | AB39: =IF((AB$27*24-RIGHT($C$6,2))/24>0,HLOOKUP((AB$27*24-RIGHT($C$6,2))/24,'Azimut long.'!$C$2:$AX$367,(VLOOKUP($A38,'Datos diarios'!$A$2:$B$366,2)+1),1),HLOOKUP((AB$27*24-RIGHT($C$6,2))/24+1,'Azimut long.'!$C$2:$AX$367,(VLOOKUP($A38,'Datos diarios'!$A$2:$B$366,2)+0),1)) -> 283.8816406 | AC39: =IF((AC$27*24-RIGHT($C$6,2))/24>0,HLOOKUP((AC$27*24-RIGHT($C$6,2))/24,'Azimut long.'!$C$2:$AX$367,(VLOOKUP($A38,'Datos diarios'!$A$2:$B$366,2)+1),1),HLOOKUP((AC$27*24-RIGHT($C$6,2))/24+1,'Azimut long.'!$C$2:$AX$367,(VLOOKUP($A38,'Datos diarios'!$A$2:$B$366,2)+0),1)) -> 293.0572112 | AD39: =IF((AD$27*24-RIGHT($C$6,2))/24>0,HLOOKUP((AD$27*24-RIGHT($C$6,2))/24,'Azimut long.'!$C$2:$AX$367,(VLOOKUP($A38,'Datos diarios'!$A$2:$B$366,2)+1),1),HLOOKUP((AD$27*24-RIGHT($C$6,2))/24+1,'Azimut long.'!$C$2:$AX$367,(VLOOKUP($A38,'Datos diarios'!$A$2:$B$366,2)+0),1)) -> 302.9255286 | AE39: =IF((AE$27*24-RIGHT($C$6,2))/24>0,HLOOKUP((AE$27*24-RIGHT($C$6,2))/24,'Azimut long.'!$C$2:$AX$367,(VLOOKUP($A38,'Datos diarios'!$A$2:$B$366,2)+1),1),HLOOKUP((AE$27*24-RIGHT($C$6,2))/24+1,'Azimut long.'!$C$2:$AX$367,(VLOOKUP($A38,'Datos diarios'!$A$2:$B$366,2)+0),1)) -> 314.014836
A40: 2021-06-21 | B40: =(VLOOKUP(VLOOKUP($A40,'Datos diarios'!$A$2:$B$366,2),'Datos diarios'!$B$2:$K$366,8,0)*24+RIGHT($C$6,2))/24 -> 06:49:25.304 | C40: =(VLOOKUP(VLOOKUP($A40,'Datos diarios'!$A$2:$B$366,2),'Datos diarios'!$B$2:$K$366,10,0)*24+RIGHT($C$6,2))/24 -> 21:42:51.804 | D40: =(VLOOKUP(VLOOKUP($A40,'Datos diarios'!$A$2:$B$366,2),'Datos diarios'!$B$2:$K$366,9,0)*24+RIGHT($C$6,2))/24 -> 14:16:08.554 | E40: =ROUND(VLOOKUP(VLOOKUP($A40,'Datos diarios'!$A$2:$B$366,2),'Datos diarios'!$B$2:$K$366,3,0),2)&"°" -> 73,04° | F40: Altura (°) | G40: =INDEX('Altura long.'!$AY$3:$AY$367,VLOOKUP($A40,'Datos diarios'!$A$2:$B$366,2)) -> 72.42383237 | H40: =IF((H$27*24-RIGHT($C$6,2))/24>0,HLOOKUP((H$27*24-RIGHT($C$6,2))/24,'Altura long.'!$C$2:$AX$367,(VLOOKUP($A40,'Datos diarios'!$A$2:$B$366,2)+1),1),HLOOKUP((H$27*24-RIGHT($C$6,2))/24+1,'Altura long.'!$C$2:$AX$367,(VLOOKUP($A40,'Datos diarios'!$A$2:$B$366,2)+0),1)) -> -15.31711895 | I40: =IF((I$27*24-RIGHT($C$6,2))/24>0,HLOOKUP((I$27*24-RIGHT($C$6,2))/24,'Altura long.'!$C$2:$AX$367,(VLOOKUP($A40,'Datos diarios'!$A$2:$B$366,2)+1),1),HLOOKUP((I$27*24-RIGHT($C$6,2))/24+1,'Altura long.'!$C$2:$AX$367,(VLOOKUP($A40,'Datos diarios'!$A$2:$B$366,2)+0),1)) -> -23.64526521 | J40: =IF((J$27*24-RIGHT($C$6,2))/24>0,HLOOKUP((J$27*24-RIGHT($C$6,2))/24,'Altura long.'!$C$2:$AX$367,(VLOOKUP($A40,'Datos diarios'!$A$2:$B$366,2)+1),1),HLOOKUP((J$27*24-RIGHT($C$6,2))/24+1,'Altura long.'!$C$2:$AX$367,(VLOOKUP($A40,'Datos diarios'!$A$2:$B$366,2)+0),1)) -> -26.33917258 | K40: =IF((K$27*24-RIGHT($C$6,2))/24>0,HLOOKUP((K$27*24-RIGHT($C$6,2))/24,'Altura long.'!$C$2:$AX$367,(VLOOKUP($A40,'Datos diarios'!$A$2:$B$366,2)+1),1),HLOOKUP((K$27*24-RIGHT($C$6,2))/24+1,'Altura long.'!$C$2:$AX$367,(VLOOKUP($A40,'Datos diarios'!$A$2:$B$366,2)+0),1)) -> -25.22934326 | L40: =IF((L$27*24-RIGHT($C$6,2))/24>0,HLOOKUP((L$27*24-RIGHT($C$6,2))/24,'Altura long.'!$C$2:$AX$367,(VLOOKUP($A40,'Datos diarios'!$A$2:$B$366,2)+1),1),HLOOKUP((L$27*24-RIGHT($C$6,2))/24+1,'Altura long.'!$C$2:$AX$367,(VLOOKUP($A40,'Datos diarios'!$A$2:$B$366,2)+0),1)) -> -21.63000907 | M40: =IF((M$27*24-RIGHT($C$6,2))/24>0,HLOOKUP((M$27*24-RIGHT($C$6,2))/24,'Altura long.'!$C$2:$AX$367,(VLOOKUP($A40,'Datos diarios'!$A$2:$B$366,2)+1),1),HLOOKUP((M$27*24-RIGHT($C$6,2))/24+1,'Altura long.'!$C$2:$AX$367,(VLOOKUP($A40,'Datos diarios'!$A$2:$B$366,2)+0),1)) -> -18.87000997 | N40: =IF((N$27*24-RIGHT($C$6,2))/24>0,HLOOKUP((N$27*24-RIGHT($C$6,2))/24,'Altura long.'!$C$2:$AX$367,(VLOOKUP($A40,'Datos diarios'!$A$2:$B$366,2)+1),1),HLOOKUP((N$27*24-RIGHT($C$6,2))/24+1,'Altura long.'!$C$2:$AX$367,(VLOOKUP($A40,'Datos diarios'!$A$2:$B$366,2)+0),1)) -> -11.77735047 | O40: =IF((O$27*24-RIGHT($C$6,2))/24>0,HLOOKUP((O$27*24-RIGHT($C$6,2))/24,'Altura long.'!$C$2:$AX$367,(VLOOKUP($A40,'Datos diarios'!$A$2:$B$366,2)+1),1),HLOOKUP((O$27*24-RIGHT($C$6,2))/24+1,'Altura long.'!$C$2:$AX$367,(VLOOKUP($A40,'Datos diarios'!$A$2:$B$366,2)+0),1)) -> 1.770428441 | P40: =IF((P$27*24-RIGHT($C$6,2))/24>0,HLOOKUP((P$27*24-RIGHT($C$6,2))/24,'Altura long.'!$C$2:$AX$367,(VLOOKUP($A40,'Datos diarios'!$A$2:$B$366,2)+1),1),HLOOKUP((P$27*24-RIGHT($C$6,2))/24+1,'Altura long.'!$C$2:$AX$367,(VLOOKUP($A40,'Datos diarios'!$A$2:$B$366,2)+0),1)) -> 12.08446015 | Q40: =IF((Q$27*24-RIGHT($C$6,2))/24>0,HLOOKUP((Q$27*24-RIGHT($C$6,2))/24,'Altura long.'!$C$2:$AX$367,(VLOOKUP($A40,'Datos diarios'!$A$2:$B$366,2)+1),1),HLOOKUP((Q$27*24-RIGHT($C$6,2))/24+1,'Altura long.'!$C$2:$AX$367,(VLOOKUP($A40,'Datos diarios'!$A$2:$B$366,2)+0),1)) -> 17.49517923 | R40: =IF((R$27*24-RIGHT($C$6,2))/24>0,HLOOKUP((R$27*24-RIGHT($C$6,2))/24,'Altura long.'!$C$2:$AX$367,(VLOOKUP($A40,'Datos diarios'!$A$2:$B$366,2)+1),1),HLOOKUP((R$27*24-RIGHT($C$6,2))/24+1,'Altura long.'!$C$2:$AX$367,(VLOOKUP($A40,'Datos diarios'!$A$2:$B$366,2)+0),1)) -> 34.32994462 | S40: =IF((S$27*24-RIGHT($C$6,2))/24>0,HLOOKUP((S$27*24-RIGHT($C$6,2))/24,'Altura long.'!$C$2:$AX$367,(VLOOKUP($A40,'Datos diarios'!$A$2:$B$366,2)+1),1),HLOOKUP((S$27*24-RIGHT($C$6,2))/24+1,'Altura long.'!$C$2:$AX$367,(VLOOKUP($A40,'Datos diarios'!$A$2:$B$366,2)+0),1)) -> 45.71555418 | T40: =IF((T$27*24-RIGHT($C$6,2))/24>0,HLOOKUP((T$27*24-RIGHT($C$6,2))/24,'Altura long.'!$C$2:$AX$367,(VLOOKUP($A40,'Datos diarios'!$A$2:$B$366,2)+1),1),HLOOKUP((T$27*24-RIGHT($C$6,2))/24+1,'Altura long.'!$C$2:$AX$367,(VLOOKUP($A40,'Datos diarios'!$A$2:$B$366,2)+0),1)) -> 51.32422633 | U40: =IF((U$27*24-RIGHT($C$6,2))/24>0,HLOOKUP((U$27*24-RIGHT($C$6,2))/24,'Altura long.'!$C$2:$AX$367,(VLOOKUP($A40,'Datos diarios'!$A$2:$B$366,2)+1),1),HLOOKUP((U$27*24-RIGHT($C$6,2))/24+1,'Altura long.'!$C$2:$AX$367,(VLOOKUP($A40,'Datos diarios'!$A$2:$B$366,2)+0),1)) -> 66.56666541 | V40: =IF((V$27*24-RIGHT($C$6,2))/24>0,HLOOKUP((V$27*24-RIGHT($C$6,2))/24,'Altura long.'!$C$2:$AX$367,(VLOOKUP($A40,'Datos diarios'!$A$2:$B$366,2)+1),1),HLOOKUP((V$27*24-RIGHT($C$6,2))/24+1,'Altura long.'!$C$2:$AX$367,(VLOOKUP($A40,'Datos diarios'!$A$2:$B$366,2)+0),1)) -> 72.42383237 | W40: =IF((W$27*24-RIGHT($C$6,2))/24>0,HLOOKUP((W$27*24-RIGHT($C$6,2))/24,'Altura long.'!$C$2:$AX$367,(VLOOKUP($A40,'Datos diarios'!$A$2:$B$366,2)+1),1),HLOOKUP((W$27*24-RIGHT($C$6,2))/24+1,'Altura long.'!$C$2:$AX$367,(VLOOKUP($A40,'Datos diarios'!$A$2:$B$366,2)+0),1)) -> 72.51052452 | X40: =IF((X$27*24-RIGHT($C$6,2))/24>0,HLOOKUP((X$27*24-RIGHT($C$6,2))/24,'Altura long.'!$C$2:$AX$367,(VLOOKUP($A40,'Datos diarios'!$A$2:$B$366,2)+1),1),HLOOKUP((X$27*24-RIGHT($C$6,2))/24+1,'Altura long.'!$C$2:$AX$367,(VLOOKUP($A40,'Datos diarios'!$A$2:$B$366,2)+0),1)) -> 62.3128472 | Y40: =IF((Y$27*24-RIGHT($C$6,2))/24>0,HLOOKUP((Y$27*24-RIGHT($C$6,2))/24,'Altura long.'!$C$2:$AX$367,(VLOOKUP($A40,'Datos diarios'!$A$2:$B$366,2)+1),1),HLOOKUP((Y$27*24-RIGHT($C$6,2))/24+1,'Altura long.'!$C$2:$AX$367,(VLOOKUP($A40,'Datos diarios'!$A$2:$B$366,2)+0),1)) -> 51.74788775 | Z40: =IF((Z$27*24-RIGHT($C$6,2))/24>0,HLOOKUP((Z$27*24-RIGHT($C$6,2))/24,'Altura long.'!$C$2:$AX$367,(VLOOKUP($A40,'Datos diarios'!$A$2:$B$366,2)+1),1),HLOOKUP((Z$27*24-RIGHT($C$6,2))/24+1,'Altura long.'!$C$2:$AX$367,(VLOOKUP($A40,'Datos diarios'!$A$2:$B$366,2)+0),1)) -> 40.46794939 | AA40: =IF((AA$27*24-RIGHT($C$6,2))/24>0,HLOOKUP((AA$27*24-RIGHT($C$6,2))/24,'Altura long.'!$C$2:$AX$367,(VLOOKUP($A40,'Datos diarios'!$A$2:$B$366,2)+1),1),HLOOKUP((AA$27*24-RIGHT($C$6,2))/24+1,'Altura long.'!$C$2:$AX$367,(VLOOKUP($A40,'Datos diarios'!$A$2:$B$366,2)+0),1)) -> 29.08299161 | AB40: =IF((AB$27*24-RIGHT($C$6,2))/24>0,HLOOKUP((AB$27*24-RIGHT($C$6,2))/24,'Altura long.'!$C$2:$AX$367,(VLOOKUP($A40,'Datos diarios'!$A$2:$B$366,2)+1),1),HLOOKUP((AB$27*24-RIGHT($C$6,2))/24+1,'Altura long.'!$C$2:$AX$367,(VLOOKUP($A40,'Datos diarios'!$A$2:$B$366,2)+0),1)) -> 17.91493805 | AC40: =IF((AC$27*24-RIGHT($C$6,2))/24>0,HLOOKUP((AC$27*24-RIGHT($C$6,2))/24,'Altura long.'!$C$2:$AX$367,(VLOOKUP($A40,'Datos diarios'!$A$2:$B$366,2)+1),1),HLOOKUP((AC$27*24-RIGHT($C$6,2))/24+1,'Altura long.'!$C$2:$AX$367,(VLOOKUP($A40,'Datos diarios'!$A$2:$B$366,2)+0),1)) -> 7.226847697 | AD40: =IF((AD$27*24-RIGHT($C$6,2))/24>0,HLOOKUP((AD$27*24-RIGHT($C$6,2))/24,'Altura long.'!$C$2:$AX$367,(VLOOKUP($A40,'Datos diarios'!$A$2:$B$366,2)+1),1),HLOOKUP((AD$27*24-RIGHT($C$6,2))/24+1,'Altura long.'!$C$2:$AX$367,(VLOOKUP($A40,'Datos diarios'!$A$2:$B$366,2)+0),1)) -> -2.690088815 | AE40: =IF((AE$27*24-RIGHT($C$6,2))/24>0,HLOOKUP((AE$27*24-RIGHT($C$6,2))/24,'Altura long.'!$C$2:$AX$367,(VLOOKUP($A40,'Datos diarios'!$A$2:$B$366,2)+1),1),HLOOKUP((AE$27*24-RIGHT($C$6,2))/24+1,'Altura long.'!$C$2:$AX$367,(VLOOKUP($A40,'Datos diarios'!$A$2:$B$366,2)+0),1)) -> -11.46712825
F41: Azimut (°) | G41: =INDEX('Azimut long.'!$AY$4:$AY$368,VLOOKUP($A40,'Datos diarios'!$A$2:$B$366,2)) -> 167.6364427 | H41: =IF((H$27*24-RIGHT($C$6,2))/24>0,HLOOKUP((H$27*24-RIGHT($C$6,2))/24,'Azimut long.'!$C$2:$AX$367,(VLOOKUP($A40,'Datos diarios'!$A$2:$B$366,2)+1),1),HLOOKUP((H$27*24-RIGHT($C$6,2))/24+1,'Azimut long.'!$C$2:$AX$367,(VLOOKUP($A40,'Datos diarios'!$A$2:$B$366,2)+0),1)) -> 320.9633408 | I41: =IF((I$27*24-RIGHT($C$6,2))/24>0,HLOOKUP((I$27*24-RIGHT($C$6,2))/24,'Azimut long.'!$C$2:$AX$367,(VLOOKUP($A40,'Datos diarios'!$A$2:$B$366,2)+1),1),HLOOKUP((I$27*24-RIGHT($C$6,2))/24+1,'Azimut long.'!$C$2:$AX$367,(VLOOKUP($A40,'Datos diarios'!$A$2:$B$366,2)+0),1)) -> 340.9906121 | J41: =IF((J$27*24-RIGHT($C$6,2))/24>0,HLOOKUP((J$27*24-RIGHT($C$6,2))/24,'Azimut long.'!$C$2:$AX$367,(VLOOKUP($A40,'Datos diarios'!$A$2:$B$366,2)+1),1),HLOOKUP((J$27*24-RIGHT($C$6,2))/24+1,'Azimut long.'!$C$2:$AX$367,(VLOOKUP($A40,'Datos diarios'!$A$2:$B$366,2)+0),1)) -> 355.9173539 | K41: =IF((K$27*24-RIGHT($C$6,2))/24>0,HLOOKUP((K$27*24-RIGHT($C$6,2))/24,'Azimut long.'!$C$2:$AX$367,(VLOOKUP($A40,'Datos diarios'!$A$2:$B$366,2)+1),1),HLOOKUP((K$27*24-RIGHT($C$6,2))/24+1,'Azimut long.'!$C$2:$AX$367,(VLOOKUP($A40,'Datos diarios'!$A$2:$B$366,2)+0),1)) -> 11.13095948 | L41: =IF((L$27*24-RIGHT($C$6,2))/24>0,HLOOKUP((L$27*24-RIGHT($C$6,2))/24,'Azimut long.'!$C$2:$AX$367,(VLOOKUP($A40,'Datos diarios'!$A$2:$B$366,2)+1),1),HLOOKUP((L$27*24-RIGHT($C$6,2))/24+1,'Azimut long.'!$C$2:$AX$367,(VLOOKUP($A40,'Datos diarios'!$A$2:$B$366,2)+0),1)) -> 25.59075196 | M41: =IF((M$27*24-RIGHT($C$6,2))/24>0,HLOOKUP((M$27*24-RIGHT($C$6,2))/24,'Azimut long.'!$C$2:$AX$367,(VLOOKUP($A40,'Datos diarios'!$A$2:$B$366,2)+1),1),HLOOKUP((M$27*24-RIGHT($C$6,2))/24+1,'Azimut long.'!$C$2:$AX$367,(VLOOKUP($A40,'Datos diarios'!$A$2:$B$366,2)+0),1)) -> 32.30323635 | N41: =IF((N$27*24-RIGHT($C$6,2))/24>0,HLOOKUP((N$27*24-RIGHT($C$6,2))/24,'Azimut long.'!$C$2:$AX$367,(VLOOKUP($A40,'Datos diarios'!$A$2:$B$366,2)+1),1),HLOOKUP((N$27*24-RIGHT($C$6,2))/24+1,'Azimut long.'!$C$2:$AX$367,(VLOOKUP($A40,'Datos diarios'!$A$2:$B$366,2)+0),1)) -> 44.52744028 | O41: =IF((O$27*24-RIGHT($C$6,2))/24>0,HLOOKUP((O$27*24-RIGHT($C$6,2))/24,'Azimut long.'!$C$2:$AX$367,(VLOOKUP($A40,'Datos diarios'!$A$2:$B$366,2)+1),1),HLOOKUP((O$27*24-RIGHT($C$6,2))/24+1,'Azimut long.'!$C$2:$AX$367,(VLOOKUP($A40,'Datos diarios'!$A$2:$B$366,2)+0),1)) -> 60.16708815 | P41: =IF((P$27*24-RIGHT($C$6,2))/24>0,HLOOKUP((P$27*24-RIGHT($C$6,2))/24,'Azimut long.'!$C$2:$AX$367,(VLOOKUP($A40,'Datos diarios'!$A$2:$B$366,2)+1),1),HLOOKUP((P$27*24-RIGHT($C$6,2))/24+1,'Azimut long.'!$C$2:$AX$367,(VLOOKUP($A40,'Datos diarios'!$A$2:$B$366,2)+0),1)) -> 69.34799985 | Q41: =IF((Q$27*24-RIGHT($C$6,2))/24>0,HLOOKUP((Q$27*24-RIGHT($C$6,2))/24,'Azimut long.'!$C$2:$AX$367,(VLOOKUP($A40,'Datos diarios'!$A$2:$B$366,2)+1),1),HLOOKUP((Q$27*24-RIGHT($C$6,2))/24+1,'Azimut long.'!$C$2:$AX$367,(VLOOKUP($A40,'Datos diarios'!$A$2:$B$366,2)+0),1)) -> 73.74602027 | R41: =IF((R$27*24-RIGHT($C$6,2))/24>0,HLOOKUP((R$27*24-RIGHT($C$6,2))/24,'Azimut long.'!$C$2:$AX$367,(VLOOKUP($A40,'Datos diarios'!$A$2:$B$366,2)+1),1),HLOOKUP((R$27*24-RIGHT($C$6,2))/24+1,'Azimut long.'!$C$2:$AX$367,(VLOOKUP($A40,'Datos diarios'!$A$2:$B$366,2)+0),1)) -> 87.08547726 | S41: =IF((S$27*24-RIGHT($C$6,2))/24>0,HLOOKUP((S$27*24-RIGHT($C$6,2))/24,'Azimut long.'!$C$2:$AX$367,(VLOOKUP($A40,'Datos diarios'!$A$2:$B$366,2)+1),1),HLOOKUP((S$27*24-RIGHT($C$6,2))/24+1,'Azimut long.'!$C$2:$AX$367,(VLOOKUP($A40,'Datos diarios'!$A$2:$B$366,2)+0),1)) -> 97.24918779 | T41: =IF((T$27*24-RIGHT($C$6,2))/24>0,HLOOKUP((T$27*24-RIGHT($C$6,2))/24,'Azimut long.'!$C$2:$AX$367,(VLOOKUP($A40,'Datos diarios'!$A$2:$B$366,2)+1),1),HLOOKUP((T$27*24-RIGHT($C$6,2))/24+1,'Azimut long.'!$C$2:$AX$367,(VLOOKUP($A40,'Datos diarios'!$A$2:$B$366,2)+0),1)) -> 103.3058128 | U41: =IF((U$27*24-RIGHT($C$6,2))/24>0,HLOOKUP((U$27*24-RIGHT($C$6,2))/24,'Azimut long.'!$C$2:$AX$367,(VLOOKUP($A40,'Datos diarios'!$A$2:$B$366,2)+1),1),HLOOKUP((U$27*24-RIGHT($C$6,2))/24+1,'Azimut long.'!$C$2:$AX$367,(VLOOKUP($A40,'Datos diarios'!$A$2:$B$366,2)+0),1)) -> 131.4346269 | V41: =IF((V$27*24-RIGHT($C$6,2))/24>0,HLOOKUP((V$27*24-RIGHT($C$6,2))/24,'Azimut long.'!$C$2:$AX$367,(VLOOKUP($A40,'Datos diarios'!$A$2:$B$366,2)+1),1),HLOOKUP((V$27*24-RIGHT($C$6,2))/24+1,'Azimut long.'!$C$2:$AX$367,(VLOOKUP($A40,'Datos diarios'!$A$2:$B$366,2)+0),1)) -> 167.8041055 | W41: =IF((W$27*24-RIGHT($C$6,2))/24>0,HLOOKUP((W$27*24-RIGHT($C$6,2))/24,'Azimut long.'!$C$2:$AX$367,(VLOOKUP($A40,'Datos diarios'!$A$2:$B$366,2)+1),1),HLOOKUP((W$27*24-RIGHT($C$6,2))/24+1,'Azimut long.'!$C$2:$AX$367,(VLOOKUP($A40,'Datos diarios'!$A$2:$B$366,2)+0),1)) -> 190.4695885 | X41: =IF((X$27*24-RIGHT($C$6,2))/24>0,HLOOKUP((X$27*24-RIGHT($C$6,2))/24,'Azimut long.'!$C$2:$AX$367,(VLOOKUP($A40,'Datos diarios'!$A$2:$B$366,2)+1),1),HLOOKUP((X$27*24-RIGHT($C$6,2))/24+1,'Azimut long.'!$C$2:$AX$367,(VLOOKUP($A40,'Datos diarios'!$A$2:$B$366,2)+0),1)) -> 239.6595717 | Y41: =IF((Y$27*24-RIGHT($C$6,2))/24>0,HLOOKUP((Y$27*24-RIGHT($C$6,2))/24,'Azimut long.'!$C$2:$AX$367,(VLOOKUP($A40,'Datos diarios'!$A$2:$B$366,2)+1),1),HLOOKUP((Y$27*24-RIGHT($C$6,2))/24+1,'Azimut long.'!$C$2:$AX$367,(VLOOKUP($A40,'Datos diarios'!$A$2:$B$366,2)+0),1)) -> 256.1973239 | Z41: =IF((Z$27*24-RIGHT($C$6,2))/24>0,HLOOKUP((Z$27*24-RIGHT($C$6,2))/24,'Azimut long.'!$C$2:$AX$367,(VLOOKUP($A40,'Datos diarios'!$A$2:$B$366,2)+1),1),HLOOKUP((Z$27*24-RIGHT($C$6,2))/24+1,'Azimut long.'!$C$2:$AX$367,(VLOOKUP($A40,'Datos diarios'!$A$2:$B$366,2)+0),1)) -> 267.6851635 | AA41: =IF((AA$27*24-RIGHT($C$6,2))/24>0,HLOOKUP((AA$27*24-RIGHT($C$6,2))/24,'Azimut long.'!$C$2:$AX$367,(VLOOKUP($A40,'Datos diarios'!$A$2:$B$366,2)+1),1),HLOOKUP((AA$27*24-RIGHT($C$6,2))/24+1,'Azimut long.'!$C$2:$AX$367,(VLOOKUP($A40,'Datos diarios'!$A$2:$B$366,2)+0),1)) -> 277.1404509 | AB41: =IF((AB$27*24-RIGHT($C$6,2))/24>0,HLOOKUP((AB$27*24-RIGHT($C$6,2))/24,'Azimut long.'!$C$2:$AX$367,(VLOOKUP($A40,'Datos diarios'!$A$2:$B$366,2)+1),1),HLOOKUP((AB$27*24-RIGHT($C$6,2))/24+1,'Azimut long.'!$C$2:$AX$367,(VLOOKUP($A40,'Datos diarios'!$A$2:$B$366,2)+0),1)) -> 285.9246328 | AC41: =IF((AC$27*24-RIGHT($C$6,2))/24>0,HLOOKUP((AC$27*24-RIGHT($C$6,2))/24,'Azimut long.'!$C$2:$AX$367,(VLOOKUP($A40,'Datos diarios'!$A$2:$B$366,2)+1),1),HLOOKUP((AC$27*24-RIGHT($C$6,2))/24+1,'Azimut long.'!$C$2:$AX$367,(VLOOKUP($A40,'Datos diarios'!$A$2:$B$366,2)+0),1)) -> 294.811548 | AD41: =IF((AD$27*24-RIGHT($C$6,2))/24>0,HLOOKUP((AD$27*24-RIGHT($C$6,2))/24,'Azimut long.'!$C$2:$AX$367,(VLOOKUP($A40,'Datos diarios'!$A$2:$B$366,2)+1),1),HLOOKUP((AD$27*24-RIGHT($C$6,2))/24+1,'Azimut long.'!$C$2:$AX$367,(VLOOKUP($A40,'Datos diarios'!$A$2:$B$366,2)+0),1)) -> 304.3614622 | AE41: =IF((AE$27*24-RIGHT($C$6,2))/24>0,HLOOKUP((AE$27*24-RIGHT($C$6,2))/24,'Azimut long.'!$C$2:$AX$367,(VLOOKUP($A40,'Datos diarios'!$A$2:$B$366,2)+1),1),HLOOKUP((AE$27*24-RIGHT($C$6,2))/24+1,'Azimut long.'!$C$2:$AX$367,(VLOOKUP($A40,'Datos diarios'!$A$2:$B$366,2)+0),1)) -> 315.0413108
A42: 2021-07-21 | B42: =(VLOOKUP(VLOOKUP($A42,'Datos diarios'!$A$2:$B$366,2),'Datos diarios'!$B$2:$K$366,8,0)*24+RIGHT($C$6,2))/24 -> 07:06:20.380 | C42: =(VLOOKUP(VLOOKUP($A42,'Datos diarios'!$A$2:$B$366,2),'Datos diarios'!$B$2:$K$366,10,0)*24+RIGHT($C$6,2))/24 -> 21:35:59.104 | D42: =(VLOOKUP(VLOOKUP($A42,'Datos diarios'!$A$2:$B$366,2),'Datos diarios'!$B$2:$K$366,9,0)*24+RIGHT($C$6,2))/24 -> 14:21:09.742 | E42: =ROUND(VLOOKUP(VLOOKUP($A42,'Datos diarios'!$A$2:$B$366,2),'Datos diarios'!$B$2:$K$366,3,0),2)&"°" -> 70,22° | F42: Altura (°) | G42: =INDEX('Altura long.'!$AY$3:$AY$367,VLOOKUP($A42,'Datos diarios'!$A$2:$B$366,2)) -> 69.51203838 | H42: =IF((H$27*24-RIGHT($C$6,2))/24>0,HLOOKUP((H$27*24-RIGHT($C$6,2))/24,'Altura long.'!$C$2:$AX$367,(VLOOKUP($A42,'Datos diarios'!$A$2:$B$366,2)+1),1),HLOOKUP((H$27*24-RIGHT($C$6,2))/24+1,'Altura long.'!$C$2:$AX$367,(VLOOKUP($A42,'Datos diarios'!$A$2:$B$366,2)+0),1)) -> -16.97814572 | I42: =IF((I$27*24-RIGHT($C$6,2))/24>0,HLOOKUP((I$27*24-RIGHT($C$6,2))/24,'Altura long.'!$C$2:$AX$367,(VLOOKUP($A42,'Datos diarios'!$A$2:$B$366,2)+1),1),HLOOKUP((I$27*24-RIGHT($C$6,2))/24+1,'Altura long.'!$C$2:$AX$367,(VLOOKUP($A42,'Datos diarios'!$A$2:$B$366,2)+0),1)) -> -25.91981122 | J42: =IF((J$27*24-RIGHT($C$6,2))/24>0,HLOOKUP((J$27*24-RIGHT($C$6,2))/24,'Altura long.'!$C$2:$AX$367,(VLOOKUP($A42,'Datos diarios'!$A$2:$B$366,2)+1),1),HLOOKUP((J$27*24-RIGHT($C$6,2))/24+1,'Altura long.'!$C$2:$AX$367,(VLOOKUP($A42,'Datos diarios'!$A$2:$B$366,2)+0),1)) -> -29.13019513 | K42: =IF((K$27*24-RIGHT($C$6,2))/24>0,HLOOKUP((K$27*24-RIGHT($C$6,2))/24,'Altura long.'!$C$2:$AX$367,(VLOOKUP($A42,'Datos diarios'!$A$2:$B$366,2)+1),1),HLOOKUP((K$27*24-RIGHT($C$6,2))/24+1,'Altura long.'!$C$2:$AX$367,(VLOOKUP($A42,'Datos diarios'!$A$2:$B$366,2)+0),1)) -> -28.11178364 | L42: =IF((L$27*24-RIGHT($C$6,2))/24>0,HLOOKUP((L$27*24-RIGHT($C$6,2))/24,'Altura long.'!$C$2:$AX$367,(VLOOKUP($A42,'Datos diarios'!$A$2:$B$366,2)+1),1),HLOOKUP((L$27*24-RIGHT($C$6,2))/24+1,'Altura long.'!$C$2:$AX$367,(VLOOKUP($A42,'Datos diarios'!$A$2:$B$366,2)+0),1)) -> -24.61120661 | M42: =IF((M$27*24-RIGHT($C$6,2))/24>0,HLOOKUP((M$27*24-RIGHT($C$6,2))/24,'Altura long.'!$C$2:$AX$367,(VLOOKUP($A42,'Datos diarios'!$A$2:$B$366,2)+1),1),HLOOKUP((M$27*24-RIGHT($C$6,2))/24+1,'Altura long.'!$C$2:$AX$367,(VLOOKUP($A42,'Datos diarios'!$A$2:$B$366,2)+0),1)) -> -21.85319588 | N42: =IF((N$27*24-RIGHT($C$6,2))/24>0,HLOOKUP((N$27*24-RIGHT($C$6,2))/24,'Altura long.'!$C$2:$AX$367,(VLOOKUP($A42,'Datos diarios'!$A$2:$B$366,2)+1),1),HLOOKUP((N$27*24-RIGHT($C$6,2))/24+1,'Altura long.'!$C$2:$AX$367,(VLOOKUP($A42,'Datos diarios'!$A$2:$B$366,2)+0),1)) -> -14.70154751 | O42: =IF((O$27*24-RIGHT($C$6,2))/24>0,HLOOKUP((O$27*24-RIGHT($C$6,2))/24,'Altura long.'!$C$2:$AX$367,(VLOOKUP($A42,'Datos diarios'!$A$2:$B$366,2)+1),1),HLOOKUP((O$27*24-RIGHT($C$6,2))/24+1,'Altura long.'!$C$2:$AX$367,(VLOOKUP($A42,'Datos diarios'!$A$2:$B$366,2)+0),1)) -> -0.9968568422 | P42: =IF((P$27*24-RIGHT($C$6,2))/24>0,HLOOKUP((P$27*24-RIGHT($C$6,2))/24,'Altura long.'!$C$2:$AX$367,(VLOOKUP($A42,'Datos diarios'!$A$2:$B$366,2)+1),1),HLOOKUP((P$27*24-RIGHT($C$6,2))/24+1,'Altura long.'!$C$2:$AX$367,(VLOOKUP($A42,'Datos diarios'!$A$2:$B$366,2)+0),1)) -> 9.419970514 | Q42: =IF((Q$27*24-RIGHT($C$6,2))/24>0,HLOOKUP((Q$27*24-RIGHT($C$6,2))/24,'Altura long.'!$C$2:$AX$367,(VLOOKUP($A42,'Datos diarios'!$A$2:$B$366,2)+1),1),HLOOKUP((Q$27*24-RIGHT($C$6,2))/24+1,'Altura long.'!$C$2:$AX$367,(VLOOKUP($A42,'Datos diarios'!$A$2:$B$366,2)+0),1)) -> 14.87384923 | R42: =IF((R$27*24-RIGHT($C$6,2))/24>0,HLOOKUP((R$27*24-RIGHT($C$6,2))/24,'Altura long.'!$C$2:$AX$367,(VLOOKUP($A42,'Datos diarios'!$A$2:$B$366,2)+1),1),HLOOKUP((R$27*24-RIGHT($C$6,2))/24+1,'Altura long.'!$C$2:$AX$367,(VLOOKUP($A42,'Datos diarios'!$A$2:$B$366,2)+0),1)) -> 31.78088579 | S42: =IF((S$27*24-RIGHT($C$6,2))/24>0,HLOOKUP((S$27*24-RIGHT($C$6,2))/24,'Altura long.'!$C$2:$AX$367,(VLOOKUP($A42,'Datos diarios'!$A$2:$B$366,2)+1),1),HLOOKUP((S$27*24-RIGHT($C$6,2))/24+1,'Altura long.'!$C$2:$AX$367,(VLOOKUP($A42,'Datos diarios'!$A$2:$B$366,2)+0),1)) -> 43.14117855 | T42: =IF((T$27*24-RIGHT($C$6,2))/24>0,HLOOKUP((T$27*24-RIGHT($C$6,2))/24,'Altura long.'!$C$2:$AX$367,(VLOOKUP($A42,'Datos diarios'!$A$2:$B$366,2)+1),1),HLOOKUP((T$27*24-RIGHT($C$6,2))/24+1,'Altura long.'!$C$2:$AX$367,(VLOOKUP($A42,'Datos diarios'!$A$2:$B$366,2)+0),1)) -> 48.70396506 | U42: =IF((U$27*24-RIGHT($C$6,2))/24>0,HLOOKUP((U$27*24-RIGHT($C$6,2))/24,'Altura long.'!$C$2:$AX$367,(VLOOKUP($A42,'Datos diarios'!$A$2:$B$366,2)+1),1),HLOOKUP((U$27*24-RIGHT($C$6,2))/24+1,'Altura long.'!$C$2:$AX$367,(VLOOKUP($A42,'Datos diarios'!$A$2:$B$366,2)+0),1)) -> 63.65136673 | V42: =IF((V$27*24-RIGHT($C$6,2))/24>0,HLOOKUP((V$27*24-RIGHT($C$6,2))/24,'Altura long.'!$C$2:$AX$367,(VLOOKUP($A42,'Datos diarios'!$A$2:$B$366,2)+1),1),HLOOKUP((V$27*24-RIGHT($C$6,2))/24+1,'Altura long.'!$C$2:$AX$367,(VLOOKUP($A42,'Datos diarios'!$A$2:$B$366,2)+0),1)) -> 69.51203838 | W42: =IF((W$27*24-RIGHT($C$6,2))/24>0,HLOOKUP((W$27*24-RIGHT($C$6,2))/24,'Altura long.'!$C$2:$AX$367,(VLOOKUP($A42,'Datos diarios'!$A$2:$B$366,2)+1),1),HLOOKUP((W$27*24-RIGHT($C$6,2))/24+1,'Altura long.'!$C$2:$AX$367,(VLOOKUP($A42,'Datos diarios'!$A$2:$B$366,2)+0),1)) -> 69.92212455 | X42: =IF((X$27*24-RIGHT($C$6,2))/24>0,HLOOKUP((X$27*24-RIGHT($C$6,2))/24,'Altura long.'!$C$2:$AX$367,(VLOOKUP($A42,'Datos diarios'!$A$2:$B$366,2)+1),1),HLOOKUP((X$27*24-RIGHT($C$6,2))/24+1,'Altura long.'!$C$2:$AX$367,(VLOOKUP($A42,'Datos diarios'!$A$2:$B$366,2)+0),1)) -> 61.06420716 | Y42: =IF((Y$27*24-RIGHT($C$6,2))/24>0,HLOOKUP((Y$27*24-RIGHT($C$6,2))/24,'Altura long.'!$C$2:$AX$367,(VLOOKUP($A42,'Datos diarios'!$A$2:$B$366,2)+1),1),HLOOKUP((Y$27*24-RIGHT($C$6,2))/24+1,'Altura long.'!$C$2:$AX$367,(VLOOKUP($A42,'Datos diarios'!$A$2:$B$366,2)+0),1)) -> 50.91889296 | Z42: =IF((Z$27*24-RIGHT($C$6,2))/24>0,HLOOKUP((Z$27*24-RIGHT($C$6,2))/24,'Altura long.'!$C$2:$AX$367,(VLOOKUP($A42,'Datos diarios'!$A$2:$B$366,2)+1),1),HLOOKUP((Z$27*24-RIGHT($C$6,2))/24+1,'Altura long.'!$C$2:$AX$367,(VLOOKUP($A42,'Datos diarios'!$A$2:$B$366,2)+0),1)) -> 39.78118168 | AA42: =IF((AA$27*24-RIGHT($C$6,2))/24>0,HLOOKUP((AA$27*24-RIGHT($C$6,2))/24,'Altura long.'!$C$2:$AX$367,(VLOOKUP($A42,'Datos diarios'!$A$2:$B$366,2)+1),1),HLOOKUP((AA$27*24-RIGHT($C$6,2))/24+1,'Altura long.'!$C$2:$AX$367,(VLOOKUP($A42,'Datos diarios'!$A$2:$B$366,2)+0),1)) -> 28.38200747 | AB42: =IF((AB$27*24-RIGHT($C$6,2))/24>0,HLOOKUP((AB$27*24-RIGHT($C$6,2))/24,'Altura long.'!$C$2:$AX$367,(VLOOKUP($A42,'Datos diarios'!$A$2:$B$366,2)+1),1),HLOOKUP((AB$27*24-RIGHT($C$6,2))/24+1,'Altura long.'!$C$2:$AX$367,(VLOOKUP($A42,'Datos diarios'!$A$2:$B$366,2)+0),1)) -> 17.09602575 | AC42: =IF((AC$27*24-RIGHT($C$6,2))/24>0,HLOOKUP((AC$27*24-RIGHT($C$6,2))/24,'Altura long.'!$C$2:$AX$367,(VLOOKUP($A42,'Datos diarios'!$A$2:$B$366,2)+1),1),HLOOKUP((AC$27*24-RIGHT($C$6,2))/24+1,'Altura long.'!$C$2:$AX$367,(VLOOKUP($A42,'Datos diarios'!$A$2:$B$366,2)+0),1)) -> 6.206766652 | AD42: =IF((AD$27*24-RIGHT($C$6,2))/24>0,HLOOKUP((AD$27*24-RIGHT($C$6,2))/24,'Altura long.'!$C$2:$AX$367,(VLOOKUP($A42,'Datos diarios'!$A$2:$B$366,2)+1),1),HLOOKUP((AD$27*24-RIGHT($C$6,2))/24+1,'Altura long.'!$C$2:$AX$367,(VLOOKUP($A42,'Datos diarios'!$A$2:$B$366,2)+0),1)) -> -3.987662621 | AE42: =IF((AE$27*24-RIGHT($C$6,2))/24>0,HLOOKUP((AE$27*24-RIGHT($C$6,2))/24,'Altura long.'!$C$2:$AX$367,(VLOOKUP($A42,'Datos diarios'!$A$2:$B$366,2)+1),1),HLOOKUP((AE$27*24-RIGHT($C$6,2))/24+1,'Altura long.'!$C$2:$AX$367,(VLOOKUP($A42,'Datos diarios'!$A$2:$B$366,2)+0),1)) -> -13.11357241
F43: Azimut (°) | G43: =INDEX('Azimut long.'!$AY$4:$AY$368,VLOOKUP($A42,'Datos diarios'!$A$2:$B$366,2)) -> 165.8607556 | H43: =IF((H$27*24-RIGHT($C$6,2))/24>0,HLOOKUP((H$27*24-RIGHT($C$6,2))/24,'Azimut long.'!$C$2:$AX$367,(VLOOKUP($A42,'Datos diarios'!$A$2:$B$366,2)+1),1),HLOOKUP((H$27*24-RIGHT($C$6,2))/24+1,'Azimut long.'!$C$2:$AX$367,(VLOOKUP($A42,'Datos diarios'!$A$2:$B$366,2)+0),1)) -> 318.4222896 | I43: =IF((I$27*24-RIGHT($C$6,2))/24>0,HLOOKUP((I$27*24-RIGHT($C$6,2))/24,'Azimut long.'!$C$2:$AX$367,(VLOOKUP($A42,'Datos diarios'!$A$2:$B$366,2)+1),1),HLOOKUP((I$27*24-RIGHT($C$6,2))/24+1,'Azimut long.'!$C$2:$AX$367,(VLOOKUP($A42,'Datos diarios'!$A$2:$B$366,2)+0),1)) -> 338.8977759 | J43: =IF((J$27*24-RIGHT($C$6,2))/24>0,HLOOKUP((J$27*24-RIGHT($C$6,2))/24,'Azimut long.'!$C$2:$AX$367,(VLOOKUP($A42,'Datos diarios'!$A$2:$B$366,2)+1),1),HLOOKUP((J$27*24-RIGHT($C$6,2))/24+1,'Azimut long.'!$C$2:$AX$367,(VLOOKUP($A42,'Datos diarios'!$A$2:$B$366,2)+0),1)) -> 354.3791892 | K43: =IF((K$27*24-RIGHT($C$6,2))/24>0,HLOOKUP((K$27*24-RIGHT($C$6,2))/24,'Azimut long.'!$C$2:$AX$367,(VLOOKUP($A42,'Datos diarios'!$A$2:$B$366,2)+1),1),HLOOKUP((K$27*24-RIGHT($C$6,2))/24+1,'Azimut long.'!$C$2:$AX$367,(VLOOKUP($A42,'Datos diarios'!$A$2:$B$366,2)+0),1)) -> 10.29534774 | L43: =IF((L$27*24-RIGHT($C$6,2))/24>0,HLOOKUP((L$27*24-RIGHT($C$6,2))/24,'Azimut long.'!$C$2:$AX$367,(VLOOKUP($A42,'Datos diarios'!$A$2:$B$366,2)+1),1),HLOOKUP((L$27*24-RIGHT($C$6,2))/24+1,'Azimut long.'!$C$2:$AX$367,(VLOOKUP($A42,'Datos diarios'!$A$2:$B$366,2)+0),1)) -> 25.45003502 | M43: =IF((M$27*24-RIGHT($C$6,2))/24>0,HLOOKUP((M$27*24-RIGHT($C$6,2))/24,'Azimut long.'!$C$2:$AX$367,(VLOOKUP($A42,'Datos diarios'!$A$2:$B$366,2)+1),1),HLOOKUP((M$27*24-RIGHT($C$6,2))/24+1,'Azimut long.'!$C$2:$AX$367,(VLOOKUP($A42,'Datos diarios'!$A$2:$B$366,2)+0),1)) -> 32.46626348 | N43: =IF((N$27*24-RIGHT($C$6,2))/24>0,HLOOKUP((N$27*24-RIGHT($C$6,2))/24,'Azimut long.'!$C$2:$AX$367,(VLOOKUP($A42,'Datos diarios'!$A$2:$B$366,2)+1),1),HLOOKUP((N$27*24-RIGHT($C$6,2))/24+1,'Azimut long.'!$C$2:$AX$367,(VLOOKUP($A42,'Datos diarios'!$A$2:$B$366,2)+0),1)) -> 45.18314413 | O43: =IF((O$27*24-RIGHT($C$6,2))/24>0,HLOOKUP((O$27*24-RIGHT($C$6,2))/24,'Azimut long.'!$C$2:$AX$367,(VLOOKUP($A42,'Datos diarios'!$A$2:$B$366,2)+1),1),HLOOKUP((O$27*24-RIGHT($C$6,2))/24+1,'Azimut long.'!$C$2:$AX$367,(VLOOKUP($A42,'Datos diarios'!$A$2:$B$366,2)+0),1)) -> 61.3291959 | P43: =IF((P$27*24-RIGHT($C$6,2))/24>0,HLOOKUP((P$27*24-RIGHT($C$6,2))/24,'Azimut long.'!$C$2:$AX$367,(VLOOKUP($A42,'Datos diarios'!$A$2:$B$366,2)+1),1),HLOOKUP((P$27*24-RIGHT($C$6,2))/24+1,'Azimut long.'!$C$2:$AX$367,(VLOOKUP($A42,'Datos diarios'!$A$2:$B$366,2)+0),1)) -> 70.76596227 | Q43: =IF((Q$27*24-RIGHT($C$6,2))/24>0,HLOOKUP((Q$27*24-RIGHT($C$6,2))/24,'Azimut long.'!$C$2:$AX$367,(VLOOKUP($A42,'Datos diarios'!$A$2:$B$366,2)+1),1),HLOOKUP((Q$27*24-RIGHT($C$6,2))/24+1,'Azimut long.'!$C$2:$AX$367,(VLOOKUP($A42,'Datos diarios'!$A$2:$B$366,2)+0),1)) -> 75.28497991 | R43: =IF((R$27*24-RIGHT($C$6,2))/24>0,HLOOKUP((R$27*24-RIGHT($C$6,2))/24,'Azimut long.'!$C$2:$AX$367,(VLOOKUP($A42,'Datos diarios'!$A$2:$B$366,2)+1),1),HLOOKUP((R$27*24-RIGHT($C$6,2))/24+1,'Azimut long.'!$C$2:$AX$367,(VLOOKUP($A42,'Datos diarios'!$A$2:$B$366,2)+0),1)) -> 89.01009631 | S43: =IF((S$27*24-RIGHT($C$6,2))/24>0,HLOOKUP((S$27*24-RIGHT($C$6,2))/24,'Azimut long.'!$C$2:$AX$367,(VLOOKUP($A42,'Datos diarios'!$A$2:$B$366,2)+1),1),HLOOKUP((S$27*24-RIGHT($C$6,2))/24+1,'Azimut long.'!$C$2:$AX$367,(VLOOKUP($A42,'Datos diarios'!$A$2:$B$366,2)+0),1)) -> 99.46023274 | T43: =IF((T$27*24-RIGHT($C$6,2))/24>0,HLOOKUP((T$27*24-RIGHT($C$6,2))/24,'Azimut long.'!$C$2:$AX$367,(VLOOKUP($A42,'Datos diarios'!$A$2:$B$366,2)+1),1),HLOOKUP((T$27*24-RIGHT($C$6,2))/24+1,'Azimut long.'!$C$2:$AX$367,(VLOOKUP($A42,'Datos diarios'!$A$2:$B$366,2)+0),1)) -> 105.6437582 | U43: =IF((U$27*24-RIGHT($C$6,2))/24>0,HLOOKUP((U$27*24-RIGHT($C$6,2))/24,'Azimut long.'!$C$2:$AX$367,(VLOOKUP($A42,'Datos diarios'!$A$2:$B$366,2)+1),1),HLOOKUP((U$27*24-RIGHT($C$6,2))/24+1,'Azimut long.'!$C$2:$AX$367,(VLOOKUP($A42,'Datos diarios'!$A$2:$B$366,2)+0),1)) -> 133.168601 | V43: =IF((V$27*24-RIGHT($C$6,2))/24>0,HLOOKUP((V$27*24-RIGHT($C$6,2))/24,'Azimut long.'!$C$2:$AX$367,(VLOOKUP($A42,'Datos diarios'!$A$2:$B$366,2)+1),1),HLOOKUP((V$27*24-RIGHT($C$6,2))/24+1,'Azimut long.'!$C$2:$AX$367,(VLOOKUP($A42,'Datos diarios'!$A$2:$B$366,2)+0),1)) -> 165.7972182 | W43: =IF((W$27*24-RIGHT($C$6,2))/24>0,HLOOKUP((W$27*24-RIGHT($C$6,2))/24,'Azimut long.'!$C$2:$AX$367,(VLOOKUP($A42,'Datos diarios'!$A$2:$B$366,2)+1),1),HLOOKUP((W$27*24-RIGHT($C$6,2))/24+1,'Azimut long.'!$C$2:$AX$367,(VLOOKUP($A42,'Datos diarios'!$A$2:$B$366,2)+0),1)) -> 185.9294009 | X43: =IF((X$27*24-RIGHT($C$6,2))/24>0,HLOOKUP((X$27*24-RIGHT($C$6,2))/24,'Azimut long.'!$C$2:$AX$367,(VLOOKUP($A42,'Datos diarios'!$A$2:$B$366,2)+1),1),HLOOKUP((X$27*24-RIGHT($C$6,2))/24+1,'Azimut long.'!$C$2:$AX$367,(VLOOKUP($A42,'Datos diarios'!$A$2:$B$366,2)+0),1)) -> 233.8381814 | Y43: =IF((Y$27*24-RIGHT($C$6,2))/24>0,HLOOKUP((Y$27*24-RIGHT($C$6,2))/24,'Azimut long.'!$C$2:$AX$367,(VLOOKUP($A42,'Datos diarios'!$A$2:$B$366,2)+1),1),HLOOKUP((Y$27*24-RIGHT($C$6,2))/24+1,'Azimut long.'!$C$2:$AX$367,(VLOOKUP($A42,'Datos diarios'!$A$2:$B$366,2)+0),1)) -> 251.4891204 | Z43: =IF((Z$27*24-RIGHT($C$6,2))/24>0,HLOOKUP((Z$27*24-RIGHT($C$6,2))/24,'Azimut long.'!$C$2:$AX$367,(VLOOKUP($A42,'Datos diarios'!$A$2:$B$366,2)+1),1),HLOOKUP((Z$27*24-RIGHT($C$6,2))/24+1,'Azimut long.'!$C$2:$AX$367,(VLOOKUP($A42,'Datos diarios'!$A$2:$B$366,2)+0),1)) -> 263.7724231 | AA43: =IF((AA$27*24-RIGHT($C$6,2))/24>0,HLOOKUP((AA$27*24-RIGHT($C$6,2))/24,'Azimut long.'!$C$2:$AX$367,(VLOOKUP($A42,'Datos diarios'!$A$2:$B$366,2)+1),1),HLOOKUP((AA$27*24-RIGHT($C$6,2))/24+1,'Azimut long.'!$C$2:$AX$367,(VLOOKUP($A42,'Datos diarios'!$A$2:$B$366,2)+0),1)) -> 273.7203673 | AB43: =IF((AB$27*24-RIGHT($C$6,2))/24>0,HLOOKUP((AB$27*24-RIGHT($C$6,2))/24,'Azimut long.'!$C$2:$AX$367,(VLOOKUP($A42,'Datos diarios'!$A$2:$B$366,2)+1),1),HLOOKUP((AB$27*24-RIGHT($C$6,2))/24+1,'Azimut long.'!$C$2:$AX$367,(VLOOKUP($A42,'Datos diarios'!$A$2:$B$366,2)+0),1)) -> 282.8013553 | AC43: =IF((AC$27*24-RIGHT($C$6,2))/24>0,HLOOKUP((AC$27*24-RIGHT($C$6,2))/24,'Azimut long.'!$C$2:$AX$367,(VLOOKUP($A42,'Datos diarios'!$A$2:$B$366,2)+1),1),HLOOKUP((AC$27*24-RIGHT($C$6,2))/24+1,'Azimut long.'!$C$2:$AX$367,(VLOOKUP($A42,'Datos diarios'!$A$2:$B$366,2)+0),1)) -> 291.8657405 | AD43: =IF((AD$27*24-RIGHT($C$6,2))/24>0,HLOOKUP((AD$27*24-RIGHT($C$6,2))/24,'Azimut long.'!$C$2:$AX$367,(VLOOKUP($A42,'Datos diarios'!$A$2:$B$366,2)+1),1),HLOOKUP((AD$27*24-RIGHT($C$6,2))/24+1,'Azimut long.'!$C$2:$AX$367,(VLOOKUP($A42,'Datos diarios'!$A$2:$B$366,2)+0),1)) -> 301.5331574 | AE43: =IF((AE$27*24-RIGHT($C$6,2))/24>0,HLOOKUP((AE$27*24-RIGHT($C$6,2))/24,'Azimut long.'!$C$2:$AX$367,(VLOOKUP($A42,'Datos diarios'!$A$2:$B$366,2)+1),1),HLOOKUP((AE$27*24-RIGHT($C$6,2))/24+1,'Azimut long.'!$C$2:$AX$367,(VLOOKUP($A42,'Datos diarios'!$A$2:$B$366,2)+0),1)) -> 312.3336235
A44: 2021-08-21 | B44: =(VLOOKUP(VLOOKUP($A44,'Datos diarios'!$A$2:$B$366,2),'Datos diarios'!$B$2:$K$366,8,0)*24+RIGHT($C$6,2))/24 -> 07:35:17.206 | C44: =(VLOOKUP(VLOOKUP($A44,'Datos diarios'!$A$2:$B$366,2),'Datos diarios'!$B$2:$K$366,10,0)*24+RIGHT($C$6,2))/24 -> 21:01:28.262 | D44: =(VLOOKUP(VLOOKUP($A44,'Datos diarios'!$A$2:$B$366,2),'Datos diarios'!$B$2:$K$366,9,0)*24+RIGHT($C$6,2))/24 -> 14:18:22.734 | E44: =ROUND(VLOOKUP(VLOOKUP($A44,'Datos diarios'!$A$2:$B$366,2),'Datos diarios'!$B$2:$K$366,3,0),2)&"°" -> 61,96° | F44: Altura (°) | G44: =INDEX('Altura long.'!$AY$3:$AY$367,VLOOKUP($A44,'Datos diarios'!$A$2:$B$366,2)) -> 61.49817344 | H44: =IF((H$27*24-RIGHT($C$6,2))/24>0,HLOOKUP((H$27*24-RIGHT($C$6,2))/24,'Altura long.'!$C$2:$AX$367,(VLOOKUP($A44,'Datos diarios'!$A$2:$B$366,2)+1),1),HLOOKUP((H$27*24-RIGHT($C$6,2))/24+1,'Altura long.'!$C$2:$AX$367,(VLOOKUP($A44,'Datos diarios'!$A$2:$B$366,2)+0),1)) -> -24.13742427 | I44: =IF((I$27*24-RIGHT($C$6,2))/24>0,HLOOKUP((I$27*24-RIGHT($C$6,2))/24,'Altura long.'!$C$2:$AX$367,(VLOOKUP($A44,'Datos diarios'!$A$2:$B$366,2)+1),1),HLOOKUP((I$27*24-RIGHT($C$6,2))/24+1,'Altura long.'!$C$2:$AX$367,(VLOOKUP($A44,'Datos diarios'!$A$2:$B$366,2)+0),1)) -> -33.88951292 | J44: =IF((J$27*24-RIGHT($C$6,2))/24>0,HLOOKUP((J$27*24-RIGHT($C$6,2))/24,'Altura long.'!$C$2:$AX$367,(VLOOKUP($A44,'Datos diarios'!$A$2:$B$366,2)+1),1),HLOOKUP((J$27*24-RIGHT($C$6,2))/24+1,'Altura long.'!$C$2:$AX$367,(VLOOKUP($A44,'Datos diarios'!$A$2:$B$366,2)+0),1)) -> -37.31495713 | K44: =IF((K$27*24-RIGHT($C$6,2))/24>0,HLOOKUP((K$27*24-RIGHT($C$6,2))/24,'Altura long.'!$C$2:$AX$367,(VLOOKUP($A44,'Datos diarios'!$A$2:$B$366,2)+1),1),HLOOKUP((K$27*24-RIGHT($C$6,2))/24+1,'Altura long.'!$C$2:$AX$367,(VLOOKUP($A44,'Datos diarios'!$A$2:$B$366,2)+0),1)) -> -36.07819793 | L44: =IF((L$27*24-RIGHT($C$6,2))/24>0,HLOOKUP((L$27*24-RIGHT($C$6,2))/24,'Altura long.'!$C$2:$AX$367,(VLOOKUP($A44,'Datos diarios'!$A$2:$B$366,2)+1),1),HLOOKUP((L$27*24-RIGHT($C$6,2))/24+1,'Altura long.'!$C$2:$AX$367,(VLOOKUP($A44,'Datos diarios'!$A$2:$B$366,2)+0),1)) -> -31.98857377 | M44: =IF((M$27*24-RIGHT($C$6,2))/24>0,HLOOKUP((M$27*24-RIGHT($C$6,2))/24,'Altura long.'!$C$2:$AX$367,(VLOOKUP($A44,'Datos diarios'!$A$2:$B$366,2)+1),1),HLOOKUP((M$27*24-RIGHT($C$6,2))/24+1,'Altura long.'!$C$2:$AX$367,(VLOOKUP($A44,'Datos diarios'!$A$2:$B$366,2)+0),1)) -> -28.85932345 | N44: =IF((N$27*24-RIGHT($C$6,2))/24>0,HLOOKUP((N$27*24-RIGHT($C$6,2))/24,'Altura long.'!$C$2:$AX$367,(VLOOKUP($A44,'Datos diarios'!$A$2:$B$366,2)+1),1),HLOOKUP((N$27*24-RIGHT($C$6,2))/24+1,'Altura long.'!$C$2:$AX$367,(VLOOKUP($A44,'Datos diarios'!$A$2:$B$366,2)+0),1)) -> -20.94107154 | O44: =IF((O$27*24-RIGHT($C$6,2))/24>0,HLOOKUP((O$27*24-RIGHT($C$6,2))/24,'Altura long.'!$C$2:$AX$367,(VLOOKUP($A44,'Datos diarios'!$A$2:$B$366,2)+1),1),HLOOKUP((O$27*24-RIGHT($C$6,2))/24+1,'Altura long.'!$C$2:$AX$367,(VLOOKUP($A44,'Datos diarios'!$A$2:$B$366,2)+0),1)) -> -6.259044162 | P44: =IF((P$27*24-RIGHT($C$6,2))/24>0,HLOOKUP((P$27*24-RIGHT($C$6,2))/24,'Altura long.'!$C$2:$AX$367,(VLOOKUP($A44,'Datos diarios'!$A$2:$B$366,2)+1),1),HLOOKUP((P$27*24-RIGHT($C$6,2))/24+1,'Altura long.'!$C$2:$AX$367,(VLOOKUP($A44,'Datos diarios'!$A$2:$B$366,2)+0),1)) -> 4.611863614 | Q44: =IF((Q$27*24-RIGHT($C$6,2))/24>0,HLOOKUP((Q$27*24-RIGHT($C$6,2))/24,'Altura long.'!$C$2:$AX$367,(VLOOKUP($A44,'Datos diarios'!$A$2:$B$366,2)+1),1),HLOOKUP((Q$27*24-RIGHT($C$6,2))/24+1,'Altura long.'!$C$2:$AX$367,(VLOOKUP($A44,'Datos diarios'!$A$2:$B$366,2)+0),1)) -> 10.22386895 | R44: =IF((R$27*24-RIGHT($C$6,2))/24>0,HLOOKUP((R$27*24-RIGHT($C$6,2))/24,'Altura long.'!$C$2:$AX$367,(VLOOKUP($A44,'Datos diarios'!$A$2:$B$366,2)+1),1),HLOOKUP((R$27*24-RIGHT($C$6,2))/24+1,'Altura long.'!$C$2:$AX$367,(VLOOKUP($A44,'Datos diarios'!$A$2:$B$366,2)+0),1)) -> 27.28187242 | S44: =IF((S$27*24-RIGHT($C$6,2))/24>0,HLOOKUP((S$27*24-RIGHT($C$6,2))/24,'Altura long.'!$C$2:$AX$367,(VLOOKUP($A44,'Datos diarios'!$A$2:$B$366,2)+1),1),HLOOKUP((S$27*24-RIGHT($C$6,2))/24+1,'Altura long.'!$C$2:$AX$367,(VLOOKUP($A44,'Datos diarios'!$A$2:$B$366,2)+0),1)) -> 38.39122156 | T44: =IF((T$27*24-RIGHT($C$6,2))/24>0,HLOOKUP((T$27*24-RIGHT($C$6,2))/24,'Altura long.'!$C$2:$AX$367,(VLOOKUP($A44,'Datos diarios'!$A$2:$B$366,2)+1),1),HLOOKUP((T$27*24-RIGHT($C$6,2))/24+1,'Altura long.'!$C$2:$AX$367,(VLOOKUP($A44,'Datos diarios'!$A$2:$B$366,2)+0),1)) -> 43.67978832 | U44: =IF((U$27*24-RIGHT($C$6,2))/24>0,HLOOKUP((U$27*24-RIGHT($C$6,2))/24,'Altura long.'!$C$2:$AX$367,(VLOOKUP($A44,'Datos diarios'!$A$2:$B$366,2)+1),1),HLOOKUP((U$27*24-RIGHT($C$6,2))/24+1,'Altura long.'!$C$2:$AX$367,(VLOOKUP($A44,'Datos diarios'!$A$2:$B$366,2)+0),1)) -> 56.99504903 | V44: =IF((V$27*24-RIGHT($C$6,2))/24>0,HLOOKUP((V$27*24-RIGHT($C$6,2))/24,'Altura long.'!$C$2:$AX$367,(VLOOKUP($A44,'Datos diarios'!$A$2:$B$366,2)+1),1),HLOOKUP((V$27*24-RIGHT($C$6,2))/24+1,'Altura long.'!$C$2:$AX$367,(VLOOKUP($A44,'Datos diarios'!$A$2:$B$366,2)+0),1)) -> 61.49817344 | W44: =IF((W$27*24-RIGHT($C$6,2))/24>0,HLOOKUP((W$27*24-RIGHT($C$6,2))/24,'Altura long.'!$C$2:$AX$367,(VLOOKUP($A44,'Datos diarios'!$A$2:$B$366,2)+1),1),HLOOKUP((W$27*24-RIGHT($C$6,2))/24+1,'Altura long.'!$C$2:$AX$367,(VLOOKUP($A44,'Datos diarios'!$A$2:$B$366,2)+0),1)) -> 61.66399912 | X44: =IF((X$27*24-RIGHT($C$6,2))/24>0,HLOOKUP((X$27*24-RIGHT($C$6,2))/24,'Altura long.'!$C$2:$AX$367,(VLOOKUP($A44,'Datos diarios'!$A$2:$B$366,2)+1),1),HLOOKUP((X$27*24-RIGHT($C$6,2))/24+1,'Altura long.'!$C$2:$AX$367,(VLOOKUP($A44,'Datos diarios'!$A$2:$B$366,2)+0),1)) -> 54.06236727 | Y44: =IF((Y$27*24-RIGHT($C$6,2))/24>0,HLOOKUP((Y$27*24-RIGHT($C$6,2))/24,'Altura long.'!$C$2:$AX$367,(VLOOKUP($A44,'Datos diarios'!$A$2:$B$366,2)+1),1),HLOOKUP((Y$27*24-RIGHT($C$6,2))/24+1,'Altura long.'!$C$2:$AX$367,(VLOOKUP($A44,'Datos diarios'!$A$2:$B$366,2)+0),1)) -> 44.78174792 | Z44: =IF((Z$27*24-RIGHT($C$6,2))/24>0,HLOOKUP((Z$27*24-RIGHT($C$6,2))/24,'Altura long.'!$C$2:$AX$367,(VLOOKUP($A44,'Datos diarios'!$A$2:$B$366,2)+1),1),HLOOKUP((Z$27*24-RIGHT($C$6,2))/24+1,'Altura long.'!$C$2:$AX$367,(VLOOKUP($A44,'Datos diarios'!$A$2:$B$366,2)+0),1)) -> 34.08423873 | AA44: =IF((AA$27*24-RIGHT($C$6,2))/24>0,HLOOKUP((AA$27*24-RIGHT($C$6,2))/24,'Altura long.'!$C$2:$AX$367,(VLOOKUP($A44,'Datos diarios'!$A$2:$B$366,2)+1),1),HLOOKUP((AA$27*24-RIGHT($C$6,2))/24+1,'Altura long.'!$C$2:$AX$367,(VLOOKUP($A44,'Datos diarios'!$A$2:$B$366,2)+0),1)) -> 22.80200412 | AB44: =IF((AB$27*24-RIGHT($C$6,2))/24>0,HLOOKUP((AB$27*24-RIGHT($C$6,2))/24,'Altura long.'!$C$2:$AX$367,(VLOOKUP($A44,'Datos diarios'!$A$2:$B$366,2)+1),1),HLOOKUP((AB$27*24-RIGHT($C$6,2))/24+1,'Altura long.'!$C$2:$AX$367,(VLOOKUP($A44,'Datos diarios'!$A$2:$B$366,2)+0),1)) -> 11.39947746 | AC44: =IF((AC$27*24-RIGHT($C$6,2))/24>0,HLOOKUP((AC$27*24-RIGHT($C$6,2))/24,'Altura long.'!$C$2:$AX$367,(VLOOKUP($A44,'Datos diarios'!$A$2:$B$366,2)+1),1),HLOOKUP((AC$27*24-RIGHT($C$6,2))/24+1,'Altura long.'!$C$2:$AX$367,(VLOOKUP($A44,'Datos diarios'!$A$2:$B$366,2)+0),1)) -> 0.2113491321 | AD44: =IF((AD$27*24-RIGHT($C$6,2))/24>0,HLOOKUP((AD$27*24-RIGHT($C$6,2))/24,'Altura long.'!$C$2:$AX$367,(VLOOKUP($A44,'Datos diarios'!$A$2:$B$366,2)+1),1),HLOOKUP((AD$27*24-RIGHT($C$6,2))/24+1,'Altura long.'!$C$2:$AX$367,(VLOOKUP($A44,'Datos diarios'!$A$2:$B$366,2)+0),1)) -> -10.43288915 | AE44: =IF((AE$27*24-RIGHT($C$6,2))/24>0,HLOOKUP((AE$27*24-RIGHT($C$6,2))/24,'Altura long.'!$C$2:$AX$367,(VLOOKUP($A44,'Datos diarios'!$A$2:$B$366,2)+1),1),HLOOKUP((AE$27*24-RIGHT($C$6,2))/24+1,'Altura long.'!$C$2:$AX$367,(VLOOKUP($A44,'Datos diarios'!$A$2:$B$366,2)+0),1)) -> -20.12383786
F45: Azimut (°) | G45: =INDEX('Azimut long.'!$AY$4:$AY$368,VLOOKUP($A44,'Datos diarios'!$A$2:$B$366,2)) -> 170.8093425 | H45: =IF((H$27*24-RIGHT($C$6,2))/24>0,HLOOKUP((H$27*24-RIGHT($C$6,2))/24,'Azimut long.'!$C$2:$AX$367,(VLOOKUP($A44,'Datos diarios'!$A$2:$B$366,2)+1),1),HLOOKUP((H$27*24-RIGHT($C$6,2))/24+1,'Azimut long.'!$C$2:$AX$367,(VLOOKUP($A44,'Datos diarios'!$A$2:$B$366,2)+0),1)) -> 314.1953692 | I45: =IF((I$27*24-RIGHT($C$6,2))/24>0,HLOOKUP((I$27*24-RIGHT($C$6,2))/24,'Azimut long.'!$C$2:$AX$367,(VLOOKUP($A44,'Datos diarios'!$A$2:$B$366,2)+1),1),HLOOKUP((I$27*24-RIGHT($C$6,2))/24+1,'Azimut long.'!$C$2:$AX$367,(VLOOKUP($A44,'Datos diarios'!$A$2:$B$366,2)+0),1)) -> 336.7696376 | J45: =IF((J$27*24-RIGHT($C$6,2))/24>0,HLOOKUP((J$27*24-RIGHT($C$6,2))/24,'Azimut long.'!$C$2:$AX$367,(VLOOKUP($A44,'Datos diarios'!$A$2:$B$366,2)+1),1),HLOOKUP((J$27*24-RIGHT($C$6,2))/24+1,'Azimut long.'!$C$2:$AX$367,(VLOOKUP($A44,'Datos diarios'!$A$2:$B$366,2)+0),1)) -> 354.368183 | K45: =IF((K$27*24-RIGHT($C$6,2))/24>0,HLOOKUP((K$27*24-RIGHT($C$6,2))/24,'Azimut long.'!$C$2:$AX$367,(VLOOKUP($A44,'Datos diarios'!$A$2:$B$366,2)+1),1),HLOOKUP((K$27*24-RIGHT($C$6,2))/24+1,'Azimut long.'!$C$2:$AX$367,(VLOOKUP($A44,'Datos diarios'!$A$2:$B$366,2)+0),1)) -> 12.54131683 | L45: =IF((L$27*24-RIGHT($C$6,2))/24>0,HLOOKUP((L$27*24-RIGHT($C$6,2))/24,'Azimut long.'!$C$2:$AX$367,(VLOOKUP($A44,'Datos diarios'!$A$2:$B$366,2)+1),1),HLOOKUP((L$27*24-RIGHT($C$6,2))/24+1,'Azimut long.'!$C$2:$AX$367,(VLOOKUP($A44,'Datos diarios'!$A$2:$B$366,2)+0),1)) -> 29.51822656 | M45: =IF((M$27*24-RIGHT($C$6,2))/24>0,HLOOKUP((M$27*24-RIGHT($C$6,2))/24,'Azimut long.'!$C$2:$AX$367,(VLOOKUP($A44,'Datos diarios'!$A$2:$B$366,2)+1),1),HLOOKUP((M$27*24-RIGHT($C$6,2))/24+1,'Azimut long.'!$C$2:$AX$367,(VLOOKUP($A44,'Datos diarios'!$A$2:$B$366,2)+0),1)) -> 37.19661164 | N45: =IF((N$27*24-RIGHT($C$6,2))/24>0,HLOOKUP((N$27*24-RIGHT($C$6,2))/24,'Azimut long.'!$C$2:$AX$367,(VLOOKUP($A44,'Datos diarios'!$A$2:$B$366,2)+1),1),HLOOKUP((N$27*24-RIGHT($C$6,2))/24+1,'Azimut long.'!$C$2:$AX$367,(VLOOKUP($A44,'Datos diarios'!$A$2:$B$366,2)+0),1)) -> 50.80446461 | O45: =IF((O$27*24-RIGHT($C$6,2))/24>0,HLOOKUP((O$27*24-RIGHT($C$6,2))/24,'Azimut long.'!$C$2:$AX$367,(VLOOKUP($A44,'Datos diarios'!$A$2:$B$366,2)+1),1),HLOOKUP((O$27*24-RIGHT($C$6,2))/24+1,'Azimut long.'!$C$2:$AX$367,(VLOOKUP($A44,'Datos diarios'!$A$2:$B$366,2)+0),1)) -> 67.68060686 | P45: =IF((P$27*24-RIGHT($C$6,2))/24>0,HLOOKUP((P$27*24-RIGHT($C$6,2))/24,'Azimut long.'!$C$2:$AX$367,(VLOOKUP($A44,'Datos diarios'!$A$2:$B$366,2)+1),1),HLOOKUP((P$27*24-RIGHT($C$6,2))/24+1,'Azimut long.'!$C$2:$AX$367,(VLOOKUP($A44,'Datos diarios'!$A$2:$B$366,2)+0),1)) -> 77.52028214 | Q45: =IF((Q$27*24-RIGHT($C$6,2))/24>0,HLOOKUP((Q$27*24-RIGHT($C$6,2))/24,'Azimut long.'!$C$2:$AX$367,(VLOOKUP($A44,'Datos diarios'!$A$2:$B$366,2)+1),1),HLOOKUP((Q$27*24-RIGHT($C$6,2))/24+1,'Azimut long.'!$C$2:$AX$367,(VLOOKUP($A44,'Datos diarios'!$A$2:$B$366,2)+0),1)) -> 82.27336756 | R45: =IF((R$27*24-RIGHT($C$6,2))/24>0,HLOOKUP((R$27*24-RIGHT($C$6,2))/24,'Azimut long.'!$C$2:$AX$367,(VLOOKUP($A44,'Datos diarios'!$A$2:$B$366,2)+1),1),HLOOKUP((R$27*24-RIGHT($C$6,2))/24+1,'Azimut long.'!$C$2:$AX$367,(VLOOKUP($A44,'Datos diarios'!$A$2:$B$366,2)+0),1)) -> 96.99188686 | S45: =IF((S$27*24-RIGHT($C$6,2))/24>0,HLOOKUP((S$27*24-RIGHT($C$6,2))/24,'Azimut long.'!$C$2:$AX$367,(VLOOKUP($A44,'Datos diarios'!$A$2:$B$366,2)+1),1),HLOOKUP((S$27*24-RIGHT($C$6,2))/24+1,'Azimut long.'!$C$2:$AX$367,(VLOOKUP($A44,'Datos diarios'!$A$2:$B$366,2)+0),1)) -> 108.4292232 | T45: =IF((T$27*24-RIGHT($C$6,2))/24>0,HLOOKUP((T$27*24-RIGHT($C$6,2))/24,'Azimut long.'!$C$2:$AX$367,(VLOOKUP($A44,'Datos diarios'!$A$2:$B$366,2)+1),1),HLOOKUP((T$27*24-RIGHT($C$6,2))/24+1,'Azimut long.'!$C$2:$AX$367,(VLOOKUP($A44,'Datos diarios'!$A$2:$B$366,2)+0),1)) -> 115.1787201 | U45: =IF((U$27*24-RIGHT($C$6,2))/24>0,HLOOKUP((U$27*24-RIGHT($C$6,2))/24,'Azimut long.'!$C$2:$AX$367,(VLOOKUP($A44,'Datos diarios'!$A$2:$B$366,2)+1),1),HLOOKUP((U$27*24-RIGHT($C$6,2))/24+1,'Azimut long.'!$C$2:$AX$367,(VLOOKUP($A44,'Datos diarios'!$A$2:$B$366,2)+0),1)) -> 143.1351171 | V45: =IF((V$27*24-RIGHT($C$6,2))/24>0,HLOOKUP((V$27*24-RIGHT($C$6,2))/24,'Azimut long.'!$C$2:$AX$367,(VLOOKUP($A44,'Datos diarios'!$A$2:$B$366,2)+1),1),HLOOKUP((V$27*24-RIGHT($C$6,2))/24+1,'Azimut long.'!$C$2:$AX$367,(VLOOKUP($A44,'Datos diarios'!$A$2:$B$366,2)+0),1)) -> 170.5962352 | W45: =IF((W$27*24-RIGHT($C$6,2))/24>0,HLOOKUP((W$27*24-RIGHT($C$6,2))/24,'Azimut long.'!$C$2:$AX$367,(VLOOKUP($A44,'Datos diarios'!$A$2:$B$366,2)+1),1),HLOOKUP((W$27*24-RIGHT($C$6,2))/24+1,'Azimut long.'!$C$2:$AX$367,(VLOOKUP($A44,'Datos diarios'!$A$2:$B$366,2)+0),1)) -> 185.9437758 | X45: =IF((X$27*24-RIGHT($C$6,2))/24>0,HLOOKUP((X$27*24-RIGHT($C$6,2))/24,'Azimut long.'!$C$2:$AX$367,(VLOOKUP($A44,'Datos diarios'!$A$2:$B$366,2)+1),1),HLOOKUP((X$27*24-RIGHT($C$6,2))/24+1,'Azimut long.'!$C$2:$AX$367,(VLOOKUP($A44,'Datos diarios'!$A$2:$B$366,2)+0),1)) -> 225.4760116 | Y45: =IF((Y$27*24-RIGHT($C$6,2))/24>0,HLOOKUP((Y$27*24-RIGHT($C$6,2))/24,'Azimut long.'!$C$2:$AX$367,(VLOOKUP($A44,'Datos diarios'!$A$2:$B$366,2)+1),1),HLOOKUP((Y$27*24-RIGHT($C$6,2))/24+1,'Azimut long.'!$C$2:$AX$367,(VLOOKUP($A44,'Datos diarios'!$A$2:$B$366,2)+0),1)) -> 243.1006533 | Z45: =IF((Z$27*24-RIGHT($C$6,2))/24>0,HLOOKUP((Z$27*24-RIGHT($C$6,2))/24,'Azimut long.'!$C$2:$AX$367,(VLOOKUP($A44,'Datos diarios'!$A$2:$B$366,2)+1),1),HLOOKUP((Z$27*24-RIGHT($C$6,2))/24+1,'Azimut long.'!$C$2:$AX$367,(VLOOKUP($A44,'Datos diarios'!$A$2:$B$366,2)+0),1)) -> 256.1736811 | AA45: =IF((AA$27*24-RIGHT($C$6,2))/24>0,HLOOKUP((AA$27*24-RIGHT($C$6,2))/24,'Azimut long.'!$C$2:$AX$367,(VLOOKUP($A44,'Datos diarios'!$A$2:$B$366,2)+1),1),HLOOKUP((AA$27*24-RIGHT($C$6,2))/24+1,'Azimut long.'!$C$2:$AX$367,(VLOOKUP($A44,'Datos diarios'!$A$2:$B$366,2)+0),1)) -> 266.8682437 | AB45: =IF((AB$27*24-RIGHT($C$6,2))/24>0,HLOOKUP((AB$27*24-RIGHT($C$6,2))/24,'Azimut long.'!$C$2:$AX$367,(VLOOKUP($A44,'Datos diarios'!$A$2:$B$366,2)+1),1),HLOOKUP((AB$27*24-RIGHT($C$6,2))/24+1,'Azimut long.'!$C$2:$AX$367,(VLOOKUP($A44,'Datos diarios'!$A$2:$B$366,2)+0),1)) -> 276.536161 | AC45: =IF((AC$27*24-RIGHT($C$6,2))/24>0,HLOOKUP((AC$27*24-RIGHT($C$6,2))/24,'Azimut long.'!$C$2:$AX$367,(VLOOKUP($A44,'Datos diarios'!$A$2:$B$366,2)+1),1),HLOOKUP((AC$27*24-RIGHT($C$6,2))/24+1,'Azimut long.'!$C$2:$AX$367,(VLOOKUP($A44,'Datos diarios'!$A$2:$B$366,2)+0),1)) -> 286.0780767 | AD45: =IF((AD$27*24-RIGHT($C$6,2))/24>0,HLOOKUP((AD$27*24-RIGHT($C$6,2))/24,'Azimut long.'!$C$2:$AX$367,(VLOOKUP($A44,'Datos diarios'!$A$2:$B$366,2)+1),1),HLOOKUP((AD$27*24-RIGHT($C$6,2))/24+1,'Azimut long.'!$C$2:$AX$367,(VLOOKUP($A44,'Datos diarios'!$A$2:$B$366,2)+0),1)) -> 296.217961 | AE45: =IF((AE$27*24-RIGHT($C$6,2))/24>0,HLOOKUP((AE$27*24-RIGHT($C$6,2))/24,'Azimut long.'!$C$2:$AX$367,(VLOOKUP($A44,'Datos diarios'!$A$2:$B$366,2)+1),1),HLOOKUP((AE$27*24-RIGHT($C$6,2))/24+1,'Azimut long.'!$C$2:$AX$367,(VLOOKUP($A44,'Datos diarios'!$A$2:$B$366,2)+0),1)) -> 307.6433073
A46: 2021-09-21 | B46: =(VLOOKUP(VLOOKUP($A46,'Datos diarios'!$A$2:$B$366,2),'Datos diarios'!$B$2:$K$366,8,0)*24+RIGHT($C$6,2))/24 -> 08:04:25.082 | C46: =(VLOOKUP(VLOOKUP($A46,'Datos diarios'!$A$2:$B$366,2),'Datos diarios'!$B$2:$K$366,10,0)*24+RIGHT($C$6,2))/24 -> 20:11:24.554 | D46: =(VLOOKUP(VLOOKUP($A46,'Datos diarios'!$A$2:$B$366,2),'Datos diarios'!$B$2:$K$366,9,0)*24+RIGHT($C$6,2))/24 -> 14:07:54.818 | E46: =ROUND(VLOOKUP(VLOOKUP($A46,'Datos diarios'!$A$2:$B$366,2),'Datos diarios'!$B$2:$K$366,3,0),2)&"°" -> 50,61° | F46: Altura (°) | G46: =INDEX('Altura long.'!$AY$3:$AY$367,VLOOKUP($A46,'Datos diarios'!$A$2:$B$366,2)) -> 50.45729051 | H46: =IF((H$27*24-RIGHT($C$6,2))/24>0,HLOOKUP((H$27*24-RIGHT($C$6,2))/24,'Altura long.'!$C$2:$AX$367,(VLOOKUP($A46,'Datos diarios'!$A$2:$B$366,2)+1),1),HLOOKUP((H$27*24-RIGHT($C$6,2))/24+1,'Altura long.'!$C$2:$AX$367,(VLOOKUP($A46,'Datos diarios'!$A$2:$B$366,2)+0),1)) -> -34.89807921 | I46: =IF((I$27*24-RIGHT($C$6,2))/24>0,HLOOKUP((I$27*24-RIGHT($C$6,2))/24,'Altura long.'!$C$2:$AX$367,(VLOOKUP($A46,'Datos diarios'!$A$2:$B$366,2)+1),1),HLOOKUP((I$27*24-RIGHT($C$6,2))/24+1,'Altura long.'!$C$2:$AX$367,(VLOOKUP($A46,'Datos diarios'!$A$2:$B$366,2)+0),1)) -> -45.45544543 | J46: =IF((J$27*24-RIGHT($C$6,2))/24>0,HLOOKUP((J$27*24-RIGHT($C$6,2))/24,'Altura long.'!$C$2:$AX$367,(VLOOKUP($A46,'Datos diarios'!$A$2:$B$366,2)+1),1),HLOOKUP((J$27*24-RIGHT($C$6,2))/24+1,'Altura long.'!$C$2:$AX$367,(VLOOKUP($A46,'Datos diarios'!$A$2:$B$366,2)+0),1)) -> -48.51186627 | K46: =IF((K$27*24-RIGHT($C$6,2))/24>0,HLOOKUP((K$27*24-RIGHT($C$6,2))/24,'Altura long.'!$C$2:$AX$367,(VLOOKUP($A46,'Datos diarios'!$A$2:$B$366,2)+1),1),HLOOKUP((K$27*24-RIGHT($C$6,2))/24+1,'Altura long.'!$C$2:$AX$367,(VLOOKUP($A46,'Datos diarios'!$A$2:$B$366,2)+0),1)) -> -46.62635618 | L46: =IF((L$27*24-RIGHT($C$6,2))/24>0,HLOOKUP((L$27*24-RIGHT($C$6,2))/24,'Altura long.'!$C$2:$AX$367,(VLOOKUP($A46,'Datos diarios'!$A$2:$B$366,2)+1),1),HLOOKUP((L$27*24-RIGHT($C$6,2))/24+1,'Altura long.'!$C$2:$AX$367,(VLOOKUP($A46,'Datos diarios'!$A$2:$B$366,2)+0),1)) -> -41.1336148 | M46: =IF((M$27*24-RIGHT($C$6,2))/24>0,HLOOKUP((M$27*24-RIGHT($C$6,2))/24,'Altura long.'!$C$2:$AX$367,(VLOOKUP($A46,'Datos diarios'!$A$2:$B$366,2)+1),1),HLOOKUP((M$27*24-RIGHT($C$6,2))/24+1,'Altura long.'!$C$2:$AX$367,(VLOOKUP($A46,'Datos diarios'!$A$2:$B$366,2)+0),1)) -> -37.27808569 | N46: =IF((N$27*24-RIGHT($C$6,2))/24>0,HLOOKUP((N$27*24-RIGHT($C$6,2))/24,'Altura long.'!$C$2:$AX$367,(VLOOKUP($A46,'Datos diarios'!$A$2:$B$366,2)+1),1),HLOOKUP((N$27*24-RIGHT($C$6,2))/24+1,'Altura long.'!$C$2:$AX$367,(VLOOKUP($A46,'Datos diarios'!$A$2:$B$366,2)+0),1)) -> -28.07479386 | O46: =IF((O$27*24-RIGHT($C$6,2))/24>0,HLOOKUP((O$27*24-RIGHT($C$6,2))/24,'Altura long.'!$C$2:$AX$367,(VLOOKUP($A46,'Datos diarios'!$A$2:$B$366,2)+1),1),HLOOKUP((O$27*24-RIGHT($C$6,2))/24+1,'Altura long.'!$C$2:$AX$367,(VLOOKUP($A46,'Datos diarios'!$A$2:$B$366,2)+0),1)) -> -12.09439806 | P46: =IF((P$27*24-RIGHT($C$6,2))/24>0,HLOOKUP((P$27*24-RIGHT($C$6,2))/24,'Altura long.'!$C$2:$AX$367,(VLOOKUP($A46,'Datos diarios'!$A$2:$B$366,2)+1),1),HLOOKUP((P$27*24-RIGHT($C$6,2))/24+1,'Altura long.'!$C$2:$AX$367,(VLOOKUP($A46,'Datos diarios'!$A$2:$B$366,2)+0),1)) -> -0.7918883771 | Q46: =IF((Q$27*24-RIGHT($C$6,2))/24>0,HLOOKUP((Q$27*24-RIGHT($C$6,2))/24,'Altura long.'!$C$2:$AX$367,(VLOOKUP($A46,'Datos diarios'!$A$2:$B$366,2)+1),1),HLOOKUP((Q$27*24-RIGHT($C$6,2))/24+1,'Altura long.'!$C$2:$AX$367,(VLOOKUP($A46,'Datos diarios'!$A$2:$B$366,2)+0),1)) -> 4.908621953 | R46: =IF((R$27*24-RIGHT($C$6,2))/24>0,HLOOKUP((R$27*24-RIGHT($C$6,2))/24,'Altura long.'!$C$2:$AX$367,(VLOOKUP($A46,'Datos diarios'!$A$2:$B$366,2)+1),1),HLOOKUP((R$27*24-RIGHT($C$6,2))/24+1,'Altura long.'!$C$2:$AX$367,(VLOOKUP($A46,'Datos diarios'!$A$2:$B$366,2)+0),1)) -> 21.68715729 | S46: =IF((S$27*24-RIGHT($C$6,2))/24>0,HLOOKUP((S$27*24-RIGHT($C$6,2))/24,'Altura long.'!$C$2:$AX$367,(VLOOKUP($A46,'Datos diarios'!$A$2:$B$366,2)+1),1),HLOOKUP((S$27*24-RIGHT($C$6,2))/24+1,'Altura long.'!$C$2:$AX$367,(VLOOKUP($A46,'Datos diarios'!$A$2:$B$366,2)+0),1)) -> 32.07028135 | T46: =IF((T$27*24-RIGHT($C$6,2))/24>0,HLOOKUP((T$27*24-RIGHT($C$6,2))/24,'Altura long.'!$C$2:$AX$367,(VLOOKUP($A46,'Datos diarios'!$A$2:$B$366,2)+1),1),HLOOKUP((T$27*24-RIGHT($C$6,2))/24+1,'Altura long.'!$C$2:$AX$367,(VLOOKUP($A46,'Datos diarios'!$A$2:$B$366,2)+0),1)) -> 36.79632217 | U46: =IF((U$27*24-RIGHT($C$6,2))/24>0,HLOOKUP((U$27*24-RIGHT($C$6,2))/24,'Altura long.'!$C$2:$AX$367,(VLOOKUP($A46,'Datos diarios'!$A$2:$B$366,2)+1),1),HLOOKUP((U$27*24-RIGHT($C$6,2))/24+1,'Altura long.'!$C$2:$AX$367,(VLOOKUP($A46,'Datos diarios'!$A$2:$B$366,2)+0),1)) -> 47.62901349 | V46: =IF((V$27*24-RIGHT($C$6,2))/24>0,HLOOKUP((V$27*24-RIGHT($C$6,2))/24,'Altura long.'!$C$2:$AX$367,(VLOOKUP($A46,'Datos diarios'!$A$2:$B$366,2)+1),1),HLOOKUP((V$27*24-RIGHT($C$6,2))/24+1,'Altura long.'!$C$2:$AX$367,(VLOOKUP($A46,'Datos diarios'!$A$2:$B$366,2)+0),1)) -> 50.45729051 | W46: =IF((W$27*24-RIGHT($C$6,2))/24>0,HLOOKUP((W$27*24-RIGHT($C$6,2))/24,'Altura long.'!$C$2:$AX$367,(VLOOKUP($A46,'Datos diarios'!$A$2:$B$366,2)+1),1),HLOOKUP((W$27*24-RIGHT($C$6,2))/24+1,'Altura long.'!$C$2:$AX$367,(VLOOKUP($A46,'Datos diarios'!$A$2:$B$366,2)+0),1)) -> 50.17316101 | X46: =IF((X$27*24-RIGHT($C$6,2))/24>0,HLOOKUP((X$27*24-RIGHT($C$6,2))/24,'Altura long.'!$C$2:$AX$367,(VLOOKUP($A46,'Datos diarios'!$A$2:$B$366,2)+1),1),HLOOKUP((X$27*24-RIGHT($C$6,2))/24+1,'Altura long.'!$C$2:$AX$367,(VLOOKUP($A46,'Datos diarios'!$A$2:$B$366,2)+0),1)) -> 43.02687647 | Y46: =IF((Y$27*24-RIGHT($C$6,2))/24>0,HLOOKUP((Y$27*24-RIGHT($C$6,2))/24,'Altura long.'!$C$2:$AX$367,(VLOOKUP($A46,'Datos diarios'!$A$2:$B$366,2)+1),1),HLOOKUP((Y$27*24-RIGHT($C$6,2))/24+1,'Altura long.'!$C$2:$AX$367,(VLOOKUP($A46,'Datos diarios'!$A$2:$B$366,2)+0),1)) -> 34.53771917 | Z46: =IF((Z$27*24-RIGHT($C$6,2))/24>0,HLOOKUP((Z$27*24-RIGHT($C$6,2))/24,'Altura long.'!$C$2:$AX$367,(VLOOKUP($A46,'Datos diarios'!$A$2:$B$366,2)+1),1),HLOOKUP((Z$27*24-RIGHT($C$6,2))/24+1,'Altura long.'!$C$2:$AX$367,(VLOOKUP($A46,'Datos diarios'!$A$2:$B$366,2)+0),1)) -> 24.42778424 | AA46: =IF((AA$27*24-RIGHT($C$6,2))/24>0,HLOOKUP((AA$27*24-RIGHT($C$6,2))/24,'Altura long.'!$C$2:$AX$367,(VLOOKUP($A46,'Datos diarios'!$A$2:$B$366,2)+1),1),HLOOKUP((AA$27*24-RIGHT($C$6,2))/24+1,'Altura long.'!$C$2:$AX$367,(VLOOKUP($A46,'Datos diarios'!$A$2:$B$366,2)+0),1)) -> 13.45059311 | AB46: =IF((AB$27*24-RIGHT($C$6,2))/24>0,HLOOKUP((AB$27*24-RIGHT($C$6,2))/24,'Altura long.'!$C$2:$AX$367,(VLOOKUP($A46,'Datos diarios'!$A$2:$B$366,2)+1),1),HLOOKUP((AB$27*24-RIGHT($C$6,2))/24+1,'Altura long.'!$C$2:$AX$367,(VLOOKUP($A46,'Datos diarios'!$A$2:$B$366,2)+0),1)) -> 2.091464924 | AC46: =IF((AC$27*24-RIGHT($C$6,2))/24>0,HLOOKUP((AC$27*24-RIGHT($C$6,2))/24,'Altura long.'!$C$2:$AX$367,(VLOOKUP($A46,'Datos diarios'!$A$2:$B$366,2)+1),1),HLOOKUP((AC$27*24-RIGHT($C$6,2))/24+1,'Altura long.'!$C$2:$AX$367,(VLOOKUP($A46,'Datos diarios'!$A$2:$B$366,2)+0),1)) -> -9.287904786 | AD46: =IF((AD$27*24-RIGHT($C$6,2))/24>0,HLOOKUP((AD$27*24-RIGHT($C$6,2))/24,'Altura long.'!$C$2:$AX$367,(VLOOKUP($A46,'Datos diarios'!$A$2:$B$366,2)+1),1),HLOOKUP((AD$27*24-RIGHT($C$6,2))/24+1,'Altura long.'!$C$2:$AX$367,(VLOOKUP($A46,'Datos diarios'!$A$2:$B$366,2)+0),1)) -> -20.33755342 | AE46: =IF((AE$27*24-RIGHT($C$6,2))/24>0,HLOOKUP((AE$27*24-RIGHT($C$6,2))/24,'Altura long.'!$C$2:$AX$367,(VLOOKUP($A46,'Datos diarios'!$A$2:$B$366,2)+1),1),HLOOKUP((AE$27*24-RIGHT($C$6,2))/24+1,'Altura long.'!$C$2:$AX$367,(VLOOKUP($A46,'Datos diarios'!$A$2:$B$366,2)+0),1)) -> -30.61411887
F47: Azimut (°) | G47: =INDEX('Azimut long.'!$AY$4:$AY$368,VLOOKUP($A46,'Datos diarios'!$A$2:$B$366,2)) -> 177.0756318 | H47: =IF((H$27*24-RIGHT($C$6,2))/24>0,HLOOKUP((H$27*24-RIGHT($C$6,2))/24,'Azimut long.'!$C$2:$AX$367,(VLOOKUP($A46,'Datos diarios'!$A$2:$B$366,2)+1),1),HLOOKUP((H$27*24-RIGHT($C$6,2))/24+1,'Azimut long.'!$C$2:$AX$367,(VLOOKUP($A46,'Datos diarios'!$A$2:$B$366,2)+0),1)) -> 309.1507355 | I47: =IF((I$27*24-RIGHT($C$6,2))/24>0,HLOOKUP((I$27*24-RIGHT($C$6,2))/24,'Azimut long.'!$C$2:$AX$367,(VLOOKUP($A46,'Datos diarios'!$A$2:$B$366,2)+1),1),HLOOKUP((I$27*24-RIGHT($C$6,2))/24+1,'Azimut long.'!$C$2:$AX$367,(VLOOKUP($A46,'Datos diarios'!$A$2:$B$366,2)+0),1)) -> 335.3762642 | J47: =IF((J$27*24-RIGHT($C$6,2))/24>0,HLOOKUP((J$27*24-RIGHT($C$6,2))/24,'Azimut long.'!$C$2:$AX$367,(VLOOKUP($A46,'Datos diarios'!$A$2:$B$366,2)+1),1),HLOOKUP((J$27*24-RIGHT($C$6,2))/24+1,'Azimut long.'!$C$2:$AX$367,(VLOOKUP($A46,'Datos diarios'!$A$2:$B$366,2)+0),1)) -> 356.9737834 | K47: =IF((K$27*24-RIGHT($C$6,2))/24>0,HLOOKUP((K$27*24-RIGHT($C$6,2))/24,'Azimut long.'!$C$2:$AX$367,(VLOOKUP($A46,'Datos diarios'!$A$2:$B$366,2)+1),1),HLOOKUP((K$27*24-RIGHT($C$6,2))/24+1,'Azimut long.'!$C$2:$AX$367,(VLOOKUP($A46,'Datos diarios'!$A$2:$B$366,2)+0),1)) -> 19.05274092 | L47: =IF((L$27*24-RIGHT($C$6,2))/24>0,HLOOKUP((L$27*24-RIGHT($C$6,2))/24,'Azimut long.'!$C$2:$AX$367,(VLOOKUP($A46,'Datos diarios'!$A$2:$B$366,2)+1),1),HLOOKUP((L$27*24-RIGHT($C$6,2))/24+1,'Azimut long.'!$C$2:$AX$367,(VLOOKUP($A46,'Datos diarios'!$A$2:$B$366,2)+0),1)) -> 38.4759823 | M47: =IF((M$27*24-RIGHT($C$6,2))/24>0,HLOOKUP((M$27*24-RIGHT($C$6,2))/24,'Azimut long.'!$C$2:$AX$367,(VLOOKUP($A46,'Datos diarios'!$A$2:$B$366,2)+1),1),HLOOKUP((M$27*24-RIGHT($C$6,2))/24+1,'Azimut long.'!$C$2:$AX$367,(VLOOKUP($A46,'Datos diarios'!$A$2:$B$366,2)+0),1)) -> 46.78876142 | N47: =IF((N$27*24-RIGHT($C$6,2))/24>0,HLOOKUP((N$27*24-RIGHT($C$6,2))/24,'Azimut long.'!$C$2:$AX$367,(VLOOKUP($A46,'Datos diarios'!$A$2:$B$366,2)+1),1),HLOOKUP((N$27*24-RIGHT($C$6,2))/24+1,'Azimut long.'!$C$2:$AX$367,(VLOOKUP($A46,'Datos diarios'!$A$2:$B$366,2)+0),1)) -> 60.91864895 | O47: =IF((O$27*24-RIGHT($C$6,2))/24>0,HLOOKUP((O$27*24-RIGHT($C$6,2))/24,'Azimut long.'!$C$2:$AX$367,(VLOOKUP($A46,'Datos diarios'!$A$2:$B$366,2)+1),1),HLOOKUP((O$27*24-RIGHT($C$6,2))/24+1,'Azimut long.'!$C$2:$AX$367,(VLOOKUP($A46,'Datos diarios'!$A$2:$B$366,2)+0),1)) -> 77.88820766 | P47: =IF((P$27*24-RIGHT($C$6,2))/24>0,HLOOKUP((P$27*24-RIGHT($C$6,2))/24,'Azimut long.'!$C$2:$AX$367,(VLOOKUP($A46,'Datos diarios'!$A$2:$B$366,2)+1),1),HLOOKUP((P$27*24-RIGHT($C$6,2))/24+1,'Azimut long.'!$C$2:$AX$367,(VLOOKUP($A46,'Datos diarios'!$A$2:$B$366,2)+0),1)) -> 87.8407789 | Q47: =IF((Q$27*24-RIGHT($C$6,2))/24>0,HLOOKUP((Q$27*24-RIGHT($C$6,2))/24,'Azimut long.'!$C$2:$AX$367,(VLOOKUP($A46,'Datos diarios'!$A$2:$B$366,2)+1),1),HLOOKUP((Q$27*24-RIGHT($C$6,2))/24+1,'Azimut long.'!$C$2:$AX$367,(VLOOKUP($A46,'Datos diarios'!$A$2:$B$366,2)+0),1)) -> 92.72529568 | R47: =IF((R$27*24-RIGHT($C$6,2))/24>0,HLOOKUP((R$27*24-RIGHT($C$6,2))/24,'Azimut long.'!$C$2:$AX$367,(VLOOKUP($A46,'Datos diarios'!$A$2:$B$366,2)+1),1),HLOOKUP((R$27*24-RIGHT($C$6,2))/24+1,'Azimut long.'!$C$2:$AX$367,(VLOOKUP($A46,'Datos diarios'!$A$2:$B$366,2)+0),1)) -> 108.215671 | S47: =IF((S$27*24-RIGHT($C$6,2))/24>0,HLOOKUP((S$27*24-RIGHT($C$6,2))/24,'Azimut long.'!$C$2:$AX$367,(VLOOKUP($A46,'Datos diarios'!$A$2:$B$366,2)+1),1),HLOOKUP((S$27*24-RIGHT($C$6,2))/24+1,'Azimut long.'!$C$2:$AX$367,(VLOOKUP($A46,'Datos diarios'!$A$2:$B$366,2)+0),1)) -> 120.4032983 | T47: =IF((T$27*24-RIGHT($C$6,2))/24>0,HLOOKUP((T$27*24-RIGHT($C$6,2))/24,'Azimut long.'!$C$2:$AX$367,(VLOOKUP($A46,'Datos diarios'!$A$2:$B$366,2)+1),1),HLOOKUP((T$27*24-RIGHT($C$6,2))/24+1,'Azimut long.'!$C$2:$AX$367,(VLOOKUP($A46,'Datos diarios'!$A$2:$B$366,2)+0),1)) -> 127.4797575 | U47: =IF((U$27*24-RIGHT($C$6,2))/24>0,HLOOKUP((U$27*24-RIGHT($C$6,2))/24,'Azimut long.'!$C$2:$AX$367,(VLOOKUP($A46,'Datos diarios'!$A$2:$B$366,2)+1),1),HLOOKUP((U$27*24-RIGHT($C$6,2))/24+1,'Azimut long.'!$C$2:$AX$367,(VLOOKUP($A46,'Datos diarios'!$A$2:$B$366,2)+0),1)) -> 154.3719965 | V47: =IF((V$27*24-RIGHT($C$6,2))/24>0,HLOOKUP((V$27*24-RIGHT($C$6,2))/24,'Azimut long.'!$C$2:$AX$367,(VLOOKUP($A46,'Datos diarios'!$A$2:$B$366,2)+1),1),HLOOKUP((V$27*24-RIGHT($C$6,2))/24+1,'Azimut long.'!$C$2:$AX$367,(VLOOKUP($A46,'Datos diarios'!$A$2:$B$366,2)+0),1)) -> 176.9069896 | W47: =IF((W$27*24-RIGHT($C$6,2))/24>0,HLOOKUP((W$27*24-RIGHT($C$6,2))/24,'Azimut long.'!$C$2:$AX$367,(VLOOKUP($A46,'Datos diarios'!$A$2:$B$366,2)+1),1),HLOOKUP((W$27*24-RIGHT($C$6,2))/24+1,'Azimut long.'!$C$2:$AX$367,(VLOOKUP($A46,'Datos diarios'!$A$2:$B$366,2)+0),1)) -> 188.6294984 | X47: =IF((X$27*24-RIGHT($C$6,2))/24>0,HLOOKUP((X$27*24-RIGHT($C$6,2))/24,'Azimut long.'!$C$2:$AX$367,(VLOOKUP($A46,'Datos diarios'!$A$2:$B$366,2)+1),1),HLOOKUP((X$27*24-RIGHT($C$6,2))/24+1,'Azimut long.'!$C$2:$AX$367,(VLOOKUP($A46,'Datos diarios'!$A$2:$B$366,2)+0),1)) -> 219.9446911 | Y47: =IF((Y$27*24-RIGHT($C$6,2))/24>0,HLOOKUP((Y$27*24-RIGHT($C$6,2))/24,'Azimut long.'!$C$2:$AX$367,(VLOOKUP($A46,'Datos diarios'!$A$2:$B$366,2)+1),1),HLOOKUP((Y$27*24-RIGHT($C$6,2))/24+1,'Azimut long.'!$C$2:$AX$367,(VLOOKUP($A46,'Datos diarios'!$A$2:$B$366,2)+0),1)) -> 235.8862472 | Z47: =IF((Z$27*24-RIGHT($C$6,2))/24>0,HLOOKUP((Z$27*24-RIGHT($C$6,2))/24,'Azimut long.'!$C$2:$AX$367,(VLOOKUP($A46,'Datos diarios'!$A$2:$B$366,2)+1),1),HLOOKUP((Z$27*24-RIGHT($C$6,2))/24+1,'Azimut long.'!$C$2:$AX$367,(VLOOKUP($A46,'Datos diarios'!$A$2:$B$366,2)+0),1)) -> 248.6726708 | AA47: =IF((AA$27*24-RIGHT($C$6,2))/24>0,HLOOKUP((AA$27*24-RIGHT($C$6,2))/24,'Azimut long.'!$C$2:$AX$367,(VLOOKUP($A46,'Datos diarios'!$A$2:$B$366,2)+1),1),HLOOKUP((AA$27*24-RIGHT($C$6,2))/24+1,'Azimut long.'!$C$2:$AX$367,(VLOOKUP($A46,'Datos diarios'!$A$2:$B$366,2)+0),1)) -> 259.5197286 | AB47: =IF((AB$27*24-RIGHT($C$6,2))/24>0,HLOOKUP((AB$27*24-RIGHT($C$6,2))/24,'Azimut long.'!$C$2:$AX$367,(VLOOKUP($A46,'Datos diarios'!$A$2:$B$366,2)+1),1),HLOOKUP((AB$27*24-RIGHT($C$6,2))/24+1,'Azimut long.'!$C$2:$AX$367,(VLOOKUP($A46,'Datos diarios'!$A$2:$B$366,2)+0),1)) -> 269.4372507 | AC47: =IF((AC$27*24-RIGHT($C$6,2))/24>0,HLOOKUP((AC$27*24-RIGHT($C$6,2))/24,'Azimut long.'!$C$2:$AX$367,(VLOOKUP($A46,'Datos diarios'!$A$2:$B$366,2)+1),1),HLOOKUP((AC$27*24-RIGHT($C$6,2))/24+1,'Azimut long.'!$C$2:$AX$367,(VLOOKUP($A46,'Datos diarios'!$A$2:$B$366,2)+0),1)) -> 279.2582736 | AD47: =IF((AD$27*24-RIGHT($C$6,2))/24>0,HLOOKUP((AD$27*24-RIGHT($C$6,2))/24,'Azimut long.'!$C$2:$AX$367,(VLOOKUP($A46,'Datos diarios'!$A$2:$B$366,2)+1),1),HLOOKUP((AD$27*24-RIGHT($C$6,2))/24+1,'Azimut long.'!$C$2:$AX$367,(VLOOKUP($A46,'Datos diarios'!$A$2:$B$366,2)+0),1)) -> 289.7857098 | AE47: =IF((AE$27*24-RIGHT($C$6,2))/24>0,HLOOKUP((AE$27*24-RIGHT($C$6,2))/24,'Azimut long.'!$C$2:$AX$367,(VLOOKUP($A46,'Datos diarios'!$A$2:$B$366,2)+1),1),HLOOKUP((AE$27*24-RIGHT($C$6,2))/24+1,'Azimut long.'!$C$2:$AX$367,(VLOOKUP($A46,'Datos diarios'!$A$2:$B$366,2)+0),1)) -> 301.9372686
A48: 2021-10-21 | B48: =(VLOOKUP(VLOOKUP($A48,'Datos diarios'!$A$2:$B$366,2),'Datos diarios'!$B$2:$K$366,8,0)*24+RIGHT($C$6,2))/24 -> 08:35:19.724 | C48: =(VLOOKUP(VLOOKUP($A48,'Datos diarios'!$A$2:$B$366,2),'Datos diarios'!$B$2:$K$366,10,0)*24+RIGHT($C$6,2))/24 -> 19:23:16.977 | D48: =(VLOOKUP(VLOOKUP($A48,'Datos diarios'!$A$2:$B$366,2),'Datos diarios'!$B$2:$K$366,9,0)*24+RIGHT($C$6,2))/24 -> 13:59:18.350 | E48: =ROUND(VLOOKUP(VLOOKUP($A48,'Datos diarios'!$A$2:$B$366,2),'Datos diarios'!$B$2:$K$366,3,0),2)&"°" -> 39,17° | F48: Altura (°) | G48: =INDEX('Altura long.'!$AY$3:$AY$367,VLOOKUP($A48,'Datos diarios'!$A$2:$B$366,2)) -> 39.15652675 | H48: =IF((H$27*24-RIGHT($C$6,2))/24>0,HLOOKUP((H$27*24-RIGHT($C$6,2))/24,'Altura long.'!$C$2:$AX$367,(VLOOKUP($A48,'Datos diarios'!$A$2:$B$366,2)+1),1),HLOOKUP((H$27*24-RIGHT($C$6,2))/24+1,'Altura long.'!$C$2:$AX$367,(VLOOKUP($A48,'Datos diarios'!$A$2:$B$366,2)+0),1)) -> -45.26808641 | I48: =IF((I$27*24-RIGHT($C$6,2))/24>0,HLOOKUP((I$27*24-RIGHT($C$6,2))/24,'Altura long.'!$C$2:$AX$367,(VLOOKUP($A48,'Datos diarios'!$A$2:$B$366,2)+1),1),HLOOKUP((I$27*24-RIGHT($C$6,2))/24+1,'Altura long.'!$C$2:$AX$367,(VLOOKUP($A48,'Datos diarios'!$A$2:$B$366,2)+0),1)) -> -57.05375186 | J48: =IF((J$27*24-RIGHT($C$6,2))/24>0,HLOOKUP((J$27*24-RIGHT($C$6,2))/24,'Altura long.'!$C$2:$AX$367,(VLOOKUP($A48,'Datos diarios'!$A$2:$B$366,2)+1),1),HLOOKUP((J$27*24-RIGHT($C$6,2))/24+1,'Altura long.'!$C$2:$AX$367,(VLOOKUP($A48,'Datos diarios'!$A$2:$B$366,2)+0),1)) -> -59.8042338 | K48: =IF((K$27*24-RIGHT($C$6,2))/24>0,HLOOKUP((K$27*24-RIGHT($C$6,2))/24,'Altura long.'!$C$2:$AX$367,(VLOOKUP($A48,'Datos diarios'!$A$2:$B$366,2)+1),1),HLOOKUP((K$27*24-RIGHT($C$6,2))/24+1,'Altura long.'!$C$2:$AX$367,(VLOOKUP($A48,'Datos diarios'!$A$2:$B$366,2)+0),1)) -> -56.97325749 | L48: =IF((L$27*24-RIGHT($C$6,2))/24>0,HLOOKUP((L$27*24-RIGHT($C$6,2))/24,'Altura long.'!$C$2:$AX$367,(VLOOKUP($A48,'Datos diarios'!$A$2:$B$366,2)+1),1),HLOOKUP((L$27*24-RIGHT($C$6,2))/24+1,'Altura long.'!$C$2:$AX$367,(VLOOKUP($A48,'Datos diarios'!$A$2:$B$366,2)+0),1)) -> -49.75086388 | M48: =IF((M$27*24-RIGHT($C$6,2))/24>0,HLOOKUP((M$27*24-RIGHT($C$6,2))/24,'Altura long.'!$C$2:$AX$367,(VLOOKUP($A48,'Datos diarios'!$A$2:$B$366,2)+1),1),HLOOKUP((M$27*24-RIGHT($C$6,2))/24+1,'Altura long.'!$C$2:$AX$367,(VLOOKUP($A48,'Datos diarios'!$A$2:$B$366,2)+0),1)) -> -45.12542045 | N48: =IF((N$27*24-RIGHT($C$6,2))/24>0,HLOOKUP((N$27*24-RIGHT($C$6,2))/24,'Altura long.'!$C$2:$AX$367,(VLOOKUP($A48,'Datos diarios'!$A$2:$B$366,2)+1),1),HLOOKUP((N$27*24-RIGHT($C$6,2))/24+1,'Altura long.'!$C$2:$AX$367,(VLOOKUP($A48,'Datos diarios'!$A$2:$B$366,2)+0),1)) -> -34.75973259 | O48: =IF((O$27*24-RIGHT($C$6,2))/24>0,HLOOKUP((O$27*24-RIGHT($C$6,2))/24,'Altura long.'!$C$2:$AX$367,(VLOOKUP($A48,'Datos diarios'!$A$2:$B$366,2)+1),1),HLOOKUP((O$27*24-RIGHT($C$6,2))/24+1,'Altura long.'!$C$2:$AX$367,(VLOOKUP($A48,'Datos diarios'!$A$2:$B$366,2)+0),1)) -> -17.93044356 | P48: =IF((P$27*24-RIGHT($C$6,2))/24>0,HLOOKUP((P$27*24-RIGHT($C$6,2))/24,'Altura long.'!$C$2:$AX$367,(VLOOKUP($A48,'Datos diarios'!$A$2:$B$366,2)+1),1),HLOOKUP((P$27*24-RIGHT($C$6,2))/24+1,'Altura long.'!$C$2:$AX$367,(VLOOKUP($A48,'Datos diarios'!$A$2:$B$366,2)+0),1)) -> -6.550694678 | Q48: =IF((Q$27*24-RIGHT($C$6,2))/24>0,HLOOKUP((Q$27*24-RIGHT($C$6,2))/24,'Altura long.'!$C$2:$AX$367,(VLOOKUP($A48,'Datos diarios'!$A$2:$B$366,2)+1),1),HLOOKUP((Q$27*24-RIGHT($C$6,2))/24+1,'Altura long.'!$C$2:$AX$367,(VLOOKUP($A48,'Datos diarios'!$A$2:$B$366,2)+0),1)) -> -0.940733583 | R48: =IF((R$27*24-RIGHT($C$6,2))/24>0,HLOOKUP((R$27*24-RIGHT($C$6,2))/24,'Altura long.'!$C$2:$AX$367,(VLOOKUP($A48,'Datos diarios'!$A$2:$B$366,2)+1),1),HLOOKUP((R$27*24-RIGHT($C$6,2))/24+1,'Altura long.'!$C$2:$AX$367,(VLOOKUP($A48,'Datos diarios'!$A$2:$B$366,2)+0),1)) -> 15.05616718 | S48: =IF((S$27*24-RIGHT($C$6,2))/24>0,HLOOKUP((S$27*24-RIGHT($C$6,2))/24,'Altura long.'!$C$2:$AX$367,(VLOOKUP($A48,'Datos diarios'!$A$2:$B$366,2)+1),1),HLOOKUP((S$27*24-RIGHT($C$6,2))/24+1,'Altura long.'!$C$2:$AX$367,(VLOOKUP($A48,'Datos diarios'!$A$2:$B$366,2)+0),1)) -> 24.47682145 | T48: =IF((T$27*24-RIGHT($C$6,2))/24>0,HLOOKUP((T$27*24-RIGHT($C$6,2))/24,'Altura long.'!$C$2:$AX$367,(VLOOKUP($A48,'Datos diarios'!$A$2:$B$366,2)+1),1),HLOOKUP((T$27*24-RIGHT($C$6,2))/24+1,'Altura long.'!$C$2:$AX$367,(VLOOKUP($A48,'Datos diarios'!$A$2:$B$366,2)+0),1)) -> 28.59348894 | U48: =IF((U$27*24-RIGHT($C$6,2))/24>0,HLOOKUP((U$27*24-RIGHT($C$6,2))/24,'Altura long.'!$C$2:$AX$367,(VLOOKUP($A48,'Datos diarios'!$A$2:$B$366,2)+1),1),HLOOKUP((U$27*24-RIGHT($C$6,2))/24+1,'Altura long.'!$C$2:$AX$367,(VLOOKUP($A48,'Datos diarios'!$A$2:$B$366,2)+0),1)) -> 37.35254631 | V48: =IF((V$27*24-RIGHT($C$6,2))/24>0,HLOOKUP((V$27*24-RIGHT($C$6,2))/24,'Altura long.'!$C$2:$AX$367,(VLOOKUP($A48,'Datos diarios'!$A$2:$B$366,2)+1),1),HLOOKUP((V$27*24-RIGHT($C$6,2))/24+1,'Altura long.'!$C$2:$AX$367,(VLOOKUP($A48,'Datos diarios'!$A$2:$B$366,2)+0),1)) -> 39.15652675 | W48: =IF((W$27*24-RIGHT($C$6,2))/24>0,HLOOKUP((W$27*24-RIGHT($C$6,2))/24,'Altura long.'!$C$2:$AX$367,(VLOOKUP($A48,'Datos diarios'!$A$2:$B$366,2)+1),1),HLOOKUP((W$27*24-RIGHT($C$6,2))/24+1,'Altura long.'!$C$2:$AX$367,(VLOOKUP($A48,'Datos diarios'!$A$2:$B$366,2)+0),1)) -> 38.65588791 | X48: =IF((X$27*24-RIGHT($C$6,2))/24>0,HLOOKUP((X$27*24-RIGHT($C$6,2))/24,'Altura long.'!$C$2:$AX$367,(VLOOKUP($A48,'Datos diarios'!$A$2:$B$366,2)+1),1),HLOOKUP((X$27*24-RIGHT($C$6,2))/24+1,'Altura long.'!$C$2:$AX$367,(VLOOKUP($A48,'Datos diarios'!$A$2:$B$366,2)+0),1)) -> 31.97941694 | Y48: =IF((Y$27*24-RIGHT($C$6,2))/24>0,HLOOKUP((Y$27*24-RIGHT($C$6,2))/24,'Altura long.'!$C$2:$AX$367,(VLOOKUP($A48,'Datos diarios'!$A$2:$B$366,2)+1),1),HLOOKUP((Y$27*24-RIGHT($C$6,2))/24+1,'Altura long.'!$C$2:$AX$367,(VLOOKUP($A48,'Datos diarios'!$A$2:$B$366,2)+0),1)) -> 24.20309724 | Z48: =IF((Z$27*24-RIGHT($C$6,2))/24>0,HLOOKUP((Z$27*24-RIGHT($C$6,2))/24,'Altura long.'!$C$2:$AX$367,(VLOOKUP($A48,'Datos diarios'!$A$2:$B$366,2)+1),1),HLOOKUP((Z$27*24-RIGHT($C$6,2))/24+1,'Altura long.'!$C$2:$AX$367,(VLOOKUP($A48,'Datos diarios'!$A$2:$B$366,2)+0),1)) -> 14.73600492 | AA48: =IF((AA$27*24-RIGHT($C$6,2))/24>0,HLOOKUP((AA$27*24-RIGHT($C$6,2))/24,'Altura long.'!$C$2:$AX$367,(VLOOKUP($A48,'Datos diarios'!$A$2:$B$366,2)+1),1),HLOOKUP((AA$27*24-RIGHT($C$6,2))/24+1,'Altura long.'!$C$2:$AX$367,(VLOOKUP($A48,'Datos diarios'!$A$2:$B$366,2)+0),1)) -> 4.208978778 | AB48: =IF((AB$27*24-RIGHT($C$6,2))/24>0,HLOOKUP((AB$27*24-RIGHT($C$6,2))/24,'Altura long.'!$C$2:$AX$367,(VLOOKUP($A48,'Datos diarios'!$A$2:$B$366,2)+1),1),HLOOKUP((AB$27*24-RIGHT($C$6,2))/24+1,'Altura long.'!$C$2:$AX$367,(VLOOKUP($A48,'Datos diarios'!$A$2:$B$366,2)+0),1)) -> -6.927443062 | AC48: =IF((AC$27*24-RIGHT($C$6,2))/24>0,HLOOKUP((AC$27*24-RIGHT($C$6,2))/24,'Altura long.'!$C$2:$AX$367,(VLOOKUP($A48,'Datos diarios'!$A$2:$B$366,2)+1),1),HLOOKUP((AC$27*24-RIGHT($C$6,2))/24+1,'Altura long.'!$C$2:$AX$367,(VLOOKUP($A48,'Datos diarios'!$A$2:$B$366,2)+0),1)) -> -18.32688482 | AD48: =IF((AD$27*24-RIGHT($C$6,2))/24>0,HLOOKUP((AD$27*24-RIGHT($C$6,2))/24,'Altura long.'!$C$2:$AX$367,(VLOOKUP($A48,'Datos diarios'!$A$2:$B$366,2)+1),1),HLOOKUP((AD$27*24-RIGHT($C$6,2))/24+1,'Altura long.'!$C$2:$AX$367,(VLOOKUP($A48,'Datos diarios'!$A$2:$B$366,2)+0),1)) -> -29.66173272 | AE48: =IF((AE$27*24-RIGHT($C$6,2))/24>0,HLOOKUP((AE$27*24-RIGHT($C$6,2))/24,'Altura long.'!$C$2:$AX$367,(VLOOKUP($A48,'Datos diarios'!$A$2:$B$366,2)+1),1),HLOOKUP((AE$27*24-RIGHT($C$6,2))/24+1,'Altura long.'!$C$2:$AX$367,(VLOOKUP($A48,'Datos diarios'!$A$2:$B$366,2)+0),1)) -> -40.51459878
F49: Azimut (°) | G49: =INDEX('Azimut long.'!$AY$4:$AY$368,VLOOKUP($A48,'Datos diarios'!$A$2:$B$366,2)) -> 180.2625116 | H49: =IF((H$27*24-RIGHT($C$6,2))/24>0,HLOOKUP((H$27*24-RIGHT($C$6,2))/24,'Azimut long.'!$C$2:$AX$367,(VLOOKUP($A48,'Datos diarios'!$A$2:$B$366,2)+1),1),HLOOKUP((H$27*24-RIGHT($C$6,2))/24+1,'Azimut long.'!$C$2:$AX$367,(VLOOKUP($A48,'Datos diarios'!$A$2:$B$366,2)+0),1)) -> 301.9680192 | I49: =IF((I$27*24-RIGHT($C$6,2))/24>0,HLOOKUP((I$27*24-RIGHT($C$6,2))/24,'Azimut long.'!$C$2:$AX$367,(VLOOKUP($A48,'Datos diarios'!$A$2:$B$366,2)+1),1),HLOOKUP((I$27*24-RIGHT($C$6,2))/24+1,'Azimut long.'!$C$2:$AX$367,(VLOOKUP($A48,'Datos diarios'!$A$2:$B$366,2)+0),1)) -> 332.3809968 | J49: =IF((J$27*24-RIGHT($C$6,2))/24>0,HLOOKUP((J$27*24-RIGHT($C$6,2))/24,'Azimut long.'!$C$2:$AX$367,(VLOOKUP($A48,'Datos diarios'!$A$2:$B$366,2)+1),1),HLOOKUP((J$27*24-RIGHT($C$6,2))/24+1,'Azimut long.'!$C$2:$AX$367,(VLOOKUP($A48,'Datos diarios'!$A$2:$B$366,2)+0),1)) -> 0.2985391527 | K49: =IF((K$27*24-RIGHT($C$6,2))/24>0,HLOOKUP((K$27*24-RIGHT($C$6,2))/24,'Azimut long.'!$C$2:$AX$367,(VLOOKUP($A48,'Datos diarios'!$A$2:$B$366,2)+1),1),HLOOKUP((K$27*24-RIGHT($C$6,2))/24+1,'Azimut long.'!$C$2:$AX$367,(VLOOKUP($A48,'Datos diarios'!$A$2:$B$366,2)+0),1)) -> 28.15763921 | L49: =IF((L$27*24-RIGHT($C$6,2))/24>0,HLOOKUP((L$27*24-RIGHT($C$6,2))/24,'Azimut long.'!$C$2:$AX$367,(VLOOKUP($A48,'Datos diarios'!$A$2:$B$366,2)+1),1),HLOOKUP((L$27*24-RIGHT($C$6,2))/24+1,'Azimut long.'!$C$2:$AX$367,(VLOOKUP($A48,'Datos diarios'!$A$2:$B$366,2)+0),1)) -> 49.90911425 | M49: =IF((M$27*24-RIGHT($C$6,2))/24>0,HLOOKUP((M$27*24-RIGHT($C$6,2))/24,'Azimut long.'!$C$2:$AX$367,(VLOOKUP($A48,'Datos diarios'!$A$2:$B$366,2)+1),1),HLOOKUP((M$27*24-RIGHT($C$6,2))/24+1,'Azimut long.'!$C$2:$AX$367,(VLOOKUP($A48,'Datos diarios'!$A$2:$B$366,2)+0),1)) -> 58.42877948 | N49: =IF((N$27*24-RIGHT($C$6,2))/24>0,HLOOKUP((N$27*24-RIGHT($C$6,2))/24,'Azimut long.'!$C$2:$AX$367,(VLOOKUP($A48,'Datos diarios'!$A$2:$B$366,2)+1),1),HLOOKUP((N$27*24-RIGHT($C$6,2))/24+1,'Azimut long.'!$C$2:$AX$367,(VLOOKUP($A48,'Datos diarios'!$A$2:$B$366,2)+0),1)) -> 72.20822445 | O49: =IF((O$27*24-RIGHT($C$6,2))/24>0,HLOOKUP((O$27*24-RIGHT($C$6,2))/24,'Azimut long.'!$C$2:$AX$367,(VLOOKUP($A48,'Datos diarios'!$A$2:$B$366,2)+1),1),HLOOKUP((O$27*24-RIGHT($C$6,2))/24+1,'Azimut long.'!$C$2:$AX$367,(VLOOKUP($A48,'Datos diarios'!$A$2:$B$366,2)+0),1)) -> 88.36805802 | P49: =IF((P$27*24-RIGHT($C$6,2))/24>0,HLOOKUP((P$27*24-RIGHT($C$6,2))/24,'Azimut long.'!$C$2:$AX$367,(VLOOKUP($A48,'Datos diarios'!$A$2:$B$366,2)+1),1),HLOOKUP((P$27*24-RIGHT($C$6,2))/24+1,'Azimut long.'!$C$2:$AX$367,(VLOOKUP($A48,'Datos diarios'!$A$2:$B$366,2)+0),1)) -> 98.00247493 | Q49: =IF((Q$27*24-RIGHT($C$6,2))/24>0,HLOOKUP((Q$27*24-RIGHT($C$6,2))/24,'Azimut long.'!$C$2:$AX$367,(VLOOKUP($A48,'Datos diarios'!$A$2:$B$366,2)+1),1),HLOOKUP((Q$27*24-RIGHT($C$6,2))/24+1,'Azimut long.'!$C$2:$AX$367,(VLOOKUP($A48,'Datos diarios'!$A$2:$B$366,2)+0),1)) -> 102.8087303 | R49: =IF((R$27*24-RIGHT($C$6,2))/24>0,HLOOKUP((R$27*24-RIGHT($C$6,2))/24,'Azimut long.'!$C$2:$AX$367,(VLOOKUP($A48,'Datos diarios'!$A$2:$B$366,2)+1),1),HLOOKUP((R$27*24-RIGHT($C$6,2))/24+1,'Azimut long.'!$C$2:$AX$367,(VLOOKUP($A48,'Datos diarios'!$A$2:$B$366,2)+0),1)) -> 118.2746763 | S49: =IF((S$27*24-RIGHT($C$6,2))/24>0,HLOOKUP((S$27*24-RIGHT($C$6,2))/24,'Azimut long.'!$C$2:$AX$367,(VLOOKUP($A48,'Datos diarios'!$A$2:$B$366,2)+1),1),HLOOKUP((S$27*24-RIGHT($C$6,2))/24+1,'Azimut long.'!$C$2:$AX$367,(VLOOKUP($A48,'Datos diarios'!$A$2:$B$366,2)+0),1)) -> 130.3645838 | T49: =IF((T$27*24-RIGHT($C$6,2))/24>0,HLOOKUP((T$27*24-RIGHT($C$6,2))/24,'Azimut long.'!$C$2:$AX$367,(VLOOKUP($A48,'Datos diarios'!$A$2:$B$366,2)+1),1),HLOOKUP((T$27*24-RIGHT($C$6,2))/24+1,'Azimut long.'!$C$2:$AX$367,(VLOOKUP($A48,'Datos diarios'!$A$2:$B$366,2)+0),1)) -> 137.2116944 | U49: =IF((U$27*24-RIGHT($C$6,2))/24>0,HLOOKUP((U$27*24-RIGHT($C$6,2))/24,'Azimut long.'!$C$2:$AX$367,(VLOOKUP($A48,'Datos diarios'!$A$2:$B$366,2)+1),1),HLOOKUP((U$27*24-RIGHT($C$6,2))/24+1,'Azimut long.'!$C$2:$AX$367,(VLOOKUP($A48,'Datos diarios'!$A$2:$B$366,2)+0),1)) -> 161.5415867 | V49: =IF((V$27*24-RIGHT($C$6,2))/24>0,HLOOKUP((V$27*24-RIGHT($C$6,2))/24,'Azimut long.'!$C$2:$AX$367,(VLOOKUP($A48,'Datos diarios'!$A$2:$B$366,2)+1),1),HLOOKUP((V$27*24-RIGHT($C$6,2))/24+1,'Azimut long.'!$C$2:$AX$367,(VLOOKUP($A48,'Datos diarios'!$A$2:$B$366,2)+0),1)) -> 180.2190532 | W49: =IF((W$27*24-RIGHT($C$6,2))/24>0,HLOOKUP((W$27*24-RIGHT($C$6,2))/24,'Azimut long.'!$C$2:$AX$367,(VLOOKUP($A48,'Datos diarios'!$A$2:$B$366,2)+1),1),HLOOKUP((W$27*24-RIGHT($C$6,2))/24+1,'Azimut long.'!$C$2:$AX$367,(VLOOKUP($A48,'Datos diarios'!$A$2:$B$366,2)+0),1)) -> 189.679711 | X49: =IF((X$27*24-RIGHT($C$6,2))/24>0,HLOOKUP((X$27*24-RIGHT($C$6,2))/24,'Azimut long.'!$C$2:$AX$367,(VLOOKUP($A48,'Datos diarios'!$A$2:$B$366,2)+1),1),HLOOKUP((X$27*24-RIGHT($C$6,2))/24+1,'Azimut long.'!$C$2:$AX$367,(VLOOKUP($A48,'Datos diarios'!$A$2:$B$366,2)+0),1)) -> 215.641901 | Y49: =IF((Y$27*24-RIGHT($C$6,2))/24>0,HLOOKUP((Y$27*24-RIGHT($C$6,2))/24,'Azimut long.'!$C$2:$AX$367,(VLOOKUP($A48,'Datos diarios'!$A$2:$B$366,2)+1),1),HLOOKUP((Y$27*24-RIGHT($C$6,2))/24+1,'Azimut long.'!$C$2:$AX$367,(VLOOKUP($A48,'Datos diarios'!$A$2:$B$366,2)+0),1)) -> 229.8796596 | Z49: =IF((Z$27*24-RIGHT($C$6,2))/24>0,HLOOKUP((Z$27*24-RIGHT($C$6,2))/24,'Azimut long.'!$C$2:$AX$367,(VLOOKUP($A48,'Datos diarios'!$A$2:$B$366,2)+1),1),HLOOKUP((Z$27*24-RIGHT($C$6,2))/24+1,'Azimut long.'!$C$2:$AX$367,(VLOOKUP($A48,'Datos diarios'!$A$2:$B$366,2)+0),1)) -> 241.8993466 | AA49: =IF((AA$27*24-RIGHT($C$6,2))/24>0,HLOOKUP((AA$27*24-RIGHT($C$6,2))/24,'Azimut long.'!$C$2:$AX$367,(VLOOKUP($A48,'Datos diarios'!$A$2:$B$366,2)+1),1),HLOOKUP((AA$27*24-RIGHT($C$6,2))/24+1,'Azimut long.'!$C$2:$AX$367,(VLOOKUP($A48,'Datos diarios'!$A$2:$B$366,2)+0),1)) -> 252.3908134 | AB49: =IF((AB$27*24-RIGHT($C$6,2))/24>0,HLOOKUP((AB$27*24-RIGHT($C$6,2))/24,'Azimut long.'!$C$2:$AX$367,(VLOOKUP($A48,'Datos diarios'!$A$2:$B$366,2)+1),1),HLOOKUP((AB$27*24-RIGHT($C$6,2))/24+1,'Azimut long.'!$C$2:$AX$367,(VLOOKUP($A48,'Datos diarios'!$A$2:$B$366,2)+0),1)) -> 262.0800769 | AC49: =IF((AC$27*24-RIGHT($C$6,2))/24>0,HLOOKUP((AC$27*24-RIGHT($C$6,2))/24,'Azimut long.'!$C$2:$AX$367,(VLOOKUP($A48,'Datos diarios'!$A$2:$B$366,2)+1),1),HLOOKUP((AC$27*24-RIGHT($C$6,2))/24+1,'Azimut long.'!$C$2:$AX$367,(VLOOKUP($A48,'Datos diarios'!$A$2:$B$366,2)+0),1)) -> 271.6897505 | AD49: =IF((AD$27*24-RIGHT($C$6,2))/24>0,HLOOKUP((AD$27*24-RIGHT($C$6,2))/24,'Azimut long.'!$C$2:$AX$367,(VLOOKUP($A48,'Datos diarios'!$A$2:$B$366,2)+1),1),HLOOKUP((AD$27*24-RIGHT($C$6,2))/24+1,'Azimut long.'!$C$2:$AX$367,(VLOOKUP($A48,'Datos diarios'!$A$2:$B$366,2)+0),1)) -> 282.0481436 | AE49: =IF((AE$27*24-RIGHT($C$6,2))/24>0,HLOOKUP((AE$27*24-RIGHT($C$6,2))/24,'Azimut long.'!$C$2:$AX$367,(VLOOKUP($A48,'Datos diarios'!$A$2:$B$366,2)+1),1),HLOOKUP((AE$27*24-RIGHT($C$6,2))/24+1,'Azimut long.'!$C$2:$AX$367,(VLOOKUP($A48,'Datos diarios'!$A$2:$B$366,2)+0),1)) -> 294.3064596
A50: 2021-11-21 | B50: =(VLOOKUP(VLOOKUP($A50,'Datos diarios'!$A$2:$B$366,2),'Datos diarios'!$B$2:$K$366,8,0)*24+RIGHT($C$6,2))/24 -> 09:12:14.304 | C50: =(VLOOKUP(VLOOKUP($A50,'Datos diarios'!$A$2:$B$366,2),'Datos diarios'!$B$2:$K$366,10,0)*24+RIGHT($C$6,2))/24 -> 18:49:44.581 | D50: =(VLOOKUP(VLOOKUP($A50,'Datos diarios'!$A$2:$B$366,2),'Datos diarios'!$B$2:$K$366,9,0)*24+RIGHT($C$6,2))/24 -> 14:00:59.443 | E50: =ROUND(VLOOKUP(VLOOKUP($A50,'Datos diarios'!$A$2:$B$366,2),'Datos diarios'!$B$2:$K$366,3,0),2)&"°" -> 29,82° | F50: Altura (°) | G50: =INDEX('Altura long.'!$AY$3:$AY$367,VLOOKUP($A50,'Datos diarios'!$A$2:$B$366,2)) -> 29.81124624 | H50: =IF((H$27*24-RIGHT($C$6,2))/24>0,HLOOKUP((H$27*24-RIGHT($C$6,2))/24,'Altura long.'!$C$2:$AX$367,(VLOOKUP($A50,'Datos diarios'!$A$2:$B$366,2)+1),1),HLOOKUP((H$27*24-RIGHT($C$6,2))/24+1,'Altura long.'!$C$2:$AX$367,(VLOOKUP($A50,'Datos diarios'!$A$2:$B$366,2)+0),1)) -> -51.72326837 | I50: =IF((I$27*24-RIGHT($C$6,2))/24>0,HLOOKUP((I$27*24-RIGHT($C$6,2))/24,'Altura long.'!$C$2:$AX$367,(VLOOKUP($A50,'Datos diarios'!$A$2:$B$366,2)+1),1),HLOOKUP((I$27*24-RIGHT($C$6,2))/24+1,'Altura long.'!$C$2:$AX$367,(VLOOKUP($A50,'Datos diarios'!$A$2:$B$366,2)+0),1)) -> -65.46542272 | J50: =IF((J$27*24-RIGHT($C$6,2))/24>0,HLOOKUP((J$27*24-RIGHT($C$6,2))/24,'Altura long.'!$C$2:$AX$367,(VLOOKUP($A50,'Datos diarios'!$A$2:$B$366,2)+1),1),HLOOKUP((J$27*24-RIGHT($C$6,2))/24+1,'Altura long.'!$C$2:$AX$367,(VLOOKUP($A50,'Datos diarios'!$A$2:$B$366,2)+0),1)) -> -69.25664983 | K50: =IF((K$27*24-RIGHT($C$6,2))/24>0,HLOOKUP((K$27*24-RIGHT($C$6,2))/24,'Altura long.'!$C$2:$AX$367,(VLOOKUP($A50,'Datos diarios'!$A$2:$B$366,2)+1),1),HLOOKUP((K$27*24-RIGHT($C$6,2))/24+1,'Altura long.'!$C$2:$AX$367,(VLOOKUP($A50,'Datos diarios'!$A$2:$B$366,2)+0),1)) -> -65.67073524 | L50: =IF((L$27*24-RIGHT($C$6,2))/24>0,HLOOKUP((L$27*24-RIGHT($C$6,2))/24,'Altura long.'!$C$2:$AX$367,(VLOOKUP($A50,'Datos diarios'!$A$2:$B$366,2)+1),1),HLOOKUP((L$27*24-RIGHT($C$6,2))/24+1,'Altura long.'!$C$2:$AX$367,(VLOOKUP($A50,'Datos diarios'!$A$2:$B$366,2)+0),1)) -> -57.17947847 | M50: =IF((M$27*24-RIGHT($C$6,2))/24>0,HLOOKUP((M$27*24-RIGHT($C$6,2))/24,'Altura long.'!$C$2:$AX$367,(VLOOKUP($A50,'Datos diarios'!$A$2:$B$366,2)+1),1),HLOOKUP((M$27*24-RIGHT($C$6,2))/24+1,'Altura long.'!$C$2:$AX$367,(VLOOKUP($A50,'Datos diarios'!$A$2:$B$366,2)+0),1)) -> -52.05848377 | N50: =IF((N$27*24-RIGHT($C$6,2))/24>0,HLOOKUP((N$27*24-RIGHT($C$6,2))/24,'Altura long.'!$C$2:$AX$367,(VLOOKUP($A50,'Datos diarios'!$A$2:$B$366,2)+1),1),HLOOKUP((N$27*24-RIGHT($C$6,2))/24+1,'Altura long.'!$C$2:$AX$367,(VLOOKUP($A50,'Datos diarios'!$A$2:$B$366,2)+0),1)) -> -41.0674176 | O50: =IF((O$27*24-RIGHT($C$6,2))/24>0,HLOOKUP((O$27*24-RIGHT($C$6,2))/24,'Altura long.'!$C$2:$AX$367,(VLOOKUP($A50,'Datos diarios'!$A$2:$B$366,2)+1),1),HLOOKUP((O$27*24-RIGHT($C$6,2))/24+1,'Altura long.'!$C$2:$AX$367,(VLOOKUP($A50,'Datos diarios'!$A$2:$B$366,2)+0),1)) -> -24.00262529 | P50: =IF((P$27*24-RIGHT($C$6,2))/24>0,HLOOKUP((P$27*24-RIGHT($C$6,2))/24,'Altura long.'!$C$2:$AX$367,(VLOOKUP($A50,'Datos diarios'!$A$2:$B$366,2)+1),1),HLOOKUP((P$27*24-RIGHT($C$6,2))/24+1,'Altura long.'!$C$2:$AX$367,(VLOOKUP($A50,'Datos diarios'!$A$2:$B$366,2)+0),1)) -> -12.79731606 | Q50: =IF((Q$27*24-RIGHT($C$6,2))/24>0,HLOOKUP((Q$27*24-RIGHT($C$6,2))/24,'Altura long.'!$C$2:$AX$367,(VLOOKUP($A50,'Datos diarios'!$A$2:$B$366,2)+1),1),HLOOKUP((Q$27*24-RIGHT($C$6,2))/24+1,'Altura long.'!$C$2:$AX$367,(VLOOKUP($A50,'Datos diarios'!$A$2:$B$366,2)+0),1)) -> -7.354031819 | R50: =IF((R$27*24-RIGHT($C$6,2))/24>0,HLOOKUP((R$27*24-RIGHT($C$6,2))/24,'Altura long.'!$C$2:$AX$367,(VLOOKUP($A50,'Datos diarios'!$A$2:$B$366,2)+1),1),HLOOKUP((R$27*24-RIGHT($C$6,2))/24+1,'Altura long.'!$C$2:$AX$367,(VLOOKUP($A50,'Datos diarios'!$A$2:$B$366,2)+0),1)) -> 7.869884688 | S50: =IF((S$27*24-RIGHT($C$6,2))/24>0,HLOOKUP((S$27*24-RIGHT($C$6,2))/24,'Altura long.'!$C$2:$AX$367,(VLOOKUP($A50,'Datos diarios'!$A$2:$B$366,2)+1),1),HLOOKUP((S$27*24-RIGHT($C$6,2))/24+1,'Altura long.'!$C$2:$AX$367,(VLOOKUP($A50,'Datos diarios'!$A$2:$B$366,2)+0),1)) -> 16.59712051 | T50: =IF((T$27*24-RIGHT($C$6,2))/24>0,HLOOKUP((T$27*24-RIGHT($C$6,2))/24,'Altura long.'!$C$2:$AX$367,(VLOOKUP($A50,'Datos diarios'!$A$2:$B$366,2)+1),1),HLOOKUP((T$27*24-RIGHT($C$6,2))/24+1,'Altura long.'!$C$2:$AX$367,(VLOOKUP($A50,'Datos diarios'!$A$2:$B$366,2)+0),1)) -> 20.34354171 | U50: =IF((U$27*24-RIGHT($C$6,2))/24>0,HLOOKUP((U$27*24-RIGHT($C$6,2))/24,'Altura long.'!$C$2:$AX$367,(VLOOKUP($A50,'Datos diarios'!$A$2:$B$366,2)+1),1),HLOOKUP((U$27*24-RIGHT($C$6,2))/24+1,'Altura long.'!$C$2:$AX$367,(VLOOKUP($A50,'Datos diarios'!$A$2:$B$366,2)+0),1)) -> 28.17045088 | V50: =IF((V$27*24-RIGHT($C$6,2))/24>0,HLOOKUP((V$27*24-RIGHT($C$6,2))/24,'Altura long.'!$C$2:$AX$367,(VLOOKUP($A50,'Datos diarios'!$A$2:$B$366,2)+1),1),HLOOKUP((V$27*24-RIGHT($C$6,2))/24+1,'Altura long.'!$C$2:$AX$367,(VLOOKUP($A50,'Datos diarios'!$A$2:$B$366,2)+0),1)) -> 29.81124624 | W50: =IF((W$27*24-RIGHT($C$6,2))/24>0,HLOOKUP((W$27*24-RIGHT($C$6,2))/24,'Altura long.'!$C$2:$AX$367,(VLOOKUP($A50,'Datos diarios'!$A$2:$B$366,2)+1),1),HLOOKUP((W$27*24-RIGHT($C$6,2))/24+1,'Altura long.'!$C$2:$AX$367,(VLOOKUP($A50,'Datos diarios'!$A$2:$B$366,2)+0),1)) -> 29.42931477 | X50: =IF((X$27*24-RIGHT($C$6,2))/24>0,HLOOKUP((X$27*24-RIGHT($C$6,2))/24,'Altura long.'!$C$2:$AX$367,(VLOOKUP($A50,'Datos diarios'!$A$2:$B$366,2)+1),1),HLOOKUP((X$27*24-RIGHT($C$6,2))/24+1,'Altura long.'!$C$2:$AX$367,(VLOOKUP($A50,'Datos diarios'!$A$2:$B$366,2)+0),1)) -> 23.73394601 | Y50: =IF((Y$27*24-RIGHT($C$6,2))/24>0,HLOOKUP((Y$27*24-RIGHT($C$6,2))/24,'Altura long.'!$C$2:$AX$367,(VLOOKUP($A50,'Datos diarios'!$A$2:$B$366,2)+1),1),HLOOKUP((Y$27*24-RIGHT($C$6,2))/24+1,'Altura long.'!$C$2:$AX$367,(VLOOKUP($A50,'Datos diarios'!$A$2:$B$366,2)+0),1)) -> 16.81131096 | Z50: =IF((Z$27*24-RIGHT($C$6,2))/24>0,HLOOKUP((Z$27*24-RIGHT($C$6,2))/24,'Altura long.'!$C$2:$AX$367,(VLOOKUP($A50,'Datos diarios'!$A$2:$B$366,2)+1),1),HLOOKUP((Z$27*24-RIGHT($C$6,2))/24+1,'Altura long.'!$C$2:$AX$367,(VLOOKUP($A50,'Datos diarios'!$A$2:$B$366,2)+0),1)) -> 8.123233775 | AA50: =IF((AA$27*24-RIGHT($C$6,2))/24>0,HLOOKUP((AA$27*24-RIGHT($C$6,2))/24,'Altura long.'!$C$2:$AX$367,(VLOOKUP($A50,'Datos diarios'!$A$2:$B$366,2)+1),1),HLOOKUP((AA$27*24-RIGHT($C$6,2))/24+1,'Altura long.'!$C$2:$AX$367,(VLOOKUP($A50,'Datos diarios'!$A$2:$B$366,2)+0),1)) -> -1.787482701 | AB50: =IF((AB$27*24-RIGHT($C$6,2))/24>0,HLOOKUP((AB$27*24-RIGHT($C$6,2))/24,'Altura long.'!$C$2:$AX$367,(VLOOKUP($A50,'Datos diarios'!$A$2:$B$366,2)+1),1),HLOOKUP((AB$27*24-RIGHT($C$6,2))/24+1,'Altura long.'!$C$2:$AX$367,(VLOOKUP($A50,'Datos diarios'!$A$2:$B$366,2)+0),1)) -> -12.50448828 | AC50: =IF((AC$27*24-RIGHT($C$6,2))/24>0,HLOOKUP((AC$27*24-RIGHT($C$6,2))/24,'Altura long.'!$C$2:$AX$367,(VLOOKUP($A50,'Datos diarios'!$A$2:$B$366,2)+1),1),HLOOKUP((AC$27*24-RIGHT($C$6,2))/24+1,'Altura long.'!$C$2:$AX$367,(VLOOKUP($A50,'Datos diarios'!$A$2:$B$366,2)+0),1)) -> -23.70615001 | AD50: =IF((AD$27*24-RIGHT($C$6,2))/24>0,HLOOKUP((AD$27*24-RIGHT($C$6,2))/24,'Altura long.'!$C$2:$AX$367,(VLOOKUP($A50,'Datos diarios'!$A$2:$B$366,2)+1),1),HLOOKUP((AD$27*24-RIGHT($C$6,2))/24+1,'Altura long.'!$C$2:$AX$367,(VLOOKUP($A50,'Datos diarios'!$A$2:$B$366,2)+0),1)) -> -35.10989656 | AE50: =IF((AE$27*24-RIGHT($C$6,2))/24>0,HLOOKUP((AE$27*24-RIGHT($C$6,2))/24,'Altura long.'!$C$2:$AX$367,(VLOOKUP($A50,'Datos diarios'!$A$2:$B$366,2)+1),1),HLOOKUP((AE$27*24-RIGHT($C$6,2))/24+1,'Altura long.'!$C$2:$AX$367,(VLOOKUP($A50,'Datos diarios'!$A$2:$B$366,2)+0),1)) -> -46.38806781
F51: Azimut (°) | G51: =INDEX('Azimut long.'!$AY$4:$AY$368,VLOOKUP($A50,'Datos diarios'!$A$2:$B$366,2)) -> 179.662607 | H51: =IF((H$27*24-RIGHT($C$6,2))/24>0,HLOOKUP((H$27*24-RIGHT($C$6,2))/24,'Azimut long.'!$C$2:$AX$367,(VLOOKUP($A50,'Datos diarios'!$A$2:$B$366,2)+1),1),HLOOKUP((H$27*24-RIGHT($C$6,2))/24+1,'Azimut long.'!$C$2:$AX$367,(VLOOKUP($A50,'Datos diarios'!$A$2:$B$366,2)+0),1)) -> 291.5614111 | I51: =IF((I$27*24-RIGHT($C$6,2))/24>0,HLOOKUP((I$27*24-RIGHT($C$6,2))/24,'Azimut long.'!$C$2:$AX$367,(VLOOKUP($A50,'Datos diarios'!$A$2:$B$366,2)+1),1),HLOOKUP((I$27*24-RIGHT($C$6,2))/24+1,'Azimut long.'!$C$2:$AX$367,(VLOOKUP($A50,'Datos diarios'!$A$2:$B$366,2)+0),1)) -> 323.4960575 | J51: =IF((J$27*24-RIGHT($C$6,2))/24>0,HLOOKUP((J$27*24-RIGHT($C$6,2))/24,'Azimut long.'!$C$2:$AX$367,(VLOOKUP($A50,'Datos diarios'!$A$2:$B$366,2)+1),1),HLOOKUP((J$27*24-RIGHT($C$6,2))/24+1,'Azimut long.'!$C$2:$AX$367,(VLOOKUP($A50,'Datos diarios'!$A$2:$B$366,2)+0),1)) -> 359.4418123 | K51: =IF((K$27*24-RIGHT($C$6,2))/24>0,HLOOKUP((K$27*24-RIGHT($C$6,2))/24,'Azimut long.'!$C$2:$AX$367,(VLOOKUP($A50,'Datos diarios'!$A$2:$B$366,2)+1),1),HLOOKUP((K$27*24-RIGHT($C$6,2))/24+1,'Azimut long.'!$C$2:$AX$367,(VLOOKUP($A50,'Datos diarios'!$A$2:$B$366,2)+0),1)) -> 35.65837785 | L51: =IF((L$27*24-RIGHT($C$6,2))/24>0,HLOOKUP((L$27*24-RIGHT($C$6,2))/24,'Azimut long.'!$C$2:$AX$367,(VLOOKUP($A50,'Datos diarios'!$A$2:$B$366,2)+1),1),HLOOKUP((L$27*24-RIGHT($C$6,2))/24+1,'Azimut long.'!$C$2:$AX$367,(VLOOKUP($A50,'Datos diarios'!$A$2:$B$366,2)+0),1)) -> 59.62878125 | M51: =IF((M$27*24-RIGHT($C$6,2))/24>0,HLOOKUP((M$27*24-RIGHT($C$6,2))/24,'Azimut long.'!$C$2:$AX$367,(VLOOKUP($A50,'Datos diarios'!$A$2:$B$366,2)+1),1),HLOOKUP((M$27*24-RIGHT($C$6,2))/24+1,'Azimut long.'!$C$2:$AX$367,(VLOOKUP($A50,'Datos diarios'!$A$2:$B$366,2)+0),1)) -> 68.05456657 | N51: =IF((N$27*24-RIGHT($C$6,2))/24>0,HLOOKUP((N$27*24-RIGHT($C$6,2))/24,'Azimut long.'!$C$2:$AX$367,(VLOOKUP($A50,'Datos diarios'!$A$2:$B$366,2)+1),1),HLOOKUP((N$27*24-RIGHT($C$6,2))/24+1,'Azimut long.'!$C$2:$AX$367,(VLOOKUP($A50,'Datos diarios'!$A$2:$B$366,2)+0),1)) -> 81.0497399 | O51: =IF((O$27*24-RIGHT($C$6,2))/24>0,HLOOKUP((O$27*24-RIGHT($C$6,2))/24,'Azimut long.'!$C$2:$AX$367,(VLOOKUP($A50,'Datos diarios'!$A$2:$B$366,2)+1),1),HLOOKUP((O$27*24-RIGHT($C$6,2))/24+1,'Azimut long.'!$C$2:$AX$367,(VLOOKUP($A50,'Datos diarios'!$A$2:$B$366,2)+0),1)) -> 96.04308358 | P51: =IF((P$27*24-RIGHT($C$6,2))/24>0,HLOOKUP((P$27*24-RIGHT($C$6,2))/24,'Azimut long.'!$C$2:$AX$367,(VLOOKUP($A50,'Datos diarios'!$A$2:$B$366,2)+1),1),HLOOKUP((P$27*24-RIGHT($C$6,2))/24+1,'Azimut long.'!$C$2:$AX$367,(VLOOKUP($A50,'Datos diarios'!$A$2:$B$366,2)+0),1)) -> 105.1108584 | Q51: =IF((Q$27*24-RIGHT($C$6,2))/24>0,HLOOKUP((Q$27*24-RIGHT($C$6,2))/24,'Azimut long.'!$C$2:$AX$367,(VLOOKUP($A50,'Datos diarios'!$A$2:$B$366,2)+1),1),HLOOKUP((Q$27*24-RIGHT($C$6,2))/24+1,'Azimut long.'!$C$2:$AX$367,(VLOOKUP($A50,'Datos diarios'!$A$2:$B$366,2)+0),1)) -> 109.6781162 | R51: =IF((R$27*24-RIGHT($C$6,2))/24>0,HLOOKUP((R$27*24-RIGHT($C$6,2))/24,'Azimut long.'!$C$2:$AX$367,(VLOOKUP($A50,'Datos diarios'!$A$2:$B$366,2)+1),1),HLOOKUP((R$27*24-RIGHT($C$6,2))/24+1,'Azimut long.'!$C$2:$AX$367,(VLOOKUP($A50,'Datos diarios'!$A$2:$B$366,2)+0),1)) -> 124.421553 | S51: =IF((S$27*24-RIGHT($C$6,2))/24>0,HLOOKUP((S$27*24-RIGHT($C$6,2))/24,'Azimut long.'!$C$2:$AX$367,(VLOOKUP($A50,'Datos diarios'!$A$2:$B$366,2)+1),1),HLOOKUP((S$27*24-RIGHT($C$6,2))/24+1,'Azimut long.'!$C$2:$AX$367,(VLOOKUP($A50,'Datos diarios'!$A$2:$B$366,2)+0),1)) -> 135.7836523 | T51: =IF((T$27*24-RIGHT($C$6,2))/24>0,HLOOKUP((T$27*24-RIGHT($C$6,2))/24,'Azimut long.'!$C$2:$AX$367,(VLOOKUP($A50,'Datos diarios'!$A$2:$B$366,2)+1),1),HLOOKUP((T$27*24-RIGHT($C$6,2))/24+1,'Azimut long.'!$C$2:$AX$367,(VLOOKUP($A50,'Datos diarios'!$A$2:$B$366,2)+0),1)) -> 142.0916371 | U51: =IF((U$27*24-RIGHT($C$6,2))/24>0,HLOOKUP((U$27*24-RIGHT($C$6,2))/24,'Azimut long.'!$C$2:$AX$367,(VLOOKUP($A50,'Datos diarios'!$A$2:$B$366,2)+1),1),HLOOKUP((U$27*24-RIGHT($C$6,2))/24+1,'Azimut long.'!$C$2:$AX$367,(VLOOKUP($A50,'Datos diarios'!$A$2:$B$366,2)+0),1)) -> 163.6996893 | V51: =IF((V$27*24-RIGHT($C$6,2))/24>0,HLOOKUP((V$27*24-RIGHT($C$6,2))/24,'Azimut long.'!$C$2:$AX$367,(VLOOKUP($A50,'Datos diarios'!$A$2:$B$366,2)+1),1),HLOOKUP((V$27*24-RIGHT($C$6,2))/24+1,'Azimut long.'!$C$2:$AX$367,(VLOOKUP($A50,'Datos diarios'!$A$2:$B$366,2)+0),1)) -> 179.7322915 | W51: =IF((W$27*24-RIGHT($C$6,2))/24>0,HLOOKUP((W$27*24-RIGHT($C$6,2))/24,'Azimut long.'!$C$2:$AX$367,(VLOOKUP($A50,'Datos diarios'!$A$2:$B$366,2)+1),1),HLOOKUP((W$27*24-RIGHT($C$6,2))/24+1,'Azimut long.'!$C$2:$AX$367,(VLOOKUP($A50,'Datos diarios'!$A$2:$B$366,2)+0),1)) -> 187.8376381 | X51: =IF((X$27*24-RIGHT($C$6,2))/24>0,HLOOKUP((X$27*24-RIGHT($C$6,2))/24,'Azimut long.'!$C$2:$AX$367,(VLOOKUP($A50,'Datos diarios'!$A$2:$B$366,2)+1),1),HLOOKUP((X$27*24-RIGHT($C$6,2))/24+1,'Azimut long.'!$C$2:$AX$367,(VLOOKUP($A50,'Datos diarios'!$A$2:$B$366,2)+0),1)) -> 210.6620039 | Y51: =IF((Y$27*24-RIGHT($C$6,2))/24>0,HLOOKUP((Y$27*24-RIGHT($C$6,2))/24,'Azimut long.'!$C$2:$AX$367,(VLOOKUP($A50,'Datos diarios'!$A$2:$B$366,2)+1),1),HLOOKUP((Y$27*24-RIGHT($C$6,2))/24+1,'Azimut long.'!$C$2:$AX$367,(VLOOKUP($A50,'Datos diarios'!$A$2:$B$366,2)+0),1)) -> 223.7799177 | Z51: =IF((Z$27*24-RIGHT($C$6,2))/24>0,HLOOKUP((Z$27*24-RIGHT($C$6,2))/24,'Azimut long.'!$C$2:$AX$367,(VLOOKUP($A50,'Datos diarios'!$A$2:$B$366,2)+1),1),HLOOKUP((Z$27*24-RIGHT($C$6,2))/24+1,'Azimut long.'!$C$2:$AX$367,(VLOOKUP($A50,'Datos diarios'!$A$2:$B$366,2)+0),1)) -> 235.1756189 | AA51: =IF((AA$27*24-RIGHT($C$6,2))/24>0,HLOOKUP((AA$27*24-RIGHT($C$6,2))/24,'Azimut long.'!$C$2:$AX$367,(VLOOKUP($A50,'Datos diarios'!$A$2:$B$366,2)+1),1),HLOOKUP((AA$27*24-RIGHT($C$6,2))/24+1,'Azimut long.'!$C$2:$AX$367,(VLOOKUP($A50,'Datos diarios'!$A$2:$B$366,2)+0),1)) -> 245.2418316 | AB51: =IF((AB$27*24-RIGHT($C$6,2))/24>0,HLOOKUP((AB$27*24-RIGHT($C$6,2))/24,'Azimut long.'!$C$2:$AX$367,(VLOOKUP($A50,'Datos diarios'!$A$2:$B$366,2)+1),1),HLOOKUP((AB$27*24-RIGHT($C$6,2))/24+1,'Azimut long.'!$C$2:$AX$367,(VLOOKUP($A50,'Datos diarios'!$A$2:$B$366,2)+0),1)) -> 254.4992869 | AC51: =IF((AC$27*24-RIGHT($C$6,2))/24>0,HLOOKUP((AC$27*24-RIGHT($C$6,2))/24,'Azimut long.'!$C$2:$AX$367,(VLOOKUP($A50,'Datos diarios'!$A$2:$B$366,2)+1),1),HLOOKUP((AC$27*24-RIGHT($C$6,2))/24+1,'Azimut long.'!$C$2:$AX$367,(VLOOKUP($A50,'Datos diarios'!$A$2:$B$366,2)+0),1)) -> 263.5374799 | AD51: =IF((AD$27*24-RIGHT($C$6,2))/24>0,HLOOKUP((AD$27*24-RIGHT($C$6,2))/24,'Azimut long.'!$C$2:$AX$367,(VLOOKUP($A50,'Datos diarios'!$A$2:$B$366,2)+1),1),HLOOKUP((AD$27*24-RIGHT($C$6,2))/24+1,'Azimut long.'!$C$2:$AX$367,(VLOOKUP($A50,'Datos diarios'!$A$2:$B$366,2)+0),1)) -> 273.0992344 | AE51: =IF((AE$27*24-RIGHT($C$6,2))/24>0,HLOOKUP((AE$27*24-RIGHT($C$6,2))/24,'Azimut long.'!$C$2:$AX$367,(VLOOKUP($A50,'Datos diarios'!$A$2:$B$366,2)+1),1),HLOOKUP((AE$27*24-RIGHT($C$6,2))/24+1,'Azimut long.'!$C$2:$AX$367,(VLOOKUP($A50,'Datos diarios'!$A$2:$B$366,2)+0),1)) -> 284.3469851
A52: 2021-12-21 | B52: =(VLOOKUP(VLOOKUP($A52,'Datos diarios'!$A$2:$B$366,2),'Datos diarios'!$B$2:$K$366,8,0)*24+RIGHT($C$6,2))/24 -> 09:39:13.479 | C52: =(VLOOKUP(VLOOKUP($A52,'Datos diarios'!$A$2:$B$366,2),'Datos diarios'!$B$2:$K$366,10,0)*24+RIGHT($C$6,2))/24 -> 18:46:03.778 | D52: =(VLOOKUP(VLOOKUP($A52,'Datos diarios'!$A$2:$B$366,2),'Datos diarios'!$B$2:$K$366,9,0)*24+RIGHT($C$6,2))/24 -> 14:12:38.628 | E52: =ROUND(VLOOKUP(VLOOKUP($A52,'Datos diarios'!$A$2:$B$366,2),'Datos diarios'!$B$2:$K$366,3,0),2)&"°" -> 26,16° | F52: Altura (°) | G52: =INDEX('Altura long.'!$AY$3:$AY$367,VLOOKUP($A52,'Datos diarios'!$A$2:$B$366,2)) -> 26.00300186 | H52: =IF((H$27*24-RIGHT($C$6,2))/24>0,HLOOKUP((H$27*24-RIGHT($C$6,2))/24,'Altura long.'!$C$2:$AX$367,(VLOOKUP($A52,'Datos diarios'!$A$2:$B$366,2)+1),1),HLOOKUP((H$27*24-RIGHT($C$6,2))/24+1,'Altura long.'!$C$2:$AX$367,(VLOOKUP($A52,'Datos diarios'!$A$2:$B$366,2)+0),1)) -> -51.99636817 | I52: =IF((I$27*24-RIGHT($C$6,2))/24>0,HLOOKUP((I$27*24-RIGHT($C$6,2))/24,'Altura long.'!$C$2:$AX$367,(VLOOKUP($A52,'Datos diarios'!$A$2:$B$366,2)+1),1),HLOOKUP((I$27*24-RIGHT($C$6,2))/24+1,'Altura long.'!$C$2:$AX$367,(VLOOKUP($A52,'Datos diarios'!$A$2:$B$366,2)+0),1)) -> -67.06751274 | J52: =IF((J$27*24-RIGHT($C$6,2))/24>0,HLOOKUP((J$27*24-RIGHT($C$6,2))/24,'Altura long.'!$C$2:$AX$367,(VLOOKUP($A52,'Datos diarios'!$A$2:$B$366,2)+1),1),HLOOKUP((J$27*24-RIGHT($C$6,2))/24+1,'Altura long.'!$C$2:$AX$367,(VLOOKUP($A52,'Datos diarios'!$A$2:$B$366,2)+0),1)) -> -73.46627025 | K52: =IF((K$27*24-RIGHT($C$6,2))/24>0,HLOOKUP((K$27*24-RIGHT($C$6,2))/24,'Altura long.'!$C$2:$AX$367,(VLOOKUP($A52,'Datos diarios'!$A$2:$B$366,2)+1),1),HLOOKUP((K$27*24-RIGHT($C$6,2))/24+1,'Altura long.'!$C$2:$AX$367,(VLOOKUP($A52,'Datos diarios'!$A$2:$B$366,2)+0),1)) -> -70.08393471 | L52: =IF((L$27*24-RIGHT($C$6,2))/24>0,HLOOKUP((L$27*24-RIGHT($C$6,2))/24,'Altura long.'!$C$2:$AX$367,(VLOOKUP($A52,'Datos diarios'!$A$2:$B$366,2)+1),1),HLOOKUP((L$27*24-RIGHT($C$6,2))/24+1,'Altura long.'!$C$2:$AX$367,(VLOOKUP($A52,'Datos diarios'!$A$2:$B$366,2)+0),1)) -> -61.67401757 | M52: =IF((M$27*24-RIGHT($C$6,2))/24>0,HLOOKUP((M$27*24-RIGHT($C$6,2))/24,'Altura long.'!$C$2:$AX$367,(VLOOKUP($A52,'Datos diarios'!$A$2:$B$366,2)+1),1),HLOOKUP((M$27*24-RIGHT($C$6,2))/24+1,'Altura long.'!$C$2:$AX$367,(VLOOKUP($A52,'Datos diarios'!$A$2:$B$366,2)+0),1)) -> -56.49984938 | N52: =IF((N$27*24-RIGHT($C$6,2))/24>0,HLOOKUP((N$27*24-RIGHT($C$6,2))/24,'Altura long.'!$C$2:$AX$367,(VLOOKUP($A52,'Datos diarios'!$A$2:$B$366,2)+1),1),HLOOKUP((N$27*24-RIGHT($C$6,2))/24+1,'Altura long.'!$C$2:$AX$367,(VLOOKUP($A52,'Datos diarios'!$A$2:$B$366,2)+0),1)) -> -45.42904415 | O52: =IF((O$27*24-RIGHT($C$6,2))/24>0,HLOOKUP((O$27*24-RIGHT($C$6,2))/24,'Altura long.'!$C$2:$AX$367,(VLOOKUP($A52,'Datos diarios'!$A$2:$B$366,2)+1),1),HLOOKUP((O$27*24-RIGHT($C$6,2))/24+1,'Altura long.'!$C$2:$AX$367,(VLOOKUP($A52,'Datos diarios'!$A$2:$B$366,2)+0),1)) -> -28.36719868 | P52: =IF((P$27*24-RIGHT($C$6,2))/24>0,HLOOKUP((P$27*24-RIGHT($C$6,2))/24,'Altura long.'!$C$2:$AX$367,(VLOOKUP($A52,'Datos diarios'!$A$2:$B$366,2)+1),1),HLOOKUP((P$27*24-RIGHT($C$6,2))/24+1,'Altura long.'!$C$2:$AX$367,(VLOOKUP($A52,'Datos diarios'!$A$2:$B$366,2)+0),1)) -> -17.22158176 | Q52: =IF((Q$27*24-RIGHT($C$6,2))/24>0,HLOOKUP((Q$27*24-RIGHT($C$6,2))/24,'Altura long.'!$C$2:$AX$367,(VLOOKUP($A52,'Datos diarios'!$A$2:$B$366,2)+1),1),HLOOKUP((Q$27*24-RIGHT($C$6,2))/24+1,'Altura long.'!$C$2:$AX$367,(VLOOKUP($A52,'Datos diarios'!$A$2:$B$366,2)+0),1)) -> -11.81753785 | R52: =IF((R$27*24-RIGHT($C$6,2))/24>0,HLOOKUP((R$27*24-RIGHT($C$6,2))/24,'Altura long.'!$C$2:$AX$367,(VLOOKUP($A52,'Datos diarios'!$A$2:$B$366,2)+1),1),HLOOKUP((R$27*24-RIGHT($C$6,2))/24+1,'Altura long.'!$C$2:$AX$367,(VLOOKUP($A52,'Datos diarios'!$A$2:$B$366,2)+0),1)) -> 3.288655707 | S52: =IF((S$27*24-RIGHT($C$6,2))/24>0,HLOOKUP((S$27*24-RIGHT($C$6,2))/24,'Altura long.'!$C$2:$AX$367,(VLOOKUP($A52,'Datos diarios'!$A$2:$B$366,2)+1),1),HLOOKUP((S$27*24-RIGHT($C$6,2))/24+1,'Altura long.'!$C$2:$AX$367,(VLOOKUP($A52,'Datos diarios'!$A$2:$B$366,2)+0),1)) -> 11.98389618 | T52: =IF((T$27*24-RIGHT($C$6,2))/24>0,HLOOKUP((T$27*24-RIGHT($C$6,2))/24,'Altura long.'!$C$2:$AX$367,(VLOOKUP($A52,'Datos diarios'!$A$2:$B$366,2)+1),1),HLOOKUP((T$27*24-RIGHT($C$6,2))/24+1,'Altura long.'!$C$2:$AX$367,(VLOOKUP($A52,'Datos diarios'!$A$2:$B$366,2)+0),1)) -> 15.74873382 | U52: =IF((U$27*24-RIGHT($C$6,2))/24>0,HLOOKUP((U$27*24-RIGHT($C$6,2))/24,'Altura long.'!$C$2:$AX$367,(VLOOKUP($A52,'Datos diarios'!$A$2:$B$366,2)+1),1),HLOOKUP((U$27*24-RIGHT($C$6,2))/24+1,'Altura long.'!$C$2:$AX$367,(VLOOKUP($A52,'Datos diarios'!$A$2:$B$366,2)+0),1)) -> 23.88039927 | V52: =IF((V$27*24-RIGHT($C$6,2))/24>0,HLOOKUP((V$27*24-RIGHT($C$6,2))/24,'Altura long.'!$C$2:$AX$367,(VLOOKUP($A52,'Datos diarios'!$A$2:$B$366,2)+1),1),HLOOKUP((V$27*24-RIGHT($C$6,2))/24+1,'Altura long.'!$C$2:$AX$367,(VLOOKUP($A52,'Datos diarios'!$A$2:$B$366,2)+0),1)) -> 26.00300186 | W52: =IF((W$27*24-RIGHT($C$6,2))/24>0,HLOOKUP((W$27*24-RIGHT($C$6,2))/24,'Altura long.'!$C$2:$AX$367,(VLOOKUP($A52,'Datos diarios'!$A$2:$B$366,2)+1),1),HLOOKUP((W$27*24-RIGHT($C$6,2))/24+1,'Altura long.'!$C$2:$AX$367,(VLOOKUP($A52,'Datos diarios'!$A$2:$B$366,2)+0),1)) -> 25.94297824 | X52: =IF((X$27*24-RIGHT($C$6,2))/24>0,HLOOKUP((X$27*24-RIGHT($C$6,2))/24,'Altura long.'!$C$2:$AX$367,(VLOOKUP($A52,'Datos diarios'!$A$2:$B$366,2)+1),1),HLOOKUP((X$27*24-RIGHT($C$6,2))/24+1,'Altura long.'!$C$2:$AX$367,(VLOOKUP($A52,'Datos diarios'!$A$2:$B$366,2)+0),1)) -> 21.37616501 | Y52: =IF((Y$27*24-RIGHT($C$6,2))/24>0,HLOOKUP((Y$27*24-RIGHT($C$6,2))/24,'Altura long.'!$C$2:$AX$367,(VLOOKUP($A52,'Datos diarios'!$A$2:$B$366,2)+1),1),HLOOKUP((Y$27*24-RIGHT($C$6,2))/24+1,'Altura long.'!$C$2:$AX$367,(VLOOKUP($A52,'Datos diarios'!$A$2:$B$366,2)+0),1)) -> 15.18421941 | Z52: =IF((Z$27*24-RIGHT($C$6,2))/24>0,HLOOKUP((Z$27*24-RIGHT($C$6,2))/24,'Altura long.'!$C$2:$AX$367,(VLOOKUP($A52,'Datos diarios'!$A$2:$B$366,2)+1),1),HLOOKUP((Z$27*24-RIGHT($C$6,2))/24+1,'Altura long.'!$C$2:$AX$367,(VLOOKUP($A52,'Datos diarios'!$A$2:$B$366,2)+0),1)) -> 7.117304157 | AA52: =IF((AA$27*24-RIGHT($C$6,2))/24>0,HLOOKUP((AA$27*24-RIGHT($C$6,2))/24,'Altura long.'!$C$2:$AX$367,(VLOOKUP($A52,'Datos diarios'!$A$2:$B$366,2)+1),1),HLOOKUP((AA$27*24-RIGHT($C$6,2))/24+1,'Altura long.'!$C$2:$AX$367,(VLOOKUP($A52,'Datos diarios'!$A$2:$B$366,2)+0),1)) -> -2.30348784 | AB52: =IF((AB$27*24-RIGHT($C$6,2))/24>0,HLOOKUP((AB$27*24-RIGHT($C$6,2))/24,'Altura long.'!$C$2:$AX$367,(VLOOKUP($A52,'Datos diarios'!$A$2:$B$366,2)+1),1),HLOOKUP((AB$27*24-RIGHT($C$6,2))/24+1,'Altura long.'!$C$2:$AX$367,(VLOOKUP($A52,'Datos diarios'!$A$2:$B$366,2)+0),1)) -> -12.66044193 | AC52: =IF((AC$27*24-RIGHT($C$6,2))/24>0,HLOOKUP((AC$27*24-RIGHT($C$6,2))/24,'Altura long.'!$C$2:$AX$367,(VLOOKUP($A52,'Datos diarios'!$A$2:$B$366,2)+1),1),HLOOKUP((AC$27*24-RIGHT($C$6,2))/24+1,'Altura long.'!$C$2:$AX$367,(VLOOKUP($A52,'Datos diarios'!$A$2:$B$366,2)+0),1)) -> -23.63000403 | AD52: =IF((AD$27*24-RIGHT($C$6,2))/24>0,HLOOKUP((AD$27*24-RIGHT($C$6,2))/24,'Altura long.'!$C$2:$AX$367,(VLOOKUP($A52,'Datos diarios'!$A$2:$B$366,2)+1),1),HLOOKUP((AD$27*24-RIGHT($C$6,2))/24+1,'Altura long.'!$C$2:$AX$367,(VLOOKUP($A52,'Datos diarios'!$A$2:$B$366,2)+0),1)) -> -34.94317823 | AE52: =IF((AE$27*24-RIGHT($C$6,2))/24>0,HLOOKUP((AE$27*24-RIGHT($C$6,2))/24,'Altura long.'!$C$2:$AX$367,(VLOOKUP($A52,'Datos diarios'!$A$2:$B$366,2)+1),1),HLOOKUP((AE$27*24-RIGHT($C$6,2))/24+1,'Altura long.'!$C$2:$AX$367,(VLOOKUP($A52,'Datos diarios'!$A$2:$B$366,2)+0),1)) -> -46.32195155
F53: Azimut (°) | G53: =INDEX('Azimut long.'!$AY$4:$AY$368,VLOOKUP($A52,'Datos diarios'!$A$2:$B$366,2)) -> 176.6612606 | H53: =IF((H$27*24-RIGHT($C$6,2))/24>0,HLOOKUP((H$27*24-RIGHT($C$6,2))/24,'Azimut long.'!$C$2:$AX$367,(VLOOKUP($A52,'Datos diarios'!$A$2:$B$366,2)+1),1),HLOOKUP((H$27*24-RIGHT($C$6,2))/24+1,'Azimut long.'!$C$2:$AX$367,(VLOOKUP($A52,'Datos diarios'!$A$2:$B$366,2)+0),1)) -> 284.1775209 | I53: =IF((I$27*24-RIGHT($C$6,2))/24>0,HLOOKUP((I$27*24-RIGHT($C$6,2))/24,'Azimut long.'!$C$2:$AX$367,(VLOOKUP($A52,'Datos diarios'!$A$2:$B$366,2)+1),1),HLOOKUP((I$27*24-RIGHT($C$6,2))/24+1,'Azimut long.'!$C$2:$AX$367,(VLOOKUP($A52,'Datos diarios'!$A$2:$B$366,2)+0),1)) -> 313.210137 | J53: =IF((J$27*24-RIGHT($C$6,2))/24>0,HLOOKUP((J$27*24-RIGHT($C$6,2))/24,'Azimut long.'!$C$2:$AX$367,(VLOOKUP($A52,'Datos diarios'!$A$2:$B$366,2)+1),1),HLOOKUP((J$27*24-RIGHT($C$6,2))/24+1,'Azimut long.'!$C$2:$AX$367,(VLOOKUP($A52,'Datos diarios'!$A$2:$B$366,2)+0),1)) -> 350.6406506 | K53: =IF((K$27*24-RIGHT($C$6,2))/24>0,HLOOKUP((K$27*24-RIGHT($C$6,2))/24,'Azimut long.'!$C$2:$AX$367,(VLOOKUP($A52,'Datos diarios'!$A$2:$B$366,2)+1),1),HLOOKUP((K$27*24-RIGHT($C$6,2))/24+1,'Azimut long.'!$C$2:$AX$367,(VLOOKUP($A52,'Datos diarios'!$A$2:$B$366,2)+0),1)) -> 33.45672444 | L53: =IF((L$27*24-RIGHT($C$6,2))/24>0,HLOOKUP((L$27*24-RIGHT($C$6,2))/24,'Azimut long.'!$C$2:$AX$367,(VLOOKUP($A52,'Datos diarios'!$A$2:$B$366,2)+1),1),HLOOKUP((L$27*24-RIGHT($C$6,2))/24+1,'Azimut long.'!$C$2:$AX$367,(VLOOKUP($A52,'Datos diarios'!$A$2:$B$366,2)+0),1)) -> 60.87161811 | M53: =IF((M$27*24-RIGHT($C$6,2))/24>0,HLOOKUP((M$27*24-RIGHT($C$6,2))/24,'Azimut long.'!$C$2:$AX$367,(VLOOKUP($A52,'Datos diarios'!$A$2:$B$366,2)+1),1),HLOOKUP((M$27*24-RIGHT($C$6,2))/24+1,'Azimut long.'!$C$2:$AX$367,(VLOOKUP($A52,'Datos diarios'!$A$2:$B$366,2)+0),1)) -> 69.80578138 | N53: =IF((N$27*24-RIGHT($C$6,2))/24>0,HLOOKUP((N$27*24-RIGHT($C$6,2))/24,'Azimut long.'!$C$2:$AX$367,(VLOOKUP($A52,'Datos diarios'!$A$2:$B$366,2)+1),1),HLOOKUP((N$27*24-RIGHT($C$6,2))/24+1,'Azimut long.'!$C$2:$AX$367,(VLOOKUP($A52,'Datos diarios'!$A$2:$B$366,2)+0),1)) -> 82.97440054 | O53: =IF((O$27*24-RIGHT($C$6,2))/24>0,HLOOKUP((O$27*24-RIGHT($C$6,2))/24,'Azimut long.'!$C$2:$AX$367,(VLOOKUP($A52,'Datos diarios'!$A$2:$B$366,2)+1),1),HLOOKUP((O$27*24-RIGHT($C$6,2))/24+1,'Azimut long.'!$C$2:$AX$367,(VLOOKUP($A52,'Datos diarios'!$A$2:$B$366,2)+0),1)) -> 97.65405339 | P53: =IF((P$27*24-RIGHT($C$6,2))/24>0,HLOOKUP((P$27*24-RIGHT($C$6,2))/24,'Azimut long.'!$C$2:$AX$367,(VLOOKUP($A52,'Datos diarios'!$A$2:$B$366,2)+1),1),HLOOKUP((P$27*24-RIGHT($C$6,2))/24+1,'Azimut long.'!$C$2:$AX$367,(VLOOKUP($A52,'Datos diarios'!$A$2:$B$366,2)+0),1)) -> 106.4279125 | Q53: =IF((Q$27*24-RIGHT($C$6,2))/24>0,HLOOKUP((Q$27*24-RIGHT($C$6,2))/24,'Azimut long.'!$C$2:$AX$367,(VLOOKUP($A52,'Datos diarios'!$A$2:$B$366,2)+1),1),HLOOKUP((Q$27*24-RIGHT($C$6,2))/24+1,'Azimut long.'!$C$2:$AX$367,(VLOOKUP($A52,'Datos diarios'!$A$2:$B$366,2)+0),1)) -> 110.830122 | R53: =IF((R$27*24-RIGHT($C$6,2))/24>0,HLOOKUP((R$27*24-RIGHT($C$6,2))/24,'Azimut long.'!$C$2:$AX$367,(VLOOKUP($A52,'Datos diarios'!$A$2:$B$366,2)+1),1),HLOOKUP((R$27*24-RIGHT($C$6,2))/24+1,'Azimut long.'!$C$2:$AX$367,(VLOOKUP($A52,'Datos diarios'!$A$2:$B$366,2)+0),1)) -> 124.9490876 | S53: =IF((S$27*24-RIGHT($C$6,2))/24>0,HLOOKUP((S$27*24-RIGHT($C$6,2))/24,'Azimut long.'!$C$2:$AX$367,(VLOOKUP($A52,'Datos diarios'!$A$2:$B$366,2)+1),1),HLOOKUP((S$27*24-RIGHT($C$6,2))/24+1,'Azimut long.'!$C$2:$AX$367,(VLOOKUP($A52,'Datos diarios'!$A$2:$B$366,2)+0),1)) -> 135.7121981 | T53: =IF((T$27*24-RIGHT($C$6,2))/24>0,HLOOKUP((T$27*24-RIGHT($C$6,2))/24,'Azimut long.'!$C$2:$AX$367,(VLOOKUP($A52,'Datos diarios'!$A$2:$B$366,2)+1),1),HLOOKUP((T$27*24-RIGHT($C$6,2))/24+1,'Azimut long.'!$C$2:$AX$367,(VLOOKUP($A52,'Datos diarios'!$A$2:$B$366,2)+0),1)) -> 141.6426924 | U53: =IF((U$27*24-RIGHT($C$6,2))/24>0,HLOOKUP((U$27*24-RIGHT($C$6,2))/24,'Azimut long.'!$C$2:$AX$367,(VLOOKUP($A52,'Datos diarios'!$A$2:$B$366,2)+1),1),HLOOKUP((U$27*24-RIGHT($C$6,2))/24+1,'Azimut long.'!$C$2:$AX$367,(VLOOKUP($A52,'Datos diarios'!$A$2:$B$366,2)+0),1)) -> 161.8038163 | V53: =IF((V$27*24-RIGHT($C$6,2))/24>0,HLOOKUP((V$27*24-RIGHT($C$6,2))/24,'Azimut long.'!$C$2:$AX$367,(VLOOKUP($A52,'Datos diarios'!$A$2:$B$366,2)+1),1),HLOOKUP((V$27*24-RIGHT($C$6,2))/24+1,'Azimut long.'!$C$2:$AX$367,(VLOOKUP($A52,'Datos diarios'!$A$2:$B$366,2)+0),1)) -> 176.7794654 | W53: =IF((W$27*24-RIGHT($C$6,2))/24>0,HLOOKUP((W$27*24-RIGHT($C$6,2))/24,'Azimut long.'!$C$2:$AX$367,(VLOOKUP($A52,'Datos diarios'!$A$2:$B$366,2)+1),1),HLOOKUP((W$27*24-RIGHT($C$6,2))/24+1,'Azimut long.'!$C$2:$AX$367,(VLOOKUP($A52,'Datos diarios'!$A$2:$B$366,2)+0),1)) -> 184.4208096 | X53: =IF((X$27*24-RIGHT($C$6,2))/24>0,HLOOKUP((X$27*24-RIGHT($C$6,2))/24,'Azimut long.'!$C$2:$AX$367,(VLOOKUP($A52,'Datos diarios'!$A$2:$B$366,2)+1),1),HLOOKUP((X$27*24-RIGHT($C$6,2))/24+1,'Azimut long.'!$C$2:$AX$367,(VLOOKUP($A52,'Datos diarios'!$A$2:$B$366,2)+0),1)) -> 206.3765412 | Y53: =IF((Y$27*24-RIGHT($C$6,2))/24>0,HLOOKUP((Y$27*24-RIGHT($C$6,2))/24,'Azimut long.'!$C$2:$AX$367,(VLOOKUP($A52,'Datos diarios'!$A$2:$B$366,2)+1),1),HLOOKUP((Y$27*24-RIGHT($C$6,2))/24+1,'Azimut long.'!$C$2:$AX$367,(VLOOKUP($A52,'Datos diarios'!$A$2:$B$366,2)+0),1)) -> 219.3135041 | Z53: =IF((Z$27*24-RIGHT($C$6,2))/24>0,HLOOKUP((Z$27*24-RIGHT($C$6,2))/24,'Azimut long.'!$C$2:$AX$367,(VLOOKUP($A52,'Datos diarios'!$A$2:$B$366,2)+1),1),HLOOKUP((Z$27*24-RIGHT($C$6,2))/24+1,'Azimut long.'!$C$2:$AX$367,(VLOOKUP($A52,'Datos diarios'!$A$2:$B$366,2)+0),1)) -> 230.6765087 | AA53: =IF((AA$27*24-RIGHT($C$6,2))/24>0,HLOOKUP((AA$27*24-RIGHT($C$6,2))/24,'Azimut long.'!$C$2:$AX$367,(VLOOKUP($A52,'Datos diarios'!$A$2:$B$366,2)+1),1),HLOOKUP((AA$27*24-RIGHT($C$6,2))/24+1,'Azimut long.'!$C$2:$AX$367,(VLOOKUP($A52,'Datos diarios'!$A$2:$B$366,2)+0),1)) -> 240.7183219 | AB53: =IF((AB$27*24-RIGHT($C$6,2))/24>0,HLOOKUP((AB$27*24-RIGHT($C$6,2))/24,'Azimut long.'!$C$2:$AX$367,(VLOOKUP($A52,'Datos diarios'!$A$2:$B$366,2)+1),1),HLOOKUP((AB$27*24-RIGHT($C$6,2))/24+1,'Azimut long.'!$C$2:$AX$367,(VLOOKUP($A52,'Datos diarios'!$A$2:$B$366,2)+0),1)) -> 249.8620709 | AC53: =IF((AC$27*24-RIGHT($C$6,2))/24>0,HLOOKUP((AC$27*24-RIGHT($C$6,2))/24,'Azimut long.'!$C$2:$AX$367,(VLOOKUP($A52,'Datos diarios'!$A$2:$B$366,2)+1),1),HLOOKUP((AC$27*24-RIGHT($C$6,2))/24+1,'Azimut long.'!$C$2:$AX$367,(VLOOKUP($A52,'Datos diarios'!$A$2:$B$366,2)+0),1)) -> 258.6176605 | AD53: =IF((AD$27*24-RIGHT($C$6,2))/24>0,HLOOKUP((AD$27*24-RIGHT($C$6,2))/24,'Azimut long.'!$C$2:$AX$367,(VLOOKUP($A52,'Datos diarios'!$A$2:$B$366,2)+1),1),HLOOKUP((AD$27*24-RIGHT($C$6,2))/24+1,'Azimut long.'!$C$2:$AX$367,(VLOOKUP($A52,'Datos diarios'!$A$2:$B$366,2)+0),1)) -> 267.6298097 | AE53: =IF((AE$27*24-RIGHT($C$6,2))/24>0,HLOOKUP((AE$27*24-RIGHT($C$6,2))/24,'Azimut long.'!$C$2:$AX$367,(VLOOKUP($A52,'Datos diarios'!$A$2:$B$366,2)+1),1),HLOOKUP((AE$27*24-RIGHT($C$6,2))/24+1,'Azimut long.'!$C$2:$AX$367,(VLOOKUP($A52,'Datos diarios'!$A$2:$B$366,2)+0),1)) -> 277.9018899

Sheet Azimut ; Altura
A1: Día | B1: Horas (UTC)
B2: 00:00:00 | D2: 00:30:00 | F2: 01:00:00 | H2: 01:30:00 | J2: 02:00:00 | L2: 02:30:00 | N2: 03:00:00 | P2: 03:30:00 | R2: 04:00:00 | T2: 04:30:00 | V2: 05:00:00 | X2: 05:30:00 | Z2: 06:00:00 | AB2: 06:30:00 | AD2: 07:00:00 | AF2: 07:30:00 | AH2: 08:00:00 | AJ2: 08:30:00 | AL2: 09:00:00 | AN2: 09:30:00 | AP2: 10:00:00 | AR2: 10:30:00 | AT2: 11:00:00 | AV2: 11:30:00 | AX2: 12:00:00 | AZ2: 12:30:00 | BB2: 13:00:00 | BD2: 13:30:00 | BF2: 14:00:00 | BH2: 14:30:00 | BJ2: 15:00:00 | BL2: 15:30:00 | BN2: 16:00:00 | BP2: 16:30:00 | BR2: 17:00:00 | BT2: 17:30:00 | BV2: 18:00:00 | BX2: 18:30:00 | BZ2: 19:00:00 | CB2: 19:30:00 | CD2: 20:00:00 | CF2: 20:30:00 | CH2: 21:00:00 | CJ2: 21:30:00 | CL2: 22:00:00 | CN2: 22:30:00 | CP2: 23:00:00 | CR2: 23:30:00 | CT2: ='Altura long.'!AY2 -> 12:00:00
A3: ='Datos diarios'!A2 -> 2021-01-01 | B3: ='Azimut long.'!C3 -> 346.9965202 | C3: ='Altura long.'!C3 -> -73.33130249 | D3: ='Azimut long.'!D3 -> 9.296358458 | E3: ='Altura long.'!D3 -> -72.21214175 | F3: ='Azimut long.'!E3 -> 29.93817209 | G3: ='Altura long.'!E3 -> -70.30826279 | H3: ='Azimut long.'!F3 -> 46.34420887 | I3: ='Altura long.'!F3 -> -66.79770134 | J3: ='Azimut long.'!G3 -> 58.63725695 | K3: ='Altura long.'!G3 -> -62.28312691 | L3: ='Azimut long.'!H3 -> 67.98637507 | M3: ='Altura long.'!H3 -> -57.19444784 | N3: ='Azimut long.'!I3 -> 75.42001426 | O3: ='Altura long.'!I3 -> -51.78425139 | P3: ='Azimut long.'!J3 -> 81.62774453 | Q3: ='Altura long.'!J3 -> -46.19799831 | R3: ='Azimut long.'!K3 -> 87.04899294 | S3: ='Altura long.'!K3 -> -40.52427528 | T3: ='Azimut long.'!L3 -> 91.96899372 | U3: ='Altura long.'!L3 -> -34.822034 | V3: ='Azimut long.'!M3 -> 96.5812602 | W3: ='Altura long.'!M3 -> -29.13481635 | X3: ='Azimut long.'!N3 -> 101.0245915 | Y3: ='Altura long.'!N3 -> -23.49847636 | Z3: ='Azimut long.'!O3 -> 105.4048427 | AA3: ='Altura long.'!O3 -> -17.9456935 | AB3: ='Azimut long.'!P3 -> 109.8079547 | AC3: ='Altura long.'!P3 -> -12.5088821 | AD3: ='Azimut long.'!Q3 -> 114.3078711 | AE3: ='Altura long.'!Q3 -> -7.222289307 | AF3: ='Azimut long.'!R3 -> 118.9712535 | AG3: ='Altura long.'!R3 -> -2.123671445 | AH3: ='Azimut long.'!S3 -> 123.8599214 | AI3: ='Altura long.'!S3 -> 2.744282289 | AJ3: ='Azimut long.'!T3 -> 129.0313485 | AK3: ='Altura long.'!T3 -> 7.33276347 | AL3: ='Azimut long.'!U3 -> 134.5371875 | AM3: ='Altura long.'!U3 -> 11.58601987 | AN3: ='Azimut long.'!V3 -> 140.419627 | AO3: ='Altura long.'!V3 -> 15.44116705 | AP3: ='Azimut long.'!W3 -> 146.7054889 | AQ3: ='Altura long.'!W3 -> 18.82905928 | AR3: ='Azimut long.'!X3 -> 153.398495 | AS3: ='Altura long.'!X3 -> 21.67673052 | AT3: ='Azimut long.'!Y3 -> 160.4711587 | AU3: ='Altura long.'!Y3 -> 23.91182156 | AV3: ='Azimut long.'!Z3 -> 167.8590226 | AW3: ='Altura long.'!Z3 -> 25.468991 | AX3: ='Azimut long.'!AA3 -> 175.4607342 | AY3: ='Altura long.'!AA3 -> 26.29752907 | AZ3: ='Azimut long.'!AB3 -> 183.1465304 | BA3: ='Altura long.'!AB3 -> 26.36850595 | BB3: ='Azimut long.'!AC3 -> 190.7746968 | BC3: ='Altura long.'!AC3 -> 25.67934961 | BD3: ='Azimut long.'!AD3 -> 198.2117348 | BE3: ='Altura long.'!AD3 -> 24.25427818 | BF3: ='Azimut long.'!AE3 -> 205.3499769 | BG3: ='Altura long.'!AE3 -> 22.14042623 | BH3: ='Azimut long.'!AF3 -> 212.1177768 | BI3: ='Altura long.'!AF3 -> 19.40101784 | BJ3: ='Azimut long.'!AG3 -> 218.4810461 | BK3: ='Altura long.'!AG3 -> 16.10767821 | BL3: ='Azimut long.'!AH3 -> 224.4383145 | BM3: ='Altura long.'!AH3 -> 12.33369792 | BN3: ='Azimut long.'!AI3 -> 230.0127937 | BO3: ='Altura long.'!AI3 -> 8.149208622 | BP3: ='Azimut long.'!AJ3 -> 235.2444091 | BQ3: ='Altura long.'!AJ3 -> 3.618394206 | BR3: ='Azimut long.'!AK3 -> 240.183491 | BS3: ='Altura long.'!AK3 -> -1.201631113 | BT3: ='Azimut long.'!AL3 -> 244.8867073 | BU3: ='Altura long.'!AL3 -> -6.260791539 | BV3: ='Azimut long.'!AM3 -> 249.4152098 | BW3: ='Altura long.'!AM3 -> -11.51531342 | BX3: ='Azimut long.'!AN3 -> 253.8347849 | BY3: ='Altura long.'!AN3 -> -16.92658735 | BZ3: ='Azimut long.'!AO3 -> 258.2179379 | CA3: ='Altura long.'!AO3 -> -22.45977941 | CB3: ='Azimut long.'!AP3 -> 262.6481608 | CC3: ='Altura long.'!AP3 -> -28.08220071 | CD3: ='Azimut long.'!AQ3 -> 267.2271827 | CE3: ='Altura long.'!AQ3 -> -33.76129561 | CF3: ='Azimut long.'!AR3 -> 272.0868939 | CG3: ='Altura long.'!AR3 -> -39.46190455 | CH3: ='Azimut long.'!AS3 -> 277.4091727 | CI3: ='Altura long.'!AS3 -> -45.14209831 | CJ3: ='Azimut long.'!AT3 -> 283.4594411 | CK3: ='Altura long.'!AT3 -> -50.74616408 | CL3: ='Azimut long.'!AU3 -> 290.643322 | CM3: ='Altura long.'!AU3 -> -56.19184342 | CN3: ='Azimut long.'!AV3 -> 299.5951848 | CO3: ='Altura long.'!AV3 -> -61.34606352 | CP3: ='Azimut long.'!AW3 -> 311.2712687 | CQ3: ='Altura long.'!AW3 -> -65.97987913 | CR3: ='Azimut long.'!AX3 -> 326.8317952 | CS3: ='Altura long.'!AX3 -> -69.70164409 | CT3: ='Azimut long.'!AY3 -> 175.4607342 | CU3: ='Altura long.'!AY3 -> 26.29752907
A4: ='Datos diarios'!A3 -> 2021-01-02 | B4: ='Azimut long.'!C4 -> 346.707584 | C4: ='Altura long.'!C4 -> -73.27040211 | D4: ='Azimut long.'!D4 -> 8.932682009 | E4: ='Altura long.'!D4 -> -72.15489159 | F4: ='Azimut long.'!E4 -> 29.57464458 | G4: ='Altura long.'!E4 -> -70.28455976 | H4: ='Azimut long.'!F4 -> 46.02506898 | I4: ='Altura long.'!F4 -> -66.80003904 | J4: ='Azimut long.'!G4 -> 58.36818964 | K4: ='Altura long.'!G4 -> -62.3027994 | L4: ='Azimut long.'!H4 -> 67.75826418 | M4: ='Altura long.'!H4 -> -57.22491805 | N4: ='Azimut long.'!I4 -> 75.22242308 | O4: ='Altura long.'!I4 -> -51.82115585 | P4: ='Azimut long.'!J4 -> 81.45234196 | Q4: ='Altura long.'!J4 -> -46.23842867 | R4: ='Azimut long.'!K4 -> 86.88964307 | S4: ='Altura long.'!K4 -> -40.5662059 | T4: ='Azimut long.'!L4 -> 91.82120975 | U4: ='Altura long.'!L4 -> -34.86396348 | V4: ='Azimut long.'!M4 -> 96.44170304 | W4: ='Altura long.'!M4 -> -29.17555189 | X4: ='Azimut long.'!N4 -> 100.8907096 | Y4: ='Altura long.'!N4 -> -23.53700162 | Z4: ='Azimut long.'!O4 -> 105.2746306 | AA4: ='Altura long.'!O4 -> -17.98108409 | AB4: ='Azimut long.'!P4 -> 109.6797994 | AC4: ='Altura long.'!P4 -> -12.54024908 | AD4: ='Azimut long.'!Q4 -> 114.1804598 | AE4: ='Altura long.'!Q4 -> -7.248739908 | AF4: ='Azimut long.'!R4 -> 118.8435256 | AG4: ='Altura long.'!R4 -> -2.144282084 | AH4: ='Azimut long.'!S4 -> 123.7310607 | AI4: ='Altura long.'!S4 -> 2.730482159 | AJ4: ='Azimut long.'!T4 -> 128.9008105 | AK4: ='Altura long.'!T4 -> 7.326795288 | AL4: ='Azimut long.'!U4 -> 134.4047602 | AM4: ='Altura long.'!U4 -> 11.58894383 | AN4: ='Azimut long.'!V4 -> 140.2855182 | AO4: ='Altura long.'!V4 -> 15.45404835 | AP4: ='Azimut long.'!W4 -> 146.5704236 | AQ4: ='Altura long.'!W4 -> 18.85290704 | AR4: ='Azimut long.'!X4 -> 153.2637937 | AS4: ='Altura long.'!X4 -> 21.71240708 | AT4: ='Azimut long.'!Y4 -> 160.3387429 | AU4: ='Altura long.'!Y4 -> 23.95992831 | AV4: ='Azimut long.'!Z4 -> 167.7312986 | AW4: ='Altura long.'!Z4 -> 25.5297505 | AX4: ='Azimut long.'!AA4 -> 175.340329 | AY4: ='Altura long.'!AA4 -> 26.37069645 | AZ4: ='Azimut long.'!AB4 -> 183.0359179 | BA4: ='Altura long.'!AB4 -> 26.45334508 | BB4: ='Azimut long.'!AC4 -> 190.6758179 | BC4: ='Altura long.'!AC4 -> 25.77469397 | BD4: ='Azimut long.'!AD4 -> 198.1257403 | BE4: ='Altura long.'!AD4 -> 24.3586652 | BF4: ='Azimut long.'!AE4 -> 205.27717 | BG4: ='Altura long.'!AE4 -> 22.2522664 | BH4: ='Azimut long.'!AF4 -> 212.0577297 | BI4: ='Altura long.'!AF4 -> 19.51875237 | BJ4: ='Azimut long.'!AG4 -> 218.4328247 | BK4: ='Altura long.'!AG4 -> 16.22989334 | BL4: ='Azimut long.'!AH4 -> 224.4007144 | BM4: ='Altura long.'!AH4 -> 12.45918677 | BN4: ='Azimut long.'!AI4 -> 229.9845307 | BO4: ='Altura long.'!AI4 -> 8.276988875 | BP4: ='Azimut long.'!AJ4 -> 235.2242473 | BQ4: ='Altura long.'!AJ4 -> 3.747696983 | BR4: ='Azimut long.'!AK4 -> 240.1703118 | BS4: ='Altura long.'!AK4 -> -1.071386897 | BT4: ='Azimut long.'!AL4 -> 244.8795328 | BU4: ='Altura long.'!AL4 -> -6.130028997 | BV4: ='Azimut long.'!AM4 -> 249.4131948 | BW4: ='Altura long.'!AM4 -> -11.38432587 | BX4: ='Azimut long.'!AN4 -> 253.8371878 | BY4: ='Altura long.'!AN4 -> -16.79556214 | BZ4: ='Azimut long.'!AO4 -> 258.2240706 | CA4: ='Altura long.'!AO4 -> -22.32881691 | CB4: ='Azimut long.'!AP4 -> 262.6573116 | CC4: ='Altura long.'!AP4 -> -27.95132902 | CD4: ='Azimut long.'!AQ4 -> 267.2384908 | CE4: ='Altura long.'!AQ4 -> -33.63048318 | CF4: ='Azimut long.'!AR4 -> 272.0991316 | CG4: ='Altura long.'!AR4 -> -39.33107498 | CH4: ='Azimut long.'!AS4 -> 277.4203374 | CI4: ='Altura long.'!AS4 -> -45.011157 | CJ4: ='Azimut long.'!AT4 -> 283.4659587 | CK4: ='Altura long.'!AT4 -> -50.61506119 | CL4: ='Azimut long.'!AU4 -> 290.6384371 | CM4: ='Altura long.'!AU4 -> -56.0607351 | CN4: ='Azimut long.'!AV4 -> 299.5657892 | CO4: ='Altura long.'!AV4 -> -61.21573169 | CP4: ='Azimut long.'!AW4 -> 311.1927546 | CQ4: ='Altura long.'!AW4 -> -65.85277293 | CR4: ='Azimut long.'!AX4 -> 326.6662385 | CS4: ='Altura long.'!AX4 -> -69.583944 | CT4: ='Azimut long.'!AY4 -> 175.340329 | CU4: ='Altura long.'!AY4 -> 26.37069645
A5: ='Datos diarios'!A4 -> 2021-01-03 | B5: ='Azimut long.'!C5 -> 346.4281092 | C5: ='Altura long.'!C5 -> -73.20138356 | D5: ='Azimut long.'!D5 -> 8.571560391 | E5: ='Altura long.'!D5 -> -72.08987527 | F5: ='Azimut long.'!E5 -> 29.20637842 | G5: ='Altura long.'!E5 -> -70.25322023 | H5: ='Azimut long.'!F5 -> 45.69716961 | I5: ='Altura long.'!F5 -> -66.79534535 | J5: ='Azimut long.'!G5 -> 58.08923334 | K5: ='Altura long.'!G5 -> -62.31609094 | L5: ='Azimut long.'!H5 -> 67.52046712 | M5: ='Altura long.'!H5 -> -57.24951951 | N5: ='Azimut long.'!I5 -> 75.01577824 | O5: ='Altura long.'!I5 -> -51.85254572 | P5: ='Azimut long.'!J5 -> 81.26858763 | Q5: ='Altura long.'!J5 -> -46.27356698 | R5: ='Azimut long.'!K5 -> 86.7225907 | S5: ='Altura long.'!K5 -> -40.60296505 | T5: ='Azimut long.'!L5 -> 91.66629094 | U5: ='Altura long.'!L5 -> -34.90076334 | V5: ='Azimut long.'!M5 -> 96.29549803 | W5: ='Altura long.'!M5 -> -29.21113761 | X5: ='Azimut long.'!N5 -> 100.7505977 | Y5: ='Altura long.'!N5 -> -23.57030649 | Z5: ='Azimut long.'!O5 -> 105.1385526 | AA5: ='Altura long.'!O5 -> -18.01114167 | AB5: ='Azimut long.'!P5 -> 109.5461038 | AC5: ='Altura long.'!P5 -> -12.56613436 | AD5: ='Azimut long.'!Q5 -> 114.0478088 | AE5: ='Altura long.'!Q5 -> -7.26952876 | AF5: ='Azimut long.'!R5 -> 118.7108508 | AG5: ='Altura long.'!R5 -> -2.15902377 | AH5: ='Azimut long.'!S5 -> 123.5975545 | AI5: ='Altura long.'!S5 -> 2.722780982 | AJ5: ='Azimut long.'!T5 -> 128.7659555 | AK5: ='Altura long.'!T5 -> 7.327173544 | AL5: ='Azimut long.'!U5 -> 134.268392 | AM5: ='Altura long.'!U5 -> 11.59847217 | AN5: ='Azimut long.'!V5 -> 140.1479126 | AO5: ='Altura long.'!V5 -> 15.47379283 | AP5: ='Azimut long.'!W5 -> 146.432395 | AQ5: ='Altura long.'!W5 -> 18.88386492 | AR5: ='Azimut long.'!X5 -> 153.126768 | AS5: ='Altura long.'!X5 -> 21.75541271 | AT5: ='Azimut long.'!Y5 -> 160.2047532 | AU5: ='Altura long.'!Y5 -> 24.01553635 | AV5: ='Azimut long.'!Z5 -> 167.6028544 | AW5: ='Altura long.'!Z5 -> 25.59811745 | AX5: ='Azimut long.'!AA5 -> 175.2201315 | AY5: ='Altura long.'!AA5 -> 26.45149471 | AZ5: ='Azimut long.'!AB5 -> 182.9264694 | BA5: ='Altura long.'!AB5 -> 26.54574585 | BB5: ='Azimut long.'!AC5 -> 190.5790345 | BC5: ='Altura long.'!AC5 -> 25.87743761 | BD5: ='Azimut long.'!AD5 -> 198.0426998 | BE5: ='Altura long.'!AD5 -> 24.47020574 | BF5: ='Azimut long.'!AE5 -> 205.2080642 | BG5: ='Altura long.'!AE5 -> 22.37094851 | BH5: ='Azimut long.'!AF5 -> 212.0020078 | BI5: ='Altura long.'!AF5 -> 19.64297295 | BJ5: ='Azimut long.'!AG5 -> 218.3894327 | BK5: ='Altura long.'!AG5 -> 16.35821578 | BL5: ='Azimut long.'!AH5 -> 224.3683449 | BM5: ='Altura long.'!AH5 -> 12.59039993 | BN5: ='Azimut long.'!AI5 -> 229.9618208 | BO5: ='Altura long.'!AI5 -> 8.41012069 | BP5: ='Azimut long.'!AJ5 -> 235.2099083 | BQ5: ='Altura long.'!AJ5 -> 3.881999237 | BR5: ='Azimut long.'!AK5 -> 240.1631957 | BS5: ='Altura long.'!AK5 -> -0.9364675201 | BT5: ='Azimut long.'!AL5 -> 244.8786529 | BU5: ='Altura long.'!AL5 -> -5.994883091 | BV5: ='Azimut long.'!AM5 -> 249.4177173 | BW5: ='Altura long.'!AM5 -> -11.24921083 | BX5: ='Azimut long.'!AN5 -> 253.8463995 | BY5: ='Altura long.'!AN5 -> -16.66062653 | BZ5: ='Azimut long.'!AO5 -> 258.237329 | CA5: ='Altura long.'!AO5 -> -22.19411902 | CB5: ='Azimut long.'!AP5 -> 262.6739687 | CC5: ='Altura long.'!AP5 -> -27.81685057 | CD5: ='Azimut long.'!AQ5 -> 267.2577698 | CE5: ='Altura long.'!AQ5 -> -33.49613992 | CF5: ='Azimut long.'!AR5 -> 272.11991 | CG5: ='Altura long.'!AR5 -> -39.19672825 | CH5: ='Azimut long.'!AS5 -> 277.4407432 | CI5: ='Altura long.'!AS5 -> -44.87663573 | CJ5: ='Azimut long.'!AT5 -> 283.4825679 | CK5: ='Altura long.'!AT5 -> -50.48021772 | CL5: ='Azimut long.'!AU5 -> 290.6446425 | CM5: ='Altura long.'!AU5 -> -55.92559658 | CN5: ='Azimut long.'!AV5 -> 299.5485566 | CO5: ='Altura long.'!AV5 -> -61.08090814 | CP5: ='Azimut long.'!AW5 -> 311.1272554 | CQ5: ='Altura long.'!AW5 -> -65.72049345 | CR5: ='Azimut long.'!AX5 -> 326.5135014 | CS5: ='Altura long.'!AX5 -> -69.46015433 | CT5: ='Azimut long.'!AY5 -> 175.2201315 | CU5: ='Altura long.'!AY5 -> 26.45149471
A6: ='Datos diarios'!A5 -> 2021-01-04 | B6: ='Azimut long.'!C6 -> 346.1585416 | C6: ='Altura long.'!C6 -> -73.12426237 | D6: ='Azimut long.'!D6 -> 8.213651398 | E6: ='Altura long.'!D6 -> -72.01709731 | F6: ='Azimut long.'!E6 -> 28.83399607 | G6: ='Altura long.'!E6 -> -70.2141928 | H6: ='Azimut long.'!F6 -> 45.36097158 | I6: ='Altura long.'!F6 -> -66.78353687 | J6: ='Azimut long.'!G6 -> 57.80070855 | K6: ='Altura long.'!G6 -> -62.3229074 | L6: ='Azimut long.'!H6 -> 67.27321386 | M6: ='Altura long.'!H6 -> -57.26815802 | N6: ='Azimut long.'!I6 -> 74.80025551 | O6: ='Altura long.'!I6 -> -51.87833092 | P6: ='Azimut long.'!J6 -> 81.07662421 | Q6: ='Altura long.'!J6 -> -46.30332878 | R6: ='Azimut long.'!K6 -> 86.54795861 | S6: ='Altura long.'!K6 -> -40.63447435 | T6: ='Azimut long.'!L6 -> 91.50434699 | U6: ='Altura long.'!L6 -> -34.93236142 | V6: ='Azimut long.'!M6 -> 96.14274656 | W6: ='Altura long.'!M6 -> -29.24150765 | X6: ='Azimut long.'!N6 -> 100.6043518 | Y6: ='Altura long.'!N6 -> -23.59833155 | Z6: ='Azimut long.'!O6 -> 104.9967005 | AA6: ='Altura long.'!O6 -> -18.03581333 | AB6: ='Azimut long.'!P6 -> 109.4069559 | AC6: ='Altura long.'!P6 -> -12.58649175 | AD6: ='Azimut long.'!Q6 -> 113.9100051 | AE6: ='Altura long.'!Q6 -> -7.284616648 | AF6: ='Azimut long.'!R6 -> 118.5733146 | AG6: ='Altura long.'!R6 -> -2.167864499 | AH6: ='Azimut long.'!S6 -> 123.4594871 | AI6: ='Altura long.'!S6 -> 2.72120329 | AJ6: ='Azimut long.'!T6 -> 128.6268669 | AK6: ='Altura long.'!T6 -> 7.333915068 | AL6: ='Azimut long.'!U6 -> 134.1281636 | AM6: ='Altura long.'!U6 -> 11.61461383 | AN6: ='Azimut long.'!V6 -> 140.0068896 | AO6: ='Altura long.'!V6 -> 15.50040151 | AP6: ='Azimut long.'!W6 -> 146.2914808 | AQ6: ='Altura long.'!W6 -> 18.92192607 | AR6: ='Azimut long.'!X6 -> 152.9874928 | AS6: ='Altura long.'!X6 -> 21.80573287 | AT6: ='Azimut long.'!Y6 -> 160.069262 | AU6: ='Altura long.'!Y6 -> 24.0786237 | AV6: ='Azimut long.'!Z6 -> 167.4737604 | AW6: ='Altura long.'!Z6 -> 25.67406265 | AX6: ='Azimut long.'!AA6 -> 175.1002123 | AY6: ='Altura long.'!AA6 -> 26.53988768 | AZ6: ='Azimut long.'!AB6 -> 182.8182552 | BA6: ='Altura long.'!AB6 -> 26.6456652 | BB6: ='Azimut long.'!AC6 -> 190.4844173 | BC6: ='Altura long.'!AC6 -> 25.98753067 | BD6: ='Azimut long.'!AD6 -> 197.962681 | BE6: ='Altura long.'!AD6 -> 24.58884325 | BF6: ='Azimut long.'!AE6 -> 205.1427249 | BG6: ='Altura long.'!AE6 -> 22.4964096 | BH6: ='Azimut long.'!AF6 -> 211.9506707 | BI6: ='Altura long.'!AF6 -> 19.77361074 | BJ6: ='Azimut long.'!AG6 -> 218.3509241 | BK6: ='Altura long.'!AG6 -> 16.49257154 | BL6: ='Azimut long.'!AH6 -> 224.3412534 | BM6: ='Altura long.'!AH6 -> 12.72725911 | BN6: ='Azimut long.'!AI6 -> 229.9447049 | BO6: ='Altura long.'!AI6 -> 8.548522385 | BP6: ='Azimut long.'!AJ6 -> 235.2014256 | BQ6: ='Altura long.'!AJ6 -> 4.021216773 | BR6: ='Azimut long.'!AK6 -> 240.1621682 | BS6: ='Altura long.'!AK6 -> -0.7969588782 | BT6: ='Azimut long.'!AL6 -> 244.8840863 | BU6: ='Altura long.'!AL6 -> -5.855440695 | BV6: ='Azimut long.'!AM6 -> 249.4287878 | BW6: ='Altura long.'!AM6 -> -11.11005556 | BX6: ='Azimut long.'!AN6 -> 253.8624225 | BY6: ='Altura long.'!AN6 -> -16.52186759 | BZ6: ='Azimut long.'!AO6 -> 258.257708 | CA6: ='Altura long.'!AO6 -> -22.05577226 | CB6: ='Azimut long.'!AP6 -> 262.6981192 | CC6: ='Altura long.'!AP6 -> -27.67885102 | CD6: ='Azimut long.'!AQ6 -> 267.2849972 | CE6: ='Altura long.'!AQ6 -> -33.35835041 | CF6: ='Azimut long.'!AR6 -> 272.1491971 | CG6: ='Altura long.'!AR6 -> -39.05894788 | CH6: ='Azimut long.'!AS6 -> 277.4703456 | CI6: ='Altura long.'!AS6 -> -44.73861712 | CJ6: ='Azimut long.'!AT6 -> 283.5092109 | CK6: ='Altura long.'!AT6 -> -50.34171596 | CL6: ='Azimut long.'!AU6 -> 290.66187 | CM6: ='Altura long.'!AU6 -> -55.78651092 | CN6: ='Azimut long.'!AV6 -> 299.5434187 | CO6: ='Altura long.'!AV6 -> -60.9416783 | CP6: ='Azimut long.'!AW6 -> 311.0747456 | CQ6: ='Altura long.'!AW6 -> -65.58312929 | CR6: ='Azimut long.'!AX6 -> 326.3737121 | CS6: ='Altura long.'!AX6 -> -69.33036126 | CT6: ='Azimut long.'!AY6 -> 175.1002123 | CU6: ='Altura long.'!AY6 -> 26.53988768
A7: ='Datos diarios'!A6 -> 2021-01-05 | B7: ='Azimut long.'!C7 -> 345.8992901 | C7: ='Altura long.'!C7 -> -73.03905954 | D7: ='Azimut long.'!D7 -> 7.859591302 | E7: ='Altura long.'!D7 -> -71.93656697 | F7: ='Azimut long.'!E7 -> 28.45812716 | G7: ='Altura long.'!E7 -> -70.16743123 | H7: ='Azimut long.'!F7 -> 45.0169551 | I7: ='Altura long.'!F7 -> -66.76453393 | J7: ='Azimut long.'!G7 -> 57.502952 | K7: ='Altura long.'!G7 -> -62.32315702 | L7: ='Azimut long.'!H7 -> 67.01674774 | M7: ='Altura long.'!H7 -> -57.28074101 | N7: ='Azimut long.'!I7 -> 74.57604199 | O7: ='Altura long.'!I7 -> -51.89842273 | P7: ='Azimut long.'!J7 -> 80.87660402 | Q7: ='Altura long.'!J7 -> -46.32763094 | R7: ='Azimut long.'!K7 -> 86.36587771 | S7: ='Altura long.'!K7 -> -40.66065685 | T7: ='Azimut long.'!L7 -> 91.33549432 | U7: ='Altura long.'!L7 -> -34.95868717 | V7: ='Azimut long.'!M7 -> 95.98355478 | W7: ='Altura long.'!M7 -> -29.26659796 | X7: ='Azimut long.'!N7 -> 100.4520716 | Y7: ='Altura long.'!N7 -> -23.62101931 | Z7: ='Azimut long.'!O7 -> 104.8491697 | AA7: ='Altura long.'!O7 -> -18.05504835 | AB7: ='Azimut long.'!P7 -> 109.2624481 | AC7: ='Altura long.'!P7 -> -12.60127746 | AD7: ='Azimut long.'!Q7 -> 113.767138 | AE7: ='Altura long.'!Q7 -> -7.293966923 | AF7: ='Azimut long.'!R7 -> 118.4310042 | AG7: ='Altura long.'!R7 -> -2.170775023 | AH7: ='Azimut long.'!S7 -> 123.3169437 | AI7: ='Altura long.'!S7 -> 2.725770685 | AJ7: ='Azimut long.'!T7 -> 128.4836274 | AK7: ='Altura long.'!T7 -> 7.347033604 | AL7: ='Azimut long.'!U7 -> 133.9841572 | AM7: ='Altura long.'!U7 -> 11.63737457 | AN7: ='Azimut long.'!V7 -> 139.8625283 | AO7: ='Altura long.'!V7 -> 15.5338721 | AP7: ='Azimut long.'!W7 -> 146.1477569 | AQ7: ='Altura long.'!W7 -> 18.96708022 | AR7: ='Azimut long.'!X7 -> 152.8460422 | AS7: ='Altura long.'!X7 -> 21.86334952 | AT7: ='Azimut long.'!Y7 -> 159.9323428 | AU7: ='Altura long.'!Y7 -> 24.14916482 | AV7: ='Azimut long.'!Z7 -> 167.3440873 | AW7: ='Altura long.'!Z7 -> 25.75755339 | AX7: ='Azimut long.'!AA7 -> 174.9806369 | AY7: ='Altura long.'!AA7 -> 26.63583564 | AZ7: ='Azimut long.'!AB7 -> 182.7113432 | BA7: ='Altura long.'!AB7 -> 26.75305654 | BB7: ='Azimut long.'!AC7 -> 190.3920336 | BC7: ='Altura long.'!AC7 -> 26.10491974 | BD7: ='Azimut long.'!AD7 -> 197.8857474 | BE7: ='Altura long.'!AD7 -> 24.71451763 | BF7: ='Azimut long.'!AE7 -> 205.0812136 | BG7: ='Altura long.'!AE7 -> 22.62858323 | BH7: ='Azimut long.'!AF7 -> 211.9037775 | BI7: ='Altura long.'!AF7 -> 19.91059354 | BJ7: ='Azimut long.'!AG7 -> 218.3173521 | BK7: ='Altura long.'!AG7 -> 16.63288342 | BL7: ='Azimut long.'!AH7 -> 224.3194872 | BM7: ='Altura long.'!AH7 -> 12.86968304 | BN7: ='Azimut long.'!AI7 -> 229.9332229 | BO7: ='Altura long.'!AI7 -> 8.692109521 | BP7: ='Azimut long.'!AJ7 -> 235.198831 | BQ7: ='Altura long.'!AJ7 -> 4.165262924 | BR7: ='Azimut long.'!AK7 -> 240.1672533 | BS7: ='Altura long.'!AK7 -> -0.6529490258 | BT7: ='Azimut long.'!AL7 -> 244.8958483 | BU7: ='Altura long.'!AL7 -> -5.711790513 | BV7: ='Azimut long.'!AM7 -> 249.4464144 | BW7: ='Altura long.'!AM7 -> -10.96694877 | BX7: ='Azimut long.'!AN7 -> 253.8852576 | BY7: ='Altura long.'!AN7 -> -16.37937354 | BZ7: ='Azimut long.'!AO7 -> 258.2852005 | CA7: ='Altura long.'!AO7 -> -21.91386393 | CB7: ='Azimut long.'!AP7 -> 262.7297466 | CC7: ='Altura long.'!AP7 -> -27.53741643 | CD7: ='Azimut long.'!AQ7 -> 267.3201471 | CE7: ='Altura long.'!AQ7 -> -33.21719929 | CF7: ='Azimut long.'!AR7 -> 272.186955 | CG7: ='Altura long.'!AR7 -> -38.91781704 | CH7: ='Azimut long.'!AS7 -> 277.509094 | CI7: ='Altura long.'!AS7 -> -44.59718312 | CJ7: ='Azimut long.'!AT7 -> 283.5458229 | CK7: ='Altura long.'!AT7 -> -50.19963718 | CL7: ='Azimut long.'!AU7 -> 290.6900414 | CM7: ='Altura long.'!AU7 -> -55.64355978 | CN7: ='Azimut long.'!AV7 -> 299.5502946 | CO7: ='Altura long.'!AV7 -> -60.7981259 | CP7: ='Azimut long.'!AW7 -> 311.0351818 | CQ7: ='Altura long.'!AW7 -> -65.44076737 | CR7: ='Azimut long.'!AX7 -> 326.2469688 | CS7: ='Altura long.'!AX7 -> -69.19465003 | CT7: ='Azimut long.'!AY7 -> 174.9806369 | CU7: ='Altura long.'!AY7 -> 26.63583564
A8: ='Datos diarios'!A7 -> 2021-01-06 | B8: ='Azimut long.'!C8 -> 345.6507269 | C8: ='Altura long.'!C8 -> -72.94580146 | D8: ='Azimut long.'!D8 -> 7.509991653 | E8: ='Altura long.'!D8 -> -71.84829825 | F8: ='Azimut long.'!E8 -> 28.07940147 | G8: ='Altura long.'!E8 -> -70.11289466 | H8: ='Azimut long.'!F8 -> 44.66561363 | I8: ='Altura long.'!F8 -> -66.73826087 | J8: ='Azimut long.'!G8 -> 57.19631768 | K8: ='Altura long.'!G8 -> -62.31675073 | L8: ='Azimut long.'!H8 -> 66.75132669 | M8: ='Altura long.'!H8 -> -57.28717785 | N8: ='Azimut long.'!I8 -> 74.34333616 | O8: ='Altura long.'!I8 -> -51.91273402 | P8: ='Azimut long.'!J8 -> 80.66868994 | Q8: ='Altura long.'!J8 -> -46.34639182 | R8: ='Azimut long.'!K8 -> 86.17648667 | S8: ='Altura long.'!K8 -> -40.68143715 | T8: ='Azimut long.'!L8 -> 91.15985563 | U8: ='Altura long.'!L8 -> -34.9796717 | V8: ='Azimut long.'!M8 -> 95.81803486 | W8: ='Altura long.'!M8 -> -29.28634631 | X8: ='Azimut long.'!N8 -> 100.2938612 | Y8: ='Altura long.'!N8 -> -23.63831434 | Z8: ='Azimut long.'!O8 -> 104.6960589 | AA8: ='Altura long.'!O8 -> -18.06879821 | AB8: ='Azimut long.'!P8 -> 109.1126756 | AC8: ='Altura long.'!P8 -> -12.61045008 | AD8: ='Azimut long.'!Q8 -> 113.6192997 | AE8: ='Altura long.'!Q8 -> -7.297545523 | AF8: ='Azimut long.'!R8 -> 118.2840094 | AG8: ='Altura long.'!R8 -> -2.167728857 | AH8: ='Azimut long.'!S8 -> 123.1700124 | AI8: ='Altura long.'!S8 -> 2.736501844 | AJ8: ='Azimut long.'!T8 -> 128.336323 | AK8: ='Altura long.'!T8 -> 7.366539826 | AL8: ='Azimut long.'!U8 -> 133.8364556 | AM8: ='Altura long.'!U8 -> 11.66675693 | AN8: ='Azimut long.'!V8 -> 139.7149089 | AO8: ='Altura long.'!V8 -> 15.574199 | AP8: ='Azimut long.'!W8 -> 146.0013004 | AQ8: ='Altura long.'!W8 -> 19.01931372 | AR8: ='Azimut long.'!X8 -> 152.7024902 | AS8: ='Altura long.'!X8 -> 21.9282412 | AT8: ='Azimut long.'!Y8 -> 159.7940652 | AU8: ='Altura long.'!Y8 -> 24.22713076 | AV8: ='Azimut long.'!Z8 -> 167.2139037 | AW8: ='Altura long.'!Z8 -> 25.84855345 | AX8: ='Azimut long.'!AA8 -> 174.8614768 | AY8: ='Altura long.'!AA8 -> 26.73929537 | AZ8: ='Azimut long.'!AB8 -> 182.6057989 | BA8: ='Altura long.'!AB8 -> 26.86786974 | BB8: ='Azimut long.'!AC8 -> 190.301946 | BC8: ='Altura long.'!AC8 -> 26.22954787 | BD8: ='Azimut long.'!AD8 -> 197.8119661 | BE8: ='Altura long.'!AD8 -> 24.84716531 | BF8: ='Azimut long.'!AE8 -> 205.0235929 | BG8: ='Altura long.'!AE8 -> 22.76739955 | BH8: ='Azimut long.'!AF8 -> 211.8613851 | BI8: ='Altura long.'!AF8 -> 20.05384581 | BJ8: ='Azimut long.'!AG8 -> 218.2887668 | BK8: ='Altura long.'!AG8 -> 16.77907105 | BL8: ='Azimut long.'!AH8 -> 224.3030899 | BM8: ='Altura long.'!AH8 -> 13.01758744 | BN8: ='Azimut long.'!AI8 -> 229.927411 | BO8: ='Altura long.'!AI8 -> 8.840794954 | BP8: ='Azimut long.'!AJ8 -> 235.2021531 | BQ8: ='Altura long.'!AJ8 -> 4.314048607 | BR8: ='Azimut long.'!AK8 -> 240.1784713 | BS8: ='Altura long.'!AK8 -> -0.5045281209 | BT8: ='Azimut long.'!AL8 -> 244.9139517 | BU8: ='Altura long.'!AL8 -> -5.564023023 | BV8: ='Azimut long.'!AM8 -> 249.470602 | BW8: ='Altura long.'!AM8 -> -10.81998061 | BX8: ='Azimut long.'!AN8 -> 253.9149013 | BY8: ='Altura long.'!AN8 -> -16.23323369 | BZ8: ='Azimut long.'!AO8 -> 258.3197938 | CA8: ='Altura long.'!AO8 -> -21.76848205 | CB8: ='Azimut long.'!AP8 -> 262.7688298 | CC8: ='Altura long.'!AP8 -> -27.39263324 | CD8: ='Azimut long.'!AQ8 -> 267.363188 | CE8: ='Altura long.'!AQ8 -> -33.07277122 | CF8: ='Azimut long.'!AR8 -> 272.2331408 | CG8: ='Altura long.'!AR8 -> -38.77341859 | CH8: ='Azimut long.'!AS8 -> 277.5569321 | CI8: ='Altura long.'!AS8 -> -44.45241492 | CJ8: ='Azimut long.'!AT8 -> 283.5923317 | CK8: ='Altura long.'!AT8 -> -50.0540615 | CL8: ='Azimut long.'!AU8 -> 290.7290687 | CM8: ='Altura long.'!AU8 -> -55.49682335 | CN8: ='Azimut long.'!AV8 -> 299.5690912 | CO8: ='Altura long.'!AV8 -> -60.65033291 | CP8: ='Azimut long.'!AW8 -> 311.0085051 | CQ8: ='Altura long.'!AW8 -> -65.29349283 | CR8: ='Azimut long.'!AX8 -> 326.1333449 | CS8: ='Altura long.'!AX8 -> -69.05310492 | CT8: ='Azimut long.'!AY8 -> 174.8614768 | CU8: ='Altura long.'!AY8 -> 26.73929537
A9: ='Datos diarios'!A8 -> 2021-01-07 | B9: ='Azimut long.'!C9 -> 345.4131856 | C9: ='Altura long.'!C9 -> -72.84451997 | D9: ='Azimut long.'!D9 -> 7.165438034 | E9: ='Altura long.'!D9 -> -71.75231002 | F9: ='Azimut long.'!E9 -> 27.69845024 | G9: ='Altura long.'!E9 -> -70.05054794 | H9: ='Azimut long.'!F9 -> 44.30745633 | I9: ='Altura long.'!F9 -> -66.70464642 | J9: ='Azimut long.'!G9 -> 56.88117669 | K9: ='Altura long.'!G9 -> -62.30360243 | L9: ='Azimut long.'!H9 -> 66.47722382 | M9: ='Altura long.'!H9 -> -57.28738002 | N9: ='Azimut long.'!I9 -> 74.10234847 | O9: ='Altura long.'!I9 -> -51.92117943 | P9: ='Azimut long.'!J9 -> 80.45305182 | Q9: ='Altura long.'!J9 -> -46.35953144 | R9: ='Azimut long.'!K9 -> 85.9799303 | S9: ='Altura long.'!K9 -> -40.69674153 | T9: ='Azimut long.'!L9 -> 90.97755997 | U9: ='Altura long.'!L9 -> -34.99524792 | V9: ='Azimut long.'!M9 -> 95.64630461 | W9: ='Altura long.'!M9 -> -29.30069239 | X9: ='Azimut long.'!N9 -> 100.1298304 | Y9: ='Altura long.'!N9 -> -23.65016327 | Z9: ='Azimut long.'!O9 -> 104.5374715 | AA9: ='Altura long.'!O9 -> -18.07701665 | AB9: ='Azimut long.'!P9 -> 108.9577367 | AC9: ='Altura long.'!P9 -> -12.61397066 | AD9: ='Azimut long.'!Q9 -> 113.4665848 | AE9: ='Altura long.'!Q9 -> -7.295320998 | AF9: ='Azimut long.'!R9 -> 118.1324225 | AG9: ='Altura long.'!R9 -> -2.158702286 | AH9: ='Azimut long.'!S9 -> 123.0187821 | AI9: ='Altura long.'!S9 -> 2.753412528 | AJ9: ='Azimut long.'!T9 -> 128.1850404 | AK9: ='Altura long.'!T9 -> 7.392441359 | AL9: ='Azimut long.'!U9 -> 133.6851423 | AM9: ='Altura long.'!U9 -> 11.70276029 | AN9: ='Azimut long.'!V9 -> 139.5641133 | AO9: ='Altura long.'!V9 -> 15.62137334 | AP9: ='Azimut long.'!W9 -> 145.8521909 | AQ9: ='Altura long.'!W9 -> 19.07860962 | AR9: ='Azimut long.'!X9 -> 152.556912 | AS9: ='Altura long.'!X9 -> 22.00038307 | AT9: ='Azimut long.'!Y9 -> 159.6545011 | AU9: ='Altura long.'!Y9 -> 24.31248911 | AV9: ='Azimut long.'!Z9 -> 167.0832804 | AW9: ='Altura long.'!Z9 -> 25.94702321 | AX9: ='Azimut long.'!AA9 -> 174.7428009 | AY9: ='Altura long.'!AA9 -> 26.85022022 | AZ9: ='Azimut long.'!AB9 -> 182.5016933 | BA9: ='Altura long.'!AB9 -> 26.99005124 | BB9: ='Azimut long.'!AC9 -> 190.2142271 | BC9: ='Altura long.'!AC9 -> 26.36135468 | BD9: ='Azimut long.'!AD9 -> 197.741402 | BE9: ='Altura long.'!AD9 -> 24.98671924 | BF9: ='Azimut long.'!AE9 -> 204.9699243 | BG9: ='Altura long.'!AE9 -> 22.9127853 | BH9: ='Azimut long.'!AF9 -> 211.8235512 | BI9: ='Altura long.'!AF9 -> 20.20328875 | BJ9: ='Azimut long.'!AG9 -> 218.2652207 | BK9: ='Altura long.'!AG9 -> 16.93105094 | BL9: ='Azimut long.'!AH9 -> 224.2921045 | BM9: ='Altura long.'!AH9 -> 13.17088517 | BN9: ='Azimut long.'!AI9 -> 229.9273034 | BO9: ='Altura long.'!AI9 -> 8.994488894 | BP9: ='Azimut long.'!AJ9 -> 235.2114176 | BQ9: ='Altura long.'!AJ9 -> 4.467482382 | BR9: ='Azimut long.'!AK9 -> 240.1958409 | BS9: ='Altura long.'!AK9 -> -0.3517883649 | BT9: ='Azimut long.'!AL9 -> 244.9384069 | BU9: ='Altura long.'!AL9 -> -5.412230416 | BV9: ='Azimut long.'!AM9 -> 249.5013521 | BW9: ='Altura long.'!AM9 -> -10.66924262 | BX9: ='Azimut long.'!AN9 -> 253.9513465 | BY9: ='Altura long.'!AN9 -> -16.08353837 | BZ9: ='Azimut long.'!AO9 -> 258.3614718 | CA9: ='Altura long.'!AO9 -> -21.61971534 | CB9: ='Azimut long.'!AP9 -> 262.8153424 | CC9: ='Altura long.'!AP9 -> -27.24458822 | CD9: ='Azimut long.'!AQ9 -> 267.414083 | CE9: ='Altura long.'!AQ9 -> -32.92515083 | CF9: ='Azimut long.'!AR9 -> 272.2877057 | CG9: ='Altura long.'!AR9 -> -38.62583496 | CH9: ='Azimut long.'!AS9 -> 277.6137968 | CI9: ='Altura long.'!AS9 -> -44.30439299 | CJ9: ='Azimut long.'!AT9 -> 283.6486585 | CK9: ='Altura long.'!AT9 -> -49.90506796 | CL9: ='Azimut long.'!AU9 -> 290.7788576 | CM9: ='Altura long.'!AU9 -> -55.34638035 | CN9: ='Azimut long.'!AV9 -> 299.5997053 | CO9: ='Altura long.'!AV9 -> -60.49837957 | CP9: ='Azimut long.'!AW9 -> 310.9946391 | CQ9: ='Altura long.'!AW9 -> -65.141389 | CR9: ='Azimut long.'!AX9 -> 326.0328853 | CS9: ='Altura long.'!AX9 -> -68.9058091 | CT9: ='Azimut long.'!AY9 -> 174.7428009 | CU9: ='Altura long.'!AY9 -> 26.85022022
A10: ='Datos diarios'!A9 -> 2021-01-08 | B10: ='Azimut long.'!C10 -> 345.1869618 | C10: ='Altura long.'!C10 -> -72.73525226 | D10: ='Azimut long.'!D10 -> 6.826487418 | E10: ='Altura long.'!D10 -> -71.64862601 | F10: ='Azimut long.'!E10 -> 27.31590156 | G10: ='Altura long.'!E10 -> -69.98036175 | H10: ='Azimut long.'!F10 -> 43.94300413 | I10: ='Altura long.'!F10 -> -66.66362398 | J10: ='Azimut long.'!G10 -> 56.55791349 | K10: ='Altura long.'!G10 -> -62.28362932 | L10: ='Azimut long.'!H10 -> 66.19472332 | M10: ='Altura long.'!H10 -> -57.28126144 | N10: ='Azimut long.'!I10 -> 73.85329925 | O10: ='Altura long.'!I10 -> -51.92367557 | P10: ='Azimut long.'!J10 -> 80.22986948 | Q10: ='Altura long.'!J10 -> -46.36697165 | R10: ='Azimut long.'!K10 -> 85.77636175 | S10: ='Altura long.'!K10 -> -40.70649809 | T10: ='Azimut long.'!L10 -> 90.78874146 | U10: ='Altura long.'!L10 -> -35.00535062 | V10: ='Azimut long.'!M10 -> 95.46848509 | W10: ='Altura long.'!M10 -> -29.30957793 | X10: ='Azimut long.'!N10 -> 99.96009118 | Y10: ='Altura long.'!N10 -> -23.65651493 | Z10: ='Azimut long.'!O10 -> 104.3735133 | AA10: ='Altura long.'!O10 -> -18.07965975 | AB10: ='Azimut long.'!P10 -> 108.7977327 | AC10: ='Altura long.'!P10 -> -12.61180272 | AD10: ='Azimut long.'!Q10 -> 113.3090913 | AE10: ='Altura long.'!Q10 -> -7.287264523 | AF10: ='Azimut long.'!R10 -> 117.9763375 | AG10: ='Altura long.'!R10 -> -2.143674367 | AH10: ='Azimut long.'!S10 -> 122.8633446 | AI10: ='Altura long.'!S10 -> 2.776515585 | AJ10: ='Azimut long.'!T10 -> 128.029868 | AK10: ='Altura long.'!T10 -> 7.424742795 | AL10: ='Azimut long.'!U10 -> 133.530304 | AM10: ='Altura long.'!U10 -> 11.7453809 | AN10: ='Azimut long.'!V10 -> 139.4102234 | AO10: ='Altura long.'!V10 -> 15.67538304 | AP10: ='Azimut long.'!W10 -> 145.7005058 | AQ10: ='Altura long.'!W10 -> 19.14494765 | AR10: ='Azimut long.'!X10 -> 152.4093848 | AS10: ='Altura long.'!X10 -> 22.07974699 | AT10: ='Azimut long.'!Y10 -> 159.5137267 | AU10: ='Altura long.'!Y10 -> 24.40520414 | AV10: ='Azimut long.'!Z10 -> 166.9522886 | AW10: ='Altura long.'!Z10 -> 26.05291966 | AX10: ='Azimut long.'!AA10 -> 174.6246757 | AY10: ='Altura long.'!AA10 -> 26.96856013 | AZ10: ='Azimut long.'!AB10 -> 182.3990933 | BA10: ='Altura long.'!AB10 -> 27.11954405 | BB10: ='Azimut long.'!AC10 -> 190.128941 | BC10: ='Altura long.'!AC10 -> 26.50027636 | BD10: ='Azimut long.'!AD10 -> 197.6741203 | BE10: ='Altura long.'!AD10 -> 25.13310904 | BF10: ='Azimut long.'!AE10 -> 204.9202705 | BG10: ='Altura long.'!AE10 -> 23.06466391 | BH10: ='Azimut long.'!AF10 -> 211.7903309 | BI10: ='Altura long.'!AF10 -> 20.35884033 | BJ10: ='Azimut long.'!AG10 -> 218.246762 | BK10: ='Altura long.'!AG10 -> 17.08873655 | BL10: ='Azimut long.'!AH10 -> 224.2865726 | BM10: ='Altura long.'!AH10 -> 13.32948624 | BN10: ='Azimut long.'!AI10 -> 229.9329334 | BO10: ='Altura long.'!AI10 -> 9.15309897 | BP10: ='Azimut long.'!AJ10 -> 235.2266494 | BQ10: ='Altura long.'!AJ10 -> 4.625470518 | BR10: ='Azimut long.'!AK10 -> 240.2193771 | BS10: ='Altura long.'!AK10 -> -0.1948239379 | BT10: ='Azimut long.'!AL10 -> 244.9692201 | BU10: ='Altura long.'!AL10 -> -5.256506536 | BV10: ='Azimut long.'!AM10 -> 249.5386624 | BW10: ='Altura long.'!AM10 -> -10.51482765 | BX10: ='Azimut long.'!AN10 -> 253.9945828 | BY10: ='Altura long.'!AN10 -> -15.93037889 | BZ10: ='Azimut long.'!AO10 -> 258.4102157 | CA10: ='Altura long.'!AO10 -> -21.46765314 | CB10: ='Azimut long.'!AP10 -> 262.869256 | CC10: ='Altura long.'!AP10 -> -27.09336842 | CD10: ='Azimut long.'!AQ10 -> 267.4727922 | CE10: ='Altura long.'!AQ10 -> -32.77442268 | CF10: ='Azimut long.'!AR10 -> 272.3505969 | CG10: ='Altura long.'!AR10 -> -38.4751482 | CH10: ='Azimut long.'!AS10 -> 277.6796204 | CI10: ='Altura long.'!AS10 -> -44.15319701 | CJ10: ='Azimut long.'!AT10 -> 283.7147186 | CK10: ='Altura long.'!AT10 -> -49.75273446 | CL10: ='Azimut long.'!AU10 -> 290.8393047 | CM10: ='Altura long.'!AU10 -> -55.19230802 | CN10: ='Azimut long.'!AV10 -> 299.6420231 | CO10: ='Altura long.'!AV10 -> -60.34234435 | CP10: ='Azimut long.'!AW10 -> 310.9934917 | CQ10: ='Altura long.'!AW10 -> -64.98453735 | CR10: ='Azimut long.'!AX10 -> 325.9456096 | CS10: ='Altura long.'!AX10 -> -68.75284461 | CT10: ='Azimut long.'!AY10 -> 174.6246757 | CU10: ='Altura long.'!AY10 -> 26.96856013
A11: ='Datos diarios'!A10 -> 2021-01-09 | B11: ='Azimut long.'!C11 -> 344.9723141 | C11: ='Altura long.'!C11 -> -72.61804084 | D11: ='Azimut long.'!D11 -> 6.493666413 | E11: ='Altura long.'!D11 -> -71.53727486 | F11: ='Azimut long.'!E11 -> 26.93237737 | G11: ='Altura long.'!E11 -> -69.90231287 | H11: ='Azimut long.'!F11 -> 43.57278823 | I11: ='Altura long.'!F11 -> -66.61513191 | J11: ='Azimut long.'!G11 -> 56.22692719 | K11: ='Altura long.'!G11 -> -62.25675218 | L11: ='Azimut long.'!H11 -> 65.90412341 | M11: ='Altura long.'!H11 -> -57.2687387 | N11: ='Azimut long.'!I11 -> 73.59641968 | O11: ='Altura long.'!I11 -> -51.92014129 | P11: ='Azimut long.'!J11 -> 79.99933112 | Q11: ='Altura long.'!J11 -> -46.3686363 | R11: ='Azimut long.'!K11 -> 85.56594068 | S11: ='Altura long.'!K11 -> -40.71063691 | T11: ='Azimut long.'!L11 -> 90.59354078 | U11: ='Altura long.'!L11 -> -35.00991662 | V11: ='Azimut long.'!M11 -> 95.28470365 | W11: ='Altura long.'!M11 -> -29.31294677 | X11: ='Azimut long.'!N11 -> 99.78476155 | Y11: ='Altura long.'!N11 -> -23.65732035 | Z11: ='Azimut long.'!O11 -> 104.2042945 | AA11: ='Altura long.'!O11 -> -18.07668593 | AB11: ='Azimut long.'!P11 -> 108.6327677 | AC11: ='Altura long.'!P11 -> -12.60391227 | AD11: ='Azimut long.'!Q11 -> 113.1469188 | AE11: ='Altura long.'!Q11 -> -7.273349921 | AF11: ='Azimut long.'!R11 -> 117.8158507 | AG11: ='Altura long.'!R11 -> -2.122626941 | AH11: ='Azimut long.'!S11 -> 122.7037931 | AI11: ='Altura long.'!S11 -> 2.805820962 | AJ11: ='Azimut long.'!T11 -> 127.8708962 | AK11: ='Altura long.'!T11 -> 7.463445711 | AL11: ='Azimut long.'!U11 -> 133.3720267 | AM11: ='Altura long.'!U11 -> 11.7946119 | AN11: ='Azimut long.'!V11 -> 139.2533222 | AO11: ='Altura long.'!V11 -> 15.73621285 | AP11: ='Azimut long.'!W11 -> 145.546326 | AQ11: ='Altura long.'!W11 -> 19.21830433 | AR11: ='Azimut long.'!X11 -> 152.2599815 | AS11: ='Altura long.'!X11 -> 22.16630149 | AT11: ='Azimut long.'!Y11 -> 159.3718102 | AU11: ='Altura long.'!Y11 -> 24.5052368 | AV11: ='Azimut long.'!Z11 -> 166.8209984 | AW11: ='Altura long.'!Z11 -> 26.16619646 | AX11: ='Azimut long.'!AA11 -> 174.5071766 | AY11: ='Altura long.'!AA11 -> 27.09426171 | AZ11: ='Azimut long.'!AB11 -> 182.2980674 | BA11: ='Altura long.'!AB11 -> 27.25628788 | BB11: ='Azimut long.'!AC11 -> 190.0461546 | BC11: ='Altura long.'!AC11 -> 26.64624579 | BD11: ='Azimut long.'!AD11 -> 197.6101863 | BE11: ='Altura long.'!AD11 -> 25.28626097 | BF11: ='Azimut long.'!AE11 -> 204.8746931 | BG11: ='Altura long.'!AE11 -> 23.22295554 | BH11: ='Azimut long.'!AF11 -> 211.7617803 | BI11: ='Altura long.'!AF11 -> 20.52041537 | BJ11: ='Azimut long.'!AG11 -> 218.2334387 | BK11: ='Altura long.'!AG11 -> 17.25203836 | BL11: ='Azimut long.'!AH11 -> 224.2865338 | BM11: ='Altura long.'!AH11 -> 13.49329786 | BN11: ='Azimut long.'!AI11 -> 229.9443324 | BO11: ='Altura long.'!AI11 -> 9.316530293 | BP11: ='Azimut long.'!AJ11 -> 235.2478704 | BQ11: ='Altura long.'!AJ11 -> 4.787917059 | BR11: ='Azimut long.'!AK11 -> 240.2490928 | BS11: ='Altura long.'!AK11 -> -0.03373093093 | BT11: ='Azimut long.'!AL11 -> 245.0063955 | BU11: ='Altura long.'!AL11 -> -5.09694681 | BV11: ='Azimut long.'!AM11 -> 249.5825288 | BW11: ='Altura long.'!AM11 -> -10.35682978 | BX11: ='Azimut long.'!AN11 -> 254.044596 | BY11: ='Altura long.'!AN11 -> -15.77384746 | BZ11: ='Azimut long.'!AO11 -> 258.4660021 | CA11: ='Altura long.'!AO11 -> -21.31238536 | CB11: ='Azimut long.'!AP11 -> 262.9305369 | CC11: ='Altura long.'!AP11 -> -26.93906113 | CD11: ='Azimut long.'!AQ11 -> 267.5392712 | CE11: ='Altura long.'!AQ11 -> -32.62067123 | CF11: ='Azimut long.'!AR11 -> 272.4217572 | CG11: ='Altura long.'!AR11 -> -38.32143988 | CH11: ='Azimut long.'!AS11 -> 277.7543304 | CI11: ='Altura long.'!AS11 -> -43.99890588 | CJ11: ='Azimut long.'!AT11 -> 283.790421 | CK11: ='Altura long.'!AT11 -> -49.59713773 | CL11: ='Azimut long.'!AU11 -> 290.9103002 | CM11: ='Altura long.'!AU11 -> -55.03468214 | CN11: ='Azimut long.'!AV11 -> 299.6959216 | CO11: ='Altura long.'!AV11 -> -60.18230392 | CP11: ='Azimut long.'!AW11 -> 311.0049574 | CQ11: ='Altura long.'!AW11 -> -64.82301751 | CR11: ='Azimut long.'!AX11 -> 325.8715104 | CS11: ='Altura long.'!AX11 -> -68.59429235 | CT11: ='Azimut long.'!AY11 -> 174.5071766 | CU11: ='Altura long.'!AY11 -> 27.09426171
A12: ='Datos diarios'!A11 -> 2021-01-10 | B12: ='Azimut long.'!C12 -> 344.7694603 | C12: ='Altura long.'!C12 -> -72.49293344 | D12: ='Azimut long.'!D12 -> 6.167471609 | E12: ='Altura long.'!D12 -> -71.4182901 | F12: ='Azimut long.'!E12 -> 26.54849517 | G12: ='Altura long.'!E12 -> -69.81638434 | H12: ='Azimut long.'!F12 -> 43.19734909 | I12: ='Altura long.'!F12 -> -66.55911388 | J12: ='Azimut long.'!G12 -> 55.88863096 | K12: ='Altura long.'!G12 -> -62.22289567 | L12: ='Azimut long.'!H12 -> 65.60573481 | M12: ='Altura long.'!H12 -> -57.24973132 | N12: ='Azimut long.'!I12 -> 73.33195157 | O12: ='Altura long.'!I12 -> -51.91049783 | P12: ='Azimut long.'!J12 -> 79.76163285 | Q12: ='Altura long.'!J12 -> -46.36445144 | R12: ='Azimut long.'!K12 -> 85.34883305 | S12: ='Altura long.'!K12 -> -40.70909017 | T12: ='Azimut long.'!L12 -> 90.39210342 | U12: ='Altura long.'!L12 -> -35.00888488 | V12: ='Azimut long.'!M12 -> 95.09509126 | W12: ='Altura long.'!M12 -> -29.31074495 | X12: ='Azimut long.'!N12 -> 99.60396177 | Y12: ='Altura long.'!N12 -> -23.65253289 | Z12: ='Azimut long.'!O12 -> 104.0299282 | AA12: ='Altura long.'!O12 -> -18.06805608 | AB12: ='Azimut long.'!P12 -> 108.4629492 | AC12: ='Altura long.'!P12 -> -12.59026789 | AD12: ='Azimut long.'!Q12 -> 112.9801698 | AE12: ='Altura long.'!Q12 -> -7.253553684 | AF12: ='Azimut long.'!R12 -> 117.6510605 | AG12: ='Altura long.'!R12 -> -2.095544633 | AH12: ='Azimut long.'!S12 -> 122.5402212 | AI12: ='Altura long.'!S12 -> 2.841335708 | AJ12: ='Azimut long.'!T12 -> 127.7082149 | AK12: ='Altura long.'!T12 -> 7.508548691 | AL12: ='Azimut long.'!U12 -> 133.2103971 | AM12: ='Altura long.'!U12 -> 11.85044334 | AN12: ='Azimut long.'!V12 -> 139.0934929 | AO12: ='Altura long.'!V12 -> 15.80384437 | AP12: ='Azimut long.'!W12 -> 145.3897296 | AQ12: ='Altura long.'!W12 -> 19.29865296 | AR12: ='Azimut long.'!X12 -> 152.1087806 | AS12: ='Altura long.'!X12 -> 22.26001193 | AT12: ='Azimut long.'!Y12 -> 159.2288285 | AU12: ='Altura long.'!Y12 -> 24.61254481 | AV12: ='Azimut long.'!Z12 -> 166.6894801 | AW12: ='Altura long.'!Z12 -> 26.28680405 | AX12: ='Azimut long.'!AA12 -> 174.3903649 | AY12: ='Altura long.'!AA12 -> 27.22726833 | AZ12: ='Azimut long.'!AB12 -> 182.1986861 | BA12: ='Altura long.'!AB12 -> 27.40021913 | BB12: ='Azimut long.'!AC12 -> 189.9659414 | BC12: ='Altura long.'!AC12 -> 26.79919254 | BD12: ='Azimut long.'!AD12 -> 197.5496655 | BE12: ='Altura long.'!AD12 -> 25.44609804 | BF12: ='Azimut long.'!AE12 -> 204.8332503 | BG12: ='Altura long.'!AE12 -> 23.38757715 | BH12: ='Azimut long.'!AF12 -> 211.7379544 | BI12: ='Altura long.'!AF12 -> 20.6879256 | BJ12: ='Azimut long.'!AG12 -> 218.225298 | BK12: ='Altura long.'!AG12 -> 17.4208639 | BL12: ='Azimut long.'!AH12 -> 224.2920267 | BM12: ='Altura long.'!AH12 -> 13.66222458 | BN12: ='Azimut long.'!AI12 -> 229.9615291 | BO12: ='Altura long.'!AI12 -> 9.484685533 | BP12: ='Azimut long.'!AJ12 -> 235.2751007 | BQ12: ='Altura long.'!AJ12 -> 4.954723898 | BR12: ='Azimut long.'!AK12 -> 240.2849988 | BS12: ='Altura long.'!AK12 -> 0.1313927275 | BT12: ='Azimut long.'!AL12 -> 245.0499348 | BU12: ='Altura long.'!AL12 -> -4.933648176 | BV12: ='Azimut long.'!AM12 -> 249.6329436 | BW12: ='Altura long.'!AM12 -> -10.19534431 | BX12: ='Azimut long.'!AN12 -> 254.1013698 | BY12: ='Altura long.'!AN12 -> -15.61403717 | BZ12: ='Azimut long.'!AO12 -> 258.5288042 | CA12: ='Altura long.'!AO12 -> -21.15400243 | CB12: ='Azimut long.'!AP12 -> 262.9991482 | CC12: ='Altura long.'!AP12 -> -26.78175381 | CD12: ='Azimut long.'!AQ12 -> 267.6134715 | CE12: ='Altura long.'!AQ12 -> -32.4639808 | CF12: ='Azimut long.'!AR12 -> 272.5011241 | CG12: ='Altura long.'!AR12 -> -38.16479108 | CH12: ='Azimut long.'!AS12 -> 277.8378485 | CI12: ='Altura long.'!AS12 -> -43.84159765 | CJ12: ='Azimut long.'!AT12 -> 283.8756688 | CK12: ='Altura long.'!AT12 -> -49.43835338 | CL12: ='Azimut long.'!AU12 -> 290.9917266 | CM12: ='Altura long.'!AU12 -> -54.87357696 | CN12: ='Azimut long.'!AV12 -> 299.7612681 | CO12: ='Altura long.'!AV12 -> -60.01833319 | CP12: ='Azimut long.'!AW12 -> 311.0289152 | CQ12: ='Altura long.'!AW12 -> -64.65690722 | CR12: ='Azimut long.'!AX12 -> 325.8105578 | CS12: ='Altura long.'!AX12 -> -68.43023202 | CT12: ='Azimut long.'!AY12 -> 174.3903649 | CU12: ='Altura long.'!AY12 -> 27.22726833
A13: ='Datos diarios'!A12 -> 2021-01-11 | B13: ='Azimut long.'!C13 -> 344.5785847 | C13: ='Altura long.'!C13 -> -72.35998298 | D13: ='Azimut long.'!D13 -> 5.84836543 | E13: ='Altura long.'!D13 -> -71.29171017 | F13: ='Azimut long.'!E13 -> 26.16485931 | G13: ='Altura long.'!E13 -> -69.72256556 | H13: ='Azimut long.'!F13 -> 42.81723546 | I13: ='Altura long.'!F13 -> -66.49551909 | J13: ='Azimut long.'!G13 -> 55.54344857 | K13: ='Altura long.'!G13 -> -62.18198864 | L13: ='Azimut long.'!H13 -> 65.29987788 | M13: ='Altura long.'!H13 -> -57.22416204 | N13: ='Azimut long.'!I13 -> 73.06014499 | O13: ='Altura long.'!I13 -> -51.89466906 | P13: ='Azimut long.'!J13 -> 79.51697955 | Q13: ='Altura long.'!J13 -> -46.35434547 | R13: ='Azimut long.'!K13 -> 85.12521289 | S13: ='Altura long.'!K13 -> -40.70179232 | T13: ='Azimut long.'!L13 -> 90.18458122 | U13: ='Altura long.'!L13 -> -35.00219658 | V13: ='Azimut long.'!M13 -> 94.8997843 | W13: ='Altura long.'!M13 -> -29.3029208 | X13: ='Azimut long.'!N13 -> 99.417817 | Y13: ='Altura long.'!N13 -> -23.64210828 | Z13: ='Azimut long.'!O13 -> 103.8505308 | AA13: ='Altura long.'!O13 -> -18.05373351 | AB13: ='Azimut long.'!P13 -> 108.288387 | AC13: ='Altura long.'!P13 -> -12.57084073 | AD13: ='Azimut long.'!Q13 -> 112.808949 | AE13: ='Altura long.'!Q13 -> -7.227854996 | AF13: ='Azimut long.'!R13 -> 117.4820669 | AG13: ='Altura long.'!R13 -> -2.062414863 | AH13: ='Azimut long.'!S13 -> 122.3727258 | AI13: ='Altura long.'!S13 -> 2.883063983 | AJ13: ='Azimut long.'!T13 -> 127.5419176 | AK13: ='Altura long.'!T13 -> 7.560047345 | AL13: ='Azimut long.'!U13 -> 133.0455043 | AM13: ='Altura long.'!U13 -> 11.91286225 | AN13: ='Azimut long.'!V13 -> 138.930821 | AO13: ='Altura long.'!V13 -> 15.87825608 | AP13: ='Azimut long.'!W13 -> 145.2307986 | AQ13: ='Altura long.'!W13 -> 19.38596373 | AR13: ='Azimut long.'!X13 -> 151.9558581 | AS13: ='Altura long.'!X13 -> 22.36084047 | AT13: ='Azimut long.'!Y13 -> 159.084854 | AU13: ='Altura long.'!Y13 -> 24.7270827 | AV13: ='Azimut long.'!Z13 -> 166.5578062 | AW13: ='Altura long.'!Z13 -> 26.41468964 | AX13: ='Azimut long.'!AA13 -> 174.2743169 | AY13: ='Altura long.'!AA13 -> 27.36752013 | AZ13: ='Azimut long.'!AB13 -> 182.1010154 | BA13: ='Altura long.'!AB13 -> 27.551271 | BB13: ='Azimut long.'!AC13 -> 189.8883605 | BC13: ='Altura long.'!AC13 -> 26.95904298 | BD13: ='Azimut long.'!AD13 -> 197.4926207 | BE13: ='Altura long.'!AD13 -> 25.61254008 | BF13: ='Azimut long.'!AE13 -> 204.7960058 | BG13: ='Altura long.'!AE13 -> 23.55844259 | BH13: ='Azimut long.'!AF13 -> 211.7189067 | BI13: ='Altura long.'!AF13 -> 20.86127974 | BJ13: ='Azimut long.'!AG13 -> 218.2223861 | BK13: ='Altura long.'!AG13 -> 17.59511789 | BL13: ='Azimut long.'!AH13 -> 224.3030878 | BM13: ='Altura long.'!AH13 -> 13.83616829 | BN13: ='Azimut long.'!AI13 -> 229.98455 | BO13: ='Altura long.'!AI13 -> 9.657464999 | BP13: ='Azimut long.'!AJ13 -> 235.3083566 | BQ13: ='Altura long.'!AJ13 -> 5.125790859 | BR13: ='Azimut long.'!AK13 -> 240.3271031 | BS13: ='Altura long.'!AK13 -> 0.3004473486 | BT13: ='Azimut long.'!AL13 -> 245.0998359 | BU13: ='Altura long.'!AL13 -> -4.766709013 | BV13: ='Azimut long.'!AM13 -> 249.6898956 | BW13: ='Altura long.'!AM13 -> -10.03046761 | BX13: ='Azimut long.'!AN13 -> 254.1648838 | BY13: ='Altura long.'!AN13 -> -15.45104186 | BZ13: ='Azimut long.'!AO13 -> 258.598592 | CA13: ='Altura long.'!AO13 -> -20.99259524 | CB13: ='Azimut long.'!AP13 -> 263.0750494 | CC13: ='Altura long.'!AP13 -> -26.62153408 | CD13: ='Azimut long.'!AQ13 -> 267.6953405 | CE13: ='Altura long.'!AQ13 -> -32.30443548 | CF13: ='Azimut long.'!AR13 -> 272.5886318 | CG13: ='Altura long.'!AR13 -> -38.00528241 | CH13: ='Azimut long.'!AS13 -> 277.9300921 | CI13: ='Altura long.'!AS13 -> -43.68134954 | CJ13: ='Azimut long.'!AT13 -> 283.9703601 | CK13: ='Altura long.'!AT13 -> -49.27645582 | CL13: ='Azimut long.'!AU13 -> 291.0834604 | CM13: ='Altura long.'!AU13 -> -54.70906528 | CN13: ='Azimut long.'!AV13 -> 299.8379216 | CO13: ='Altura long.'!AV13 -> -59.85050531 | CP13: ='Azimut long.'!AW13 -> 311.0652318 | CQ13: ='Altura long.'!AW13 -> -64.48628238 | CR13: ='Azimut long.'!AX13 -> 325.7626954 | CS13: ='Altura long.'!AX13 -> -68.26074212 | CT13: ='Azimut long.'!AY13 -> 174.2743169 | CU13: ='Altura long.'!AY13 -> 27.36752013
A14: ='Datos diarios'!A13 -> 2021-01-12 | B14: ='Azimut long.'!C14 -> 344.3998309 | C14: ='Altura long.'!C14 -> -72.21924738 | D14: ='Azimut long.'!D14 -> 5.536778765 | E14: ='Altura long.'!D14 -> -71.15757835 | F14: ='Azimut long.'!E14 -> 25.78206531 | G14: ='Altura long.'!E14 -> -69.62085248 | H14: ='Azimut long.'!F14 -> 42.43299881 | I14: ='Altura long.'!F14 -> -66.42430252 | J14: ='Azimut long.'!G14 -> 55.1918154 | K14: ='Altura long.'!G14 -> -62.13396443 | L14: ='Azimut long.'!H14 -> 64.98688648 | M14: ='Altura long.'!H14 -> -57.19195702 | N14: ='Azimut long.'!I14 -> 72.78126148 | O14: ='Altura long.'!I14 -> -51.87258174 | P14: ='Azimut long.'!J14 -> 79.26558275 | Q14: ='Altura long.'!J14 -> -46.33824933 | R14: ='Azimut long.'!K14 -> 84.89525828 | S14: ='Altura long.'!K14 -> -40.6886802 | T14: ='Azimut long.'!L14 -> 89.97113028 | U14: ='Altura long.'!L14 -> -34.98979532 | V14: ='Azimut long.'!M14 -> 94.69892309 | W14: ='Altura long.'!M14 -> -29.28942507 | X14: ='Azimut long.'!N14 -> 99.22645539 | Y14: ='Altura long.'!N14 -> -23.62600471 | Z14: ='Azimut long.'!O14 -> 103.6662219 | AA14: ='Altura long.'!O14 -> -18.0336841 | AB14: ='Azimut long.'!P14 -> 108.1091935 | AC14: ='Altura long.'!P14 -> -12.54560457 | AD14: ='Azimut long.'!Q14 -> 112.6333625 | AE14: ='Altura long.'!Q14 -> -7.196235751 | AF14: ='Azimut long.'!R14 -> 117.3089718 | AG14: ='Altura long.'!R14 -> -2.023227852 | AH14: ='Azimut long.'!S14 -> 122.2014044 | AI14: ='Altura long.'!S14 -> 2.931007064 | AJ14: ='Azimut long.'!T14 -> 127.372097 | AK14: ='Altura long.'!T14 -> 7.617934328 | AL14: ='Azimut long.'!U14 -> 132.8774382 | AM14: ='Altura long.'!U14 -> 11.98185263 | AN14: ='Azimut long.'!V14 -> 138.765391 | AO14: ='Altura long.'!V14 -> 15.95942342 | AP14: ='Azimut long.'!W14 -> 145.0696125 | AQ14: ='Altura long.'!W14 -> 19.48020372 | AR14: ='Azimut long.'!X14 -> 151.8012902 | AS14: ='Altura long.'!X14 -> 22.46874616 | AT14: ='Azimut long.'!Y14 -> 158.9399579 | AU14: ='Altura long.'!Y14 -> 24.84880188 | AV14: ='Azimut long.'!Z14 -> 166.4260449 | AW14: ='Altura long.'!Z14 -> 26.54979735 | AX14: ='Azimut long.'!AA14 -> 174.1590973 | AY14: ='Altura long.'!AA14 -> 27.51495415 | AZ14: ='Azimut long.'!AB14 -> 182.0051249 | BA14: ='Altura long.'!AB14 -> 27.70937357 | BB14: ='Azimut long.'!AC14 -> 189.8134826 | BC14: ='Altura long.'!AC14 -> 27.12572037 | BD14: ='Azimut long.'!AD14 -> 197.4391194 | BE14: ='Altura long.'!AD14 -> 25.78550379 | BF14: ='Azimut long.'!AE14 -> 204.7630168 | BG14: ='Altura long.'!AE14 -> 23.73546263 | BH14: ='Azimut long.'!AF14 -> 211.7046895 | BI14: ='Altura long.'!AF14 -> 21.04038357 | BJ14: ='Azimut long.'!AG14 -> 218.2247463 | BK14: ='Altura long.'!AG14 -> 17.77470226 | BL14: ='Azimut long.'!AH14 -> 224.3197523 | BM14: ='Altura long.'!AH14 -> 14.01502835 | BN14: ='Azimut long.'!AI14 -> 230.0134216 | BO14: ='Altura long.'!AI14 -> 9.834766714 | BP14: ='Azimut long.'!AJ14 -> 235.3476539 | BQ14: ='Altura long.'!AJ14 -> 5.301015775 | BR14: ='Azimut long.'!AK14 -> 240.3754102 | BS14: ='Altura long.'!AK14 -> 0.4733315647 | BT14: ='Azimut long.'!AL14 -> 245.1560946 | BU14: ='Altura long.'!AL14 -> -4.596229057 | BV14: ='Azimut long.'!AM14 -> 249.7533707 | BW14: ='Altura long.'!AM14 -> -9.86229711 | BX14: ='Azimut long.'!AN14 -> 254.2351142 | BY14: ='Altura long.'!AN14 -> -15.2849561 | BZ14: ='Azimut long.'!AO14 -> 258.6753328 | CA14: ='Altura long.'!AO14 -> -20.82825507 | CB14: ='Azimut long.'!AP14 -> 263.1581966 | CC14: ='Altura long.'!AP14 -> -26.45848959 | CD14: ='Azimut long.'!AQ14 -> 267.7848221 | CE14: ='Altura long.'!AQ14 -> -32.14211915 | CF14: ='Azimut long.'!AR14 -> 272.6842097 | CG14: ='Altura long.'!AR14 -> -37.84299386 | CH14: ='Azimut long.'!AS14 -> 278.0309743 | CI14: ='Altura long.'!AS14 -> -43.51823791 | CJ14: ='Azimut long.'!AT14 -> 284.0743883 | CK14: ='Altura long.'!AT14 -> -49.11151829 | CL14: ='Azimut long.'!AU14 -> 291.185373 | CM14: ='Altura long.'!AU14 -> -54.54121839 | CN14: ='Azimut long.'!AV14 -> 299.9257343 | CO14: ='Altura long.'!AV14 -> -59.67889167 | CP14: ='Azimut long.'!AW14 -> 311.1137607 | CQ14: ='Altura long.'!AW14 -> -64.31121708 | CR14: ='Azimut long.'!AX14 -> 325.727845 | CS14: ='Altura long.'!AX14 -> -68.08590002 | CT14: ='Azimut long.'!AY14 -> 174.1590973 | CU14: ='Altura long.'!AY14 -> 27.51495415
A15: ='Datos diarios'!A14 -> 2021-01-13 | B15: ='Azimut long.'!C15 -> 344.2333089 | C15: ='Altura long.'!C15 -> -72.07078953 | D15: ='Azimut long.'!D15 -> 5.23310782 | E15: ='Altura long.'!D15 -> -71.01594275 | F15: ='Azimut long.'!E15 -> 25.40069296 | G15: ='Altura long.'!E15 -> -69.51124764 | H15: ='Azimut long.'!F15 -> 42.04519494 | I15: ='Altura long.'!F15 -> -66.34542521 | J15: ='Azimut long.'!G15 -> 54.8341761 | K15: ='Altura long.'!G15 -> -62.07876108 | L15: ='Azimut long.'!H15 -> 64.66710233 | M15: ='Altura long.'!H15 -> -57.15304616 | N15: ='Azimut long.'!I15 -> 72.49556866 | O15: ='Altura long.'!I15 -> -51.84416568 | P15: ='Azimut long.'!J15 -> 79.00766131 | Q15: ='Altura long.'!J15 -> -46.31609671 | R15: ='Azimut long.'!K15 -> 84.65915483 | S15: ='Altura long.'!K15 -> -40.66969323 | T15: ='Azimut long.'!L15 -> 89.75191267 | U15: ='Altura long.'!L15 -> -34.97162714 | V15: ='Azimut long.'!M15 -> 94.49265206 | W15: ='Altura long.'!M15 -> -29.27021098 | X15: ='Azimut long.'!N15 -> 99.03000871 | Y15: ='Altura long.'!N15 -> -23.60418289 | Z15: ='Azimut long.'!O15 -> 103.4771231 | AA15: ='Altura long.'!O15 -> -18.00787632 | AB15: ='Azimut long.'!P15 -> 107.9254833 | AC15: ='Altura long.'!P15 -> -12.51453584 | AD15: ='Azimut long.'!Q15 -> 112.4535195 | AE15: ='Altura long.'!Q15 -> -7.15868058 | AF15: ='Azimut long.'!R15 -> 117.1318784 | AG15: ='Altura long.'!R15 -> -1.977976625 | AH15: ='Azimut long.'!S15 -> 122.0263554 | AI15: ='Altura long.'!S15 -> 2.985163357 | AJ15: ='Azimut long.'!T15 -> 127.1988475 | AK15: ='Altura long.'!T15 -> 7.682199365 | AL15: ='Azimut long.'!U15 -> 132.7062875 | AM15: ='Altura long.'!U15 -> 12.05739549 | AN15: ='Azimut long.'!V15 -> 138.5972883 | AO15: ='Altura long.'!V15 -> 16.0473188 | AP15: ='Azimut long.'!W15 -> 144.9062535 | AQ15: ='Altura long.'!W15 -> 19.58133696 | AR15: ='Azimut long.'!X15 -> 151.6451552 | AS15: ='Altura long.'!X15 -> 22.58368502 | AT15: ='Azimut long.'!Y15 -> 158.7942171 | AU15: ='Altura long.'!Y15 -> 24.9776507 | AV15: ='Azimut long.'!Z15 -> 166.2942717 | AW15: ='Altura long.'!Z15 -> 26.69206823 | AX15: ='Azimut long.'!AA15 -> 174.0447801 | AY15: ='Altura long.'!AA15 -> 27.66950434 | AZ15: ='Azimut long.'!AB15 -> 181.9110849 | BA15: ='Altura long.'!AB15 -> 27.87445383 | BB15: ='Azimut long.'!AC15 -> 189.7413791 | BC15: ='Altura long.'!AC15 -> 27.29914487 | BD15: ='Azimut long.'!AD15 -> 197.3892235 | BE15: ='Altura long.'!AD15 -> 25.96490286 | BF15: ='Azimut long.'!AE15 -> 204.7343436 | BG15: ='Altura long.'!AE15 -> 23.91854508 | BH15: ='Azimut long.'!AF15 -> 211.6953562 | BI15: ='Altura long.'!AF15 -> 21.22514001 | BJ15: ='Azimut long.'!AG15 -> 218.232424 | BK15: ='Altura long.'!AG15 -> 17.95951625 | BL15: ='Azimut long.'!AH15 -> 224.3420534 | BM15: ='Altura long.'!AH15 -> 14.19870165 | BN15: ='Azimut long.'!AI15 -> 230.0481655 | BO15: ='Altura long.'!AI15 -> 10.01648651 | BP15: ='Azimut long.'!AJ15 -> 235.3930056 | BQ15: ='Altura long.'!AJ15 -> 5.480294574 | BR15: ='Azimut long.'!AK15 -> 240.4299234 | BS15: ='Altura long.'!AK15 -> 0.649942415 | BT15: ='Azimut long.'!AL15 -> 245.2187045 | BU15: ='Altura long.'!AL15 -> -4.42230932 | BV15: ='Azimut long.'!AM15 -> 249.8233533 | BW15: ='Altura long.'!AM15 -> -9.690931194 | BX15: ='Azimut long.'!AN15 -> 254.3120354 | BY15: ='Altura long.'!AN15 -> -15.1158751 | BZ15: ='Azimut long.'!AO15 -> 258.7589895 | CA15: ='Altura long.'!AO15 -> -20.66107353 | CB15: ='Azimut long.'!AP15 -> 263.2485424 | CC15: ='Altura long.'!AP15 -> -26.29270806 | CD15: ='Azimut long.'!AQ15 -> 267.8818569 | CE15: ='Altura long.'!AQ15 -> -31.97711541 | CF15: ='Azimut long.'!AR15 -> 272.7877843 | CG15: ='Altura long.'!AR15 -> -37.6780049 | CH15: ='Azimut long.'!AS15 -> 278.1404042 | CI15: ='Altura long.'!AS15 -> -43.35233824 | CJ15: ='Azimut long.'!AT15 -> 284.1876416 | CK15: ='Altura long.'!AT15 -> -48.94361285 | CL15: ='Azimut long.'!AU15 -> 291.2973291 | CM15: ='Altura long.'!AU15 -> -54.37010611 | CN15: ='Azimut long.'!AV15 -> 300.024549 | CO15: ='Altura long.'!AV15 -> -59.50356194 | CP15: ='Azimut long.'!AW15 -> 311.1743446 | CQ15: ='Altura long.'!AW15 -> -64.13178359 | CR15: ='Azimut long.'!AX15 -> 325.7059069 | CS15: ='Altura long.'!AX15 -> -67.90578194 | CT15: ='Azimut long.'!AY15 -> 174.0447801 | CU15: ='Altura long.'!AY15 -> 27.66950434
A16: ='Datos diarios'!A15 -> 2021-01-14 | B16: ='Azimut long.'!C16 -> 344.0790922 | C16: ='Altura long.'!C16 -> -71.91467708 | D16: ='Azimut long.'!D16 -> 4.93771523 | E16: ='Altura long.'!D16 -> -70.86685624 | F16: ='Azimut long.'!E16 -> 25.0213079 | G16: ='Altura long.'!E16 -> -69.39376024 | H16: ='Azimut long.'!F16 -> 41.65438147 | I16: ='Altura long.'!F16 -> -66.25885446 | J16: ='Azimut long.'!G16 -> 54.47098268 | K16: ='Altura long.'!G16 -> -62.01632169 | L16: ='Azimut long.'!H16 -> 64.34087657 | M16: ='Altura long.'!H16 -> -57.10736334 | N16: ='Azimut long.'!I16 -> 72.20334498 | O16: ='Altura long.'!I16 -> -51.80935401 | P16: ='Azimut long.'!J16 -> 78.74344175 | Q16: ='Altura long.'!J16 -> -46.2878242 | R16: ='Azimut long.'!K16 -> 84.41709357 | S16: ='Altura long.'!K16 -> -40.64477352 | T16: ='Azimut long.'!L16 -> 89.52709363 | U16: ='Altura long.'!L16 -> -34.94764076 | V16: ='Azimut long.'!M16 -> 94.28111915 | W16: ='Altura long.'!M16 -> -29.24523437 | X16: ='Azimut long.'!N16 -> 98.82861232 | Y16: ='Altura long.'!N16 -> -23.57660618 | Z16: ='Azimut long.'!O16 -> 103.2833596 | AA16: ='Altura long.'!O16 -> -17.97628129 | AB16: ='Azimut long.'!P16 -> 107.7373733 | AC16: ='Altura long.'!P16 -> -12.47761369 | AD16: ='Azimut long.'!Q16 -> 112.2695306 | AE16: ='Altura long.'!Q16 -> -7.115176871 | AF16: ='Azimut long.'!R16 -> 116.9508924 | AG16: ='Altura long.'!R16 -> -1.926657024 | AH16: ='Azimut long.'!S16 -> 121.847679 | AI16: ='Altura long.'!S16 -> 3.045528399 | AJ16: ='Azimut long.'!T16 -> 127.022264 | AK16: ='Altura long.'!T16 -> 7.752829265 | AL16: ='Azimut long.'!U16 -> 132.532143 | AM16: ='Altura long.'!U16 -> 12.13946891 | AN16: ='Azimut long.'!V16 -> 138.4265982 | AO16: ='Altura long.'!V16 -> 16.14191167 | AP16: ='Azimut long.'!W16 -> 144.7408015 | AQ16: ='Altura long.'!W16 -> 19.68932452 | AR16: ='Azimut long.'!X16 -> 151.4875275 | AS16: ='Altura long.'!X16 -> 22.70561007 | AT16: ='Azimut long.'!Y16 -> 158.6477014 | AU16: ='Altura long.'!Y16 -> 25.11357455 | AV16: ='Azimut long.'!Z16 -> 166.1625512 | AW16: ='Altura long.'!Z16 -> 26.84144033 | AX16: ='Azimut long.'!AA16 -> 173.9314305 | AY16: ='Altura long.'!AA16 -> 27.8311017 | AZ16: ='Azimut long.'!AB16 -> 181.8189617 | BA16: ='Altura long.'!AB16 -> 28.0464358 | BB16: ='Azimut long.'!AC16 -> 189.6721099 | BC16: ='Altura long.'!AC16 -> 27.47923368 | BD16: ='Azimut long.'!AD16 -> 197.3429993 | BE16: ='Altura long.'!AD16 -> 26.150648 | BF16: ='Azimut long.'!AE16 -> 204.7100463 | BG16: ='Altura long.'!AE16 -> 24.10759488 | BH16: ='Azimut long.'!AF16 -> 211.6909586 | BI16: ='Altura long.'!AF16 -> 21.41544922 | BJ16: ='Azimut long.'!AG16 -> 218.2454599 | BK16: ='Altura long.'!AG16 -> 18.14945654 | BL16: ='Azimut long.'!AH16 -> 224.3700227 | BM16: ='Altura long.'!AH16 -> 14.38708273 | BN16: ='Azimut long.'!AI16 -> 230.0888045 | BO16: ='Altura long.'!AI16 -> 10.20251811 | BP16: ='Azimut long.'!AJ16 -> 235.4444221 | BQ16: ='Altura long.'!AJ16 -> 5.663521379 | BR16: ='Azimut long.'!AK16 -> 240.4906438 | BS16: ='Altura long.'!AK16 -> 0.8301754362 | BT16: ='Azimut long.'!AL16 -> 245.2876557 | BU16: ='Altura long.'!AL16 -> -4.245052004 | BV16: ='Azimut long.'!AM16 -> 249.8998235 | BW16: ='Altura long.'!AM16 -> -9.516469117 | BX16: ='Azimut long.'!AN16 -> 254.3956178 | BY16: ='Altura long.'!AN16 -> -14.94389462 | BZ16: ='Azimut long.'!AO16 -> 258.8495226 | CA16: ='Altura long.'!AO16 -> -20.49114248 | CB16: ='Azimut long.'!AP16 -> 263.3460363 | CC16: ='Altura long.'!AP16 -> -26.12427714 | CD16: ='Azimut long.'!AQ16 -> 267.9863817 | CE16: ='Altura long.'!AQ16 -> -31.80950752 | CF16: ='Azimut long.'!AR16 -> 272.8992783 | CG16: ='Altura long.'!AR16 -> -37.51039433 | CH16: ='Azimut long.'!AS16 -> 278.2582873 | CI16: ='Altura long.'!AS16 -> -43.18372508 | CJ16: ='Azimut long.'!AT16 -> 284.3100047 | CK16: ='Altura long.'!AT16 -> -48.77281037 | CL16: ='Azimut long.'!AU16 -> 291.4191885 | CM16: ='Altura long.'!AU16 -> -54.19579682 | CN16: ='Azimut long.'!AV16 -> 300.1342031 | CO16: ='Altura long.'!AV16 -> -59.32458409 | CP16: ='Azimut long.'!AW16 -> 311.2468135 | CQ16: ='Altura long.'!AW16 -> -63.94805243 | CR16: ='Azimut long.'!AX16 -> 325.6967593 | CS16: ='Altura long.'!AX16 -> -67.72046301 | CT16: ='Azimut long.'!AY16 -> 173.9314305 | CU16: ='Altura long.'!AY16 -> 27.8311017
A17: ='Datos diarios'!A16 -> 2021-01-15 | B17: ='Azimut long.'!C17 -> 343.9372201 | C17: ='Altura long.'!C17 -> -71.75098236 | D17: ='Azimut long.'!D17 -> 4.650929551 | E17: ='Altura long.'!D17 -> -70.71037636 | F17: ='Azimut long.'!E17 -> 24.6444583 | G17: ='Altura long.'!E17 -> -69.2684062 | H17: ='Azimut long.'!F17 -> 41.26111465 | I17: ='Altura long.'!F17 -> -66.16456399 | J17: ='Azimut long.'!G17 -> 54.10269536 | K17: ='Altura long.'!G17 -> -61.94659459 | L17: ='Azimut long.'!H17 -> 64.00856922 | M17: ='Altura long.'!H17 -> -57.05484664 | N17: ='Azimut long.'!I17 -> 71.90487485 | O17: ='Altura long.'!I17 -> -51.76808337 | P17: ='Azimut long.'!J17 -> 78.47315712 | Q17: ='Altura long.'!J17 -> -46.2533715 | R17: ='Azimut long.'!K17 -> 84.16927081 | S17: ='Altura long.'!K17 -> -40.61386608 | T17: ='Azimut long.'!L17 -> 89.29684454 | U17: ='Altura long.'!L17 -> -34.91778759 | V17: ='Azimut long.'!M17 -> 94.06447682 | W17: ='Altura long.'!M17 -> -29.21445376 | X17: ='Azimut long.'!N17 -> 98.6224042 | Y17: ='Altura long.'!N17 -> -23.54324059 | Z17: ='Azimut long.'!O17 -> 103.0850593 | AA17: ='Altura long.'!O17 -> -17.93887283 | AB17: ='Azimut long.'!P17 -> 107.5449834 | AC17: ='Altura long.'!P17 -> -12.43482 | AD17: ='Azimut long.'!Q17 -> 112.0815077 | AE17: ='Altura long.'!Q17 -> -7.065714793 | AF17: ='Azimut long.'!R17 -> 116.7661193 | AG17: ='Altura long.'!R17 -> -1.869267713 | AH17: ='Azimut long.'!S17 -> 121.6654763 | AI17: ='Altura long.'!S17 -> 3.112094868 | AJ17: ='Azimut long.'!T17 -> 126.8424437 | AK17: ='Altura long.'!T17 -> 7.829807949 | AL17: ='Azimut long.'!U17 -> 132.3550964 | AM17: ='Altura long.'!U17 -> 12.22804805 | AN17: ='Azimut long.'!V17 -> 138.2534075 | AO17: ='Altura long.'!V17 -> 16.24316856 | AP17: ='Azimut long.'!W17 -> 144.5733383 | AQ17: ='Altura long.'!W17 -> 19.80412452 | AR17: ='Azimut long.'!X17 -> 151.3284863 | AS17: ='Altura long.'!X17 -> 22.8344714 | AT17: ='Azimut long.'!Y17 -> 158.5004862 | AU17: ='Altura long.'!Y17 -> 25.25651588 | AV17: ='Azimut long.'!Z17 -> 166.0309614 | AW17: ='Altura long.'!Z17 -> 26.99784883 | AX17: ='Azimut long.'!AA17 -> 173.8191233 | AY17: ='Altura long.'!AA17 -> 27.9996743 | AZ17: ='Azimut long.'!AB17 -> 181.7288266 | BA17: ='Altura long.'!AB17 -> 28.22524061 | BB17: ='Azimut long.'!AC17 -> 189.6057498 | BC17: ='Altura long.'!AC17 -> 27.6659011 | BD17: ='Azimut long.'!AD17 -> 197.30051 | BE17: ='Altura long.'!AD17 -> 26.34264706 | BF17: ='Azimut long.'!AE17 -> 204.6901816 | BG17: ='Altura long.'!AE17 -> 24.30251413 | BH17: ='Azimut long.'!AF17 -> 211.6915461 | BI17: ='Altura long.'!AF17 -> 21.61120867 | BJ17: ='Azimut long.'!AG17 -> 218.2638954 | BK17: ='Altura long.'!AG17 -> 18.34441728 | BL17: ='Azimut long.'!AH17 -> 224.4036918 | BM17: ='Altura long.'!AH17 -> 14.58006385 | BN17: ='Azimut long.'!AI17 -> 230.1353574 | BO17: ='Altura long.'!AI17 -> 10.39275324 | BP17: ='Azimut long.'!AJ17 -> 235.5019127 | BQ17: ='Altura long.'!AJ17 -> 5.850588595 | BR17: ='Azimut long.'!AK17 -> 240.5575688 | BS17: ='Altura long.'!AK17 -> 1.013924756 | BT17: ='Azimut long.'!AL17 -> 245.3629364 | BU17: ='Altura long.'!AL17 -> -4.064560408 | BV17: ='Azimut long.'!AM17 -> 249.982759 | BW17: ='Altura long.'!AM17 -> -9.339010926 | BX17: ='Azimut long.'!AN17 -> 254.4858293 | BY17: ='Altura long.'!AN17 -> -14.76911092 | BZ17: ='Azimut long.'!AO17 -> 258.9468902 | CA17: ='Altura long.'!AO17 -> -20.31855399 | CB17: ='Azimut long.'!AP17 -> 263.4506242 | CC17: ='Altura long.'!AP17 -> -25.95328438 | CD17: ='Azimut long.'!AQ17 -> 268.0983303 | CE17: ='Altura long.'!AQ17 -> -31.63937835 | CF17: ='Azimut long.'!AR17 -> 273.01861 | CG17: ='Altura long.'!AR17 -> -37.34024031 | CH17: ='Azimut long.'!AS17 -> 278.3845244 | CI17: ='Altura long.'!AS17 -> -43.01247206 | CJ17: ='Azimut long.'!AT17 -> 284.4413565 | CK17: ='Altura long.'!AT17 -> -48.59918052 | CL17: ='Azimut long.'!AU17 -> 291.5508067 | CM17: ='Altura long.'!AU17 -> -54.01835741 | CN17: ='Azimut long.'!AV17 -> 300.2545273 | CO17: ='Altura long.'!AV17 -> -59.14202441 | CP17: ='Azimut long.'!AW17 -> 311.3309878 | CQ17: ='Altura long.'!AW17 -> -63.76009245 | CR17: ='Azimut long.'!AX17 -> 325.7002601 | CS17: ='Altura long.'!AX17 -> -67.53001734 | CT17: ='Azimut long.'!AY17 -> 173.8191233 | CU17: ='Altura long.'!AY17 -> 27.9996743
A18: ='Datos diarios'!A17 -> 2021-01-16 | B18: ='Azimut long.'!C18 -> 343.8077002 | C18: ='Altura long.'!C18 -> -71.5797822 | D18: ='Azimut long.'!D18 -> 4.373045029 | E18: ='Altura long.'!D18 -> -70.54656526 | F18: ='Azimut long.'!E18 -> 24.27067237 | G18: ='Altura long.'!E18 -> -69.13520815 | H18: ='Azimut long.'!F18 -> 40.86594744 | I18: ='Altura long.'!F18 -> -66.06253414 | J18: ='Azimut long.'!G18 -> 53.72977798 | K18: ='Altura long.'!G18 -> -61.86953365 | L18: ='Azimut long.'!H18 -> 63.67054744 | M18: ='Altura long.'!H18 -> -56.99543858 | N18: ='Azimut long.'!I18 -> 71.60044992 | O18: ='Altura long.'!I18 -> -51.72029413 | P18: ='Azimut long.'!J18 -> 78.1970451 | Q18: ='Altura long.'!J18 -> -46.21268158 | R18: ='Azimut long.'!K18 -> 83.9158874 | S18: ='Altura long.'!K18 -> -40.5769189 | T18: ='Azimut long.'!L18 -> 89.0613401 | U18: ='Altura long.'!L18 -> -34.88202196 | V18: ='Azimut long.'!M18 -> 93.84288048 | W18: ='Altura long.'!M18 -> -29.17783049 | X18: ='Azimut long.'!N18 -> 98.4115254 | Y18: ='Altura long.'!N18 -> -23.50405491 | Z18: ='Azimut long.'!O18 -> 102.8823517 | AA18: ='Altura long.'!O18 -> -17.89562753 | AB18: ='Azimut long.'!P18 -> 107.3484337 | AC18: ='Altura long.'!P18 -> -12.38613943 | AD18: ='Azimut long.'!Q18 -> 111.8895652 | AE18: ='Altura long.'!Q18 -> -7.010287321 | AF18: ='Azimut long.'!R18 -> 116.5776678 | AG18: ='Altura long.'!R18 -> -1.805810186 | AH18: ='Azimut long.'!S18 -> 121.4798496 | AI18: ='Altura long.'!S18 -> 3.184852587 | AJ18: ='Azimut long.'!T18 -> 126.6594824 | AK18: ='Altura long.'!T18 -> 7.913116463 | AL18: ='Azimut long.'!U18 -> 132.1752387 | AM18: ='Altura long.'!U18 -> 12.32310518 | AN18: ='Azimut long.'!V18 -> 138.0778023 | AO18: ='Altura long.'!V18 -> 16.35105308 | AP18: ='Azimut long.'!W18 -> 144.4039458 | AQ18: ='Altura long.'!W18 -> 19.92569222 | AR18: ='Azimut long.'!X18 -> 151.1681069 | AS18: ='Altura long.'!X18 -> 22.97021622 | AT18: ='Azimut long.'!Y18 -> 158.3526448 | AU18: ='Altura long.'!Y18 -> 25.40641429 | AV18: ='Azimut long.'!Z18 -> 165.899568 | AW18: ='Altura long.'!Z18 -> 27.16122604 | AX18: ='Azimut long.'!AA18 -> 173.707924 | AY18: ='Altura long.'!AA18 -> 28.1751474 | AZ18: ='Azimut long.'!AB18 -> 181.6407468 | BA18: ='Altura long.'!AB18 -> 28.41078654 | BB18: ='Azimut long.'!AC18 -> 189.5423605 | BC18: ='Altura long.'!AC18 -> 27.85905861 | BD18: ='Azimut long.'!AD18 -> 197.2618188 | BE18: ='Altura long.'!AD18 -> 26.54080508 | BF18: ='Azimut long.'!AE18 -> 204.674809 | BG18: ='Altura long.'!AE18 -> 24.50320224 | BH18: ='Azimut long.'!AF18 -> 211.6971689 | BI18: ='Altura long.'!AF18 -> 21.81231324 | BJ18: ='Azimut long.'!AG18 -> 218.2877709 | BK18: ='Altura long.'!AG18 -> 18.5442902 | BL18: ='Azimut long.'!AH18 -> 224.4430895 | BM18: ='Altura long.'!AH18 -> 14.77753508 | BN18: ='Azimut long.'!AI18 -> 230.1878417 | BO18: ='Altura long.'!AI18 -> 10.58708171 | BP18: ='Azimut long.'!AJ18 -> 235.5654835 | BQ18: ='Altura long.'!AJ18 -> 6.041387013 | BR18: ='Azimut long.'!AK18 -> 240.6306943 | BS18: ='Altura long.'!AK18 -> 1.201083192 | BT18: ='Azimut long.'!AL18 -> 245.4445321 | BU18: ='Altura long.'!AL18 -> -3.880938836 | BV18: ='Azimut long.'!AM18 -> 250.0721356 | BW18: ='Altura long.'!AM18 -> -9.158657366 | BX18: ='Azimut long.'!AN18 -> 254.5826353 | BY18: ='Altura long.'!AN18 -> -14.59162067 | BZ18: ='Azimut long.'!AO18 -> 259.0510465 | CA18: ='Altura long.'!AO18 -> -20.14340022 | CB18: ='Azimut long.'!AP18 -> 263.5622497 | CC18: ='Altura long.'!AP18 -> -25.77981719 | CD18: ='Azimut long.'!AQ18 -> 268.2176326 | CE18: ='Altura long.'!AQ18 -> -31.46681034 | CF18: ='Azimut long.'!AR18 -> 273.1456955 | CG18: ='Altura long.'!AR18 -> -37.16762031 | CH18: ='Azimut long.'!AS18 -> 278.5190133 | CI18: ='Altura long.'!AS18 -> -42.83865187 | CJ18: ='Azimut long.'!AT18 -> 284.5815743 | CK18: ='Altura long.'!AT18 -> -48.42279176 | CL18: ='Azimut long.'!AU18 -> 291.6920345 | CM18: ='Altura long.'!AU18 -> -53.83785336 | CN18: ='Azimut long.'!AV18 -> 300.3853461 | CO18: ='Altura long.'!AV18 -> -58.9559476 | CP18: ='Azimut long.'!AW18 -> 311.4266771 | CQ18: ='Altura long.'!AW18 -> -63.56797086 | CR18: ='Azimut long.'!AX18 -> 325.7162487 | CS18: ='Altura long.'!AX18 -> -67.33451808 | CT18: ='Azimut long.'!AY18 -> 173.707924 | CU18: ='Altura long.'!AY18 -> 28.1751474
A19: ='Datos diarios'!A18 -> 2021-01-17 | B19: ='Azimut long.'!C19 -> 343.6905085 | C19: ='Altura long.'!C19 -> -71.40115778 | D19: ='Azimut long.'!D19 -> 4.104322287 | E19: ='Altura long.'!D19 -> -70.37548957 | F19: ='Azimut long.'!E19 -> 23.90045808 | G19: ='Altura long.'!E19 -> -68.99419544 | H19: ='Azimut long.'!F19 -> 40.4694286 | I19: ='Altura long.'!F19 -> -65.95275203 | J19: ='Azimut long.'!G19 -> 53.3526995 | K19: ='Altura long.'!G19 -> -61.78509843 | L19: ='Azimut long.'!H19 -> 63.32718444 | M19: ='Altura long.'!H19 -> -56.92908641 | N19: ='Azimut long.'!I19 -> 71.29036817 | O19: ='Altura long.'!I19 -> -51.66593059 | P19: ='Azimut long.'!J19 -> 77.91535017 | Q19: ='Altura long.'!J19 -> -46.16570087 | R19: ='Azimut long.'!K19 -> 83.65715012 | S19: ='Altura long.'!K19 -> -40.53388316 | T19: ='Azimut long.'!L19 -> 88.8207587 | U19: ='Altura long.'!L19 -> -34.84030116 | V19: ='Azimut long.'!M19 -> 93.61648814 | W19: ='Altura long.'!M19 -> -29.13532877 | X19: ='Azimut long.'!N19 -> 98.19611956 | Y19: ='Altura long.'!N19 -> -23.45902078 | Z19: ='Azimut long.'!O19 -> 102.6753694 | AA19: ='Altura long.'!O19 -> -17.84652481 | AB19: ='Azimut long.'!P19 -> 107.1478475 | AC19: ='Altura long.'!P19 -> -12.33155946 | AD19: ='Azimut long.'!Q19 -> 111.6938176 | AE19: ='Altura long.'!Q19 -> -6.948890259 | AF19: ='Azimut long.'!R19 -> 116.3856456 | AG19: ='Altura long.'!R19 -> -1.736288773 | AH19: ='Azimut long.'!S19 -> 121.2909014 | AI19: ='Altura long.'!S19 -> 3.263788534 | AJ19: ='Azimut long.'!T19 -> 126.4734776 | AK19: ='Altura long.'!T19 -> 8.002733006 | AL19: ='Azimut long.'!U19 -> 131.9926619 | AM19: ='Altura long.'!U19 -> 12.42460974 | AN19: ='Azimut long.'!V19 -> 137.8998693 | AO19: ='Altura long.'!V19 -> 16.46552603 | AP19: ='Azimut long.'!W19 -> 144.2327055 | AQ19: ='Altura long.'!W19 -> 20.05398002 | AR19: ='Azimut long.'!X19 -> 151.0064682 | AS19: ='Altura long.'!X19 -> 23.11278898 | AT19: ='Azimut long.'!Y19 -> 158.2042513 | AU19: ='Altura long.'!Y19 -> 25.56320661 | AV19: ='Azimut long.'!Z19 -> 165.7684456 | AW19: ='Altura long.'!Z19 -> 27.33150154 | AX19: ='Azimut long.'!AA19 -> 173.5979047 | AY19: ='Altura long.'!AA19 -> 28.35744351 | AZ19: ='Azimut long.'!AB19 -> 181.5547914 | BA19: ='Altura long.'!AB19 -> 28.60298915 | BB19: ='Azimut long.'!AC19 -> 189.48201 | BC19: ='Altura long.'!AC19 -> 28.05861496 | BD19: ='Azimut long.'!AD19 -> 197.2269894 | BE19: ='Altura long.'!AD19 -> 26.74502445 | BF19: ='Azimut long.'!AE19 -> 204.6639844 | BG19: ='Altura long.'!AE19 -> 24.70955599 | BH19: ='Azimut long.'!AF19 -> 211.7078754 | BI19: ='Altura long.'!AF19 -> 22.01865532 | BJ19: ='Azimut long.'!AG19 -> 218.3171236 | BK19: ='Altura long.'!AG19 -> 18.74896477 | BL19: ='Azimut long.'!AH19 -> 224.4882414 | BM19: ='Altura long.'!AH19 -> 14.97938443 | BN19: ='Azimut long.'!AI19 -> 230.2462737 | BO19: ='Altura long.'!AI19 -> 10.78539154 | BP19: ='Azimut long.'!AJ19 -> 235.6351388 | BQ19: ='Altura long.'!AJ19 -> 6.235805915 | BR19: ='Azimut long.'!AK19 -> 240.7100138 | BS19: ='Altura long.'!AK19 -> 1.391542353 | BT19: ='Azimut long.'!AL19 -> 245.532425 | BU19: ='Altura long.'!AL19 -> -3.694292497 | BV19: ='Azimut long.'!AM19 -> 250.1679254 | BW19: ='Altura long.'!AM19 -> -8.975509794 | BX19: ='Azimut long.'!AN19 -> 254.6859978 | BY19: ='Altura long.'!AN19 -> -14.41152085 | BZ19: ='Azimut long.'!AO19 -> 259.1619435 | CA19: ='Altura long.'!AO19 -> -19.96577339 | CB19: ='Azimut long.'!AP19 -> 263.6808537 | CC19: ='Altura long.'!AP19 -> -25.60396274 | CD19: ='Azimut long.'!AQ19 -> 268.3442177 | CE19: ='Altura long.'!AQ19 -> -31.29188546 | CF19: ='Azimut long.'!AR19 -> 273.2804476 | CG19: ='Altura long.'!AR19 -> -36.99261106 | CH19: ='Azimut long.'!AS19 -> 278.6616495 | CI19: ='Altura long.'!AS19 -> -42.66233622 | CJ19: ='Azimut long.'!AT19 -> 284.730531 | CK19: ='Altura long.'!AT19 -> -48.24371137 | CL19: ='Azimut long.'!AU19 -> 291.8427181 | CM19: ='Altura long.'!AU19 -> -53.65434872 | CN19: ='Azimut long.'!AV19 -> 300.526478 | CO19: ='Altura long.'!AV19 -> -58.76641674 | CP19: ='Azimut long.'!AW19 -> 311.5336828 | CQ19: ='Altura long.'!AW19 -> -63.37175329 | CR19: ='Azimut long.'!AX19 -> 325.7445457 | CS19: ='Altura long.'!AX19 -> -67.13403752 | CT19: ='Azimut long.'!AY19 -> 173.5979047 | CU19: ='Altura long.'!AY19 -> 28.35744351
A20: ='Datos diarios'!A19 -> 2021-01-18 | B20: ='Azimut long.'!C20 -> 343.5855927 | C20: ='Altura long.'!C20 -> -71.21519444 | D20: ='Azimut long.'!D20 -> 3.844988435 | E20: ='Altura long.'!D20 -> -70.19722032 | F20: ='Azimut long.'!E20 -> 23.53430067 | G20: ='Altura long.'!E20 -> -68.84540406 | H20: ='Azimut long.'!F20 -> 40.07210177 | I20: ='Altura long.'!F20 -> -65.83521162 | J20: ='Azimut long.'!G20 -> 52.97193042 | K20: ='Altura long.'!G20 -> -61.69325447 | L20: ='Azimut long.'!H20 -> 62.97885916 | M20: ='Altura long.'!H20 -> -56.85574226 | N20: ='Azimut long.'!I20 -> 70.97493392 | O20: ='Altura long.'!I20 -> -51.60494123 | P20: ='Azimut long.'!J20 -> 77.62832134 | Q20: ='Altura long.'!J20 -> -46.11237946 | R20: ='Azimut long.'!K20 -> 83.39326896 | S20: ='Altura long.'!K20 -> -40.48471336 | T20: ='Azimut long.'!L20 -> 88.57528284 | U20: ='Altura long.'!L20 -> -34.79258562 | V20: ='Azimut long.'!M20 -> 93.38546234 | W20: ='Altura long.'!M20 -> -29.08691582 | X20: ='Azimut long.'!N20 -> 97.97633288 | Y20: ='Altura long.'!N20 -> -23.40811279 | Z20: ='Azimut long.'!O20 -> 102.4642456 | AA20: ='Altura long.'!O20 -> -17.79154699 | AB20: ='Azimut long.'!P20 -> 106.9433492 | AC20: ='Altura long.'!P20 -> -12.27107046 | AD20: ='Azimut long.'!Q20 -> 111.494382 | AE20: ='Altura long.'!Q20 -> -6.881522266 | AF20: ='Azimut long.'!R20 -> 116.1901628 | AG20: ='Altura long.'!R20 -> -1.660710654 | AH20: ='Azimut long.'!S20 -> 121.0987357 | AI20: ='Altura long.'!S20 -> 3.348886849 | AJ20: ='Azimut long.'!T20 -> 126.284527 | AK20: ='Altura long.'!T20 -> 8.098632945 | AL20: ='Azimut long.'!U20 -> 131.8074587 | AM20: ='Altura long.'!U20 -> 12.53252832 | AN20: ='Azimut long.'!V20 -> 137.7196956 | AO20: ='Altura long.'!V20 -> 16.58654541 | AP20: ='Azimut long.'!W20 -> 144.059698 | AQ20: ='Altura long.'!W20 -> 20.18893759 | AR20: ='Azimut long.'!X20 -> 150.8436453 | AS20: ='Altura long.'!X20 -> 23.26213136 | AT20: ='Azimut long.'!Y20 -> 158.0553768 | AU20: ='Altura long.'!Y20 -> 25.72682697 | AV20: ='Azimut long.'!Z20 -> 165.6376633 | AW20: ='Altura long.'!Z20 -> 27.50860222 | AX20: ='Azimut long.'!AA20 -> 173.4891346 | AY20: ='Altura long.'!AA20 -> 28.54648248 | AZ20: ='Azimut long.'!AB20 -> 181.4710301 | BA20: ='Altura long.'!AB20 -> 28.80176135 | BB20: ='Azimut long.'!AC20 -> 189.42477 | BC20: ='Altura long.'!AC20 -> 28.26447628 | BD20: ='Azimut long.'!AD20 -> 197.1960888 | BE20: ='Altura long.'!AD20 -> 26.95520494 | BF20: ='Azimut long.'!AE20 -> 204.6577669 | BG20: ='Altura long.'!AE20 -> 24.92146965 | BH20: ='Azimut long.'!AF20 -> 211.7237162 | BI20: ='Altura long.'!AF20 -> 22.23012493 | BJ20: ='Azimut long.'!AG20 -> 218.3519922 | BK20: ='Altura long.'!AG20 -> 18.95832821 | BL20: ='Azimut long.'!AH20 -> 224.5391748 | BM20: ='Altura long.'!AH20 -> 15.18549796 | BN20: ='Azimut long.'!AI20 -> 230.3106662 | BO20: ='Altura long.'!AI20 -> 10.98756904 | BP20: ='Azimut long.'!AJ20 -> 235.7108806 | BQ20: ='Altura long.'!AJ20 -> 6.433733182 | BR20: ='Azimut long.'!AK20 -> 240.7955185 | BS20: ='Altura long.'!AK20 -> 1.585192747 | BT20: ='Azimut long.'!AL20 -> 245.6265958 | BU20: ='Altura long.'!AL20 -> -3.504727404 | BV20: ='Azimut long.'!AM20 -> 250.270099 | BW20: ='Altura long.'!AM20 -> -8.789670078 | BX20: ='Azimut long.'!AN20 -> 254.795877 | BY20: ='Altura long.'!AN20 -> -14.22890867 | BZ20: ='Azimut long.'!AO20 -> 259.2795309 | CA20: ='Altura long.'!AO20 -> -19.78576568 | CB20: ='Azimut long.'!AP20 -> 263.8063731 | CC20: ='Altura long.'!AP20 -> -25.42580789 | CD20: ='Azimut long.'!AQ20 -> 268.4780089 | CE20: ='Altura long.'!AQ20 -> -31.11468512 | CF20: ='Azimut long.'!AR20 -> 273.4227761 | CG20: ='Altura long.'!AR20 -> -36.81528852 | CH20: ='Azimut long.'!AS20 -> 278.8123241 | CI20: ='Altura long.'!AS20 -> -42.48359581 | CJ20: ='Azimut long.'!AT20 -> 284.888095 | CK20: ='Altura long.'!AT20 -> -48.0620054 | CL20: ='Azimut long.'!AU20 -> 292.0027005 | CM20: ='Altura long.'!AU20 -> -53.46790616 | CN20: ='Azimut long.'!AV20 -> 300.6777373 | CO20: ='Altura long.'!AV20 -> -58.57349339 | CP20: ='Azimut long.'!AW20 -> 311.6517963 | CQ20: ='Altura long.'!AW20 -> -63.17150392 | CR20: ='Azimut long.'!AX20 -> 325.7849566 | CS20: ='Altura long.'!AX20 -> -66.92864714 | CT20: ='Azimut long.'!AY20 -> 173.4891346 | CU20: ='Altura long.'!AY20 -> 28.54648248
A21: ='Datos diarios'!A20 -> 2021-01-19 | B21: ='Azimut long.'!C21 -> 343.4928712 | C21: ='Altura long.'!C21 -> -71.02198155 | D21: ='Azimut long.'!D21 -> 3.595238321 | E21: ='Altura long.'!D21 -> -70.01183279 | F21: ='Azimut long.'!E21 -> 23.17266263 | G21: ='Altura long.'!E21 -> -68.68887661 | H21: ='Azimut long.'!F21 -> 39.67449964 | I21: ='Altura long.'!F21 -> -65.70991387 | J21: ='Azimut long.'!G21 -> 52.58794365 | K21: ='Altura long.'!G21 -> -61.59397341 | L21: ='Azimut long.'!H21 -> 62.62595432 | M21: ='Altura long.'!H21 -> -56.77536341 | N21: ='Azimut long.'!I21 -> 70.65445494 | O21: ='Altura long.'!I21 -> -51.53727883 | P21: ='Azimut long.'!J21 -> 77.33621289 | Q21: ='Altura long.'!J21 -> -46.05267123 | R21: ='Azimut long.'!K21 -> 83.1244577 | S21: ='Altura long.'!K21 -> -40.42936745 | T21: ='Azimut long.'!L21 -> 88.32509782 | U21: ='Altura long.'!L21 -> -34.738839 | V21: ='Azimut long.'!M21 -> 93.14996691 | W21: ='Altura long.'!M21 -> -29.03256197 | X21: ='Azimut long.'!N21 -> 97.75231334 | Y21: ='Altura long.'!N21 -> -23.3513085 | Z21: ='Azimut long.'!O21 -> 102.2491171 | AA21: ='Altura long.'!O21 -> -17.73067931 | AB21: ='Azimut long.'!P21 -> 106.7350645 | AC21: ='Altura long.'!P21 -> -12.20466569 | AD21: ='Azimut long.'!Q21 -> 111.2913753 | AE21: ='Altura long.'!Q21 -> -6.808184879 | AF21: ='Azimut long.'!R21 -> 115.9913299 | AG21: ='Altura long.'!R21 -> -1.579085863 | AH21: ='Azimut long.'!S21 -> 120.9034556 | AI21: ='Altura long.'!S21 -> 3.440128834 | AJ21: ='Azimut long.'!T21 -> 126.0927289 | AK21: ='Altura long.'!T21 -> 8.200788839 | AL21: ='Azimut long.'!U21 -> 131.6197204 | AM21: ='Altura long.'!U21 -> 12.64682477 | AN21: ='Azimut long.'!V21 -> 137.5373674 | AO21: ='Altura long.'!V21 -> 16.71406647 | AP21: ='Azimut long.'!W21 -> 143.8850052 | AQ21: ='Altura long.'!W21 -> 20.33051188 | AR21: ='Azimut long.'!X21 -> 150.6797149 | AS21: ='Altura long.'!X21 -> 23.41818238 | AT21: ='Azimut long.'!Y21 -> 157.9060954 | AU21: ='Altura long.'!Y21 -> 25.89720687 | AV21: ='Azimut long.'!Z21 -> 165.5072897 | AW21: ='Altura long.'!Z21 -> 27.69245237 | AX21: ='Azimut long.'!AA21 -> 173.3816795 | AY21: ='Altura long.'!AA21 -> 28.74218159 | AZ21: ='Azimut long.'!AB21 -> 181.38953 | BA21: ='Altura long.'!AB21 -> 29.00701349 | BB21: ='Azimut long.'!AC21 -> 189.3706999 | BC21: ='Altura long.'!AC21 -> 28.47654614 | BD21: ='Azimut long.'!AD21 -> 197.1691759 | BE21: ='Altura long.'!AD21 -> 27.1712438 | BF21: ='Azimut long.'!AE21 -> 204.6562121 | BG21: ='Altura long.'!AE21 -> 25.13883507 | BH21: ='Azimut long.'!AF21 -> 211.7447355 | BI21: ='Altura long.'!AF21 -> 22.44660978 | BJ21: ='Azimut long.'!AG21 -> 218.3924131 | BK21: ='Altura long.'!AG21 -> 19.17226569 | BL21: ='Azimut long.'!AH21 -> 224.5959136 | BM21: ='Altura long.'!AH21 -> 15.39575985 | BN21: ='Azimut long.'!AI21 -> 230.3810316 | BO21: ='Altura long.'!AI21 -> 11.19349896 | BP21: ='Azimut long.'!AJ21 -> 235.7927098 | BQ21: ='Altura long.'!AJ21 -> 6.635055405 | BR21: ='Azimut long.'!AK21 -> 240.8871967 | BS21: ='Altura long.'!AK21 -> 1.781923887 | BT21: ='Azimut long.'!AL21 -> 245.7270226 | BU21: ='Altura long.'!AL21 -> -3.312350271 | BV21: ='Azimut long.'!AM21 -> 250.3786238 | BW21: ='Altura long.'!AM21 -> -8.6012405 | BX21: ='Azimut long.'!AN21 -> 254.9122304 | BY21: ='Altura long.'!AN21 -> -14.04388148 | BZ21: ='Azimut long.'!AO21 -> 259.4037542 | CA21: ='Altura long.'!AO21 -> -19.60346916 | CB21: ='Azimut long.'!AP21 -> 263.9387434 | CC21: ='Altura long.'!AP21 -> -25.24543916 | CD21: ='Azimut long.'!AQ21 -> 268.6189298 | CE21: ='Altura long.'!AQ21 -> -30.93529015 | CF21: ='Azimut long.'!AR21 -> 273.5725876 | CG21: ='Altura long.'!AR21 -> -36.63572783 | CH21: ='Azimut long.'!AS21 -> 278.9709254 | CI21: ='Altura long.'!AS21 -> -42.30250033 | CJ21: ='Azimut long.'!AT21 -> 285.054133 | CK21: ='Altura long.'!AT21 -> -47.87773871 | CL21: ='Azimut long.'!AU21 -> 292.171821 | CM21: ='Altura long.'!AU21 -> -53.27858694 | CN21: ='Azimut long.'!AV21 -> 300.8389326 | CO21: ='Altura long.'!AV21 -> -58.37723764 | CP21: ='Azimut long.'!AW21 -> 311.780802 | CQ21: ='Altura long.'!AW21 -> -62.96728552 | CR21: ='Azimut long.'!AX21 -> 325.8372699 | CS21: ='Altura long.'!AX21 -> -66.71841772 | CT21: ='Azimut long.'!AY21 -> 173.3816795 | CU21: ='Altura long.'!AY21 -> 28.74218159
A22: ='Datos diarios'!A21 -> 2021-01-20 | B22: ='Azimut long.'!C22 -> 343.412234 | C22: ='Altura long.'!C22 -> -70.8216123 | D22: ='Azimut long.'!D22 -> 3.355235447 | E22: ='Altura long.'!D22 -> -69.81940639 | F22: ='Azimut long.'!E22 -> 22.81598517 | G22: ='Altura long.'!E22 -> -68.52466218 | H22: ='Azimut long.'!F22 -> 39.27714731 | I22: ='Altura long.'!F22 -> -65.57686673 | J22: ='Azimut long.'!G22 -> 52.20120946 | K22: ='Altura long.'!G22 -> -61.48723319 | L22: ='Azimut long.'!H22 -> 62.26885672 | M22: ='Altura long.'!H22 -> -56.68791242 | N22: ='Azimut long.'!I22 -> 70.32924536 | O22: ='Altura long.'!I22 -> -51.46290074 | P22: ='Azimut long.'!J22 -> 77.03928242 | Q22: ='Altura long.'!J22 -> -45.98653406 | R22: ='Azimut long.'!K22 -> 82.85093437 | S22: ='Altura long.'!K22 -> -40.36780701 | T22: ='Azimut long.'!L22 -> 88.07039201 | U22: ='Altura long.'!L22 -> -34.67902834 | V22: ='Azimut long.'!M22 -> 92.91016864 | W22: ='Altura long.'!M22 -> -28.97224074 | X22: ='Azimut long.'!N22 -> 97.52421109 | Y22: ='Altura long.'!N22 -> -23.28858858 | Z22: ='Azimut long.'!O22 -> 102.0301202 | AA22: ='Altura long.'!O22 -> -17.66391004 | AB22: ='Azimut long.'!P22 -> 106.5231206 | AC22: ='Altura long.'!P22 -> -12.13234134 | AD22: ='Azimut long.'!Q22 -> 111.0849167 | AE22: ='Altura long.'!Q22 -> -6.728882538 | AF22: ='Azimut long.'!R22 -> 115.7892575 | AG22: ='Altura long.'!R22 -> -1.4914273 | AH22: ='Azimut long.'!S22 -> 120.7051666 | AI22: ='Altura long.'!S22 -> 3.537492969 | AJ22: ='Azimut long.'!T22 -> 125.8981814 | AK22: ='Altura long.'!T22 -> 8.309170455 | AL22: ='Azimut long.'!U22 -> 131.42954 | AM22: ='Altura long.'!U22 -> 12.76746017 | AN22: ='Azimut long.'!V22 -> 137.3529705 | AO22: ='Altura long.'!V22 -> 16.84804175 | AP22: ='Azimut long.'!W22 -> 143.708708 | AQ22: ='Altura long.'!W22 -> 20.47864718 | AR22: ='Azimut long.'!X22 -> 150.5147534 | AS22: ='Altura long.'!X22 -> 23.58087846 | AT22: ='Azimut long.'!Y22 -> 157.7564779 | AU22: ='Altura long.'!Y22 -> 26.07427524 | AV22: ='Azimut long.'!Z22 -> 165.3773971 | AW22: ='Altura long.'!Z22 -> 27.88297377 | AX22: ='Azimut long.'!AA22 -> 173.275612 | AY22: ='Altura long.'!AA22 -> 28.94445565 | AZ22: ='Azimut long.'!AB22 -> 181.3103619 | BA22: ='Altura long.'!AB22 -> 29.21865345 | BB22: ='Azimut long.'!AC22 -> 189.3198768 | BC22: ='Altura long.'!AC22 -> 28.69472569 | BD22: ='Azimut long.'!AD22 -> 197.1463137 | BE22: ='Altura long.'!AD22 -> 27.3930359 | BF22: ='Azimut long.'!AE22 -> 204.6593755 | BG22: ='Altura long.'!AE22 -> 25.36154176 | BH22: ='Azimut long.'!AF22 -> 211.7709816 | BI22: ='Altura long.'!AF22 -> 22.66799541 | BJ22: ='Azimut long.'!AG22 -> 218.4384199 | BK22: ='Altura long.'!AG22 -> 19.39066039 | BL22: ='Azimut long.'!AH22 -> 224.6584794 | BM22: ='Altura long.'!AH22 -> 15.61005257 | BN22: ='Azimut long.'!AI22 -> 230.45738 | BO22: ='Altura long.'!AI22 -> 11.40306457 | BP22: ='Azimut long.'!AJ22 -> 235.8806225 | BQ22: ='Altura long.'!AJ22 -> 6.839658001 | BR22: ='Azimut long.'!AK22 -> 240.9850347 | BS22: ='Altura long.'!AK22 -> 1.981624408 | BT22: ='Azimut long.'!AL22 -> 245.8336813 | BU22: ='Altura long.'!AL22 -> -3.1172684 | BV22: ='Azimut long.'!AM22 -> 250.4934649 | BW22: ='Altura long.'!AM22 -> -8.410323656 | BX22: ='Azimut long.'!AN22 -> 255.0350116 | BY22: ='Altura long.'!AN22 -> -13.85653669 | BZ22: ='Azimut long.'!AO22 -> 259.5345582 | CA22: ='Altura long.'!AO22 -> -19.41897568 | CB22: ='Azimut long.'!AP22 -> 264.0778972 | CC22: ='Altura long.'!AP22 -> -25.06294264 | CD22: ='Azimut long.'!AQ22 -> 268.7668986 | CE22: ='Altura long.'!AQ22 -> -30.75378073 | CF22: ='Azimut long.'!AR22 -> 273.729787 | CG22: ='Altura long.'!AR22 -> -36.45400328 | CH22: ='Azimut long.'!AS22 -> 279.1373401 | CI22: ='Altura long.'!AS22 -> -42.11911843 | CJ22: ='Azimut long.'!AT22 -> 285.2285087 | CK22: ='Altura long.'!AT22 -> -47.69097491 | CL22: ='Azimut long.'!AU22 -> 292.3499146 | CM22: ='Altura long.'!AU22 -> -53.086451 | CN22: ='Azimut long.'!AV22 -> 301.0098684 | CO22: ='Altura long.'!AV22 -> -58.17770811 | CP22: ='Azimut long.'!AW22 -> 311.920475 | CQ22: ='Altura long.'!AW22 -> -62.75915954 | CR22: ='Azimut long.'!AX22 -> 325.9012585 | CS22: ='Altura long.'!AX22 -> -66.50341943 | CT22: ='Azimut long.'!AY22 -> 173.275612 | CU22: ='Altura long.'!AY22 -> 28.94445565
A23: ='Datos diarios'!A22 -> 2021-01-21 | B23: ='Azimut long.'!C23 -> 343.3435519 | C23: ='Altura long.'!C23 -> -70.61418352 | D23: ='Azimut long.'!D23 -> 3.125111333 | E23: ='Altura long.'!D23 -> -69.62002452 | F23: ='Azimut long.'!E23 -> 22.46467848 | G23: ='Altura long.'!E23 -> -68.35281626 | H23: ='Azimut long.'!F23 -> 38.88055572 | I23: ='Altura long.'!F23 -> -65.43608528 | J23: ='Azimut long.'!G23 -> 51.81219743 | K23: ='Altura long.'!G23 -> -61.3730182 | L23: ='Azimut long.'!H23 -> 61.90795419 | M23: ='Altura long.'!H23 -> -56.5933574 | N23: ='Azimut long.'!I23 -> 69.9996202 | O23: ='Altura long.'!I23 -> -51.38176902 | P23: ='Azimut long.'!J23 -> 76.73779089 | Q23: ='Altura long.'!J23 -> -45.91392996 | R23: ='Azimut long.'!K23 -> 82.57291979 | S23: ='Altura long.'!K23 -> -40.29999736 | T23: ='Azimut long.'!L23 -> 87.81135725 | U23: ='Altura long.'!L23 -> -34.61312415 | V23: ='Azimut long.'!M23 -> 92.66623702 | W23: ='Altura long.'!M23 -> -28.90592894 | X23: ='Azimut long.'!N23 -> 97.29217867 | Y23: ='Altura long.'!N23 -> -23.21993685 | Z23: ='Azimut long.'!O23 -> 101.8073945 | AA23: ='Altura long.'!O23 -> -17.5912305 | AB23: ='Azimut long.'!P23 -> 106.3076455 | AC23: ='Altura long.'!P23 -> -12.05409663 | AD23: ='Azimut long.'!Q23 -> 110.8751248 | AE23: ='Altura long.'!Q23 -> -6.643622611 | AF23: ='Azimut long.'!R23 -> 115.5840582 | AG23: ='Altura long.'!R23 -> -1.397750736 | AH23: ='Azimut long.'!S23 -> 120.503973 | AI23: ='Altura long.'!S23 -> 3.640954906 | AJ23: ='Azimut long.'!T23 -> 125.7009827 | AK23: ='Altura long.'!T23 -> 8.423744792 | AL23: ='Azimut long.'!U23 -> 131.2370094 | AM23: ='Altura long.'!U23 -> 12.89439287 | AN23: ='Azimut long.'!V23 -> 137.1665923 | AO23: ='Altura long.'!V23 -> 16.98842115 | AP23: ='Azimut long.'!W23 -> 143.5308865 | AQ23: ='Altura long.'!W23 -> 20.63328517 | AR23: ='Azimut long.'!X23 -> 150.3488369 | AS23: ='Altura long.'!X23 -> 23.75015347 | AT23: ='Azimut long.'!Y23 -> 157.6065988 | AU23: ='Altura long.'!Y23 -> 26.25795854 | AV23: ='Azimut long.'!Z23 -> 165.248056 | AW23: ='Altura long.'!Z23 -> 28.08008578 | AX23: ='Azimut long.'!AA23 -> 173.1710052 | AY23: ='Altura long.'!AA23 -> 29.15321704 | AZ23: ='Azimut long.'!AB23 -> 181.2335919 | BA23: ='Altura long.'!AB23 -> 29.43658675 | BB23: ='Azimut long.'!AC23 -> 189.2723572 | BC23: ='Altura long.'!AC23 -> 28.91891371 | BD23: ='Azimut long.'!AD23 -> 197.1275685 | BE23: ='Altura long.'!AD23 -> 27.62047383 | BF23: ='Azimut long.'!AE23 -> 204.6673134 | BG23: ='Altura long.'!AE23 -> 25.58947707 | BH23: ='Azimut long.'!AF23 -> 211.8024989 | BI23: ='Altura long.'!AF23 -> 22.89416533 | BJ23: ='Azimut long.'!AG23 -> 218.4900461 | BK23: ='Altura long.'!AG23 -> 19.61339361 | BL23: ='Azimut long.'!AH23 -> 224.7268936 | BM23: ='Altura long.'!AH23 -> 15.82825696 | BN23: ='Azimut long.'!AI23 -> 230.5397189 | BO23: ='Altura long.'!AI23 -> 11.61614781 | BP23: ='Azimut long.'!AJ23 -> 235.9746165 | BQ23: ='Altura long.'!AJ23 -> 7.047425334 | BR23: ='Azimut long.'!AK23 -> 241.0890175 | BS23: ='Altura long.'!AK23 -> 2.18418218 | BT23: ='Azimut long.'!AL23 -> 245.9465444 | BU23: ='Altura long.'!AL23 -> -2.919589578 | BV23: ='Azimut long.'!AM23 -> 250.6145852 | BW23: ='Altura long.'!AM23 -> -8.217022353 | BX23: ='Azimut long.'!AN23 -> 255.1641741 | BY23: ='Altura long.'!AN23 -> -13.66697167 | BZ23: ='Azimut long.'!AO23 -> 259.6718835 | CA23: ='Altura long.'!AO23 -> -19.23237681 | CB23: ='Azimut long.'!AP23 -> 264.2237642 | CC23: ='Altura long.'!AP23 -> -24.8784039 | CD23: ='Azimut long.'!AQ23 -> 268.9218333 | CE23: ='Altura long.'!AQ23 -> -30.57023632 | CF23: ='Azimut long.'!AR23 -> 273.8942762 | CG23: ='Altura long.'!AR23 -> -36.27018825 | CH23: ='Azimut long.'!AS23 -> 279.3114517 | CI23: ='Altura long.'!AS23 -> -41.93351769 | CJ23: ='Azimut long.'!AT23 -> 285.4110821 | CK23: ='Altura long.'!AT23 -> -47.50177643 | CL23: ='Azimut long.'!AU23 -> 292.5368142 | CM23: ='Altura long.'!AU23 -> -52.89155693 | CN23: ='Azimut long.'!AV23 -> 301.1903441 | CO23: ='Altura long.'!AV23 -> -57.97496209 | CP23: ='Azimut long.'!AW23 -> 312.0705843 | CQ23: ='Altura long.'!AW23 -> -62.54718624 | CR23: ='Azimut long.'!AX23 -> 325.9766839 | CS23: ='Altura long.'!AX23 -> -66.28372196 | CT23: ='Azimut long.'!AY23 -> 173.1710052 | CU23: ='Altura long.'!AY23 -> 29.15321704
A24: ='Datos diarios'!A23 -> 2021-01-22 | B24: ='Azimut long.'!C24 -> 343.2866697 | C24: ='Altura long.'!C24 -> -70.39979552 | D24: ='Azimut long.'!D24 -> 2.904968488 | E24: ='Altura long.'!D24 -> -69.41377442 | F24: ='Azimut long.'!E24 -> 22.11913117 | G24: ='Altura long.'!E24 -> -68.17340061 | H24: ='Azimut long.'!F24 -> 38.48522569 | I24: ='Altura long.'!F24 -> -65.28759163 | J24: ='Azimut long.'!G24 -> 51.42137404 | K24: ='Altura long.'!G24 -> -61.25131938 | L24: ='Azimut long.'!H24 -> 61.54363759 | M24: ='Altura long.'!H24 -> -56.49167211 | N24: ='Azimut long.'!I24 -> 69.66589978 | O24: ='Altura long.'!I24 -> -51.29385059 | P24: ='Azimut long.'!J24 -> 76.4320026 | Q24: ='Altura long.'!J24 -> -45.83482525 | R24: ='Azimut long.'!K24 -> 82.29063746 | S24: ='Altura long.'!K24 -> -40.2259077 | T24: ='Azimut long.'!L24 -> 87.54818581 | U24: ='Altura long.'!L24 -> -34.54110053 | V24: ='Azimut long.'!M24 -> 92.41834155 | W24: ='Altura long.'!M24 -> -28.83360677 | X24: ='Azimut long.'!N24 -> 97.05636938 | Y24: ='Altura long.'!N24 -> -23.14534037 | Z24: ='Azimut long.'!O24 -> 101.5810795 | AA24: ='Altura long.'!O24 -> -17.51263515 | AB24: ='Azimut long.'!P24 -> 106.0887686 | AC24: ='Altura long.'!P24 -> -11.96993378 | AD24: ='Azimut long.'!Q24 -> 110.6621205 | AE24: ='Altura long.'!Q24 -> -6.552415417 | AF24: ='Azimut long.'!R24 -> 115.3758428 | AG24: ='Altura long.'!R24 -> -1.298074825 | AH24: ='Azimut long.'!S24 -> 120.2999791 | AI24: ='Altura long.'!S24 -> 3.750487486 | AJ24: ='Azimut long.'!T24 -> 125.501231 | AK24: ='Altura long.'!T24 -> 8.544476097 | AL24: ='Azimut long.'!U24 -> 131.0422203 | AM24: ='Altura long.'!U24 -> 13.02757858 | AN24: ='Azimut long.'!V24 -> 136.9783172 | AO24: ='Altura long.'!V24 -> 17.13515193 | AP24: ='Azimut long.'!W24 -> 143.351621 | AQ24: ='Altura long.'!W24 -> 20.79436502 | AR24: ='Azimut long.'!X24 -> 150.1820395 | AS24: ='Altura long.'!X24 -> 23.92593881 | AT24: ='Azimut long.'!Y24 -> 157.4565265 | AU24: ='Altura long.'!Y24 -> 26.44818082 | AV24: ='Azimut long.'!Z24 -> 165.1193327 | AW24: ='Altura long.'!Z24 -> 28.2837054 | AX24: ='Azimut long.'!AA24 -> 173.0679179 | AY24: ='Altura long.'!AA24 -> 29.36837586 | AZ24: ='Azimut long.'!AB24 -> 181.1592893 | BA24: ='Altura long.'!AB24 -> 29.66071663 | BB24: ='Azimut long.'!AC24 -> 189.228213 | BC24: ='Altura long.'!AC24 -> 29.14900675 | BD24: ='Azimut long.'!AD24 -> 197.1129999 | BE24: ='Altura long.'!AD24 -> 27.85344794 | BF24: ='Azimut long.'!AE24 -> 204.6800795 | BG24: ='Altura long.'!AE24 -> 25.8225262 | BH24: ='Azimut long.'!AF24 -> 211.8393312 | BI24: ='Altura long.'!AF24 -> 23.12500106 | BJ24: ='Azimut long.'!AG24 -> 218.5473247 | BK24: ='Altura long.'!AG24 -> 19.84034492 | BL24: ='Azimut long.'!AH24 -> 224.8011748 | BM24: ='Altura long.'!AH24 -> 16.05025236 | BN24: ='Azimut long.'!AI24 -> 230.628055 | BO24: ='Altura long.'!AI24 -> 11.8326294 | BP24: ='Azimut long.'!AJ24 -> 236.0746837 | BQ24: ='Altura long.'!AJ24 -> 7.258240836 | BR24: ='Azimut long.'!AK24 -> 241.199126 | BS24: ='Altura long.'!AK24 -> 2.389484428 | BT24: ='Azimut long.'!AL24 -> 246.0655831 | BU24: ='Altura long.'!AL24 -> -2.719421955 | BV24: ='Azimut long.'!AM24 -> 250.7419442 | BW24: ='Altura long.'!AM24 -> -8.0214395 | BX24: ='Azimut long.'!AN24 -> 255.2996668 | BY24: ='Altura long.'!AN24 -> -13.47528362 | BZ24: ='Azimut long.'!AO24 -> 259.8156705 | CA24: ='Altura long.'!AO24 -> -19.04376378 | CB24: ='Azimut long.'!AP24 -> 264.3762721 | CC24: ='Altura long.'!AP24 -> -24.69190792 | CD24: ='Azimut long.'!AQ24 -> 269.0836485 | CE24: ='Altura long.'!AQ24 -> -30.3847356 | CF24: ='Azimut long.'!AR24 -> 274.065954 | CG24: ='Altura long.'!AR24 -> -36.0843552 | CH24: ='Azimut long.'!AS24 -> 279.4931406 | CI24: ='Altura long.'!AS24 -> -41.74576458 | CJ24: ='Azimut long.'!AT24 -> 285.601712 | CK24: ='Altura long.'!AT24 -> -47.31020447 | CL24: ='Azimut long.'!AU24 -> 292.73235 | CM24: ='Altura long.'!AU24 -> -52.69396201 | CN24: ='Azimut long.'!AV24 -> 301.3801563 | CO24: ='Altura long.'!AV24 -> -57.76905554 | CP24: ='Azimut long.'!AW24 -> 312.2308923 | CQ24: ='Altura long.'!AW24 -> -62.33142474 | CR24: ='Azimut long.'!AX24 -> 326.0632931 | CS24: ='Altura long.'!AX24 -> -66.05939457 | CT24: ='Azimut long.'!AY24 -> 173.0679179 | CU24: ='Altura long.'!AY24 -> 29.36837586
A25: ='Datos diarios'!A24 -> 2021-01-23 | B25: ='Azimut long.'!C25 -> 343.2414094 | C25: ='Altura long.'!C25 -> -70.17855187 | D25: ='Azimut long.'!D25 -> 2.694880975 | E25: ='Altura long.'!D25 -> -69.200747 | F25: ='Azimut long.'!E25 -> 21.77970654 | G25: ='Altura long.'!E25 -> -67.9864831 | H25: ='Azimut long.'!F25 -> 38.09164086 | I25: ='Altura long.'!F25 -> -65.13141501 | J25: ='Azimut long.'!G25 -> 51.02919938 | K25: ='Altura long.'!G25 -> -61.12213437 | L25: ='Azimut long.'!H25 -> 61.17629632 | M25: ='Altura long.'!H25 -> -56.38283615 | N25: ='Azimut long.'!I25 -> 69.32840428 | O25: ='Altura long.'!I25 -> -51.19911746 | P25: ='Azimut long.'!J25 -> 76.12218391 | Q25: ='Altura long.'!J25 -> -45.74919071 | R25: ='Azimut long.'!K25 -> 82.00431301 | S25: ='Altura long.'!K25 -> -40.14551128 | T25: ='Azimut long.'!L25 -> 87.28107406 | U25: ='Altura long.'!L25 -> -34.46293531 | V25: ='Azimut long.'!M25 -> 92.16665602 | W25: ='Altura long.'!M25 -> -28.75525792 | X25: ='Azimut long.'!N25 -> 96.81693732 | Y25: ='Altura long.'!N25 -> -23.06478951 | Z25: ='Azimut long.'!O25 -> 101.3513155 | AA25: ='Altura long.'!O25 -> -17.4281216 | AB25: ='Azimut long.'!P25 -> 105.8666185 | AC25: ='Altura long.'!P25 -> -11.87985809 | AD25: ='Azimut long.'!Q25 -> 110.4460223 | AE25: ='Altura long.'!Q25 -> -6.455274254 | AF25: ='Azimut long.'!R25 -> 115.1647243 | AG25: ='Altura long.'!R25 -> -1.192421115 | AH25: ='Azimut long.'!S25 -> 120.0932901 | AI25: ='Altura long.'!S25 -> 3.866060736 | AJ25: ='Azimut long.'!T25 -> 125.2990242 | AK25: ='Altura long.'!T25 -> 8.671325888 | AL25: ='Azimut long.'!U25 -> 130.8452638 | AM25: ='Altura long.'!U25 -> 13.1669703 | AN25: ='Azimut long.'!V25 -> 136.7882315 | AO25: ='Altura long.'!V25 -> 17.2881788 | AP25: ='Azimut long.'!W25 -> 143.1709905 | AQ25: ='Altura long.'!W25 -> 20.96182338 | AR25: ='Azimut long.'!X25 -> 150.0144361 | AS25: ='Altura long.'!X25 -> 24.10816351 | AT25: ='Azimut long.'!Y25 -> 157.3063345 | AU25: ='Altura long.'!Y25 -> 26.64486382 | AV25: ='Azimut long.'!Z25 -> 164.9912989 | AW25: ='Altura long.'!Z25 -> 28.49374736 | AX25: ='Azimut long.'!AA25 -> 172.9664267 | AY25: ='Altura long.'!AA25 -> 29.58983999 | AZ25: ='Azimut long.'!AB25 -> 181.0875217 | BA25: ='Altura long.'!AB25 -> 29.89094414 | BB25: ='Azimut long.'!AC25 -> 189.187509 | BC25: ='Altura long.'!AC25 -> 29.38489923 | BD25: ='Azimut long.'!AD25 -> 197.1026683 | BE25: ='Altura long.'!AD25 -> 28.09184654 | BF25: ='Azimut long.'!AE25 -> 204.6977291 | BG25: ='Altura long.'!AE25 -> 26.0605724 | BH25: ='Azimut long.'!AF25 -> 211.8815238 | BI25: ='Altura long.'!AF25 -> 23.36038231 | BJ25: ='Azimut long.'!AG25 -> 218.6102861 | BK25: ='Altura long.'!AG25 -> 20.07139228 | BL25: ='Azimut long.'!AH25 -> 224.8813412 | BM25: ='Altura long.'!AH25 -> 16.27591675 | BN25: ='Azimut long.'!AI25 -> 230.7223923 | BO25: ='Altura long.'!AI25 -> 12.05238896 | BP25: ='Azimut long.'!AJ25 -> 236.1808165 | BQ25: ='Altura long.'!AJ25 -> 7.47198713 | BR25: ='Azimut long.'!AK25 -> 241.3153409 | BS25: ='Altura long.'!AK25 -> 2.597417854 | BT25: ='Azimut long.'!AL25 -> 246.1907656 | BU25: ='Altura long.'!AL25 -> -2.516873934 | BV25: ='Azimut long.'!AM25 -> 250.8755001 | BW25: ='Altura long.'!AM25 -> -7.823678 | BX25: ='Azimut long.'!AN25 -> 255.4414376 | BY25: ='Altura long.'!AN25 -> -13.28156952 | BZ25: ='Azimut long.'!AO25 -> 259.9658554 | CA25: ='Altura long.'!AO25 -> -18.85322732 | CB25: ='Azimut long.'!AP25 -> 264.5353463 | CC25: ='Altura long.'!AP25 -> -24.50353906 | CD25: ='Azimut long.'!AQ25 -> 269.252256 | CE25: ='Altura long.'!AQ25 -> -30.19735645 | CF25: ='Azimut long.'!AR25 -> 274.2447183 | CG25: ='Altura long.'!AR25 -> -35.89657559 | CH25: ='Azimut long.'!AS25 -> 279.6822858 | CI25: ='Altura long.'!AS25 -> -41.55592449 | CJ25: ='Azimut long.'!AT25 -> 285.8002529 | CK25: ='Altura long.'!AT25 -> -47.11631901 | CL25: ='Azimut long.'!AU25 -> 292.9363481 | CM25: ='Altura long.'!AU25 -> -52.49372225 | CN25: ='Azimut long.'!AV25 -> 301.5790978 | CO25: ='Altura long.'!AV25 -> -57.56004315 | CP25: ='Azimut long.'!AW25 -> 312.4011551 | CQ25: ='Altura long.'!AW25 -> -62.11193316 | CR25: ='Azimut long.'!AX25 -> 326.160822 | CS25: ='Altura long.'!AX25 -> -65.83050622 | CT25: ='Azimut long.'!AY25 -> 172.9664267 | CU25: ='Altura long.'!AY25 -> 29.58983999
A26: ='Datos diarios'!A25 -> 2021-01-24 | B26: ='Azimut long.'!C26 -> 343.2075781 | C26: ='Altura long.'!C26 -> -69.95055925 | D26: ='Azimut long.'!D26 -> 2.494894734 | E26: ='Altura long.'!D26 -> -68.98103673 | F26: ='Azimut long.'!E26 -> 21.44673727 | G26: ='Altura long.'!E26 -> -67.79213753 | H26: ='Azimut long.'!F26 -> 37.70026942 | I26: ='Altura long.'!F26 -> -64.96759166 | J26: ='Azimut long.'!G26 -> 50.63612899 | K26: ='Altura long.'!G26 -> -60.98546756 | L26: ='Azimut long.'!H26 -> 60.80631979 | M26: ='Altura long.'!H26 -> -56.26683509 | N26: ='Azimut long.'!I26 -> 68.9874562 | O26: ='Altura long.'!I26 -> -51.09754681 | P26: ='Azimut long.'!J26 -> 75.80860312 | Q26: ='Altura long.'!J26 -> -45.65700169 | R26: ='Azimut long.'!K26 -> 81.71417349 | S26: ='Altura long.'!K26 -> -40.05878546 | T26: ='Azimut long.'!L26 -> 87.01021783 | U26: ='Altura long.'!L26 -> -34.37861011 | V26: ='Azimut long.'!M26 -> 91.91135277 | W26: ='Altura long.'!M26 -> -28.67086964 | X26: ='Azimut long.'!N26 -> 96.57403896 | Y26: ='Altura long.'!N26 -> -22.97827803 | Z26: ='Azimut long.'!O26 -> 101.1182452 | AA26: ='Altura long.'!O26 -> -17.3376907 | AB26: ='Azimut long.'!P26 -> 105.6413259 | AC26: ='Altura long.'!P26 -> -11.78387796 | AD26: ='Azimut long.'!Q26 -> 110.2269517 | AE26: ='Altura long.'!Q26 -> -6.352215415 | AF26: ='Azimut long.'!R26 -> 114.950814 | AG26: ='Altura long.'!R26 -> -1.080814049 | AH26: ='Azimut long.'!S26 -> 119.8840114 | AI26: ='Altura long.'!S26 -> 3.98764188 | AJ26: ='Azimut long.'!T26 -> 125.0944606 | AK26: ='Altura long.'!T26 -> 8.804252969 | AL26: ='Azimut long.'!U26 -> 130.6462317 | AM26: ='Altura long.'!U26 -> 13.31251847 | AN26: ='Azimut long.'!V26 -> 136.5964188 | AO26: ='Altura long.'!V26 -> 17.44744394 | AP26: ='Azimut long.'!W26 -> 142.989074 | AQ26: ='Altura long.'!W26 -> 21.13559448 | AR26: ='Azimut long.'!X26 -> 149.8460997 | AS26: ='Altura long.'!X26 -> 24.2967542 | AT26: ='Azimut long.'!Y26 -> 157.1560926 | AU26: ='Altura long.'!Y26 -> 26.847927 | AV26: ='Azimut long.'!Z26 -> 164.8640218 | AW26: ='Altura long.'!Z26 -> 28.71012421 | AX26: ='Azimut long.'!AA26 -> 172.8665937 | AY26: ='Altura long.'!AA26 -> 29.81751519 | AZ26: ='Azimut long.'!AB26 -> 181.0183567 | BA26: ='Altura long.'!AB26 -> 30.12716827 | BB26: ='Azimut long.'!AC26 -> 189.1503134 | BC26: ='Altura long.'!AC26 -> 29.62648349 | BD26: ='Azimut long.'!AD26 -> 197.0966384 | BE26: ='Altura long.'!AD26 -> 28.33555594 | BF26: ='Azimut long.'!AE26 -> 204.7203133 | BG26: ='Altura long.'!AE26 -> 26.30349704 | BH26: ='Azimut long.'!AF26 -> 211.9291172 | BI26: ='Altura long.'!AF26 -> 23.60018708 | BJ26: ='Azimut long.'!AG26 -> 218.67896 | BK26: ='Altura long.'!AG26 -> 20.30641214 | BL26: ='Azimut long.'!AH26 -> 224.9674072 | BM26: ='Altura long.'!AH26 -> 16.50512687 | BN26: ='Azimut long.'!AI26 -> 230.8227321 | BO26: ='Altura long.'!AI26 -> 12.27530514 | BP26: ='Azimut long.'!AJ26 -> 236.2930039 | BQ26: ='Altura long.'!AJ26 -> 7.68854616 | BR26: ='Azimut long.'!AK26 -> 241.4376382 | BS26: ='Altura long.'!AK26 -> 2.80786876 | BT26: ='Azimut long.'!AL26 -> 246.322059 | BU26: ='Altura long.'!AL26 -> -2.312054051 | BV26: ='Azimut long.'!AM26 -> 251.015209 | BW26: ='Altura long.'!AM26 -> -7.623840644 | BX26: ='Azimut long.'!AN26 -> 255.5894319 | BY26: ='Altura long.'!AN26 -> -13.085926 | BZ26: ='Azimut long.'!AO26 -> 260.1223726 | CA26: ='Altura long.'!AO26 -> -18.66085763 | CB26: ='Azimut long.'!AP26 -> 264.7009103 | CC26: ='Altura long.'!AP26 -> -24.31338091 | CD26: ='Azimut long.'!AQ26 -> 269.4275665 | CE26: ='Altura long.'!AQ26 -> -30.00817582 | CF26: ='Azimut long.'!AR26 -> 274.4304642 | CG26: ='Altura long.'!AR26 -> -35.70691984 | CH26: ='Azimut long.'!AS26 -> 279.878764 | CI26: ='Altura long.'!AS26 -> -41.36406162 | CJ26: ='Azimut long.'!AT26 -> 286.0065599 | CK26: ='Altura long.'!AT26 -> -46.92017879 | CL26: ='Azimut long.'!AU26 -> 293.1486332 | CM26: ='Altura long.'!AU26 -> -52.29089242 | CN26: ='Azimut long.'!AV26 -> 301.7869565 | CO26: ='Altura long.'!AV26 -> -57.34797845 | CP26: ='Azimut long.'!AW26 -> 312.5811221 | CQ26: ='Altura long.'!AW26 -> -61.88876869 | CR26: ='Azimut long.'!AX26 -> 326.2689994 | CS26: ='Altura long.'!AX26 -> -65.59712568 | CT26: ='Azimut long.'!AY26 -> 172.8665937 | CU26: ='Altura long.'!AY26 -> 29.81751519
A27: ='Datos diarios'!A26 -> 2021-01-25 | B27: ='Azimut long.'!C27 -> 343.184962 | C27: ='Altura long.'!C27 -> -69.71592724 | D27: ='Azimut long.'!D27 -> 2.30503016 | E27: ='Altura long.'!D27 -> -68.75474142 | F27: ='Azimut long.'!E27 -> 21.12053273 | G27: ='Altura long.'!E27 -> -67.59044347 | H27: ='Azimut long.'!F27 -> 37.31156251 | I27: ='Altura long.'!F27 -> -64.7961648 | J27: ='Azimut long.'!G27 -> 50.2426107 | K27: ='Altura long.'!G27 -> -60.84133014 | L27: ='Azimut long.'!H27 -> 60.43409393 | M27: ='Altura long.'!H27 -> -56.14366058 | N27: ='Azimut long.'!I27 -> 68.64337797 | O27: ='Altura long.'!I27 -> -50.98912118 | P27: ='Azimut long.'!J27 -> 75.49152996 | Q27: ='Altura long.'!J27 -> -45.55823831 | R27: ='Azimut long.'!K27 -> 81.42044872 | S27: ='Altura long.'!K27 -> -39.96571189 | T27: ='Azimut long.'!L27 -> 86.73581613 | U27: ='Altura long.'!L27 -> -34.28811049 | V27: ='Azimut long.'!M27 -> 91.65260717 | W27: ='Altura long.'!M27 -> -28.58043285 | X27: ='Azimut long.'!N27 -> 96.32783058 | Y27: ='Altura long.'!N27 -> -22.88580313 | Z27: ='Azimut long.'!O27 -> 100.88201 | AA27: ='Altura long.'!O27 -> -17.24134662 | AB27: ='Azimut long.'!P27 -> 105.4130211 | AC27: ='Altura long.'!P27 -> -11.68200494 | AD27: ='Azimut long.'!Q27 -> 110.0050294 | AE27: ='Altura long.'!Q27 -> -6.243258216 | AF27: ='Azimut long.'!R27 -> 114.7342241 | AG27: ='Altura long.'!R27 -> -0.9632809816 | AH27: ='Azimut long.'!S27 -> 119.6722456 | AI27: ='Altura long.'!S27 -> 4.11519534 | AJ27: ='Azimut long.'!T27 -> 124.8876362 | AK27: ='Altura long.'!T27 -> 8.94321345 | AL27: ='Azimut long.'!U27 -> 130.4452139 | AM27: ='Altura long.'!U27 -> 13.4641709 | AN27: ='Azimut long.'!V27 -> 136.402964 | AO27: ='Altura long.'!V27 -> 17.61288705 | AP27: ='Azimut long.'!W27 -> 142.8059496 | AQ27: ='Altura long.'!W27 -> 21.3156102 | AR27: ='Azimut long.'!X27 -> 149.6771043 | AS27: ='Altura long.'!X27 -> 24.4916353 | AT27: ='Azimut long.'!Y27 -> 157.0058687 | AU27: ='Altura long.'!Y27 -> 27.05728767 | AV27: ='Azimut long.'!Z27 -> 164.7375682 | AW27: ='Altura long.'!Z27 -> 28.93274643 | AX27: ='Azimut long.'!AA27 -> 172.7684882 | AY27: ='Altura long.'!AA27 -> 30.05130518 | AZ27: ='Azimut long.'!AB27 -> 180.9518612 | BA27: ='Altura long.'!AB27 -> 30.36928601 | BB27: ='Azimut long.'!AC27 -> 189.1166893 | BC27: ='Altura long.'!AC27 -> 29.87364997 | BD27: ='Azimut long.'!AD27 -> 197.0949686 | BE27: ='Altura long.'!AD27 -> 28.58446058 | BF27: ='Azimut long.'!AE27 -> 204.7478867 | BG27: ='Altura long.'!AE27 -> 26.55117972 | BH27: ='Azimut long.'!AF27 -> 211.9821535 | BI27: ='Altura long.'!AF27 -> 23.84429178 | BJ27: ='Azimut long.'!AG27 -> 218.7533733 | BK27: ='Altura long.'!AG27 -> 20.54527958 | BL27: ='Azimut long.'!AH27 -> 225.0593879 | BM27: ='Altura long.'!AH27 -> 16.73775833 | BN27: ='Azimut long.'!AI27 -> 230.9290752 | BO27: ='Altura long.'!AI27 -> 12.50125576 | BP27: ='Azimut long.'!AJ27 -> 236.411233 | BQ27: ='Altura long.'!AJ27 -> 7.907799323 | BR27: ='Azimut long.'!AK27 -> 241.5659941 | BS27: ='Altura long.'!AK27 -> 3.020723176 | BT27: ='Azimut long.'!AL27 -> 246.459426 | BU27: ='Altura long.'!AL27 -> -2.105070853 | BV27: ='Azimut long.'!AM27 -> 251.1610242 | BW27: ='Altura long.'!AM27 -> -7.422029993 | BX27: ='Azimut long.'!AN27 -> 255.7435922 | BY27: ='Altura long.'!AN27 -> -12.88844925 | BZ27: ='Azimut long.'!AO27 -> 260.2851543 | CA27: ='Altura long.'!AO27 -> -18.46674428 | CB27: ='Azimut long.'!AP27 -> 264.8728845 | CC27: ='Altura long.'!AP27 -> -24.12151628 | CD27: ='Azimut long.'!AQ27 -> 269.6094877 | CE27: ='Altura long.'!AQ27 -> -29.81726975 | CF27: ='Azimut long.'!AR27 -> 274.6230844 | CG27: ='Altura long.'!AR27 -> -35.51545731 | CH27: ='Azimut long.'!AS27 -> 280.0824498 | CI27: ='Altura long.'!AS27 -> -41.17023905 | CJ27: ='Azimut long.'!AT27 -> 286.2204829 | CK27: ='Altura long.'!AT27 -> -46.72184135 | CL27: ='Azimut long.'!AU27 -> 293.3690274 | CM27: ='Altura long.'!AU27 -> -52.08552603 | CN27: ='Azimut long.'!AV27 -> 302.0035187 | CO27: ='Altura long.'!AV27 -> -57.13291381 | CP27: ='Azimut long.'!AW27 -> 312.7705391 | CQ27: ='Altura long.'!AW27 -> -61.6619877 | CR27: ='Azimut long.'!AX27 -> 326.3875404 | CS27: ='Altura long.'!AX27 -> -65.3593216 | CT27: ='Azimut long.'!AY27 -> 172.7684882 | CU27: ='Altura long.'!AY27 -> 30.05130518
